Workbook

Sheet START

Sheet Instructions
D2: 2020
X4: Yes
X5: No
W7: Type of Entities Range:
X8: Parent Municipality
X9: Consolidated Information
F14: START
F15: Instructions
F16: Template names
F17: Lookup and lists | W17: MTREF Range: | X17: 2013
F18: Org structure | X18: 2014
F19: Contacts | X19: 2015
F20: A1-Sum | X20: 2016
F21: A2-FinPerf SC | X21: 2017
F22: A2A | X22: 2018
F23: A3-FinPerf V | X23: 2019
F24: A3A | X24: 2020
F25: A4-FinPerf RE | X25: 2021
F26: A5-Capex | X26: 2022
F27: A5A | X27: 2023
F28: A6-FinPos | X28: 2024
F29: A7-CFlow | X29: 2025
F30: A8-ResRecon | X30: 2026
F31: A9-Asset | X31: 2027
F32: A10-SerDel | X32: 2028
F33: SA1 | W33: MTREF Linked: | X33: 13
F34: SA2 | W34: MTREF: | X34: =INDEX(X17:X31,X33,1) -> 2025
F35: SA3
F36: SA4 | W36: Fin Year: | X36: =MTREF&"/"&RIGHT(MTREF,2)+1 -> 2025/26
F37: SA5
F38: SA6
F39: SA7
F40: SA8
F41: SA9
F42: SA10
F43: SA11
F44: SA12a
F45: SA12b
F46: SA13a
F47: SA13b
F48: SA14
F49: SA15
F50: SA16
F51: SA17
F52: SA18
F53: SA19
F54: SA20
F55: SA21
F56: SA22
F57: SA23
F58: SA24
F59: SA25
F60: SA26
F61: SA27
F62: SA28
F63: SA29
F64: SA30
F65: SA31
F66: SA32
F67: SA33
F68: SA34a
F69: SA34b
F70: SA34c
F71: SA34d
F72: SA34e
F73: SA35
F74: SA36
F75: SA37
F76: SA38
F77: LGDB_EXPORT

Sheet Template names
A1: Common sheet headings
A2: Head1 | B2: =HLOOKUP(MTREF,Headings,2) -> 2023/24 | C2: Prior year -1
A3: Head1A | B3: =HLOOKUP(MTREF,Headings,3) -> 2022/23 | C3: Prior year -2
A4: Head1B | B4: =HLOOKUP(MTREF,Headings,4) -> 2021/22 | C4: Prior year -3
A5: Head2 | B5: =HLOOKUP(MTREF,Headings,5) -> Current Year 2024/25 | C5: Year in which budget is being prepared
A6: Head2A | B6: =HLOOKUP(MTREF,Headings,6) -> 2024/25 | C6: Year in which budget is being prepared
A7: Head3 | B7: =HLOOKUP(MTREF,Headings,7) -> 2025/26 Medium Term Revenue & Expenditure Framework | C7: MTREF name
A8: Head4 | B8: LTFS | C8: Long term financial strategy
A9: Head5 | B9: Audited Outcome
A10: Head5A | B10: Outcome
A11: Head5B | B11: Pre-audit outcome
A12: Head6 | B12: Original Budget
A13: Head7 | B13: Adjusted Budget
A14: Head8 | B14: Full Year Forecast
A15: Head9 | B15: =HLOOKUP(MTREF,Headings,8) -> Budget Year 2025/26 | C15: 1st year of MTREF | D15: Year1
A16: Head10 | B16: =HLOOKUP(MTREF,Headings,9) -> Budget Year +1 2026/27 | C16: 2nd year of MTREF | D16: Year2
A17: Head11 | B17: =HLOOKUP(MTREF,Headings,10) -> Budget Year +2 2027/28 | C17: 3rd year of MTREF | D17: Year3
A18: Head12 | B18: =HLOOKUP(MTREF,Headings,11) -> Forecast 2028/29 | C18: 1st yr of long term forecast | D18: Year4
A19: Head13 | B19: =HLOOKUP(MTREF,Headings,12) -> Forecast 2029/30 | C19: Next yr of long term forecast | D19: Year5
A20: Head14 | B20: =HLOOKUP(MTREF,Headings,13) -> Forecast 2030/31 | C20: Next yr of long term forecast | D20: Year6
A21: Head15 | B21: =HLOOKUP(MTREF,Headings,14) -> Forecast 2031/32 | C21: Next yr of long term forecast | D21: Year7
A22: Head16 | B22: =HLOOKUP(MTREF,Headings,15) -> Forecast 2032/33 | C22: Next yr of long term forecast | D22: Year8
A23: Head17 | B23: =HLOOKUP(MTREF,Headings,16) -> Forecast 2033/34 | C23: Next yr of long term forecast | D23: Year9
A24: Head18 | B24: =HLOOKUP(MTREF,Headings,17) -> Forecast 2034/35 | C24: Next yr of long term forecast | D24: Year10
A25: Head19 | B25: =HLOOKUP(MTREF,Headings,18) -> Forecast 2035/36 | C25: Next yr of long term forecast | D25: Year11
A26: Head20 | B26: =HLOOKUP(MTREF,Headings,19) -> Forecast 2036/37 | C26: Next yr of long term forecast | D26: Year12
A27: Head21 | B27: =HLOOKUP(MTREF,Headings,20) -> Forecast 2037/38 | C27: Next yr of long term forecast | D27: Year13
A28: Head22 | B28: =HLOOKUP(MTREF,Headings,21) -> Forecast 2038/39 | C28: Next yr of long term forecast | D28: Year14
A29: Head23 | B29: =HLOOKUP(MTREF,Headings,22) -> Forecast 2039/40 | C29: Next yr of long term forecast | D29: Year15
A30: Head24 | B30: Description
A31: Head25
A32: Head26 | B32: Vote Description
A33: Head27 | B33: Ref
A34: Head27a | B34: References
A35: Head28 | B35: Surplus/(Deficit) for the year | D35: Result
A36: Head29 | B36: =HLOOKUP(MTREF,Headings,23) -> Annual target 2025/26
A37: Head30 | B37: =HLOOKUP(MTREF,Headings,24) -> Revised target 2025/26
A38: Head31 | B38: Quarter ended 30 September
A39: Head32 | B39: Quarter ended 31 December
A40: Head33 | B40: Quarter ended 31 March
A41: Head34 | B41: Quarter ended 30 June
A42: Head35 | B42: Variance explanation
A43: Head36 | B43: YTD Actual 31 Dec
A44: Head37 | B44: YTD Budget 31 Dec
A45: Head38 | B45: Monthly actual
A46: Head39 | B46: YTD actual
A47: Head40 | B47: YTD budget
A48: Head41 | B48: YTD variance
A49: Head42 | B49: Surplus/ (Deficit) for the yr/period
A50: Head43 | B50: =Head3&" Summary" -> 2025/26 Medium Term Revenue & Expenditure Framework Summary
A51: Head44 | B51: 2001 Census
A52: Head45 | B52: 2011 Census
A53: Head46 | B53: - Adjustments Budget - January 2007
A54: Head47 | B54: Previous target year to complete
A55: Head48 | B55: Present value
A56: Head49
A57: Head50 | B57: Other Adjusts.
A58: Head51 | B58: Accum. Funds
A59: Head52 | B59: Multi-year capital
A60: Head53 | B60: Unfore. Unavoid.
A61: Head54 | B61: Prior Adjusted
A62: Head55 | B62: Nat. or Prov. Govt
A63: Head56 | B63: Total Adjusts.
A64: SFPerf1 | B64: Budgeted Financial Performance
A65: SFPerf2 | B65: Forecast Financial Performance
A66: SFPos1 | B66: Budgeted Financial Position
A67: SFPos2 | B67: Forecast Financial Position
A68: Cash1 | B68: Budget Cash Flow
A69: Cash2 | B69: Forecast Cash Flow
A70: RandM | B70: Expenditure includes repairs & maintenance of R'000
A71: Depart1 | B71: Department 1 - | D71: DEP1
A72: Depart2 | B72: Department 2 - | D72: DEP2
A73: Depart3 | B73: Department 3 - | D73: DEP3
A74: Depart4 | B74: Department 4 - | D74: DEP4
A75: Depart5 | B75: Department 5 - | D75: DEP5
A76: Depart6 | B76: Department 6 - | D76: DEP6
A77: Depart7 | B77: Department 7 - | D77: DEP7
A78: Depart8 | B78: Department 8 - | D78: DEP8
A79: Depart9 | B79: Department 9 - | D79: DEP9
A80: Depart10 | B80: Department 10 - | D80: DEP10
A81: Depart11 | B81: Department 11 - | D81: DEP11
A82: Depart12 | B82: Department 12 - | D82: DEP12
A83: Depart13 | B83: Department 13 - | D83: DEP13
A84: Depart14 | B84: Department 14 - | D84: DEP14
A87: Base year of forecast column selection names
A88: Choose | B88: ACT
B89: APP
B90: ADJ
A92: Standard nomenclature
A93: Muni | B93: ='Lookup and lists'!B28 -> NW403 City Of Matlosana
A94: Municipal Entities | B94: 2 | C94: Type of report: | D94: 1
A95: =IF((MuniEntities=1)*(MuniType=2),"YES","NO") -> NO | B95: Does this municipality have entities (consolidated budget and entity budgets required)? YES/NO
A96: Entity 1 | B96: (Pty) Ltd Example 1 - Municipal entity - | D96: Ent1
A97: Entity 2 | B97: (Pty) Ltd Example 2 - Municipal entity - | D97: Ent2
A98: Entity 3 | B98: Municipal Entity Example 3 | D98: Ent3
A99: Budget approval tables | C99: Chart x-ref | D99: Sch/Tab/Ch | E99: Alternative for municipalities without entities | F99: Alternative for municipalities without entities
B100: =IF(Consolques="YES",E100,F100) -> Table A1 Budget Summary | D100: Table A1 | E100: =D100&"Consolidated Budget Summary" -> Table A1 Consolidated Budget Summary | F100: =D100&"Budget Summary" -> Table A1 Budget Summary
B101: Table A2 Budgeted Financial Performance (revenue and expenditure by functional classification) | C101: Charts 5, 6 | D101: Table A2 | E101: =D101&"Consolidated Budgeted Financial Performance (revenue and expenditure by functional classification)" -> Table A2 Consolidated Budgeted Financial Performance (revenue and expenditure by functional classification) | F101: =D101&"Budgeted Financial Performance (revenue and expenditure by functional classification)" -> Table A2 Budgeted Financial Performance (revenue and expenditure by functional classification)
B102: Table A3 Budgeted Financial Performance (revenue and expenditure by municipal vote) | D102: Table A3 | E102: =D102&"Consolidated Budgeted Financial Performance (revenue and expenditure by municipal vote)" -> Table A3 Consolidated Budgeted Financial Performance (revenue and expenditure by municipal vote) | F102: =D102&"Budgeted Financial Performance (revenue and expenditure by municipal vote)" -> Table A3 Budgeted Financial Performance (revenue and expenditure by municipal vote)
B103: Table A4 Budgeted Financial Performance (revenue and expenditure) | C103: Charts 1, 2, 3, 4 | D103: Table A4 | E103: =D103&"Consolidated Budgeted Financial Performance (revenue and expenditure)" -> Table A4 Consolidated Budgeted Financial Performance (revenue and expenditure) | F103: =D103&"Budgeted Financial Performance (revenue and expenditure)" -> Table A4 Budgeted Financial Performance (revenue and expenditure)
B104: Table A5 Budgeted Capital Expenditure by vote, functional classification and funding | C104: Charts 7, 8, 9, 10, 20 | D104: Table A5 | E104: =D104&"Consolidated Budgeted Capital Expenditure by vote, functional classification and funding" -> Table A5 Consolidated Budgeted Capital Expenditure by vote, functional classification and funding | F104: =D104&"Budgeted Capital Expenditure by vote, functional classification and funding" -> Table A5 Budgeted Capital Expenditure by vote, functional classification and funding
B105: Table A6 Budgeted Financial Position | D105: Table A6 | E105: =D105&"Consolidated Budgeted Financial Position" -> Table A6 Consolidated Budgeted Financial Position | F105: =D105&"Budgeted Financial Position" -> Table A6 Budgeted Financial Position
B106: Table A7 Budgeted Cash Flows | D106: Table A7 | E106: =D106&"Consolidated Budgeted Cash Flows" -> Table A7 Consolidated Budgeted Cash Flows | F106: =D106&"Budgeted Cash Flows" -> Table A7 Budgeted Cash Flows
B107: Table A8 Cash backed reserves/accumulated surplus reconciliation | D107: Table A8 | E107: =D107&"Consolidated Cash backed reserves/accumulated surplus reconciliation" -> Table A8 Consolidated Cash backed reserves/accumulated surplus reconciliation | F107: =D107&"Cash backed reserves/accumulated surplus reconciliation" -> Table A8 Cash backed reserves/accumulated surplus reconciliation
B108: Table A9 Asset Management | D108: Table A9 | E108: =D108&"Consolidated Asset Management" -> Table A9 Consolidated Asset Management | F108: =D108&"Asset Management" -> Table A9 Asset Management
B109: Table A10 Basic service delivery measurement | D109: Table A10 | E109: =D109&"Consolidated basic service delivery measurement" -> Table A10 Consolidated basic service delivery measurement | F109: =D109&"Basic service delivery measurement" -> Table A10 Basic service delivery measurement
A110: Supportinging Tables to the Budget Approval Tables | C110: =$C$99 -> Chart x-ref | D110: =$D$99 -> Sch/Tab/Ch
A111: Supporting Table SA1 | B111: =A111&" Supportinging detail to 'Budgeted Financial Performance'" -> Supporting Table SA1 Supportinging detail to 'Budgeted Financial Performance'
A112: Supporting Table SA2 | B112: =IF(Consolques="YES",E112,F112) -> Supporting Table SA2 Matrix Financial Performance Budget (revenue source/expenditure type and dept.) | E112: =A112&"Consolidated Matrix Financial Performance Budget (revenue source/expenditure type & dept.)" -> Supporting Table SA2 Consolidated Matrix Financial Performance Budget (revenue source/expenditure type & dept.) | F112: =A112&"Matrix Financial Performance Budget (revenue source/expenditure type and dept.)" -> Supporting Table SA2 Matrix Financial Performance Budget (revenue source/expenditure type and dept.)
A113: Supporting Table SA3 | B113: =A113&"Supportinging detail to 'Budgeted Financial Position'" -> Supporting Table SA3 Supportinging detail to 'Budgeted Financial Position'
A114: Supporting Table SA4 | B114: =A114&"Reconciliation of IDP strategic objectives and budget (revenue)" -> Supporting Table SA4 Reconciliation of IDP strategic objectives and budget (revenue) | C114: Chart 11
A115: Supporting Table SA5 | B115: =A115&"Reconciliation of IDP strategic objectives and budget (operating expenditure)" -> Supporting Table SA5 Reconciliation of IDP strategic objectives and budget (operating expenditure) | C115: Chart 12
A116: Supporting Table SA6 | B116: =A116&"Reconciliation of IDP strategic objectives and budget (capital expenditure)" -> Supporting Table SA6 Reconciliation of IDP strategic objectives and budget (capital expenditure) | C116: Chart 13
A117: Supporting Table SA7 | B117: =A117&" Measureable performance objectives" -> Supporting Table SA7 Measureable performance objectives
A118: Supporting Table SA8 | B118: =A118&" Performance indicators and benchmarks" -> Supporting Table SA8 Performance indicators and benchmarks | C118: Chts 15-19
A119: Supporting Table SA9 | B119: =A119&" Social, economic and demographic statistics and assumptions" -> Supporting Table SA9 Social, economic and demographic statistics and assumptions
A120: Supporting Table SA10 | B120: =A120&" Funding measurement" -> Supporting Table SA10 Funding measurement | C120: Chart 14
A121: Supporting Table SA11 | B121: =A121&" Property rates summary" -> Supporting Table SA11 Property rates summary
A122: Supporting Table SA12a | B122: =A122&" Property rates by category (current year)" -> Supporting Table SA12a Property rates by category (current year)
A123: Supporting Table SA12b | B123: =A123&" Property rates by category (budget year)" -> Supporting Table SA12b Property rates by category (budget year)
A124: Supporting Table SA13a | B124: =A124&" Service Tariffs by category" -> Supporting Table SA13a Service Tariffs by category
A125: Supporting Table SA13b | B125: =A125&" Service Tariffs by category - explanatory" -> Supporting Table SA13b Service Tariffs by category - explanatory
A126: Supporting Table SA14 | B126: =A126&" Household bills" -> Supporting Table SA14 Household bills
A127: Supporting Table SA15 | B127: =A127&" Investment particulars by type" -> Supporting Table SA15 Investment particulars by type
A128: Supporting Table SA16 | B128: =A128&" Investment particulars by maturity" -> Supporting Table SA16 Investment particulars by maturity
A129: Supporting Table SA17 | B129: =A129&" Borrowing" -> Supporting Table SA17 Borrowing
A130: Supporting Table SA18 | B130: =A130&" Transfers and grant receipts" -> Supporting Table SA18 Transfers and grant receipts
A131: Supporting Table SA19 | B131: =A131&" Expenditure on transfers and grant programme" -> Supporting Table SA19 Expenditure on transfers and grant programme
A132: Supporting Table SA20 | B132: =A132&" Reconciliation of transfers, grant receipts and unspent funds" -> Supporting Table SA20 Reconciliation of transfers, grant receipts and unspent funds
A133: Supporting Table SA21 | B133: =A133&" Transfers and grants made by the municipality" -> Supporting Table SA21 Transfers and grants made by the municipality
A134: Supporting Table SA22 | B134: =A134&" Summary councillor and staff benefits" -> Supporting Table SA22 Summary councillor and staff benefits
A135: Supporting Table SA23 | B135: =A135&" Salaries, allowances & benefits (political office bearers/councillors/senior managers)" -> Supporting Table SA23 Salaries, allowances & benefits (political office bearers/councillors/senior managers)
A136: Supporting Table SA24 | B136: =A136&" Summary of personnel numbers" -> Supporting Table SA24 Summary of personnel numbers
A137: Supporting Table SA25 | B137: =IF(Consolques="YES",E137,F137) -> Supporting Table SA25 Budgeted monthly revenue and expenditure | E137: =A137&" Consolidated budgeted monthly revenue and expenditure" -> Supporting Table SA25 Consolidated budgeted monthly revenue and expenditure | F137: =A137&" Budgeted monthly revenue and expenditure" -> Supporting Table SA25 Budgeted monthly revenue and expenditure
A138: Supporting Table SA26 | B138: Supporting Table SA26 Budgeted monthly revenue and expenditure (municipal vote) | E138: =A138&" Consolidated budgeted monthly revenue and expenditure (municipal vote)" -> Supporting Table SA26 Consolidated budgeted monthly revenue and expenditure (municipal vote) | F138: =A138&" Budgeted monthly revenue and expenditure (municipal vote)" -> Supporting Table SA26 Budgeted monthly revenue and expenditure (municipal vote)
A139: Supporting Table SA27 | B139: Supporting Table SA27 Budgeted monthly revenue and expenditure (functional classification) | E139: =A139&" Consolidated budgeted monthly revenue and expenditure (functional classification)" -> Supporting Table SA27 Consolidated budgeted monthly revenue and expenditure (functional classification) | F139: =A139&" Budgeted monthly revenue and expenditure (functional classification)" -> Supporting Table SA27 Budgeted monthly revenue and expenditure (functional classification)
A140: Supporting Table SA28 | B140: Supporting Table SA28 Budgeted monthly capital expenditure (municipal vote) | E140: =A140&" Consolidated budgeted monthly capital expenditure (municipal vote)" -> Supporting Table SA28 Consolidated budgeted monthly capital expenditure (municipal vote) | F140: =A140&" Budgeted monthly capital expenditure (municipal vote)" -> Supporting Table SA28 Budgeted monthly capital expenditure (municipal vote)
A141: Supporting Table SA29 | B141: Supporting Table SA29 Budgeted monthly capital expenditure (functional classification) | E141: =A141&" Consolidated budgeted monthly capital expenditure (functional classification)" -> Supporting Table SA29 Consolidated budgeted monthly capital expenditure (functional classification) | F141: =A141&" Budgeted monthly capital expenditure (functional classification)" -> Supporting Table SA29 Budgeted monthly capital expenditure (functional classification)
A142: Supporting Table SA30 | B142: Supporting Table SA30 Budgeted monthly cash flow | E142: =A142&" Consolidated budgeted monthly cash flow" -> Supporting Table SA30 Consolidated budgeted monthly cash flow | F142: =A142&" Budgeted monthly cash flow" -> Supporting Table SA30 Budgeted monthly cash flow
A143: Supporting Table SA31 | B143: NOT REQUIRED - municipality does not have entities | E143: =A143&" Aggregated entity budget" -> Supporting Table SA31 Aggregated entity budget | F143: NOT REQUIRED - municipality does not have entities
A144: Supporting Table SA32 | B144: =A144&" List of external mechanisms" -> Supporting Table SA32 List of external mechanisms
A145: Supporting Table SA33 | B145: =A145&" Contracts having future budgetary implications" -> Supporting Table SA33 Contracts having future budgetary implications
A146: Supporting Table SA34a | B146: =IF(Consolques="YES",E146,F146) -> Supporting Table SA34a Capital expenditure on new assets by asset class | E146: =A146&" Consolidated capital expenditure on new assets by asset class" -> Supporting Table SA34a Consolidated capital expenditure on new assets by asset class | F146: =A146&" Capital expenditure on new assets by asset class" -> Supporting Table SA34a Capital expenditure on new assets by asset class
A147: Supporting Table SA34b | B147: Supporting Table SA34b Capital expenditure on the renewal of existing assets by asset class | E147: =A147&" Consolidated capital expenditure on the renewal of existing assets by asset class" -> Supporting Table SA34b Consolidated capital expenditure on the renewal of existing assets by asset class | F147: =A147&" Capital expenditure on the renewal of existing assets by asset class" -> Supporting Table SA34b Capital expenditure on the renewal of existing assets by asset class
A148: Supporting Table SA34c | B148: Supporting Table SA34c Repairs and maintenance expenditure by asset class | E148: =A148&" Consolidated repairs and maintenance by asset class" -> Supporting Table SA34c Consolidated repairs and maintenance by asset class | F148: =A148&" Repairs and maintenance expenditure by asset class" -> Supporting Table SA34c Repairs and maintenance expenditure by asset class
A149: Supporting Table SA34d | B149: =IF(Consolques="YES",E149,F149) -> Supporting Table SA34d Depreciation by asset class | E149: =A149&" Consolidated Depreciation by asset class" -> Supporting Table SA34d Consolidated Depreciation by asset class | F149: =A149&" Depreciation by asset class" -> Supporting Table SA34d Depreciation by asset class
A150: Supporting Table SA34e | B150: =IF(Consolques="YES",E150,F150) -> Supporting Table SA34e Capital expenditure on the upgrading of existing assets by asset class | E150: =A150&" Consolidated capital expenditure on the upgrading of existing assets by asset class" -> Supporting Table SA34e Consolidated capital expenditure on the upgrading of existing assets by asset class | F150: =A150&" Capital expenditure on the upgrading of existing assets by asset class" -> Supporting Table SA34e Capital expenditure on the upgrading of existing assets by asset class
A151: Supporting Table SA35 | B151: Supporting Table SA35 Future financial implications of the capital budget | E151: =A151&" Consolidated future financial implications of the capital budget" -> Supporting Table SA35 Consolidated future financial implications of the capital budget | F151: =A151& " Future financial implications of the capital budget" -> Supporting Table SA35 Future financial implications of the capital budget
A152: Supporting Table SA36 | B152: Supporting Table SA36 Detailed capital budget | E152: =A152&" Consolidated detailed capital budget" -> Supporting Table SA36 Consolidated detailed capital budget | F152: =A152& " Detailed capital budget" -> Supporting Table SA36 Detailed capital budget
A153: Supporting Table SA37 | B153: Supporting Table SA37 Projects delayed from previous financial year/s | E153: =A153&" Consolidated projects delayed from previous financial year/s" -> Supporting Table SA37 Consolidated projects delayed from previous financial year/s | F153: =A153& " Projects delayed from previous financial year/s" -> Supporting Table SA37 Projects delayed from previous financial year/s
A154: Supporting Table SA38 | B154: =IF(Consolques="YES",E154,F154) -> Supporting Table SA38 Detailed operational projects | E154: =A154&" Consolidated detailed operational projects" -> Supporting Table SA38 Consolidated detailed operational projects | F154: =A154& " Detailed operational projects" -> Supporting Table SA38 Detailed operational projects
A156: Budget Charts | B156: Charts | C156: Cross reference
A157: Chart A1 | B157: =A157&"Revenue by Municipal Vote" -> Chart A1 Revenue by Municipal Vote
A158: Chart A2 | B158: =A158&"Expenditure by Municipal Vote" -> Chart A2 Expenditure by Municipal Vote
A159: Chart A3 | B159: =A159&"Revenue by Standard Classification" -> Chart A3 Revenue by Standard Classification | C159: A2
A160: Chart A4 | B160: =A160&"Expenditure by Standard Classification" -> Chart A4 Expenditure by Standard Classification | C160: A2
A161: Chart A5 | B161: =A161&"Revenue by Major Source (refer 'Minor' source for 'Other Revenue' allocation" -> Chart A5 Revenue by Major Source (refer 'Minor' source for 'Other Revenue' allocation | C161: A3
A162: Chart A6 | B162: =A162&"Revenue by Minor Source (Other)" -> Chart A6 Revenue by Minor Source (Other) | C162: A3
A163: Chart A7 | B163: =A163&"Expenditure by Major Type" -> Chart A7 Expenditure by Major Type | C163: A3
A164: Chart A8 | B164: =A164&"Expenditure by Minor Type (Other)" -> Chart A8 Expenditure by Minor Type (Other) | C164: A3
A165: Chart A9 | B165: =A165&"Capital Expenditure by Municipal Vote/Appropriation (Major)" -> Chart A9 Capital Expenditure by Municipal Vote/Appropriation (Major) | C165: A5
A166: Chart A10 | B166: =A166&"Capital Expenditure by Municipal Vote/Appropriation (Minor)" -> Chart A10 Capital Expenditure by Municipal Vote/Appropriation (Minor) | C166: A5
A167: Chart A11 | B167: =A166&"Capital Expenditure by Standard Classification" -> Chart A10 Capital Expenditure by Standard Classification | C167: A5
A168: Chart A12 | B168: =A168&"Capital expenditure performance trend" -> Chart A12 Capital expenditure performance trend | C168: A5
A169: Chart A13 | B169: =A169&"Capital funding by Source" -> Chart A13 Capital funding by Source | C169: A5
A170: Chart A14 | B170: =A170&"Cash flow trend" -> Chart A14 Cash flow trend | C170: A7
A171: Chart A15 | B171: =A171&"IDP Strategic Objective - Revenue" -> Chart A15 IDP Strategic Objective - Revenue | C171: Table A4
A172: Chart A16 | B172: =A172&"IDP Strategic Objective - Expenditure" -> Chart A16 IDP Strategic Objective - Expenditure | C172: Table A5
A173: Chart A17 | B173: =A173&"IDP Strategic Objective - Capital Expenditure" -> Chart A17 IDP Strategic Objective - Capital Expenditure | C173: Table A6
A174: Chart A18 | B174: =A174&"Debt (borrowing to Total Revenue)" -> Chart A18 Debt (borrowing to Total Revenue) | C174: Table A8
A175: Chart A19 | B175: =A175&"Debtors' trend analysis" -> Chart A19 Debtors' trend analysis | C175: Table A8
A176: Chart A20 | B176: =A176&"Distribution losses" -> Chart A20 Distribution losses | C176: Table A8
A177: Chart A21 | B177: =A177&"Borrowed funding of capital expenditure" -> Chart A21 Borrowed funding of capital expenditure | C177: Table A8
A178: Chart A22 | B178: =A178&"Expenditure analysis (% of Revenue)" -> Chart A22 Expenditure analysis (% of Revenue) | C178: Table A8
A179: Chart A23 | B179: =A179&"Increases in service charges" -> Chart A23 Increases in service charges | C179: Table A10

Sheet Lookup and lists
A1: Description | B1: 2013 | C1: 2014 | D1: 2015 | E1: 2016 | F1: 2017 | G1: 2018 | H1: 2019 | I1: 2020 | J1: 2021 | K1: 2022 | L1: 2023 | M1: 2024 | N1: 2025 | O1: 2026 | Q1: Lists | Y1: Grants: | Z1: National - opex | AA1: Provincial - opex | AB1: National - capex | AC1: Provincial - capex
A2: ='Template names'!C2 -> Prior year -1 | B2: =B1-2&"/"&RIGHT(B1,2)-1 -> 2011/12 | C2: 2012/13 | D2: 2013/14 | E2: 2014/15 | F2: 2015/16 | G2: 2016/17 | H2: 2017/18 | I2: 2018/19 | J2: =J1-2&"/"&RIGHT(J1,2)-1 -> 2019/20 | K2: 2020/21 | L2: 2021/22 | M2: 2022/23 | N2: 2023/24 | O2: 2024/25 | Q2: Yes | R2: <1 | S2: <4 | T2: Market | U2: Land & impr. | V2: Yes | W2: Uniform | X2: Yrs | Z2: Local Government Equitable Share | AA2: Health subsidy | AB2: Municipal Infrastructure Grant (MIG) | AC2: Agriculture
A3: ='Template names'!C3 -> Prior year -2 | B3: =B1-3&"/"&RIGHT(B1,2)-2 -> 2010/11 | C3: 2011/12 | D3: 2012/13 | E3: 2013/14 | F3: 2014/15 | G3: 2015/16 | H3: 2016/17 | I3: 2017/18 | J3: =J1-3&"/"&RIGHT(J1,2)-2 -> 2018/19 | K3: 2019/20 | L3: 2020/21 | M3: 2021/22 | N3: 2022/23 | O3: 2023/24 | Q3: No | R3: 1 | S3: 4 | T3: Dep.Replace | U3: Land only | V3: No | W3: Variable | X3: Mths | Z3: RSC Levy Replacement | AA3: Ambulance subsidy | AB3: Public Transport and Systems | AC3: Education
A4: ='Template names'!C4 -> Prior year -3 | B4: =B1-4&"/"&RIGHT(B1,2)-3 -> 2009/10 | C4: 2010/11 | D4: 2011/12 | E4: 2012/13 | F4: 2013/14 | G4: 2014/15 | H4: 2015/16 | I4: 2016/17 | J4: =J1-4&"/"&RIGHT(J1,2)-3 -> 2017/18 | K4: 2018/19 | L4: 2019/20 | M4: 2020/21 | N4: 2021/22 | O4: 2022/23 | R4: 2 | S4: 5 | T4: Other | U4: Other | Z4: Finance Management | AA4: Housing | AB4: Rural Transport Services and Infrastructure | AC4: Health
A5: ='Template names'!C5 -> Year in which budget is being prepared | B5: ="Current Year "& B1-1&"/"&RIGHT(B1,2) -> Current Year 2012/13 | C5: Current Year 2013/14 | D5: Current Year 2014/15 | E5: Current Year 2015/16 | F5: Current Year 2016/17 | G5: Current Year 2017/18 | H5: Current Year 2018/19 | I5: Current Year 2019/20 | J5: ="Current Year "& J1-1&"/"&RIGHT(J1,2) -> Current Year 2020/21 | K5: Current Year 2021/22 | L5: Current Year 2022/23 | M5: Current Year 2023/24 | N5: Current Year 2024/25 | O5: Current Year 2025/26 | R5: 3 | S5: 6 | Z5: Municipal Systems Improvement | AA5: Sport and Recreation | AB5: Regional Bulk Infrastructure | AC5: Housing and Local Government
A6: ='Template names'!C6 -> Year in which budget is being prepared | B6: =B1-1&"/"&RIGHT(B1,2) -> 2012/13 | C6: 2013/14 | D6: 2014/15 | E6: 2015/16 | F6: 2016/17 | G6: 2017/18 | H6: 2018/19 | I6: 2019/20 | J6: =J1-1&"/"&RIGHT(J1,2) -> 2020/21 | K6: 2021/22 | L6: 2022/23 | M6: 2023/24 | N6: 2024/25 | O6: 2025/26 | R6: 4 | S6: 6-10 | Z6: Water Services Operating Subsidy | AB6: Rural Households Infrastructure | AC6: Other Departments
A7: ='Template names'!C7 -> MTREF name | B7: =B1&"/"&RIGHT(B1,2)+1&" Medium Term Revenue & Expenditure Framework" -> 2013/14 Medium Term Revenue & Expenditure Framework | C7: 2014/15 Medium Term Revenue & Expenditure Framework | D7: 2015/16 Medium Term Revenue & Expenditure Framework | E7: 2016/17 Medium Term Revenue & Expenditure Framework | F7: 2017/18 Medium Term Revenue & Expenditure Framework | G7: 2018/19 Medium Term Revenue & Expenditure Framework | H7: 2019/20 Medium Term Revenue & Expenditure Framework | I7: 2020/21 Medium Term Revenue & Expenditure Framework | J7: =J1&"/"&RIGHT(J1,2)+1&" Medium Term Revenue & Expenditure Framework" -> 2021/22 Medium Term Revenue & Expenditure Framework | K7: 2022/23 Medium Term Revenue & Expenditure Framework | L7: 2023/24 Medium Term Revenue & Expenditure Framework | M7: 2024/25 Medium Term Revenue & Expenditure Framework | N7: 2025/26 Medium Term Revenue & Expenditure Framework | O7: 2026/27 Medium Term Revenue & Expenditure Framework | R7: 5 | S7: >10 | Z7: Energy Efficiency and Demand Management | AB7: Neighbourhood Development Partnership | AC7: Public Works, Roads, Transport
A8: ='Template names'!C15 -> 1st year of MTREF | B8: ="Budget Year "&B1&"/"&RIGHT(B1,2)+1 -> Budget Year 2013/14 | C8: Budget Year 2014/15 | D8: Budget Year 2015/16 | E8: Budget Year 2016/17 | F8: Budget Year 2017/18 | G8: Budget Year 2018/19 | H8: Budget Year 2019/20 | I8: Budget Year 2020/21 | J8: ="Budget Year "&J1&"/"&RIGHT(J1,2)+1 -> Budget Year 2021/22 | K8: Budget Year 2022/23 | L8: Budget Year 2023/24 | M8: Budget Year 2024/25 | N8: Budget Year 2025/26 | O8: Budget Year 2026/27 | R8: >5 | Z8: Integrated National Electrification Programme | AB8: 2010 FIFA World Cup Stadiums Development | AC8: Sport and Recreation
A9: ='Template names'!C16 -> 2nd year of MTREF | B9: ="Budget Year +1 "&B1+1&"/"&RIGHT(B1,2)+2 -> Budget Year +1 2014/15 | C9: Budget Year +1 2015/16 | D9: Budget Year +1 2016/17 | E9: Budget Year +1 2017/18 | F9: Budget Year +1 2018/19 | G9: Budget Year +1 2019/20 | H9: Budget Year +1 2020/21 | I9: Budget Year +1 2021/22 | J9: ="Budget Year +1 "&J1+1&"/"&RIGHT(J1,2)+2 -> Budget Year +1 2022/23 | K9: Budget Year +1 2023/24 | L9: Budget Year +1 2024/25 | M9: Budget Year +1 2025/26 | N9: Budget Year +1 2026/27 | O9: Budget Year +1 2027/28 | Z9: Municipal Drought Relief
A10: ='Template names'!C17 -> 3rd year of MTREF | B10: ="Budget Year +2 "&B1+2&"/"&RIGHT(B1,2)+3 -> Budget Year +2 2015/16 | C10: Budget Year +2 2016/17 | D10: Budget Year +2 2017/18 | E10: Budget Year +2 2018/19 | F10: Budget Year +2 2019/20 | G10: Budget Year +2 2020/21 | H10: Budget Year +2 2021/22 | I10: Budget Year +2 2022/23 | J10: ="Budget Year +2 "&J1+2&"/"&RIGHT(J1,2)+3 -> Budget Year +2 2023/24 | K10: Budget Year +2 2024/25 | L10: Budget Year +2 2025/26 | M10: Budget Year +2 2026/27 | N10: Budget Year +2 2027/28 | O10: Budget Year +2 2028/29 | Z10: 2010 FIFA World Cup Operating
A11: ='Template names'!C18 -> 1st yr of long term forecast | B11: ="Forecast "&B1+3&"/"&RIGHT(B1,2)+4 -> Forecast 2016/17 | C11: Forecast 2017/18 | D11: Forecast 2018/19 | E11: Forecast 2019/20 | F11: Forecast 2020/21 | G11: Forecast 2021/22 | H11: Forecast 2022/23 | I11: Forecast 2023/24 | J11: ="Forecast "&J1+3&"/"&RIGHT(J1,2)+4 -> Forecast 2024/25 | K11: Forecast 2025/26 | L11: Forecast 2026/27 | M11: Forecast 2027/28 | N11: Forecast 2028/29 | O11: Forecast 2029/30 | Z11: Electricity Demand Side Management
A12: ='Template names'!C19 -> Next yr of long term forecast | B12: ="Forecast "&B1+4&"/"&RIGHT(B1,2)+5 -> Forecast 2017/18 | C12: Forecast 2018/19 | D12: Forecast 2019/20 | E12: Forecast 2020/21 | F12: Forecast 2021/22 | G12: Forecast 2022/23 | H12: Forecast 2023/24 | I12: Forecast 2024/25 | J12: ="Forecast "&J1+4&"/"&RIGHT(J1,2)+5 -> Forecast 2025/26 | K12: Forecast 2026/27 | L12: Forecast 2027/28 | M12: Forecast 2028/29 | N12: Forecast 2029/30 | O12: Forecast 2030/31 | Z12: EPWP Incentive
A13: ='Template names'!C20 -> Next yr of long term forecast | B13: ="Forecast "&B1+5&"/"&RIGHT(B1,2)+6 -> Forecast 2018/19 | C13: Forecast 2019/20 | D13: Forecast 2020/21 | E13: Forecast 2021/22 | F13: Forecast 2022/23 | G13: Forecast 2023/24 | H13: Forecast 2024/25 | I13: Forecast 2025/26 | J13: ="Forecast "&J1+5&"/"&RIGHT(J1,2)+6 -> Forecast 2026/27 | K13: Forecast 2027/28 | L13: Forecast 2028/29 | M13: Forecast 2029/30 | N13: Forecast 2030/31 | O13: Forecast 2031/32
A14: ='Template names'!C21 -> Next yr of long term forecast | B14: ="Forecast "&B1+6&"/"&RIGHT(B1,2)+7 -> Forecast 2019/20 | C14: Forecast 2020/21 | D14: Forecast 2021/22 | E14: Forecast 2022/23 | F14: Forecast 2023/24 | G14: Forecast 2024/25 | H14: Forecast 2025/26 | I14: Forecast 2026/27 | J14: ="Forecast "&J1+6&"/"&RIGHT(J1,2)+7 -> Forecast 2027/28 | K14: Forecast 2028/29 | L14: Forecast 2029/30 | M14: Forecast 2030/31 | N14: Forecast 2031/32 | O14: Forecast 2032/33 | Z14: Asset Class | AA14: Asset sub-class old | AB14: Asset sub-class | AC14: IUDF | AD14: MTSF
A15: ='Template names'!C22 -> Next yr of long term forecast | B15: ="Forecast "&B1+7&"/"&RIGHT(B1,2)+8 -> Forecast 2020/21 | C15: Forecast 2021/22 | D15: Forecast 2022/23 | E15: Forecast 2023/24 | F15: Forecast 2024/25 | G15: Forecast 2025/26 | H15: Forecast 2026/27 | I15: Forecast 2027/28 | J15: ="Forecast "&J1+7&"/"&RIGHT(J1,2)+8 -> Forecast 2028/29 | K15: Forecast 2029/30 | L15: Forecast 2030/31 | M15: Forecast 2031/32 | N15: Forecast 2032/33 | O15: Forecast 2033/34
A16: ='Template names'!C23 -> Next yr of long term forecast | B16: ="Forecast "&B1+8&"/"&RIGHT(B1,2)+9 -> Forecast 2021/22 | C16: Forecast 2022/23 | D16: Forecast 2023/24 | E16: Forecast 2024/25 | F16: Forecast 2025/26 | G16: Forecast 2026/27 | H16: Forecast 2027/28 | I16: Forecast 2028/29 | J16: ="Forecast "&J1+8&"/"&RIGHT(J1,2)+9 -> Forecast 2029/30 | K16: Forecast 2030/31 | L16: Forecast 2031/32 | M16: Forecast 2032/33 | N16: Forecast 2033/34 | O16: Forecast 2034/35 | Z16: Roads Infrastructure | AA16: Roads, Pavements & Bridges | AB16: Roads | AC16: Spatial integration | AD16: Quality basic education
A17: ='Template names'!C24 -> Next yr of long term forecast | B17: ="Forecast "&B1+9&"/"&RIGHT(B1,2)+10 -> Forecast 2022/23 | C17: Forecast 2023/24 | D17: Forecast 2024/25 | E17: Forecast 2025/26 | F17: Forecast 2026/27 | G17: Forecast 2027/28 | H17: Forecast 2028/29 | I17: Forecast 2029/30 | J17: ="Forecast "&J1+9&"/"&RIGHT(J1,2)+10 -> Forecast 2030/31 | K17: Forecast 2031/32 | L17: Forecast 2032/33 | M17: Forecast 2033/34 | N17: Forecast 2034/35 | O17: Forecast 2035/36 | Z17: Storm water Infrastructure | AA17: Storm water | AB17: Road Structures | AC17: Inclusion and access | AD17: A long and healthy life for all South Africans
A18: ='Template names'!C25 -> Next yr of long term forecast | B18: ="Forecast "&B1+10&"/"&RIGHT(B1,2)+11 -> Forecast 2023/24 | C18: Forecast 2024/25 | D18: Forecast 2025/26 | E18: Forecast 2026/27 | F18: Forecast 2027/28 | G18: Forecast 2028/29 | H18: Forecast 2029/30 | I18: Forecast 2030/31 | J18: ="Forecast "&J1+10&"/"&RIGHT(J1,2)+11 -> Forecast 2031/32 | K18: Forecast 2032/33 | L18: Forecast 2033/34 | M18: Forecast 2034/35 | N18: Forecast 2035/36 | O18: Forecast 2036/37 | Z18: Electrical Infrastructure | AA18: Generation | AB18: Road Furniture | AC18: Growth | AD18: All people in South Africa are and feel safe
A19: ='Template names'!C26 -> Next yr of long term forecast | B19: ="Forecast "&B1+11&"/"&RIGHT(B1,2)+12 -> Forecast 2024/25 | C19: Forecast 2025/26 | D19: Forecast 2026/27 | E19: Forecast 2027/28 | F19: Forecast 2028/29 | G19: Forecast 2029/30 | H19: Forecast 2030/31 | I19: Forecast 2031/32 | J19: ="Forecast "&J1+11&"/"&RIGHT(J1,2)+12 -> Forecast 2032/33 | K19: Forecast 2033/34 | L19: Forecast 2034/35 | M19: Forecast 2035/36 | N19: Forecast 2036/37 | O19: Forecast 2037/38 | Z19: Water Supply Infrastructure | AA19: Transmission & Reticulation | AB19: Capital Spares | AC19: Governance | AD19: Decent employment through inclusive growth
A20: ='Template names'!C27 -> Next yr of long term forecast | B20: ="Forecast "&B1+12&"/"&RIGHT(B1,2)+13 -> Forecast 2025/26 | C20: Forecast 2026/27 | D20: Forecast 2027/28 | E20: Forecast 2028/29 | F20: Forecast 2029/30 | G20: Forecast 2030/31 | H20: Forecast 2031/32 | I20: Forecast 2032/33 | J20: ="Forecast "&J1+12&"/"&RIGHT(J1,2)+13 -> Forecast 2033/34 | K20: Forecast 2034/35 | L20: Forecast 2035/36 | M20: Forecast 2036/37 | N20: Forecast 2037/38 | O20: Forecast 2038/39 | Z20: Sanitation Infrastructure | AA20: Street Lighting | AB20: Drainage Collection | AD20: A skilled and capable workforce to support an inclusive growth path
A21: ='Template names'!C28 -> Next yr of long term forecast | B21: ="Forecast "&B1+13&"/"&RIGHT(B1,2)+14 -> Forecast 2026/27 | C21: Forecast 2027/28 | D21: Forecast 2028/29 | E21: Forecast 2029/30 | F21: Forecast 2030/31 | G21: Forecast 2031/32 | H21: Forecast 2032/33 | I21: Forecast 2033/34 | J21: ="Forecast "&J1+13&"/"&RIGHT(J1,2)+14 -> Forecast 2034/35 | K21: Forecast 2035/36 | L21: Forecast 2036/37 | M21: Forecast 2037/38 | N21: Forecast 2038/39 | O21: Forecast 2039/40 | Z21: Solid Waste Infrastructure | AA21: Dams & Reservoirs | AB21: Storm water Conveyance | AD21: An efficient, competitive and responsive economic infrastructure network
A22: ='Template names'!C29 -> Next yr of long term forecast | B22: ="Forecast "&B1+14&"/"&RIGHT(B1,2)+15 -> Forecast 2027/28 | C22: Forecast 2028/29 | D22: Forecast 2029/30 | E22: Forecast 2030/31 | F22: Forecast 2031/32 | G22: Forecast 2032/33 | H22: Forecast 2033/34 | I22: Forecast 2034/35 | J22: ="Forecast "&J1+14&"/"&RIGHT(J1,2)+15 -> Forecast 2035/36 | K22: Forecast 2036/37 | L22: Forecast 2037/38 | M22: Forecast 2038/39 | N22: Forecast 2039/40 | O22: Forecast 2040/41 | Z22: Rail Infrastructure | AA22: Water purification | AB22: Attenuation | AD22: Vibrant, equitable, sustainable rural communities contributing towards food security for all
A23: Adjustments Budget | B23: ="Annual target " & B1&"/"&RIGHT(B1,2)+1 -> Annual target 2013/14 | C23: Annual target 2014/15 | D23: Annual target 2015/16 | E23: Annual target 2016/17 | F23: Annual target 2017/18 | G23: Annual target 2018/19 | H23: Annual target 2019/20 | I23: Annual target 2020/21 | J23: ="Annual target " & J1&"/"&RIGHT(J1,2)+1 -> Annual target 2021/22 | K23: Annual target 2022/23 | L23: Annual target 2023/24 | M23: Annual target 2024/25 | N23: Annual target 2025/26 | O23: Annual target 2026/27 | Z23: Coastal Infrastructure | AA23: Reticulation | AB23: Power Plants | AD23: Sustainable human settlements and improved quality of household life
A24: =A23 -> Adjustments Budget | B24: ="Revised target "& B1&"/"&RIGHT(B1,2)+1 -> Revised target 2013/14 | C24: Revised target 2014/15 | D24: Revised target 2015/16 | E24: Revised target 2016/17 | F24: Revised target 2017/18 | G24: Revised target 2018/19 | H24: Revised target 2019/20 | I24: Revised target 2020/21 | J24: ="Revised target "& J1&"/"&RIGHT(J1,2)+1 -> Revised target 2021/22 | K24: Revised target 2022/23 | L24: Revised target 2023/24 | M24: Revised target 2024/25 | N24: Revised target 2025/26 | O24: Revised target 2026/27 | Z24: Information and Communication Infrastructure | AA24: Sewerage purification | AB24: HV Substations | AD24: Responsive, accountable, effective and efficient local government
A25: NOTE: This sheet should not be directly amended - select headings from sheet 'S' | Z25: Community Facilities | AA25: Waste Management | AB25: HV Switching Station | AD25: Protect and enhance our environmental assets and natural resources
Z26: Sport and Recreation Facilities | AA26: Transportation | AB26: HV Transmission Conductors | AD26: Create a better South Africa and contribute to a better Africa and a better world
A27: Name link | B27: 225 | Z27: Heritage assets | AA27: Gas | AB27: MV Substations | AD27: An efficient, effective and development-oriented public service
A28: Name of Muni | B28: =INDEX(B29:B307,B27,1) -> NW403 City Of Matlosana | Z28: Revenue Generating | AA28: Parks & gardens | AB28: MV Switching Stations | AD28: A comprehensive, responsive and sustainable social protection system
B29: Choose name from list | C29: Set name on 'Instructions' sheet | Z29: Non-revenue Generating | AA29: Sportsfields & stadia | AB29: MV Networks | AD29: A diverse, socially cohesive society with a common national identity
B30: BUF Buffalo City | C30: EC EASTERN CAPE | Z30: Operational Buildings | AA30: Swimming pools | AB30: LV Networks
B31: NMA Nelson Mandela Bay | C31: EC EASTERN CAPE | Z31: Housing | AA31: Community halls | AB31: Capital Spares
B32: EC101 Dr Beyers Naude | C32: EC EASTERN CAPE | Z32: Biological or Cultivated Assets | AA32: Libraries | AB32: Dams and Weirs
B33: EC102 Blue Crane Route | C33: EC EASTERN CAPE | Z33: Servitudes | AA33: Recreational facilities | AB33: Boreholes
B34: EC104 Makana | C34: EC EASTERN CAPE | Z34: Licences and Rights | AA34: Fire, safety & emergency | AB34: Reservoirs
B35: EC105 Ndlambe | C35: EC EASTERN CAPE | Z35: Computer Equipment | AA35: Security and policing | AB35: Pump Stations
B36: EC106 Sundays River Valley | C36: EC EASTERN CAPE | Z36: Furniture and Office Equipment | AA36: Buses | AB36: Water Treatment Works
B37: EC108 Kouga | C37: EC EASTERN CAPE | Z37: Machinery and Equipment | AA37: Clinics | AB37: Bulk Mains
B38: EC109 Kou-Kamma | C38: EC EASTERN CAPE | Z38: Transport Assets | AA38: Museums & Art Galleries | AB38: Distribution
B39: DC10 Sarah Baartman | C39: EC EASTERN CAPE | Z39: Land | AA39: Cemeteries | AB39: Distribution Points
B40: EC121 Mbhashe | C40: EC EASTERN CAPE | Z40: Zoo's, Marine and Non-biological Animals | AA40: Social rental housing | AB40: PRV Stations
B41: EC122 Mnquma | C41: EC EASTERN CAPE | AA41: Buildings | AB41: Capital Spares
B42: EC123 Great Kei | C42: EC EASTERN CAPE | AA42: Housing development | AB42: Pump Station
B43: EC124 Amahlathi | C43: EC EASTERN CAPE | AA43: General vehicles | AB43: Reticulation
B44: EC126 Ngqushwa | C44: EC EASTERN CAPE | AA44: Specialised vehicles - Refuse | AB44: Waste Water Treatment Works
B45: EC129 Raymond Mhlaba | C45: EC EASTERN CAPE | AA45: Specialised vehicles - Fire | AB45: Outfall Sewers
B46: DC12 Amathole | C46: EC EASTERN CAPE | AA46: Specialised vehicles - Conservancy | AB46: Toilet Facilities
B47: EC131 Inxuba Yethemba | C47: EC EASTERN CAPE | AA47: Specialised vehicles - Ambulances | AB47: Capital Spares
B48: EC135 Intsika Yethu | C48: EC EASTERN CAPE | AA48: Plant & equipment | AB48: Landfill Sites
B49: EC136 Emalahleni (Ec) | C49: EC EASTERN CAPE | AA49: Computers - hardware/equipment | AB49: Waste Transfer Stations
B50: EC137 Engcobo | C50: EC EASTERN CAPE | AA50: Furniture and other office equipment | AB50: Waste Processing Facilities
B51: EC138 Sakhisizwe | C51: EC EASTERN CAPE | AA51: Abattoirs | AB51: Waste Drop-off Points
B52: EC139 Enoch Mgijima | C52: EC EASTERN CAPE | AA52: Markets | AB52: Waste Separation Facilities
B53: DC13 Chris Hani | C53: EC EASTERN CAPE | AA53: Civic Land and Buildings | AB53: Electricity Generation Facilities
B54: EC141 Elundini | C54: EC EASTERN CAPE | AA54: Other Buildings | AB54: Capital Spares
B55: EC142 Senqu | C55: EC EASTERN CAPE | AA55: Other Land | AB55: Rail Lines
B56: EC145 Walter Sisulu | C56: EC EASTERN CAPE | AA56: Surplus Assets - (Investment or Inventory) | AB56: Rail Structures
B57: DC14 Joe Gqabi | C57: EC EASTERN CAPE | AA57: Computers - software & programming | AB57: Rail Furniture
B58: EC153 Ngquza Hills | C58: EC EASTERN CAPE | AA58: Other | AB58: Drainage Collection
B59: EC154 Port St Johns | C59: EC EASTERN CAPE | AB59: Storm water Conveyance
B60: EC155 Nyandeni | C60: EC EASTERN CAPE | Z60: SA16 - Investments | AB60: Attenuation
B61: EC156 Mhlontlo | C61: EC EASTERN CAPE | Z61: Security | AA61: Interest rate | AB61: MV Substations
B62: EC157 King Sabata Dalindyebo | C62: EC EASTERN CAPE | Z62: Yes | AA62: Fixed | AB62: LV Networks
B63: DC15 O .R. Tambo | C63: EC EASTERN CAPE | Z63: No | AA63: Variable | AB63: Capital Spares
B64: EC441 Matatiele | C64: EC EASTERN CAPE | AB64: Sand Pumps
B65: EC442 Umzimvubu | C65: EC EASTERN CAPE | AB65: Piers
B66: EC443 Winnie Madikizela Mandela | C66: EC EASTERN CAPE | Z66: SA36, SA37 - Capital projects | AB66: Revetments
B67: EC444 Ntabankulu | C67: EC EASTERN CAPE | Z67: Yes | AB67: Promenades
B68: DC44 Alfred Nzo | C68: EC EASTERN CAPE | Z68: No | AB68: Capital Spares
B69: MAN Mangaung | C69: FS FREE STATE | AB69: Data Centres
B70: FS161 Letsemeng | C70: FS FREE STATE | AB70: Core Layers
B71: FS162 Kopanong | C71: FS FREE STATE | AB71: Distribution Layers
B72: FS163 Mohokare | C72: FS FREE STATE | AB72: Capital Spares
B73: DC16 Xhariep | C73: FS FREE STATE | AB73: Halls
B74: FS181 Masilonyana | C74: FS FREE STATE | AB74: Centres
B75: FS182 Tokologo | C75: FS FREE STATE | AB75: Crèches
B76: FS183 Tswelopele | C76: FS FREE STATE | AB76: Clinics/Care Centres
B77: FS184 Matjhabeng | C77: FS FREE STATE | AB77: Fire/Ambulance Stations
B78: FS185 Nala | C78: FS FREE STATE | AB78: Testing Stations
B79: DC18 Lejweleputswa | C79: FS FREE STATE | AB79: Museums
B80: FS191 Setsoto | C80: FS FREE STATE | AB80: Galleries
B81: FS192 Dihlabeng | C81: FS FREE STATE | AB81: Theatres
B82: FS193 Nketoana | C82: FS FREE STATE | AB82: Libraries
B83: FS194 Maluti-a-Phofung | C83: FS FREE STATE | AB83: Cemeteries/Crematoria
B84: FS195 Phumelela | C84: FS FREE STATE | AB84: Police
B85: FS196 Mantsopa | C85: FS FREE STATE | AB85: Purls
B86: DC19 Thabo Mofutsanyana | C86: FS FREE STATE | AB86: Public Open Space
B87: FS201 Moqhaka | C87: FS FREE STATE | AB87: Nature Reserves
B88: FS203 Ngwathe | C88: FS FREE STATE | AB88: Public Ablution Facilities
B89: FS204 Metsimaholo | C89: FS FREE STATE | AB89: Markets
B90: FS205 Mafube | C90: FS FREE STATE | AB90: Stalls
B91: DC20 Fezile Dabi | C91: FS FREE STATE | AB91: Abattoirs
B92: EKU City of Ekurhuleni | C92: GT GAUTENG | AB92: Airports
B93: JHB City Of Johannesburg | C93: GT GAUTENG | AB93: Taxi Ranks/Bus Terminals
B94: TSH City Of Tshwane | C94: GT GAUTENG | AB94: Capital Spares
B95: GT421 Emfuleni | C95: GT GAUTENG | AB95: Indoor Facilities
B96: GT422 Midvaal | C96: GT GAUTENG | AB96: Outdoor Facilities
B97: GT423 Lesedi | C97: GT GAUTENG | AB97: Capital Spares
B98: DC42 Sedibeng | C98: GT GAUTENG | AB98: Monuments
B99: GT481 Mogale City | C99: GT GAUTENG | AB99: Historic Buildings
B100: GT484 Merafong City | C100: GT GAUTENG | AB100: Works of Art
B101: GT485 Rand West City | C101: GT GAUTENG | AB101: Conservation Areas
B102: DC48 West Rand | C102: GT GAUTENG | AB102: Other Heritage
B103: ETH eThekwini | C103: KZN KWAZULU-NATAL | AB103: Improved Property
B104: KZN212 Umdoni | C104: KZN KWAZULU-NATAL | AB104: Unimproved Property
B105: KZN213 Umzumbe | C105: KZN KWAZULU-NATAL | AB105: Municipal Offices
B106: KZN214 uMuziwabantu | C106: KZN KWAZULU-NATAL | AB106: Pay/Enquiry Points
B107: KZN216 Ray Nkonyeni | C107: KZN KWAZULU-NATAL | AB107: Building Plan Offices
B108: DC21 Ugu | C108: KZN KWAZULU-NATAL | AB108: Workshops
B109: KZN221 uMshwathi | C109: KZN KWAZULU-NATAL | AB109: Yards
B110: KZN222 uMngeni | C110: KZN KWAZULU-NATAL | AB110: Stores
B111: KZN223 Mpofana | C111: KZN KWAZULU-NATAL | AB111: Laboratories
B112: KZN224 Impendle | C112: KZN KWAZULU-NATAL | AB112: Training Centres
B113: KZN225 Msunduzi | C113: KZN KWAZULU-NATAL | AB113: Manufacturing Plant
B114: KZN226 Mkhambathini | C114: KZN KWAZULU-NATAL | AB114: Depots
B115: KZN227 Richmond | C115: KZN KWAZULU-NATAL | AB115: Capital Spares
B116: DC22 uMgungundlovu | C116: KZN KWAZULU-NATAL | AB116: Staff Housing
B117: KZN235 Okhahlamba | C117: KZN KWAZULU-NATAL | AB117: Social Housing
B118: KZN237 Inkosi Langalibalele | C118: KZN KWAZULU-NATAL | AB118: Capital Spares
B119: KZN238 Alfred Duma | C119: KZN KWAZULU-NATAL | AB119: Water Rights
B120: DC23 Uthukela | C120: KZN KWAZULU-NATAL | AB120: Effluent Licenses
B121: KZN241 Endumeni | C121: KZN KWAZULU-NATAL | AB121: Solid Waste Licenses
B122: KZN242 Nquthu | C122: KZN KWAZULU-NATAL | AB122: Computer Software and Applications
B123: KZN244 Msinga | C123: KZN KWAZULU-NATAL | AB123: Load Settlement Software Applications
B124: KZN245 Umvoti | C124: KZN KWAZULU-NATAL | AB124: Unspecified
B125: DC24 Umzinyathi | C125: KZN KWAZULU-NATAL
B126: KZN252 Newcastle | C126: KZN KWAZULU-NATAL
B127: KZN253 Emadlangeni | C127: KZN KWAZULU-NATAL
B128: KZN254 Dannhauser | C128: KZN KWAZULU-NATAL
B129: DC25 Amajuba | C129: KZN KWAZULU-NATAL
B130: KZN261 eDumbe | C130: KZN KWAZULU-NATAL
B131: KZN262 uPhongolo | C131: KZN KWAZULU-NATAL
B132: KZN263 Abaqulusi | C132: KZN KWAZULU-NATAL
B133: KZN265 Nongoma | C133: KZN KWAZULU-NATAL
B134: KZN266 Ulundi | C134: KZN KWAZULU-NATAL
B135: DC26 Zululand | C135: KZN KWAZULU-NATAL
B136: KZN271 Umhlabuyalingana | C136: KZN KWAZULU-NATAL
B137: KZN272 Jozini | C137: KZN KWAZULU-NATAL
B138: KZN275 Mtubatuba | C138: KZN KWAZULU-NATAL
B139: KZN276 Hlabisa Big Five | C139: KZN KWAZULU-NATAL
B140: DC27 Umkhanyakude | C140: KZN KWAZULU-NATAL
B141: KZN281 Mfolozi | C141: KZN KWAZULU-NATAL
B142: KZN282 uMhlathuze | C142: KZN KWAZULU-NATAL
B143: KZN284 uMlalazi | C143: KZN KWAZULU-NATAL
B144: KZN285 Mthonjaneni | C144: KZN KWAZULU-NATAL
B145: KZN286 Nkandla | C145: KZN KWAZULU-NATAL
B146: DC28 King Cetshwayo | C146: KZN KWAZULU-NATAL
B147: KZN291 Mandeni | C147: KZN KWAZULU-NATAL
B148: KZN292 KwaDukuza | C148: KZN KWAZULU-NATAL
B149: KZN293 Ndwedwe | C149: KZN KWAZULU-NATAL
B150: KZN294 Maphumulo | C150: KZN KWAZULU-NATAL
B151: DC29 iLembe | C151: KZN KWAZULU-NATAL
B152: KZN433 Greater Kokstad | C152: KZN KWAZULU-NATAL
B153: KZN434 Johannes Phumani Phungula | C153: KZN KWAZULU-NATAL
B154: KZN435 Umzimkhulu | C154: KZN KWAZULU-NATAL
B155: KZN436 Dr Nkosazana Dlamini Zuma | C155: KZN KWAZULU-NATAL
B156: DC43 Harry Gwala | C156: KZN KWAZULU-NATAL
B157: LIM331 Greater Giyani | C157: LIM LIMPOPO
B158: LIM332 Greater Letaba | C158: LIM LIMPOPO
B159: LIM333 Greater Tzaneen | C159: LIM LIMPOPO
B160: LIM334 Ba-Phalaborwa | C160: LIM LIMPOPO
B161: LIM335 Maruleng | C161: LIM LIMPOPO
B162: DC33 Mopani | C162: LIM LIMPOPO
B163: LIM341 Musina | C163: LIM LIMPOPO
B164: LIM343 Thulamela | C164: LIM LIMPOPO
B165: LIM344 Makhado | C165: LIM LIMPOPO
B166: LIM345 Collins Chabane | C166: LIM LIMPOPO
B167: DC34 Vhembe | C167: LIM LIMPOPO
B168: LIM351 Blouberg | C168: LIM LIMPOPO
B169: LIM353 Molemole | C169: LIM LIMPOPO
B170: LIM354 Polokwane | C170: LIM LIMPOPO
B171: LIM355 Lepelle-Nkumpi | C171: LIM LIMPOPO
B172: DC35 Capricorn | C172: LIM LIMPOPO
B173: LIM361 Thabazimbi | C173: LIM LIMPOPO
B174: LIM362 Lephalale | C174: LIM LIMPOPO
B175: LIM366 Bela Bela | C175: LIM LIMPOPO
B176: LIM367 Mogalakwena | C176: LIM LIMPOPO
B177: LIM368 Modimolle-Mookgopong | C177: LIM LIMPOPO
B178: DC36 Waterberg | C178: LIM LIMPOPO
B179: LIM471 Ephraim Mogale | C179: LIM LIMPOPO
B180: LIM472 Elias Motsoaledi | C180: LIM LIMPOPO
B181: LIM473 Makhuduthamaga | C181: LIM LIMPOPO
B182: LIM476 Tubatse Fetakgomo | C182: LIM LIMPOPO
B183: DC47 Sekhukhune | C183: LIM LIMPOPO
B184: MP301 Albert Luthuli | C184: MP MPUMALANGA
B185: MP302 Msukaligwa | C185: MP MPUMALANGA
B186: MP303 Mkhondo | C186: MP MPUMALANGA
B187: MP304 Pixley Ka Seme (MP) | C187: MP MPUMALANGA
B188: MP305 Lekwa | C188: MP MPUMALANGA
B189: MP306 Dipaleseng | C189: MP MPUMALANGA
B190: MP307 Govan Mbeki | C190: MP MPUMALANGA
B191: DC30 Gert Sibande | C191: MP MPUMALANGA
B192: MP311 Victor Khanye | C192: MP MPUMALANGA
B193: MP312 Emalahleni (Mp) | C193: MP MPUMALANGA
B194: MP313 Steve Tshwete | C194: MP MPUMALANGA
B195: MP314 Emakhazeni | C195: MP MPUMALANGA
B196: MP315 Thembisile Hani | C196: MP MPUMALANGA
B197: MP316 Dr J.S. Moroka | C197: MP MPUMALANGA
B198: DC31 Nkangala | C198: MP MPUMALANGA
B199: MP321 Thaba Chweu | C199: MP MPUMALANGA
B200: MP324 Nkomazi | C200: MP MPUMALANGA
... 87 more rows

Sheet Org structure
A1: Organisational Structure Votes | C1: Organisational Structure Sub-Votes | E1: Display Sub-Votes
A2: =B2&" - "&C2 -> Vote 01 - Public Safety | B2: Vote 01 | C2: Public Safety
A3: =B9&" - "&C9 -> Vote 02 - Health Services | B3: 01.1 | C3: Public Safety Administration | D3: =CONCATENATE(B3, " - ", C3) -> 01.1 - Public Safety Administration | E3: 01.1 - Public Safety Administration
A4: =B12&" - "&C12 -> Vote 03 - Community Services | B4: 01.2 | C4: Fire Brigade | D4: 01.2 - Fire Brigade | E4: 01.2 - Fire Brigade
A5: =B19&" - "&C19 -> Vote 04 - Housing | B5: 01.3 | C5: Licencing Administration | D5: 01.3 - Licencing Administration | E5: 01.3 - Licencing Administration
A6: =B25&" - "&C25 -> Vote 05 - Sport Arts And Culture | B6: 01.4 | C6: Traffic Administration | D6: 01.4 - Traffic Administration | E6: 01.4 - Traffic Administration
A7: =B30&" - "&C30 -> Vote 06 - Council General | B7: 01.5 | C7: Disaster Management | D7: 01.5 - Disaster Management | E7: 01.5 - Disaster Management
A8: =B39&" - "&C39 -> Vote 07 - Civil Engineering | B8: 01.6 | C8: Municipal Court | D8: 01.6 - Municipal Court | E8: 01.6 - Municipal Court
A9: =B44&" - "&C44 -> Vote 08 - Water Section | B9: Vote 02 | C9: Health Services
A10: =B47&" - "&C47 -> Vote 09 - City Electrial Engineering | B10: 02.1 | C10: Health Services Administration | D10: =CONCATENATE(B10, " - ", C10) -> 02.1 - Health Services Administration | E10: 02.1 - Health Services Administration
A11: =B53&" - "&C53 -> Vote 10 - Corporate Governane | B11: 02.2 | C11: Occupational Health Centre | D11: =CONCATENATE(B11, " - ", C11) -> 02.2 - Occupational Health Centre | E11: 02.2 - Occupational Health Centre
A12: =B57&" - "&C57 -> Vote 11 - Budget And Treasury Office | B12: Vote 03 | C12: Community Services
A13: =B61&" - "&C61 -> Vote 12 - Cleansing | B13: 03.1 | C13: Administration Community Services | D13: =CONCATENATE(B13, " - ", C13) -> 03.1 - Administration Community Services | E13: 03.1 - Administration Community Services
A14: =B69&" - "&C69 -> Vote 13 - Sewerage | B14: 03.2 | C14: Cemetary | D14: 03.2 - Cemetary | E14: 03.2 - Cemetary
A15: =B74&" - "&C74 -> Vote 14 - Market | B15: 03.3 | C15: Aerodome | D15: 03.3 - Aerodome | E15: 03.3 - Aerodome
A16: =B76&" - "&C76 -> Vote 15 - Other | B16: 03.4 | C16: Nature Reserve | D16: 03.4 - Nature Reserve | E16: 03.4 - Nature Reserve
B17: 03.5 | C17: Orkney Vaal | D17: 03.5 - Orkney Vaal | E17: 03.5 - Orkney Vaal
B18: 03.6 | C18: Administration Parks | D18: 03.6 - Administration Parks | E18: 03.6 - Administration Parks
B19: Vote 04 | C19: Housing
B20: 04.1 | C20: Administration Housing Services | D20: =CONCATENATE(B20, " - ", C20) -> 04.1 - Administration Housing Services | E20: 04.1 - Administration Housing Services
B21: 04.2 | C21: Housing Services | D21: =CONCATENATE(B21, " - ", C21) -> 04.2 - Housing Services | E21: 04.2 - Housing Services
B22: 04.3 | C22: Building Survey | D22: =CONCATENATE(B22, " - ", C22) -> 04.3 - Building Survey | E22: 04.3 - Building Survey
B23: 04.4 | C23: Town Planning | D23: =CONCATENATE(B23, " - ", C23) -> 04.4 - Town Planning | E23: 04.4 - Town Planning
B24: 04.5 | C24: Land Affairs | D24: =CONCATENATE(B24, " - ", C24) -> 04.5 - Land Affairs | E24: 04.5 - Land Affairs
B25: Vote 05 | C25: Sport Arts And Culture
B26: 05.1 | C26: Administration Sports Arts & Culture | D26: =CONCATENATE(B26, " - ", C26) -> 05.1 - Administration Sports Arts & Culture | E26: 05.1 - Administration Sports Arts & Culture
B27: 05.2 | C27: Museum | D27: =CONCATENATE(B27, " - ", C27) -> 05.2 - Museum | E27: 05.2 - Museum
B28: 05.3 | C28: Library | D28: =CONCATENATE(B28, " - ", C28) -> 05.3 - Library | E28: 05.3 - Library
B29: 05.4 | C29: Sports And Recreation | D29: =CONCATENATE(B29, " - ", C29) -> 05.4 - Sports And Recreation | E29: 05.4 - Sports And Recreation
B30: Vote 06 | C30: Council General
B31: 06.1 | C31: Administration Council General | D31: =CONCATENATE(B31, " - ", C31) -> 06.1 - Administration Council General | E31: 06.1 - Administration Council General
B32: 06.2 | C32: Administration Municipal Manager | D32: 06.2 - Administration Municipal Manager | E32: 06.2 - Administration Municipal Manager
B33: 06.3 | C33: Internal Audit | D33: 06.3 - Internal Audit | E33: 06.3 - Internal Audit
B34: 06.4 | C34: Strategic | D34: 06.4 - Strategic | E34: 06.4 - Strategic
B35: 06.5 | C35: Administration Mayor | D35: 06.5 - Administration Mayor | E35: 06.5 - Administration Mayor
B36: 06.6 | C36: Administration Speaker | D36: 06.6 - Administration Speaker | E36: 06.6 - Administration Speaker
B37: 06.7 | C37: Chief Whip | D37: 06.7 - Chief Whip | E37: 06.7 - Chief Whip
B38: 06.8 | C38: Mpac | D38: 06.8 - Mpac | E38: 06.8 - Mpac
B39: Vote 07 | C39: Civil Engineering
B40: 07.1 | C40: Administration City Civil Engineer | D40: =CONCATENATE(B40, " - ", C40) -> 07.1 - Administration City Civil Engineer | E40: 07.1 - Administration City Civil Engineer
B41: 07.2 | C41: Building Construction | D41: =CONCATENATE(B41, " - ", C41) -> 07.2 - Building Construction | E41: 07.2 - Building Construction
B42: 07.3 | C42: Roads | D42: =CONCATENATE(B42, " - ", C42) -> 07.3 - Roads | E42: 07.3 - Roads
B43: 07.4 | C43: Pmu Unit | D43: =CONCATENATE(B43, " - ", C43) -> 07.4 - Pmu Unit | E43: 07.4 - Pmu Unit
B44: Vote 08 | C44: Water Section
B45: 08.1 | C45: Administration Water | D45: =CONCATENATE(B45, " - ", C45) -> 08.1 - Administration Water | E45: 08.1 - Administration Water
B46: 08.2 | C46: Water Distribution | D46: =CONCATENATE(B46, " - ", C46) -> 08.2 - Water Distribution | E46: 08.2 - Water Distribution
B47: Vote 09 | C47: City Electrial Engineering
B48: 09.1 | C48: Streetlighting | D48: =CONCATENATE(B48, " - ", C48) -> 09.1 - Streetlighting | E48: 09.1 - Streetlighting
B49: 09.2 | C49: Garage | D49: =CONCATENATE(B49, " - ", C49) -> 09.2 - Garage | E49: 09.2 - Garage
B50: 09.3 | C50: Workshop | D50: =CONCATENATE(B50, " - ", C50) -> 09.3 - Workshop | E50: 09.3 - Workshop
B51: 09.4 | C51: Administration Electricity | D51: =CONCATENATE(B51, " - ", C51) -> 09.4 - Administration Electricity | E51: 09.4 - Administration Electricity
B52: 09.5 | C52: Electricity Distribution | D52: =CONCATENATE(B52, " - ", C52) -> 09.5 - Electricity Distribution | E52: 09.5 - Electricity Distribution
B53: Vote 10 | C53: Corporate Governane
B54: 10.1 | C54: Administration City Secretary | D54: =CONCATENATE(B54, " - ", C54) -> 10.1 - Administration City Secretary | E54: 10.1 - Administration City Secretary
B55: 10.2 | C55: Legal And Land Affairs | D55: =CONCATENATE(B55, " - ", C55) -> 10.2 - Legal And Land Affairs | E55: 10.2 - Legal And Land Affairs
B56: 10.3 | C56: Management Services | D56: =CONCATENATE(B56, " - ", C56) -> 10.3 - Management Services | E56: 10.3 - Management Services
B57: Vote 11 | C57: Budget And Treasury Office
B58: 11.1 | C58: Administration City Treasurer | D58: =CONCATENATE(B58, " - ", C58) -> 11.1 - Administration City Treasurer | E58: 11.1 - Administration City Treasurer
B59: 11.2 | C59: Data | D59: =CONCATENATE(B59, " - ", C59) -> 11.2 - Data | E59: 11.2 - Data
B60: 11.3 | C60: Stores | D60: =CONCATENATE(B60, " - ", C60) -> 11.3 - Stores | E60: 11.3 - Stores
B61: Vote 12 | C61: Cleansing
B62: 12.1 | C62: Landfill Site | D62: =CONCATENATE(B62, " - ", C62) -> 12.1 - Landfill Site | E62: 12.1 - Landfill Site
B63: 12.2 | C63: Administration Cleansing | D63: 12.2 - Administration Cleansing | E63: 12.2 - Administration Cleansing
B64: 12.3 | C64: Refuse Removal | D64: 12.3 - Refuse Removal | E64: 12.3 - Refuse Removal
B65: 12.4 | C65: Nightsoil Services | D65: 12.4 - Nightsoil Services | E65: 12.4 - Nightsoil Services
B66: 12.5 | C66: Street Cleaning | D66: 12.5 - Street Cleaning | E66: 12.5 - Street Cleaning
B67: 12.6 | C67: Public Restrooms | D67: 12.6 - Public Restrooms | E67: 12.6 - Public Restrooms
B68: 12.7 | C68: Landfill Site | D68: 12.7 - Landfill Site | E68: 12.7 - Landfill Site
B69: Vote 13 | C69: Sewerage
B70: 13.1 | C70: Administration Sewerage | D70: =CONCATENATE(B70, " - ", C70) -> 13.1 - Administration Sewerage | E70: 13.1 - Administration Sewerage
B71: 13.2 | C71: Sewer Agency | D71: =CONCATENATE(B71, " - ", C71) -> 13.2 - Sewer Agency | E71: 13.2 - Sewer Agency
B72: 13.3 | C72: Sewer Distribution | D72: =CONCATENATE(B72, " - ", C72) -> 13.3 - Sewer Distribution | E72: 13.3 - Sewer Distribution
B73: 13.4 | C73: Nightsoil Services | D73: =CONCATENATE(B73, " - ", C73) -> 13.4 - Nightsoil Services | E73: 13.4 - Nightsoil Services
B74: Vote 14 | C74: Market
B75: 14.1 | C75: Market | D75: =CONCATENATE(B75, " - ", C75) -> 14.1 - Market | E75: 14.1 - Market
B76: Vote 15 | C76: Other
B77: 15.1 | C77: Administration Led | D77: =CONCATENATE(B77, " - ", C77) -> 15.1 - Administration Led | E77: 15.1 - Administration Led
B78: 15.2 | C78: Economic Affairs & Corporate Communicati | D78: =CONCATENATE(B78, " - ", C78) -> 15.2 - Economic Affairs & Corporate Communicati | E78: 15.2 - Economic Affairs & Corporate Communicati
B79: 15.3 | C79: Local Economic Development | D79: =CONCATENATE(B79, " - ", C79) -> 15.3 - Local Economic Development | E79: 15.3 - Local Economic Development

Sheet Contacts
A1: =muni&" - "&" Contact Information" -> NW403 City Of Matlosana - Contact Information
A3: A. GENERAL INFORMATION
A4: Municipality | B4: =muni -> NW403 City Of Matlosana | C4: =IF(B4="Choose name from List","Set name on 'Instructions' sheet", "") -> 
A6: Grade | B6: 5 | C6: 1 Grade in terms of the Remuneration of Public Office Bearers Act.
A8: Province | B8: =IF(B4>" ",VLOOKUP(B4,'Lookup and lists'!B29:C307,2, FALSE)," ") -> NW NORTH WEST
A10: Web Address | B10: www.matlosana.gov.za
A12: e-mail Address | B12: dnkosi@klerksdorp.org
A14: B. CONTACT INFORMATION
A15: Postal address:
A16: P.O. Box | B16: 99
A17: City / Town | B17: Klerksdorp
A18: Postal Code | B18: 2570
A20: Street address
A21: Building | B21: Mayibuye
A22: Street No. & Name | B22: c/n Braam Fisher & Emily Hobhouse
A23: City / Town | B23: Klerksdorp
A24: Postal Code | B24: 2570
A26: General Contacts
A27: Telephone number | B27: 018 487 8009
A28: Fax number | B28: 018 464 2318
A30: C. POLITICAL LEADERSHIP
A31: Speaker: | C31: Secretary/PA to the Speaker:
A32: ID Number | C32: ID Number
A33: Title | B33: Ms | C33: Title | D33: Ms
A34: Name | B34: Stella Lebogang Modlane | C34: Name | D34: Annah Khoza
A35: Telephone number | B35: 0184878004 | C35: Telephone number | D35: 0184878004
A36: Cell number | B36: 0658524333 | C36: Cell number | D36: 0782300566
A37: Fax number | C37: Fax number
A38: E-mail address | B38: speaker@klerksdorp.org | C38: E-mail address | D38: speaker@klerksdorp.org
A40: Mayor/Executive Mayor: | C40: Secretary/PA to the Mayor/Executive Mayor:
A41: ID Number | C41: ID Number
A42: Title | B42: Mr | C42: Title | D42: Mrs
A43: Name | B43: FC Mahlophe | C43: Name | D43: Amantle Obuseng
A44: Telephone number | B44: 0184878002 | C44: Telephone number | D44: 0184878002
A45: Cell number | B45: 0747933889 | C45: Cell number | D45: 0682557948
A46: Fax number | C46: Fax number
A47: E-mail address | B47: ymajova@klerksdorp.org | C47: E-mail address | D47: ymajova@klerksdorp.org
A49: Deputy Mayor/Executive Mayor: | C49: Secretary/PA to the Deputy Mayor/Executive Mayor:
A50: ID Number | C50: ID Number
A51: Title | C51: Title
A52: Name | C52: Name
A53: Telephone number | C53: Telephone number
A54: Cell number | C54: Cell number
A55: Fax number | C55: Fax number
A56: E-mail address | C56: E-mail address
A58: D. MANAGEMENT LEADERSHIP
A59: Municipal Manager: | C59: Secretary/PA to the Municipal Manager:
A60: ID Number | C60: ID Number
A61: Title | B61: Acting | C61: Title | D61: Ms
A62: Name | B62: Lesego Seametso | C62: Name | D62: Dikeledi Nkosi
A63: Telephone number | B63: 0184878009 | C63: Telephone number | D63: 0184878009
A64: Cell number | B64: 0760197668 | C64: Cell number | D64: 0827521457
A65: Fax number | C65: Fax number
A66: E-mail address | B66: dnkosi@klerksdorp.org | C66: E-mail address | D66: dnkosi@klerksdorp.org
A68: Chief Financial Officer | C68: Secretary/PA to the Chief Financial Officer
A69: ID Number | C69: ID Number
A70: Title | B70: Mr | C70: Title | D70: Mrs
A71: Name | B71: MM Phetla | C71: Name | D71: Kholeka Witbooi
A72: Telephone number | B72: 0184878017 | C72: Telephone number | D72: 0184878009
A73: Cell number | B73: 0814266596 | C73: Cell number
A74: Fax number | C74: Fax number
A75: E-mail address | B75: finance@klerksdorp.org | C75: E-mail address | D75: finance@klerksdorp.org
A77: Official responsible for submitting financial information | C77: Official responsible for submitting financial information
A78: ID Number | C78: ID Number
A79: Title | B79: Mrs | C79: Title | D79: Mr
A80: Name | B80: MEITIE SEBOLAI | C80: Name | D80: DRICKUS ROSSOUW
A81: Telephone number | B81: 0184878569 | C81: Telephone number | D81: 018 487 8518
A82: Cell number | C82: Cell number | D82: 083 627 7278
A83: Fax number | C83: Fax number | D83: 018 487 2318
A84: E-mail address | B84: meitie@klerksdorp.org | C84: E-mail address | D84: drossouw@klerksdorp.og
A85: Official responsible for submitting financial information | C85: Official responsible for submitting financial information
A86: ID Number | C86: ID Number
A87: Title | B87: Mrs | C87: Title | D87: Mrs
A88: Name | B88: TSAONE SEKGALA | C88: Name | D88: NALEDI MOEKETSI
A89: Telephone number | B89: 018 487 8549 | C89: Telephone number | D89: 018 487 8569
A90: Cell number | B90: 083 280 1159 | C90: Cell number | D90: 083 8222 077
A91: Fax number | C91: Fax number
A92: E-mail address | B92: osekgala@klerksdorp.org | C92: E-mail address | D92: sylvia@klerksdorp.org
A93: Official responsible for submitting financial information | C93: Official responsible for submitting financial information
A94: ID Number | C94: ID Number
A95: Title | C95: Title
A96: Name | C96: Name
A97: Telephone number | C97: Telephone number
A98: Cell number | C98: Cell number
A99: Fax number | C99: Fax number
A100: E-mail address | C100: E-mail address
A101: Official responsible for submitting financial information | C101: Official responsible for submitting financial information
A102: ID Number | C102: ID Number
A103: Title | C103: Title
A104: Name | C104: Name
A105: Telephone number | C105: Telephone number
A106: Cell number | C106: Cell number
A107: Fax number | C107: Fax number
A108: E-mail address | C108: E-mail address
A109: Official responsible for submitting financial information | C109: Official responsible for submitting financial information
A110: ID Number | C110: ID Number
A111: Title | C111: Title
A112: Name | C112: Name
A113: Telephone number | C113: Telephone number
A114: Cell number | C114: Cell number
A115: Fax number | C115: Fax number
A116: E-mail address | C116: E-mail address
A117: Official responsible for submitting financial information | C117: Official responsible for submitting financial information
A118: ID Number | C118: ID Number
A119: Title | C119: Title
A120: Name | C120: Name
A121: Telephone number | C121: Telephone number
A122: Cell number | C122: Cell number
A123: Fax number | C123: Fax number
A124: E-mail address | C124: E-mail address
A125: Official responsible for submitting financial information | C125: Official responsible for submitting financial information
A126: ID Number | C126: ID Number
A127: Title | C127: Title
A128: Name | C128: Name
A129: Telephone number | C129: Telephone number
A130: Cell number | C130: Cell number
A131: Fax number | C131: Fax number
A132: E-mail address | C132: E-mail address
A133: Official responsible for submitting financial information
A134: ID Number
A135: Title
A136: Name
A137: Telephone number
A138: Cell number
A139: Fax number
A140: E-mail address

Sheet A1-Sum
A1: =muni&" - "&Approve1 -> NW403 City Of Matlosana - Table A1 Budget Summary
A2: =desc -> Description | B2: =head1b -> 2021/22 | C2: =head1A -> 2022/23 | D2: =Head1 -> 2023/24 | E2: =Head2 -> Current Year 2024/25 | I2: =Head3 -> 2025/26 Medium Term Revenue & Expenditure Framework
A3: R thousands | B3: =Head5 -> Audited Outcome | C3: =Head5 -> Audited Outcome | D3: =Head5 -> Audited Outcome | E3: =Head6 -> Original Budget | F3: =Head7 -> Adjusted Budget | G3: =Head8 -> Full Year Forecast | H3: =Head5b -> Pre-audit outcome | I3: =Head9 -> Budget Year 2025/26 | J3: =Head10 -> Budget Year +1 2026/27 | K3: =Head11 -> Budget Year +2 2027/28
A4: Financial Performance
A5: Property rates | B5: ='A4-FinPerf RE'!C22 -> 451441226.4 | C5: ='A4-FinPerf RE'!D22 -> 456396936.2 | D5: ='A4-FinPerf RE'!E22 -> 507433747.1 | E5: ='A4-FinPerf RE'!F22 -> 593684392 | F5: ='A4-FinPerf RE'!G22 -> 503684392 | G5: ='A4-FinPerf RE'!H22 -> 503684392 | H5: ='A4-FinPerf RE'!I22 -> 414481915.4 | I5: ='A4-FinPerf RE'!J22 -> 522318362 | J5: ='A4-FinPerf RE'!K22 -> 545594393 | K5: ='A4-FinPerf RE'!L22 -> 559234252
A6: Service charges | B6: =SUM('A4-FinPerf RE'!C6:C9) -> 1901216070 | C6: =SUM('A4-FinPerf RE'!D6:D9) -> 1949608127 | D6: =SUM('A4-FinPerf RE'!E6:E9) -> 2073123505 | E6: =SUM('A4-FinPerf RE'!F6:F9) -> 2350094782 | F6: =SUM('A4-FinPerf RE'!G6:G9) -> 2300094782 | G6: =SUM('A4-FinPerf RE'!H6:H9) -> 2300094782 | H6: =SUM('A4-FinPerf RE'!I6:I9) -> 1726070441 | I6: =SUM('A4-FinPerf RE'!J6:J9) -> 2596024586 | J6: =SUM('A4-FinPerf RE'!K6:K9) -> 2571276310 | K6: =SUM('A4-FinPerf RE'!L6:L9) -> 2635558216
A7: Investment revenue | B7: ='A4-FinPerf RE'!C14 -> 10685431.08 | C7: ='A4-FinPerf RE'!D14 -> 15402442.26 | D7: ='A4-FinPerf RE'!E14 -> 125135907.3 | E7: ='A4-FinPerf RE'!F14 -> 10239203 | F7: ='A4-FinPerf RE'!G14 -> 10239203 | G7: ='A4-FinPerf RE'!H14 -> 10239203 | H7: ='A4-FinPerf RE'!I14 -> 8021326.56 | I7: ='A4-FinPerf RE'!J14 -> 11138435 | J7: ='A4-FinPerf RE'!K14 -> 11138435 | K7: ='A4-FinPerf RE'!L14 -> 11416897
A8: Transfer and subsidies - Operational | B8: ='A4-FinPerf RE'!C26 -> 511230910 | C8: ='A4-FinPerf RE'!D26 -> 559520046.7 | D8: ='A4-FinPerf RE'!E26 -> 616668395.2 | E8: ='A4-FinPerf RE'!F26 -> 657797200 | F8: ='A4-FinPerf RE'!G26 -> 658216200 | G8: ='A4-FinPerf RE'!H26 -> 658216200 | H8: ='A4-FinPerf RE'!I26 -> 636094172.2 | I8: ='A4-FinPerf RE'!J26 -> 700076550 | J8: ='A4-FinPerf RE'!K26 -> 732001200 | K8: ='A4-FinPerf RE'!L26 -> 760606790
A9: Other own revenue | B9: ='A4-FinPerf RE'!C33-SUM(B5:B8) -> 821241344.4 | C9: ='A4-FinPerf RE'!D33-SUM(C5:C8) -> 764794284.2 | D9: ='A4-FinPerf RE'!E33-SUM(D5:D8) -> 746089533.2 | E9: ='A4-FinPerf RE'!F33-SUM(E5:E8) -> 653045276 | F9: ='A4-FinPerf RE'!G33-SUM(F5:F8) -> 833212403 | G9: ='A4-FinPerf RE'!H33-SUM(G5:G8) -> 833212403 | H9: ='A4-FinPerf RE'!I33-SUM(H5:H8) -> 623491426.9 | I9: ='A4-FinPerf RE'!J33-SUM(I5:I8) -> 819532947 | J9: ='A4-FinPerf RE'!K33-SUM(J5:J8) -> 682655469 | K9: ='A4-FinPerf RE'!L33-SUM(K5:K8) -> 699506138
A10: ='A4-FinPerf RE'!A33 -> Total Revenue (excluding capital transfers and contributions) | B10: =SUM(B5:B9) -> 3695814982 | C10: =SUM(C5:C9) -> 3745721837 | D10: 4068451088 | E10: 4264860853 | F10: 4305446980 | G10: 4305446980 | H10: 3408159282 | I10: 4649090880 | J10: 4542665807 | K10: 4666322293
A11: Employee costs | B11: ='A4-FinPerf RE'!C35 -> 686188405.8 | C11: ='A4-FinPerf RE'!D35 -> 696837022.5 | D11: ='A4-FinPerf RE'!E35 -> 795179728.9 | E11: ='A4-FinPerf RE'!F35 -> 794681905 | F11: ='A4-FinPerf RE'!G35 -> 816673929 | G11: ='A4-FinPerf RE'!H35 -> 816673929 | H11: ='A4-FinPerf RE'!I35 -> 579609284.1 | I11: ='A4-FinPerf RE'!J35 -> 848306870 | J11: ='A4-FinPerf RE'!K35 -> 892639816 | K11: ='A4-FinPerf RE'!L35 -> 933738479
A12: Remuneration of councillors | B12: ='A4-FinPerf RE'!C36 -> 34189332.6 | C12: ='A4-FinPerf RE'!D36 -> 36911611.07 | D12: ='A4-FinPerf RE'!E36 -> 39039461.95 | E12: ='A4-FinPerf RE'!F36 -> 46107129 | F12: ='A4-FinPerf RE'!G36 -> 46107129 | G12: ='A4-FinPerf RE'!H36 -> 46107129 | H12: ='A4-FinPerf RE'!I36 -> 29729624.48 | I12: ='A4-FinPerf RE'!J36 -> 48504700 | J12: ='A4-FinPerf RE'!K36 -> 50446558 | K12: ='A4-FinPerf RE'!L36 -> 53069782
A13: Depreciation and amortisation | B13: ='A4-FinPerf RE'!C40 -> 383480410.6 | C13: ='A4-FinPerf RE'!D40 -> 382953200.1 | D13: ='A4-FinPerf RE'!E40 -> 347975422.4 | E13: ='A4-FinPerf RE'!F40 -> 411097601 | F13: ='A4-FinPerf RE'!G40 -> 401097601 | G13: ='A4-FinPerf RE'!H40 -> 401097601 | H13: ='A4-FinPerf RE'!I40 -> 218331208.7 | I13: ='A4-FinPerf RE'!J40 -> 401097601 | J13: ='A4-FinPerf RE'!K40 -> 401097601 | K13: ='A4-FinPerf RE'!L40 -> 401097601
A14: Interest | B14: ='A4-FinPerf RE'!C41 -> 116935916 | C14: ='A4-FinPerf RE'!D41 -> 237534472.3 | D14: ='A4-FinPerf RE'!E41 -> 377387838.8 | E14: ='A4-FinPerf RE'!F41 -> 10144245 | F14: ='A4-FinPerf RE'!G41 -> 10144245 | G14: ='A4-FinPerf RE'!H41 -> 10144245 | H14: ='A4-FinPerf RE'!I41 -> 6834834.51 | I14: ='A4-FinPerf RE'!J41 -> 10590895 | J14: ='A4-FinPerf RE'!K41 -> 11098993 | K14: ='A4-FinPerf RE'!L41 -> 11587352
A15: Inventory consumed and bulk purchases | B15: ='A4-FinPerf RE'!C37+'A4-FinPerf RE'!C38 -> 912765989.9 | C15: ='A4-FinPerf RE'!D37+'A4-FinPerf RE'!D38 -> 907467927.6 | D15: ='A4-FinPerf RE'!E37+'A4-FinPerf RE'!E38 -> 1072585802 | E15: ='A4-FinPerf RE'!F37+'A4-FinPerf RE'!F38 -> 1359300934 | F15: ='A4-FinPerf RE'!G37+'A4-FinPerf RE'!G38 -> 1560912089 | G15: ='A4-FinPerf RE'!H37+'A4-FinPerf RE'!H38 -> 1560912089 | H15: ='A4-FinPerf RE'!I37+'A4-FinPerf RE'!I38 -> 726714921.3 | I15: ='A4-FinPerf RE'!J37+'A4-FinPerf RE'!J38 -> 1599620740 | J15: ='A4-FinPerf RE'!K37+'A4-FinPerf RE'!K38 -> 1174869325 | K15: ='A4-FinPerf RE'!L37+'A4-FinPerf RE'!L38 -> 1324077729
A16: Transfers and subsidies | B16: ='A4-FinPerf RE'!C43 -> 0 | C16: ='A4-FinPerf RE'!D43 -> 0 | D16: ='A4-FinPerf RE'!E43 -> 0 | E16: ='A4-FinPerf RE'!F43 -> 0 | F16: ='A4-FinPerf RE'!G43 -> 0 | G16: ='A4-FinPerf RE'!H43 -> 0 | H16: ='A4-FinPerf RE'!I43 -> 0 | I16: ='A4-FinPerf RE'!J43 -> 0 | J16: ='A4-FinPerf RE'!K43 -> 0 | K16: ='A4-FinPerf RE'!L43 -> 0
A17: Other expenditure | B17: ='A4-FinPerf RE'!C48-SUM(B11:B16) -> 1873462391 | C17: ='A4-FinPerf RE'!D48-SUM(C11:C16) -> 1953080783 | D17: ='A4-FinPerf RE'!E48-SUM(D11:D16) -> 2001627341 | E17: ='A4-FinPerf RE'!F48-SUM(E11:E16) -> 1641308990 | F17: ='A4-FinPerf RE'!G48-SUM(F11:F16) -> 2326028665 | G17: ='A4-FinPerf RE'!H48-SUM(G11:G16) -> 2326028665 | H17: ='A4-FinPerf RE'!I48-SUM(H11:H16) -> 1127553732 | I17: ='A4-FinPerf RE'!J48-SUM(I11:I16) -> 1971431099 | J17: ='A4-FinPerf RE'!K48-SUM(J11:J16) -> 1682655459 | K17: ='A4-FinPerf RE'!L48-SUM(K11:K16) -> 1558864996
A18: ='A4-FinPerf RE'!A48 -> Total Expenditure | B18: =SUM(B11:B17) -> 4007022446 | C18: =SUM(C11:C17) -> 4214785017 | D18: 4633795595 | E18: 4262640804 | F18: 5160963658 | G18: 5160963658 | H18: 2688773605 | I18: 4879551905 | J18: 4212807752 | K18: 4282435939
A19: ='A4-FinPerf RE'!A49 -> Surplus/(Deficit) | B19: =B10-B18 -> -311207463.9 | C19: =C10-C18 -> -469063179.9 | D19: -565344507.2 | E19: 2220049 | F19: -855516678 | G19: -855516678 | H19: 719385677 | I19: -230461025 | J19: 329858055 | K19: 383886354
A20: ='A4-FinPerf RE'!A50 -> Transfers and subsidies - capital (monetary allocations) | B20: ='A4-FinPerf RE'!C50 -> 156811322.9 | C20: ='A4-FinPerf RE'!D50 -> 107436569.9 | D20: ='A4-FinPerf RE'!E50 -> 178439678.8 | E20: ='A4-FinPerf RE'!F50 -> 186249799 | F20: ='A4-FinPerf RE'!G50 -> 186111799 | G20: ='A4-FinPerf RE'!H50 -> 186111799 | H20: ='A4-FinPerf RE'!I50 -> 82229162.59 | I20: ='A4-FinPerf RE'!J50 -> 217985449 | J20: ='A4-FinPerf RE'!K50 -> 232432800 | K20: ='A4-FinPerf RE'!L50 -> 232429210
A21: ='A4-FinPerf RE'!A51 -> Transfers and subsidies - capital (in-kind) | B21: ='A4-FinPerf RE'!C51 -> 0 | C21: ='A4-FinPerf RE'!D51 -> 0 | D21: ='A4-FinPerf RE'!E51 -> 0 | E21: ='A4-FinPerf RE'!F51 -> 0 | F21: ='A4-FinPerf RE'!G51 -> 0 | G21: ='A4-FinPerf RE'!H51 -> 0 | H21: ='A4-FinPerf RE'!I51 -> 0 | I21: ='A4-FinPerf RE'!J51 -> 0 | J21: ='A4-FinPerf RE'!K51 -> 0 | K21: ='A4-FinPerf RE'!L51 -> 0
A22: ='A4-FinPerf RE'!A52 -> Surplus/(Deficit) after capital transfers & contributions | B22: =B19+SUM(B20:B21) -> -154396140.9 | C22: =C19+SUM(C20:C21) -> -361626610 | D22: -386904828.4 | E22: 188469848 | F22: -669404879 | G22: -669404879 | H22: 801614839.5 | I22: -12475576 | J22: 562290855 | K22: 616315564
A23: ='A4-FinPerf RE'!A58 -> Share of Surplus/Deficit attributable to Associate | B23: ='A4-FinPerf RE'!C58 -> 0 | C23: ='A4-FinPerf RE'!D58 -> 0 | D23: ='A4-FinPerf RE'!E58 -> 0 | E23: ='A4-FinPerf RE'!F58 -> 0 | F23: ='A4-FinPerf RE'!G58 -> 0 | G23: ='A4-FinPerf RE'!H58 -> 0 | H23: ='A4-FinPerf RE'!I58 -> 0 | I23: ='A4-FinPerf RE'!J58 -> 0 | J23: ='A4-FinPerf RE'!K58 -> 0 | K23: ='A4-FinPerf RE'!L58 -> 0
A24: ='A4-FinPerf RE'!A60 -> Surplus/(Deficit) for the year | B24: =B22+B23 -> -154396140.9 | C24: =C22+C23 -> -361626610 | D24: -386904828.4 | E24: 188469848 | F24: -669404879 | G24: -669404879 | H24: 801614839.5 | I24: -12475576 | J24: 562290855 | K24: 616315564
A25: Capital expenditure & funds sources
A26: Capital expenditure | B26: ='A5-Capex'!C63 -> 152540817.6 | C26: ='A5-Capex'!D63 -> 83951958.14 | D26: ='A5-Capex'!E63 -> 238305291.7 | E26: ='A5-Capex'!F63 -> 236249799 | F26: ='A5-Capex'!G63 -> 235525033 | G26: ='A5-Capex'!H63 -> 235525033 | H26: ='A5-Capex'!I63 -> 100621873.8 | I26: ='A5-Capex'!J63 -> 257985449 | J26: ='A5-Capex'!K63 -> 232432800 | K26: ='A5-Capex'!L63 -> 232429210
A27: Transfers recognised - capital | B27: ='A5-Capex'!C70 -> 145096678.9 | C27: ='A5-Capex'!D70 -> 77726955.16 | D27: ='A5-Capex'!E70 -> 236808456.7 | E27: ='A5-Capex'!F70 -> 186249799 | F27: ='A5-Capex'!G70 -> 186111800 | G27: ='A5-Capex'!H70 -> 186111800 | H27: ='A5-Capex'!I70 -> 94871392.27 | I27: ='A5-Capex'!J70 -> 217985449 | J27: ='A5-Capex'!K70 -> 232432800 | K27: ='A5-Capex'!L70 -> 232429210
A29: ='A5-Capex'!A72 -> Borrowing | B29: ='A5-Capex'!C72 -> 0 | C29: ='A5-Capex'!D72 -> 0 | D29: ='A5-Capex'!E72 -> 0 | E29: ='A5-Capex'!F72 -> 0 | F29: ='A5-Capex'!G72 -> 0 | G29: ='A5-Capex'!H72 -> 0 | H29: ='A5-Capex'!I72 -> 0 | I29: ='A5-Capex'!J72 -> 0 | J29: ='A5-Capex'!K72 -> 0 | K29: ='A5-Capex'!L72 -> 0
A30: ='A5-Capex'!A73 -> Internally generated funds | B30: ='A5-Capex'!C73 -> 7444138.71 | C30: ='A5-Capex'!D73 -> 6225002.98 | D30: ='A5-Capex'!E73 -> 1496834.97 | E30: ='A5-Capex'!F73 -> 50000000 | F30: ='A5-Capex'!G73 -> 49413233 | G30: ='A5-Capex'!H73 -> 49413233 | H30: ='A5-Capex'!I73 -> 5750481.57 | I30: ='A5-Capex'!J73 -> 40000000 | J30: ='A5-Capex'!K73 -> 0 | K30: ='A5-Capex'!L73 -> 0
A31: Total sources of capital funds | B31: =+B27+B29+B30 -> 152540817.6 | C31: =+C27+C29+C30 -> 83951958.14 | D31: 238305291.7 | E31: 236249799 | F31: 235525033 | G31: 235525033 | H31: 100621873.8 | I31: 257985449 | J31: 232432800 | K31: 232429210
A32: Financial position
A33: ='A6-FinPos'!A13 -> Total current assets | B33: ='A6-FinPos'!C13 -> 1865464132 | C33: ='A6-FinPos'!D13 -> 1903973360 | D33: ='A6-FinPos'!E13 -> 2387576985 | E33: ='A6-FinPos'!F13 -> 848473073 | F33: ='A6-FinPos'!G13 -> 663898298 | G33: ='A6-FinPos'!H13 -> 663898298 | H33: ='A6-FinPos'!I13 -> 3560382250 | I33: ='A6-FinPos'!J13 -> 419965708.1 | J33: ='A6-FinPos'!K13 -> -710813936 | K33: ='A6-FinPos'!L13 -> -3234029882
A34: ='A6-FinPos'!A25 -> Total non current assets | B34: ='A6-FinPos'!C25 -> 5565160073 | C34: ='A6-FinPos'!D25 -> 5453530563 | D34: ='A6-FinPos'!E25 -> 5340703063 | E34: ='A6-FinPos'!F25 -> 3849404621 | F34: ='A6-FinPos'!G25 -> 3848679855 | G34: ='A6-FinPos'!H25 -> 3848679855 | H34: ='A6-FinPos'!I25 -> 5222993728 | I34: ='A6-FinPos'!J25 -> 3886069534 | J34: ='A6-FinPos'!K25 -> 232432800 | K34: ='A6-FinPos'!L25 -> 232429210
A35: ='A6-FinPos'!A37 -> Total current liabilities | B35: ='A6-FinPos'!C37 -> 4028877127 | C35: ='A6-FinPos'!D37 -> 4977142818 | D35: ='A6-FinPos'!E37 -> 6370556637 | E35: ='A6-FinPos'!F37 -> 3454318423 | F35: ='A6-FinPos'!G37 -> 4087566370 | G35: ='A6-FinPos'!H37 -> 4087566370 | H35: ='A6-FinPos'!I37 -> 7052879067 | I35: ='A6-FinPos'!J37 -> 4413556068 | J35: ='A6-FinPos'!K37 -> 976521493 | K35: ='A6-FinPos'!L37 -> -2615785508
A36: ='A6-FinPos'!A43 -> Total non current liabilities | B36: ='A6-FinPos'!C43 -> 42265259.54 | C36: ='A6-FinPos'!D43 -> 26575963.32 | D36: ='A6-FinPos'!E43 -> 18617200.12 | E36: ='A6-FinPos'!F43 -> 81274059 | F36: ='A6-FinPos'!G43 -> 81274059 | G36: ='A6-FinPos'!H43 -> 81274059 | H36: ='A6-FinPos'!I43 -> 9862895.99 | I36: ='A6-FinPos'!J43 -> 82086800 | J36: ='A6-FinPos'!K43 -> 0 | K36: ='A6-FinPos'!L43 -> 0
A37: Community wealth/Equity | B37: ='A6-FinPos'!C50 -> 3690653717 | C37: ='A6-FinPos'!D50 -> 2876795056 | D37: ='A6-FinPos'!E50 -> 1948715183 | E37: ='A6-FinPos'!F50 -> 1159502431 | F37: ='A6-FinPos'!G50 -> 301627704 | G37: ='A6-FinPos'!H50 -> 301627704 | H37: ='A6-FinPos'!I50 -> 2140721050 | I37: ='A6-FinPos'!J50 -> 129045206 | J37: ='A6-FinPos'!K50 -> -469390267 | K37: ='A6-FinPos'!L50 -> 616315564
A38: Cash flows
A39: Net cash from (used) operating | B39: ='A7-CFlow'!C17 -> 2152062854 | C39: ='A7-CFlow'!D17 -> 1691423431 | D39: ='A7-CFlow'!E17 -> 2964215906 | E39: ='A7-CFlow'!F17 -> -119057310 | F39: ='A7-CFlow'!G17 -> -472804339 | G39: ='A7-CFlow'!H17 -> -472804339 | H39: ='A7-CFlow'!I17 -> 2163683305 | I39: ='A7-CFlow'!J17 -> -496857937 | J39: ='A7-CFlow'!K17 -> -409933885 | K39: ='A7-CFlow'!L17 -> -224748691
A40: Net cash from (used) investing | B40: ='A7-CFlow'!C27 -> -152540817.6 | C40: ='A7-CFlow'!D27 -> -83951958.14 | D40: ='A7-CFlow'!E27 -> -249627193 | E40: ='A7-CFlow'!F27 -> -236249799 | F40: ='A7-CFlow'!G27 -> -235525033 | G40: ='A7-CFlow'!H27 -> -235525033 | H40: ='A7-CFlow'!I27 -> -100621873.8 | I40: ='A7-CFlow'!J27 -> -247129474 | J40: ='A7-CFlow'!K27 -> -221077449 | K40: ='A7-CFlow'!L27 -> -220574224
A41: Net cash from (used) financing | B41: ='A7-CFlow'!C36 -> 0 | C41: ='A7-CFlow'!D36 -> 0 | D41: ='A7-CFlow'!E36 -> -864648.31 | E41: ='A7-CFlow'!F36 -> -4800000 | F41: ='A7-CFlow'!G36 -> -1200000 | G41: ='A7-CFlow'!H36 -> -1200000 | H41: ='A7-CFlow'!I36 -> 0 | I41: ='A7-CFlow'!J36 -> 1325000 | J41: ='A7-CFlow'!K36 -> 2530000 | K41: ='A7-CFlow'!L36 -> 0
A42: =LEFT('A7-CFlow'!A40,37) -> Cash/cash equivalents at the year end | B42: ='A7-CFlow'!C40 -> 1804120163 | C42: ='A7-CFlow'!D40 -> 1832392729 | D42: ='A7-CFlow'!E40 -> 2818497324 | E42: ='A7-CFlow'!F40 -> -267428232 | F42: ='A7-CFlow'!G40 -> -616850495 | G42: ='A7-CFlow'!H40 -> -616850495 | H42: ='A7-CFlow'!I40 -> 2063061431 | I42: ='A7-CFlow'!J40 -> -573452720 | J42: ='A7-CFlow'!K40 -> -1201934054 | K42: ='A7-CFlow'!L40 -> -1647256969
A44: Cash backing/surplus reconciliation
A45: ='A8-ResRecon'!A4 -> Cash and investments available | B45: ='A8-ResRecon'!C8 -> 224921256.7 | C45: ='A8-ResRecon'!D8 -> 104773259.4 | D45: ='A8-ResRecon'!E8 -> 181715215.6 | E45: ='A8-ResRecon'!F8 -> -267428232 | F45: ='A8-ResRecon'!G8 -> -375794739 | G45: ='A8-ResRecon'!H8 -> -375794739 | H45: ='A8-ResRecon'!I8 -> 791465002.6 | I45: ='A8-ResRecon'!J8 -> -566282999 | J45: ='A8-ResRecon'!K8 -> -1440642794 | K45: ='A8-ResRecon'!L8 -> -456910267
A46: ='A8-ResRecon'!A10 -> Application of cash and investments | B46: ='A8-ResRecon'!C18 -> 2332572304 | C46: ='A8-ResRecon'!D18 -> 3236406336 | D46: ='A8-ResRecon'!E18 -> 4339310144 | E46: ='A8-ResRecon'!F18 -> 2884539510 | F46: ='A8-ResRecon'!G18 -> 3454522731 | G46: ='A8-ResRecon'!H18 -> 3454522731 | H46: ='A8-ResRecon'!I18 -> 4495249514 | I46: ='A8-ResRecon'!J18 -> 3476755309 | J46: ='A8-ResRecon'!K18 -> 189977493 | K46: ='A8-ResRecon'!L18 -> -538618508
A47: Balance - surplus (shortfall) | B47: =B45-B46 -> -2107651047 | C47: =C45-C46 -> -3131633076 | D47: -4157594929 | E47: -3151967742 | F47: -3830317470 | G47: -3830317470 | H47: -3703784511 | I47: -4043038308 | J47: -1630620287 | K47: 81708241
A48: Asset management
A49: Asset register summary (WDV) | B49: ='A9-Asset'!C180 -> 5565160073 | C49: ='A9-Asset'!D180 -> 5453530563 | D49: ='A9-Asset'!E180 -> 5340703063 | E49: ='A9-Asset'!F180 -> 3849371866 | F49: ='A9-Asset'!G180 -> 3848647100 | G49: ='A9-Asset'!H180 -> 3848647100 | I49: ='A9-Asset'!I180 -> 3886036451 | J49: ='A9-Asset'!J180 -> 232432800 | K49: ='A9-Asset'!K180 -> 232429210
A50: ='A9-Asset'!A183 -> Depreciation | B50: ='A9-Asset'!C183 -> 383480410.5 | C50: ='A9-Asset'!D183 -> 382953200.1 | D50: ='A9-Asset'!E183 -> 347975422.4 | E50: ='A9-Asset'!F183 -> 411097601 | F50: ='A9-Asset'!G183 -> 401097601 | G50: ='A9-Asset'!H183 -> 401097601 | I50: ='A9-Asset'!I183 -> 401097601 | J50: ='A9-Asset'!J183 -> 401097601 | K50: ='A9-Asset'!K183 -> 401097601
A51: Renewal and Upgrading of Existing Assets | B51: ='A9-Asset'!C40+'A9-Asset'!C75 -> 19161377.61 | C51: ='A9-Asset'!D40+'A9-Asset'!D75 -> 8941906.25 | D51: ='A9-Asset'!E40+'A9-Asset'!E75 -> 41701699.67 | E51: ='A9-Asset'!F40+'A9-Asset'!F75 -> 35100196 | F51: ='A9-Asset'!G40+'A9-Asset'!G75 -> 30402566 | G51: ='A9-Asset'!H40+'A9-Asset'!H75 -> 30402566 | I51: ='A9-Asset'!I40+'A9-Asset'!I75 -> 25462551 | J51: ='A9-Asset'!J40+'A9-Asset'!J75 -> 20324000 | K51: ='A9-Asset'!K40+'A9-Asset'!K75 -> 11755000
A52: Repairs and Maintenance | B52: ='A9-Asset'!C184 -> 115619354 | C52: ='A9-Asset'!D184 -> 137525528.5 | D52: ='A9-Asset'!E184 -> 104856038 | E52: ='A9-Asset'!F184 -> 264424176 | F52: ='A9-Asset'!G184 -> 295191852 | G52: ='A9-Asset'!H184 -> 295191852 | I52: ='A9-Asset'!I184 -> 416876671 | J52: ='A9-Asset'!J184 -> 335140096 | K52: ='A9-Asset'!K184 -> 343834826
A54: Free services
A55: Cost of Free Basic Services provided | B55: ='A10-SerDel'!C60 -> 174700819.4 | C55: ='A10-SerDel'!D60 -> 123708843.7 | D55: ='A10-SerDel'!E60 -> 126921424.1 | E55: ='A10-SerDel'!F60 -> 207755533 | F55: ='A10-SerDel'!G60 -> 215133297 | G55: ='A10-SerDel'!H60 -> 215133297 | I55: ='A10-SerDel'!I60 -> 222394349 | J55: ='A10-SerDel'!J60 -> 227308656 | K55: ='A10-SerDel'!K60 -> 232991373
A56: Revenue cost of free services provided | B56: ='A10-SerDel'!C79 -> 142242472.9 | C56: ='A10-SerDel'!D79 -> 144991578.7 | D56: ='A10-SerDel'!E79 -> 165437892.8 | E56: ='A10-SerDel'!F79 -> 104865602 | F56: ='A10-SerDel'!G79 -> 104865602 | G56: ='A10-SerDel'!H79 -> 104865602 | I56: ='A10-SerDel'!I79 -> 155667498 | J56: ='A10-SerDel'!J79 -> 162672536 | K56: ='A10-SerDel'!K79 -> 166739348
A57: Households below minimum service level
A58: ='A10-SerDel'!A5 -> Water: | B58: ='A10-SerDel'!C14 -> 0 | C58: ='A10-SerDel'!D14 -> 0 | D58: ='A10-SerDel'!E14 -> 0 | E58: ='A10-SerDel'!F14 -> 0 | F58: ='A10-SerDel'!G14 -> 0 | G58: ='A10-SerDel'!H14 -> 0 | I58: ='A10-SerDel'!I14 -> 0 | J58: ='A10-SerDel'!J14 -> 0 | K58: ='A10-SerDel'!K14 -> 0
A59: ='A10-SerDel'!A16 -> Sanitation/sewerage: | B59: ='A10-SerDel'!C26 -> 4960 | C59: ='A10-SerDel'!D26 -> 0 | D59: ='A10-SerDel'!E26 -> 4970 | E59: ='A10-SerDel'!F26 -> 4970 | F59: ='A10-SerDel'!G26 -> 4970 | G59: ='A10-SerDel'!H26 -> 4970 | I59: ='A10-SerDel'!I26 -> 4970 | J59: ='A10-SerDel'!J26 -> 5198 | K59: ='A10-SerDel'!K26 -> 5427.36
A60: ='A10-SerDel'!A28 -> Energy: | B60: ='A10-SerDel'!C35 -> 179990 | C60: ='A10-SerDel'!D35 -> 0 | D60: ='A10-SerDel'!E35 -> 20194 | E60: ='A10-SerDel'!F35 -> 20451 | F60: ='A10-SerDel'!G35 -> 20451 | G60: ='A10-SerDel'!H35 -> 20451 | I60: ='A10-SerDel'!I35 -> 20670 | J60: ='A10-SerDel'!J35 -> 21621 | K60: ='A10-SerDel'!K35 -> 22572.13
A61: ='A10-SerDel'!A37 -> Refuse: | B61: ='A10-SerDel'!C45 -> 8146 | C61: ='A10-SerDel'!D45 -> 0 | D61: ='A10-SerDel'!E45 -> 12082 | E61: ='A10-SerDel'!F45 -> 15503 | F61: ='A10-SerDel'!G45 -> 15503 | G61: ='A10-SerDel'!H45 -> 15503 | I61: ='A10-SerDel'!I45 -> 14056 | J61: ='A10-SerDel'!J45 -> 14703 | K61: ='A10-SerDel'!K45 -> 15349.54

Sheet A2-FinPerf SC
A1: =muni&" - "&Approve3 -> NW403 City Of Matlosana - Table A2 Budgeted Financial Performance (revenue and expenditure by functional classification)
A2: ="Functional Classification "&desc -> Functional Classification Description | B2: =head27 -> Ref | C2: =head1b -> 2021/22 | D2: =head1A -> 2022/23 | E2: =Head1 -> 2023/24 | F2: =Head2 -> Current Year 2024/25 | I2: =Head3 -> 2025/26 Medium Term Revenue & Expenditure Framework
A3: R thousand | B3: 1 | C3: =Head5 -> Audited Outcome | D3: =Head5 -> Audited Outcome | E3: =Head5 -> Audited Outcome | F3: =Head6 -> Original Budget | G3: =Head7 -> Adjusted Budget | H3: =Head8 -> Full Year Forecast | I3: =Head9 -> Budget Year 2025/26 | J3: =Head10 -> Budget Year +1 2026/27 | K3: =Head11 -> Budget Year +2 2027/28
A4: Revenue - Functional
A5: Governance and administration | C5: =SUM(C6:C8) -> 1103391677 | D5: =SUM(D6:D8) -> 1188283354 | E5: 1420387349 | F5: 1424033512 | G5: 1373399284 | H5: 1373399284 | I5: 1430770647 | J5: 1438781794 | K5: 1489339748
A6: Executive and council | C6: =A2A!C6 -> 952014.99 | D6: =A2A!D6 -> -13807258.74 | E6: =A2A!E6 -> -8215031.53 | F6: =A2A!F6 -> 1430341 | G6: =A2A!G6 -> 2030341 | H6: =A2A!H6 -> 2030341 | I6: =A2A!I6 -> 2050137 | J6: =A2A!J6 -> 2070844 | K6: =A2A!K6 -> 2126773
A7: Finance and administration | C7: =A2A!C9 -> 1102439662 | D7: =A2A!D9 -> 1202090613 | E7: =A2A!E9 -> 1428602381 | F7: =A2A!F9 -> 1422603171 | G7: =A2A!G9 -> 1371368943 | H7: =A2A!H9 -> 1371368943 | I7: =A2A!I9 -> 1428720510 | J7: =A2A!J9 -> 1436710950 | K7: =A2A!K9 -> 1487212975
A8: Internal audit | C8: =A2A!C23 -> 0 | D8: =A2A!D23 -> 0 | E8: =A2A!E23 -> 0 | F8: =A2A!F23 -> 0 | G8: =A2A!G23 -> 0 | H8: =A2A!H23 -> 0 | I8: =A2A!I23 -> 0 | J8: =A2A!J23 -> 0 | K8: =A2A!K23 -> 0
A9: Community and public safety | C9: =SUM(C10:C14) -> 325340475.4 | D9: =SUM(D10:D14) -> 143887084.6 | E9: 71849050.93 | F9: 69283105 | G9: 69939105 | H9: 69939105 | I9: 74969715 | J9: 57785335 | K9: 58917447
A10: Community and social services | C10: =A2A!C26 -> 263726662.3 | D10: =A2A!D26 -> 101091234.2 | E10: =A2A!E26 -> 11230829.66 | F10: =A2A!F26 -> 3871932 | G10: =A2A!G26 -> 4277932 | H10: =A2A!H26 -> 4277932 | I10: =A2A!I26 -> 4565118 | J10: =A2A!J26 -> 2996914 | K10: =A2A!K26 -> 3126385
A11: Sport and recreation | C11: =A2A!C48 -> 29670284.84 | D11: =A2A!D48 -> 3782727.63 | E11: =A2A!E48 -> 8866789.73 | F11: =A2A!F48 -> 15833701 | G11: =A2A!G48 -> 15833701 | H11: =A2A!H48 -> 15833701 | I11: =A2A!I48 -> 18583171 | J11: =A2A!J48 -> 809775 | K11: =A2A!K48 -> 830021
A12: Public safety | C12: =A2A!C54 -> 28135949.15 | D12: =A2A!D54 -> 31481990.35 | E12: =A2A!E54 -> 43978056.89 | F12: =A2A!F54 -> 39398911 | G12: =A2A!G54 -> 39648911 | H12: =A2A!H54 -> 39648911 | I12: =A2A!I54 -> 41174651 | J12: =A2A!J54 -> 42842119 | K12: =A2A!K54 -> 43334507
A13: Housing | C13: =A2A!C63 -> 3807579.14 | D13: =A2A!D63 -> 7531132.41 | E13: =A2A!E63 -> 7773374.65 | F13: =A2A!F63 -> 10178561 | G13: =A2A!G63 -> 10178561 | H13: =A2A!H63 -> 10178561 | I13: =A2A!I63 -> 10646775 | J13: =A2A!J63 -> 11136527 | K13: =A2A!K63 -> 11626534
A14: Health | C14: =A2A!C66 -> 0 | D14: =A2A!D66 -> 0 | E14: =A2A!E66 -> 0 | F14: =A2A!F66 -> 0 | G14: =A2A!G66 -> 0 | H14: =A2A!H66 -> 0 | I14: =A2A!I66 -> 0 | J14: =A2A!J66 -> 0 | K14: =A2A!K66 -> 0
A15: Economic and environmental services | C15: =SUM(C16:C18) -> 70958835.89 | D15: =SUM(D16:D18) -> 40705395.8 | E15: 55236605.61 | F15: 25871699 | G15: 27345632 | H15: 27345632 | I15: 26964331 | J15: 13118328 | K15: 13360240
A16: Planning and development | C16: =A2A!C75 -> 9992656.79 | D16: =A2A!D75 -> 9987323.34 | E16: =A2A!E75 -> 10262456.28 | F16: =A2A!F75 -> 11553969 | G16: =A2A!G75 -> 12352942 | H16: =A2A!H75 -> 12352942 | I16: =A2A!I75 -> 12399354 | J16: =A2A!J75 -> 13161238 | K16: =A2A!K75 -> 13333993
A17: Road transport | C17: =A2A!C86 -> 60814367.48 | D17: =A2A!D86 -> 30535870.89 | E17: =A2A!E86 -> 44793910.21 | F17: =A2A!F86 -> 14209053 | G17: =A2A!G86 -> 14818949 | H17: =A2A!H86 -> 14818949 | I17: =A2A!I86 -> 14451300 | J17: =A2A!J86 -> -161816 | K17: =A2A!K86 -> -161816
A18: Environmental protection | C18: =A2A!C91 -> 151811.62 | D18: =A2A!D91 -> 182201.57 | E18: =A2A!E91 -> 180239.12 | F18: =A2A!F91 -> 108677 | G18: =A2A!G91 -> 173741 | H18: =A2A!H91 -> 173741 | I18: =A2A!I91 -> 113677 | J18: =A2A!J91 -> 118906 | K18: =A2A!K91 -> 188063
A19: Trading services | C19: =SUM(C20:C23) -> 2316072325 | D19: =SUM(D20:D23) -> 2451962586 | E19: 2670822573 | F19: 2901971178 | G19: 2991130718 | H19: 2991130718 | I19: 3308536193 | J19: =SUM(J20:J23) -> 3238606333 | K19: 3309657080
A20: Energy sources | C20: =A2A!C99 -> 1017620228 | D20: =A2A!D99 -> 964401425.8 | E20: =A2A!E99 -> 1067753440 | F20: =A2A!F99 -> 1167621724 | G20: =A2A!G99 -> 1138122645 | H20: =A2A!H99 -> 1138122645 | I20: =A2A!I99 -> 1402538009 | J20: =A2A!J99 -> 1281084095 | K20: =A2A!K99 -> 1309223697
A21: Water management | C21: =A2A!C103 -> 879795771.4 | D21: =A2A!D103 -> 986050634.4 | E21: =A2A!E103 -> 1041945957 | F21: =A2A!F103 -> 1092663201 | G21: =A2A!G103 -> 1182816567 | H21: =A2A!H103 -> 1182816567 | I21: =A2A!I103 -> 1214040656 | J21: =A2A!J103 -> 1343293111 | K21: =A2A!K103 -> 1380748529
A22: Waste water management | C22: =A2A!C107 -> 143839765.8 | D22: =A2A!D107 -> 155436461.7 | E22: =A2A!E107 -> 177090299.1 | F22: =A2A!F107 -> 253895202 | G22: =A2A!G107 -> 254410346 | H22: =A2A!H107 -> 254410346 | I22: =A2A!I107 -> 254948418 | J22: =A2A!J107 -> 232823355 | K22: =A2A!K107 -> 228743938
A23: Waste management | C23: =A2A!C112 -> 274816559.8 | D23: =A2A!D112 -> 346074063.8 | E23: =A2A!E112 -> 384032877.5 | F23: =A2A!F112 -> 387791051 | G23: =A2A!G112 -> 415781160 | H23: =A2A!H112 -> 415781160 | I23: =A2A!I112 -> 437009110 | J23: =A2A!J112 -> 381405772 | K23: =A2A!K112 -> 390940916
A24: Other | B24: 4 | C24: =A2A!C117 -> 36862991.7 | D24: =A2A!D117 -> 28319986.78 | E24: =A2A!E117 -> 28595187.62 | F24: =A2A!F117 -> 29951158 | G24: =A2A!G117 -> 29744040 | H24: =A2A!H117 -> 29744040 | I24: =A2A!I117 -> 25835443 | J24: =A2A!J117 -> 26806817 | K24: =A2A!K117 -> 27476988
A25: ="Total "&A4 -> Total Revenue - Functional | B25: 2 | C25: =C5+C9+C15+C19+C24 -> 3852626305 | D25: =D5+D9+D15+D19+D24 -> 3853158407 | E25: =E5+E9+E15+E19+E24 -> 4246890766 | F25: 4451110652 | G25: 4491558779 | H25: 4491558779 | I25: =I5+I9+I15+I19+I24 -> 4867076329 | J25: 4775098607 | K25: 4898751503
A27: Expenditure - Functional
A28: Governance and administration | C28: =SUM(C29:C31) -> 1201818550 | D28: =SUM(D29:D31) -> 878290522.6 | E28: 1601311468 | F28: 844795380 | G28: 949548096 | H28: 949548096 | I28: 931589648 | J28: 900831121 | K28: 902005270
A29: Executive and council | C29: =A2A!C128 -> 278160802.3 | D29: =A2A!D128 -> 556626564.5 | E29: =A2A!E128 -> 452493892.1 | F29: =A2A!F128 -> 406791316 | G29: =A2A!G128 -> 441078858 | H29: =A2A!H128 -> 441078858 | I29: =A2A!I128 -> 459808620 | J29: =A2A!J128 -> 474527780 | K29: =A2A!K128 -> 484038125
A30: Finance and administration | C30: =A2A!C131 -> 919960737.2 | D30: =A2A!D131 -> 315426871.2 | E30: =A2A!E131 -> 1142791705 | F30: =A2A!F131 -> 431329203 | G30: =A2A!G131 -> 502818706 | H30: =A2A!H131 -> 502818706 | I30: =A2A!I131 -> 465852467 | J30: =A2A!J131 -> 419049039 | K30: =A2A!K131 -> 410365405
A31: Internal audit | C31: =A2A!C145 -> 3697010.16 | D31: =A2A!D145 -> 6237086.92 | E31: =A2A!E145 -> 6025870.6 | F31: =A2A!F145 -> 6674861 | G31: =A2A!G145 -> 5650532 | H31: =A2A!H145 -> 5650532 | I31: =A2A!I145 -> 5928561 | J31: =A2A!J145 -> 7254302 | K31: =A2A!K145 -> 7601740
A32: Community and public safety | C32: =SUM(C33:C37) -> 297068511.2 | D32: =SUM(D33:D37) -> 350482117.9 | E32: 313686895.6 | F32: 396427759 | G32: 427142285 | H32: 427142285 | I32: 449511245 | J32: 469311804 | K32: 442637243
A33: Community and social services | C33: =A2A!C148 -> 63938493.6 | D33: =A2A!D148 -> 58296168.93 | E33: =A2A!E148 -> 70509342.52 | F33: =A2A!F148 -> 118841838 | G33: =A2A!G148 -> 120398123 | H33: =A2A!H148 -> 120398123 | I33: =A2A!I148 -> 128975224 | J33: =A2A!J148 -> 133324192 | K33: =A2A!K148 -> 121041325
A34: Sport and recreation | C34: =A2A!C170 -> 90892099.61 | D34: =A2A!D170 -> 134836872.2 | E34: =A2A!E170 -> 79215763.28 | F34: =A2A!F170 -> 110728199 | G34: =A2A!G170 -> 113443407 | H34: =A2A!H170 -> 113443407 | I34: =A2A!I170 -> 119459554 | J34: =A2A!J170 -> 124593482 | K34: =A2A!K170 -> 98398975
A35: Public safety | C35: =A2A!C176 -> 138930408.2 | D35: =A2A!D176 -> 140761570.1 | E35: =A2A!E176 -> 147259755 | F35: =A2A!F176 -> 146356861 | G35: =A2A!G176 -> 173138926 | H35: =A2A!H176 -> 173138926 | I35: =A2A!I176 -> 180022978 | J35: =A2A!J176 -> 188944356 | K35: =A2A!K176 -> 200661128
A36: Housing | C36: =A2A!C185 -> 3206290.89 | D36: =A2A!D185 -> 16554812.57 | E36: =A2A!E185 -> 16592682.59 | F36: =A2A!F185 -> 20336660 | G36: =A2A!G185 -> 19990628 | H36: =A2A!H185 -> 19990628 | I36: =A2A!I185 -> 20880481 | J36: =A2A!J185 -> 22263547 | K36: =A2A!K185 -> 22360754
A37: Health | C37: =A2A!C188 -> 101218.91 | D37: =A2A!D188 -> 32694.07 | E37: =A2A!E188 -> 109352.24 | F37: =A2A!F188 -> 164201 | G37: =A2A!G188 -> 171201 | H37: =A2A!H188 -> 171201 | I37: =A2A!I188 -> 173008 | J37: =A2A!J188 -> 186227 | K37: =A2A!K188 -> 175061
A38: Economic and environmental services | C38: =SUM(C39:C41) -> 246223011.8 | D38: =SUM(D39:D41) -> 287346782.5 | E38: 218517152.8 | F38: 282671424 | G38: 309175032 | H38: 309175032 | I38: 369523978 | J38: 294493266 | K38: 337225301
A39: Planning and development | C39: =A2A!C197 -> 84720108.44 | D39: =A2A!D197 -> 202029696.1 | E39: =A2A!E197 -> 78528264.04 | F39: =A2A!F197 -> 72417225 | G39: =A2A!G197 -> 70091826 | H39: =A2A!H197 -> 70091826 | I39: =A2A!I197 -> 72750867 | J39: =A2A!J197 -> 77272547 | K39: =A2A!K197 -> 113886044
A40: Road transport | C40: =A2A!C208 -> 161978545.8 | D40: =A2A!D208 -> 74239335.26 | E40: =A2A!E208 -> 143345700.4 | F40: =A2A!F208 -> 207945243 | G40: =A2A!G208 -> 237032332 | H40: =A2A!H208 -> 237032332 | I40: =A2A!I208 -> 294664942 | J40: =A2A!J208 -> 214752447 | K40: =A2A!K208 -> 220821083
A41: Environmental protection | C41: =A2A!C213 -> -475642.43 | D41: =A2A!D213 -> 11077751.16 | E41: =A2A!E213 -> -3356811.62 | F41: =A2A!F213 -> 2308956 | G41: =A2A!G213 -> 2050874 | H41: =A2A!H213 -> 2050874 | I41: =A2A!I213 -> 2108169 | J41: =A2A!J213 -> 2468272 | K41: =A2A!K213 -> 2518174
A42: Trading services | C42: =SUM(C43:C46) -> 2700663484 | D42: =SUM(D43:D46) -> 3192533418 | E42: 3085826854 | F42: =SUM(F43:F46) -> 2711346043 | G42: 3409804693 | H42: 3409804693 | I42: 3156744359 | J42: 3185975093 | K42: =SUM(K43:K46) -> 3253171743
A43: Energy sources | C43: =A2A!C221 -> 1148406910 | D43: =A2A!D221 -> 1688347107 | E43: =A2A!E221 -> 1367560877 | F43: =A2A!F221 -> 1516661657 | G43: =A2A!G221 -> 1659623221 | H43: =A2A!H221 -> 1659623221 | I43: =A2A!I221 -> 1751736162 | J43: =A2A!J221 -> 1780123944 | K43: =A2A!K221 -> 1877957435
A44: Water management | C44: =A2A!C225 -> 1046263249 | D44: =A2A!D225 -> 994760234.2 | E44: =A2A!E225 -> 1117563711 | F44: =A2A!F225 -> 724759504 | G44: =A2A!G225 -> 1017629029 | H44: =A2A!H225 -> 1017629029 | I44: =A2A!I225 -> 814178527 | J44: =A2A!J225 -> 887767018 | K44: =A2A!K225 -> 861867899
A45: Waste water management | C45: =A2A!C229 -> 218935902.5 | D45: =A2A!D229 -> 228238643.8 | E45: =A2A!E229 -> 345927819.9 | F45: =A2A!F229 -> 252336111 | G45: =A2A!G229 -> 376290735 | H45: =A2A!H229 -> 376290735 | I45: =A2A!I229 -> 328137732 | J45: =A2A!J229 -> 271752027 | K45: =A2A!K229 -> 270390184
A46: Waste management | C46: =A2A!C234 -> 287057422.9 | D46: =A2A!D234 -> 281187432.8 | E46: =A2A!E234 -> 254774445.7 | F46: =A2A!F234 -> 217588771 | G46: =A2A!G234 -> 356261708 | H46: =A2A!H234 -> 356261708 | I46: =A2A!I234 -> 262691938 | J46: =A2A!J234 -> 246332104 | K46: =A2A!K234 -> 242956225
A47: Other | B47: 4 | C47: =A2A!C239 -> 24043168.02 | D47: =A2A!D239 -> 29142090.01 | E47: =A2A!E239 -> 24062197.7 | F47: =A2A!F239 -> 27400199 | G47: =A2A!G239 -> 25966314 | H47: =A2A!H239 -> 25966314 | I47: =A2A!I239 -> 27154912 | J47: =A2A!J239 -> 29237608 | K47: =A2A!K239 -> 31055888
A48: ="Total "&A27 -> Total Expenditure - Functional | B48: 3 | C48: =C28+C32+C38+C42+C47 -> 4469816725 | D48: =D28+D32+D38+D42+D47 -> 4737794931 | E48: =E28+E32+E38+E42+E47 -> 5243404568 | F48: =F28+F32+F38+F42+F47 -> 4262640805 | G48: 5121636420 | H48: 5121636420 | I48: 4934524142 | J48: 4879848892 | K48: 4966095445
A49: =result -> Surplus/(Deficit) for the year | C49: =C25-C48 -> -617190420.1 | D49: =D25-D48 -> -884636523.9 | E49: -996513801.2 | F49: 188469847 | G49: -630077641 | H49: -630077641 | I49: -67447813 | J49: -104750285 | K49: -67343942
A50: =head27a -> References
A51: 1. Government Finance Statistics Functions and Sub-functions are standardised to assist the compilation of national and international accounts for comparison purposes
A52: 2. Total Revenue by functional classification must reconcile to Total Operating Revenue shown in Budgeted Financial Performance (revenue and expenditure)
A53: 3. Total Expenditure by Functional Classification must reconcile to Total Operating Expenditure shown in Budgeted Financial Performance (revenue and expenditure)
A54: 4. All amounts must be classified under a functional classification . The GFS function 'Other' is only for Abbatoirs, Air Transport, Forestry, Licensing and Regulation, Markets and Tourism - and if used must be supported by footnotes. Nothing else may be placed under 'Other'. Assign associate share to relevant classification.

Sheet A2A
A1: =muni&" - "&Approve3 -> NW403 City Of Matlosana - Table A2 Budgeted Financial Performance (revenue and expenditure by functional classification)
A2: ="Functional Classification "&desc -> Functional Classification Description | B2: =head27 -> Ref | C2: =head1b -> 2021/22 | D2: =head1A -> 2022/23 | E2: =Head1 -> 2023/24 | F2: =Head2 -> Current Year 2024/25 | I2: =Head3 -> 2025/26 Medium Term Revenue & Expenditure Framework
A3: R thousand | B3: 1 | C3: =Head5 -> Audited Outcome | D3: =Head5 -> Audited Outcome | E3: =Head5 -> Audited Outcome | F3: =Head6 -> Original Budget | G3: =Head7 -> Adjusted Budget | H3: =Head8 -> Full Year Forecast | I3: =Head9 -> Budget Year 2025/26 | J3: =Head10 -> Budget Year +1 2026/27 | K3: =Head11 -> Budget Year +2 2027/28
A4: Revenue - Functional
A5: Municipal governance and administration | C5: =C6+C9+C23 -> 1103391677 | D5: =D6+D9+D23 -> 1188283354 | E5: 1420387349 | F5: 1424033512 | G5: 1373399284 | H5: 1373399284 | I5: 1430770647 | J5: 1438781794 | K5: 1489339748
A6: Executive and council | C6: =SUM(C7:C8) -> 952014.99 | D6: =SUM(D7:D8) -> -13807258.74 | E6: -8215031.53 | F6: 1430341 | G6: 2030341 | H6: 2030341 | I6: 2050137 | J6: 2070844 | K6: 2126773
A7: Mayor and Council | C7: -337613.95 | D7: -16564412.3 | E7: -11321901.27 | F7: 200000 | G7: 200000 | H7: 200000 | I7: 209200 | J7: 218824 | K7: 228452
A8: Municipal Manager, Town Secretary and Chief Executive | C8: 1289628.94 | D8: 2757153.56 | E8: 3106869.74 | F8: 1230341 | G8: 1830341 | H8: 1830341 | I8: 1840937 | J8: 1852020 | K8: 1898321
A9: Finance and administration | C9: =SUM(C10:C22) -> 1102439662 | D9: =SUM(D10:D22) -> 1202090613 | E9: 1428602381 | F9: 1422603171 | G9: 1371368943 | H9: 1371368943 | I9: 1428720510 | J9: 1436710950 | K9: 1487212975
A10: Administrative and Corporate Support
A11: Asset Management
A12: Finance | C12: 1102340638 | D12: 1202048009 | E12: 1428545808 | F12: 1422460823 | G12: 1371226595 | H12: 1371226595 | I12: 1428571613 | J12: 1436555204 | K12: 1487053335
A13: Fleet Management
A14: Human Resources
A15: Information Technology | C15: 99023.53 | D15: 42604.09 | E15: 56573.03 | F15: 142348 | G15: 142348 | H15: 142348 | I15: 148897 | J15: 155746 | K15: 159640
A16: Legal Services
A17: Marketing, Customer Relations, Publicity and Media Co-ordination
A18: Property Services
A19: Risk Management
A20: Security Services
A21: Supply Chain Management
A22: Valuation Service
A23: Internal audit | C23: =SUM(C24:C24) -> 0 | D23: =SUM(D24:D24) -> 0 | E23: 0 | F23: 0 | G23: 0 | H23: 0 | I23: 0 | J23: 0 | K23: 0
A24: Governance Function
A25: Community and public safety | C25: =C26+C48+C54+C63+C66 -> 325340475.4 | D25: =D26+D48+D54+D63+D66 -> 143887084.6 | E25: 71849050.93 | F25: 69283105 | G25: 69939105 | H25: 69939105 | I25: 74969715 | J25: 57785335 | K25: 58917447
A26: Community and social services | C26: =SUM(C27:C47) -> 263726662.3 | D26: =SUM(D27:D47) -> 101091234.2 | E26: 11230829.66 | F26: 3871932 | G26: 4277932 | H26: 4277932 | I26: 4565118 | J26: 2996914 | K26: 3126385
A27: Aged Care
A28: Agricultural
A29: Animal Care and Diseases
A30: Cemeteries, Funeral Parlours and Crematoriums | C30: 2233101.02 | D30: 1756399.72 | E30: 1541343.95 | F30: 2500000 | G30: 2500000 | H30: 2500000 | I30: 2615000 | J30: 2735290 | K30: 2858378
A31: Child Care Facilities
A32: Community Halls and Facilities
A33: Consumer Protection
A34: Cultural Matters
A35: Disaster Management | C35: 15897319 | D35: 0 | E35: 0 | F35: 0 | G35: 0 | H35: 0 | I35: 0 | J35: 0 | K35: 0
A36: Education
A37: Indigenous and Customary Law
A38: Industrial Promotion
A39: Language Policy
A40: Libraries and Archives | C40: 245350304.8 | D40: 99130854.85 | E40: 9169066.89 | F40: 1120932 | G40: 1570932 | H40: 1570932 | I40: 1678796 | J40: 187021 | K40: 191539
A41: Literacy Programmes
A42: Media Services
A43: Museums and Art Galleries | C43: 245937.52 | D43: 203979.67 | E43: 520418.82 | F43: 251000 | G43: 207000 | H43: 207000 | I43: 271322 | J43: 74603 | K43: 76468
A44: Population Development
A45: Provincial Cultural Matters
A46: Theatres
A47: Zoo's
A48: Sport and recreation | C48: =SUM(C49:C53) -> 29670284.84 | D48: =SUM(D49:D53) -> 3782727.63 | E48: 8866789.73 | F48: 15833701 | G48: 15833701 | H48: 15833701 | I48: 18583171 | J48: 809775 | K48: 830021
A49: Beaches and Jetties
A50: Casinos, Racing, Gambling, Wagering
A51: Community Parks (including Nurseries) | C51: 200867.08 | D51: 128143.48 | E51: -138083.03 | F51: 356139 | G51: 356139 | H51: 356139 | I51: 372522 | J51: 389658 | K51: 399400
A52: Recreational Facilities | C52: 0 | D52: 0 | E52: 0 | F52: 0 | G52: 0 | H52: 0 | I52: 0 | J52: 0 | K52: 0
A53: Sports Grounds and Stadiums | C53: 29469417.76 | D53: 3654584.15 | E53: 9004872.76 | F53: 15477562 | G53: 15477562 | H53: 15477562 | I53: 18210649 | J53: 420117 | K53: 430621
A54: Public safety | C54: =SUM(C55:C62) -> 28135949.15 | D54: =SUM(D55:D62) -> 31481990.35 | E54: 43978056.89 | F54: 39398911 | G54: 39648911 | H54: 39648911 | I54: 41174651 | J54: 42842119 | K54: 43334507
A55: Civil Defence
A56: Cleansing
A57: Control of Public Nuisances
A58: Fencing and Fences
A59: Fire Fighting and Protection | C59: 468303.24 | D59: 512277.08 | E59: 751979.94 | F59: 761438 | G59: 761438 | H59: 761438 | I59: 796465 | J59: 833102 | K59: 833102
A60: Licensing and Control of Animals | C60: 22583840.18 | D60: 22398134.84 | E60: 21556046.41 | F60: 24164748 | G60: 24414748 | H60: 24414748 | I60: 25189714 | J60: 26381914 | K60: 27152664
A61: Police Forces, Traffic and Street Parking Control | C61: 5083805.73 | D61: 8571578.43 | E61: 21670030.54 | F61: 14472725 | G61: 14472725 | H61: 14472725 | I61: 15188472 | J61: 15627103 | K61: 15348741
A62: Pounds
A63: Housing | C63: =SUM(C64:C65) -> 3807579.14 | D63: =SUM(D64:D65) -> 7531132.41 | E63: 7773374.65 | F63: 10178561 | G63: 10178561 | H63: 10178561 | I63: 10646775 | J63: 11136527 | K63: 11626534
A64: Housing | C64: 3807579.14 | D64: 7531132.41 | E64: 7773374.65 | F64: 10178561 | G64: 10178561 | H64: 10178561 | I64: 10646775 | J64: 11136527 | K64: 11626534
A65: Informal Settlements
A66: Health | C66: =SUM(C67:C73) -> 0 | D66: =SUM(D67:D73) -> 0 | E66: 0 | F66: 0 | G66: 0 | H66: 0 | I66: 0 | J66: 0 | K66: 0
A67: Ambulance
A68: Health Services
A69: Laboratory Services
A70: Food Control
A71: Health Surveillance and Prevention of Communicable Diseases including immunizations
A72: Vector Control
A73: Chemical Safety
A74: Economic and environmental services | C74: =C75+C86+C91 -> 70958835.89 | D74: =D75+D86+D91 -> 40705395.8 | E74: 55236605.61 | F74: 25871699 | G74: 27345632 | H74: 27345632 | I74: 26964331 | J74: 13118328 | K74: 13360240
A75: Planning and development | C75: =SUM(C76:C85) -> 9992656.79 | D75: =SUM(D76:D85) -> 9987323.34 | E75: 10262456.28 | F75: 11553969 | G75: 12352942 | H75: 12352942 | I75: 12399354 | J75: 13161238 | K75: 13333993
A76: Billboards
A77: Corporate Wide Strategic Planning (IDPs, LEDs)
A78: Central City Improvement District
A79: Development Facilitation
A80: Economic Development/Planning | C80: 542.54 | D80: 173.92 | E80: 1434.79 | F80: 1027 | G80: 800000 | H80: 800000 | I80: 801075 | J80: 801124 | K80: 821152
A81: Regional Planning and Development
A82: Town Planning, Building Regulations and Enforcement, and City Engineer | C82: 5203432.58 | D82: 4958767.03 | E82: 5229997.22 | F82: 5912742 | G82: 5912742 | H82: 5912742 | I82: 6184729 | J82: 6468914 | K82: 6653051
A83: Project Management Unit | C83: 4788681.67 | D83: 5028382.39 | E83: 5031024.27 | F83: 5640200 | G83: 5640200 | H83: 5640200 | I83: 5413550 | J83: 5891200 | K83: 5859790
A84: Provincial Planning
A85: Support to Local Municipalities
A86: Road transport | C86: =SUM(C87:C90) -> 60814367.48 | D86: =SUM(D87:D90) -> 30535870.89 | E86: 44793910.21 | F86: 14209053 | G86: 14818949 | H86: 14818949 | I86: 14451300 | J86: -161816 | K86: -161816
A87: Public Transport
A88: Road and Traffic Regulation
A89: Roads | C89: 60814367.48 | D89: 30535870.89 | E89: 44793910.21 | F89: 14209053 | G89: 14818949 | H89: 14818949 | I89: 14451300 | J89: -161816 | K89: -161816
A90: Taxi Ranks
A91: Environmental protection | C91: =SUM(C92:C97) -> 151811.62 | D91: =SUM(D92:D97) -> 182201.57 | E91: 180239.12 | F91: 108677 | G91: 173741 | H91: 173741 | I91: 113677 | J91: 118906 | K91: 188063
A92: Biodiversity and Landscape
A93: Coastal Protection
A94: Indigenous Forests
A95: Nature Conservation | C95: 151811.62 | D95: 182201.57 | E95: 180239.12 | F95: 108677 | G95: 173741 | H95: 173741 | I95: 113677 | J95: 118906 | K95: 188063
A96: Pollution Control
A97: Soil Conservation
A98: Trading services | C98: =C99+C103+C107+C112 -> 2316072325 | D98: =D99+D103+D107+D112 -> 2451962586 | E98: 2670822573 | F98: 2901971178 | G98: 2991130718 | H98: 2991130718 | I98: 3308536193 | J98: 3238606333 | K98: =K99+K103+K107+K112 -> 3309657080
A99: Energy sources | C99: =SUM(C100:C102) -> 1017620228 | D99: =SUM(D100:D102) -> 964401425.8 | E99: 1067753440 | F99: 1167621724 | G99: 1138122645 | H99: 1138122645 | I99: 1402538009 | J99: 1281084095 | K99: 1309223697
A100: Electricity | C100: 1017620228 | D100: 961403965.8 | E100: 1063760814 | F100: 1162621724 | G100: 1133122645 | H100: 1133122645 | I100: 1397538009 | J100: 1277084095 | K100: 1309223697
A101: Street Lighting and Signal Systems | C101: 0 | D101: 2997460 | E101: 3992625.8 | F101: 5000000 | G101: 5000000 | H101: 5000000 | I101: 5000000 | J101: 4000000 | K101: 0
A102: Nonelectric Energy
A103: Water management | C103: =SUM(C104:C106) -> 879795771.4 | D103: =SUM(D104:D106) -> 986050634.4 | E103: 1041945957 | F103: 1092663201 | G103: 1182816567 | H103: 1182816567 | I103: 1214040656 | J103: 1343293111 | K103: 1380748529
A104: Water Treatment
A105: Water Distribution | C105: 879795771.4 | D105: 986050634.4 | E105: 1041945957 | F105: 1092663201 | G105: 1182816567 | H105: 1182816567 | I105: 1214040656 | J105: 1343293111 | K105: 1380748529
A106: Water Storage
A107: Waste water management | C107: =SUM(C108:C111) -> 143839765.8 | D107: =SUM(D108:D111) -> 155436461.7 | E107: 177090299.1 | F107: 253895202 | G107: 254410346 | H107: 254410346 | I107: 254948418 | J107: 232823355 | K107: 228743938
A108: Public Toilets
A109: Sewerage | C109: 143839765.8 | D109: 155436461.7 | E109: 177090299.1 | F109: 253895202 | G109: 254410346 | H109: 254410346 | I109: 254948418 | J109: 232823355 | K109: 228743938
A110: Storm Water Management
A111: Waste Water Treatment
A112: Waste management | C112: =SUM(C113:C116) -> 274816559.8 | D112: =SUM(D113:D116) -> 346074063.8 | E112: 384032877.5 | F112: 387791051 | G112: 415781160 | H112: 415781160 | I112: 437009110 | J112: 381405772 | K112: 390940916
A113: Recycling
A114: Solid Waste Disposal (Landfill Sites) | C114: 251891.82 | D114: 140524 | E114: 233058.8 | F114: 39198099 | G114: 39198099 | H114: 39198099 | I114: 23764587 | J114: 464161 | K114: 475765
A115: Solid Waste Removal | C115: 274564668 | D115: 345933539.8 | E115: 383799818.7 | F115: 348592952 | G115: 376583061 | H115: 376583061 | I115: 413244523 | J115: 380941611 | K115: 390465151
A116: Street Cleaning
A117: Other | C117: =SUM(C118:C123) -> 36862991.7 | D117: =SUM(D118:D123) -> 28319986.78 | E117: 28595187.62 | F117: 29951158 | G117: 29744040 | H117: 29744040 | I117: 25835443 | J117: 26806817 | K117: 27476988
A118: Abattoirs
A119: Air Transport | C119: 0 | D119: 0 | E119: 0 | F119: 90000 | G119: 90000 | H119: 90000 | I119: 30000 | J119: 30000 | K119: 30750
A120: Forestry
A121: Licensing and Regulation
A122: Markets | C122: 36862991.7 | D122: 28319986.78 | E122: 28595187.62 | F122: 29861158 | G122: 29654040 | H122: 29654040 | I122: 25805443 | J122: 26776817 | K122: 27446238
A123: Tourism
A124: ="Total "&A4 -> Total Revenue - Functional | B124: 2 | C124: =C5+C25+C74+C98+C117 -> 3852626305 | D124: =D5+D25+D74+D98+D117 -> 3853158407 | E124: 4246890766 | F124: 4451110652 | G124: 4491558779 | H124: 4491558779 | I124: 4867076329 | J124: 4775098607 | K124: 4898751503
A126: Expenditure - Functional
A127: =A5 -> Municipal governance and administration | C127: =C128+C131+C145 -> 1201818550 | D127: =D128+D131+D145 -> 878290522.6 | E127: 1601311468 | F127: 844795380 | G127: 949548096 | H127: 949548096 | I127: 931589648 | J127: 900831121 | K127: 902005270
A128: Executive and council | C128: =SUM(C129:C130) -> 278160802.3 | D128: =SUM(D129:D130) -> 556626564.5 | E128: 452493892.1 | F128: 406791316 | G128: 441078858 | H128: 441078858 | I128: 459808620 | J128: 474527780 | K128: 484038125
A129: Mayor and Council | C129: 139464976.7 | D129: 219677573.6 | E129: 280451497.4 | F129: 230842631 | G129: 232916836 | H129: 232916836 | I129: 246433887 | J129: 247769503 | K129: 254384185
A130: Municipal Manager, Town Secretary and Chief Executive | C130: 138695825.7 | D130: 336948990.9 | E130: 172042394.7 | F130: 175948685 | G130: 208162022 | H130: 208162022 | I130: 213374733 | J130: 226758277 | K130: 229653940
A131: Finance and administration | C131: =SUM(C132:C144) -> 919960737.2 | D131: =SUM(D132:D144) -> 315426871.2 | E131: 1142791705 | F131: 431329203 | G131: 502818706 | H131: 502818706 | I131: 465852467 | J131: 419049039 | K131: 410365405
A132: Administrative and Corporate Support
A133: Asset Management
A134: Finance | C134: 891858880 | D134: 274655791.4 | E134: 1118036160 | F134: 371893534 | G134: 436380882 | H134: 436380882 | I134: 394917535 | J134: 350286352 | K134: 336397552
A135: Fleet Management
A136: Human Resources
A137: Information Technology | C137: 16498814.87 | D137: 20012431.27 | E137: 12520417.94 | F137: 39598801 | G137: 41558587 | H137: 41558587 | I137: 43136640 | J137: 43227722 | K137: 47587157
A138: Legal Services | C138: 11603042.34 | D138: 20758648.5 | E138: 12235127.07 | F138: 19836868 | G138: 24879237 | H138: 24879237 | I138: 27798292 | J138: 25534965 | K138: 26380696
A139: Marketing, Customer Relations, Publicity and Media Co-ordination
A140: Property Services
A141: Risk Management
A142: Security Services
A143: Supply Chain Management
A144: Valuation Service
A145: Internal audit | C145: =SUM(C146:C146) -> 3697010.16 | D145: =SUM(D146:D146) -> 6237086.92 | E145: 6025870.6 | F145: 6674861 | G145: 5650532 | H145: 5650532 | I145: 5928561 | J145: 7254302 | K145: 7601740
A146: Governance Function | C146: 3697010.16 | D146: 6237086.92 | E146: 6025870.6 | F146: 6674861 | G146: 5650532 | H146: 5650532 | I146: 5928561 | J146: 7254302 | K146: 7601740
A147: Community and public safety | C147: =C148+C170+C176+C185+C188 -> 297068511.2 | D147: =D148+D170+D176+D185+D188 -> 350482117.9 | E147: 313686895.6 | F147: 396427759 | G147: 427142285 | H147: 427142285 | I147: 449511245 | J147: 469311804 | K147: 442637243
A148: Community and social services | C148: =SUM(C149:C169) -> 63938493.6 | D148: =SUM(D149:D169) -> 58296168.93 | E148: 70509342.52 | F148: 118841838 | G148: 120398123 | H148: 120398123 | I148: 128975224 | J148: 133324192 | K148: 121041325
A149: Aged Care
A150: Agricultural
A151: Animal Care and Diseases
A152: Cemeteries, Funeral Parlours and Crematoriums | C152: 30879591.56 | D152: 26385945 | E152: 21838682.37 | F152: 25651377 | G152: 25903227 | H152: 25903227 | I152: 27141783 | J152: 27840632 | K152: 28614283
A153: Child Care Facilities
A154: Community Halls and Facilities
A155: Consumer Protection
A156: Cultural Matters
A157: Disaster Management | C157: 7789954.22 | D157: 2174330.25 | E157: 3008929.9 | F157: 32678530 | G157: 32268147 | H157: 32268147 | I157: 37811083 | J157: 40718679 | K157: 26010646
A158: Education
A159: =A37 -> Indigenous and Customary Law
A160: Industrial Promotion
A161: Language Policy
A162: Libraries and Archives | C162: 22235440.62 | D162: 23440941.59 | E162: 41485367.92 | F162: 56079440 | G162: 57615413 | H162: 57615413 | I162: 59187869 | J162: 59907539 | K162: 61344968
A163: Literacy Programmes
A164: Media Services
A165: Museums and Art Galleries | C165: 3033507.2 | D165: 6294952.09 | E165: 4176362.33 | F165: 4432491 | G165: 4611336 | H165: 4611336 | I165: 4834489 | J165: 4857342 | K165: 5071428
A166: Population Development
A167: Provincial Cultural Matters
A168: Theatres
A169: Zoo's
A170: Sport and recreation | C170: =SUM(C171:C175) -> 90892099.61 | D170: =SUM(D171:D175) -> 134836872.2 | E170: 79215763.28 | F170: 110728199 | G170: 113443407 | H170: 113443407 | I170: 119459554 | J170: 124593482 | K170: 98398975
A171: Beaches and Jetties
A172: Casinos, Racing, Gambling, Wagering
A173: Community Parks (including Nurseries) | C173: 44512734.42 | D173: 48151369.32 | E173: 40717421.15 | F173: 43986401 | G173: 47042039 | H173: 47042039 | I173: 48797427 | J173: 47935532 | K173: 49977378
A174: Recreational Facilities | C174: 17852725.14 | D174: 23721426.95 | E174: 14626896.8 | F174: 29361080 | G174: 28953090 | H174: 28953090 | I174: 32066097 | J174: 35928526 | K174: 6007204
A175: Sports Grounds and Stadiums | C175: 28526640.05 | D175: 62964075.92 | E175: 23871445.33 | F175: 37380718 | G175: 37448278 | H175: 37448278 | I175: 38596030 | J175: 40729424 | K175: 42414393
A176: Public safety | C176: =SUM(C177:C184) -> 138930408.2 | D176: =SUM(D177:D184) -> 140761570.1 | E176: 147259755 | F176: 146356861 | G176: 173138926 | H176: 173138926 | I176: 180022978 | J176: 188944356 | K176: 200661128
A177: Civil Defence
A178: Cleansing
A179: =A57 -> Control of Public Nuisances
A180: Fencing and Fences
A181: Fire Fighting and Protection | C181: 51447282.51 | D181: 56198911.32 | E181: 54181102.41 | F181: 46043052 | G181: 63237905 | H181: 63237905 | I181: 65968197 | J181: 71263851 | K181: 74796814
A182: Licensing and Control of Animals | C182: 45164010.69 | D182: 44514000.97 | E182: 50150508.67 | F182: 51629000 | G182: 52545628 | H182: 52545628 | I182: 55279280 | J182: 58112453 | K182: 62137401
A183: Police Forces, Traffic and Street Parking Control | C183: 42319114.97 | D183: 40048657.82 | E183: 42928143.88 | F183: 48684809 | G183: 57355393 | H183: 57355393 | I183: 58775501 | J183: 59568052 | K183: 63726913
A184: Pounds
A185: =A63 -> Housing | C185: =SUM(C186:C187) -> 3206290.89 | D185: =SUM(D186:D187) -> 16554812.57 | E185: 16592682.59 | F185: 20336660 | G185: 19990628 | H185: 19990628 | I185: 20880481 | J185: 22263547 | K185: 22360754
A186: Housing | C186: 3206290.89 | D186: 16554812.57 | E186: 16592682.59 | F186: 20336660 | G186: 19990628 | H186: 19990628 | I186: 20880481 | J186: 22263547 | K186: 22360754
A187: Informal Settlements
A188: Health | C188: =SUM(C189:C195) -> 101218.91 | D188: =SUM(D189:D195) -> 32694.07 | E188: 109352.24 | F188: 164201 | G188: 171201 | H188: 171201 | I188: 173008 | J188: 186227 | K188: 175061
A189: Ambulance
A190: Health Services | C190: 101218.91 | D190: 32694.07 | E190: 109352.24 | F190: 164201 | G190: 171201 | H190: 171201 | I190: 173008 | J190: 186227 | K190: 175061
A191: Laboratory Services
A192: Food Control
A193: Health Surveillance and Prevention of Communicable Diseases including immunizations
A194: Vector Control
A195: Chemical Safety
A196: Economic and environmental services | C196: =C197+C208+C213 -> 246223011.8 | D196: =D197+D208+D213 -> 287346782.5 | E196: 218517152.8 | F196: 282671424 | G196: 309175032 | H196: 309175032 | I196: 369523978 | J196: 294493266 | K196: 337225301
A197: Planning and development | C197: =SUM(C198:C207) -> 84720108.44 | D197: =SUM(D198:D207) -> 202029696.1 | E197: 78528264.04 | F197: 72417225 | G197: 70091826 | H197: 70091826 | I197: 72750867 | J197: 77272547 | K197: 113886044
A198: Billboards
A199: Corporate Wide Strategic Planning (IDPs, LEDs) | C199: 4808672.3 | D199: 4003927.88 | E199: 3549390.91 | F199: 5420542 | G199: 4348037 | H199: 4348037 | I199: 4549059 | J199: 5886109 | K199: 6161532
A200: Central City Improvement District
A201: Development Facilitation
... 51 more rows

Sheet A3-FinPerf V
A1: =muni&" - "&Approve2 -> NW403 City Of Matlosana - Table A3 Budgeted Financial Performance (revenue and expenditure by municipal vote)
A2: =Vdesc -> Vote Description | B2: =head27 -> Ref | C2: =head1b -> 2021/22 | D2: =head1A -> 2022/23 | E2: =Head1 -> 2023/24 | F2: =Head2 -> Current Year 2024/25 | I2: =Head3 -> 2025/26 Medium Term Revenue & Expenditure Framework | L2: =Head4 -> LTFS
A3: R thousand | C3: =Head5 -> Audited Outcome | D3: =Head5 -> Audited Outcome | E3: =Head5 -> Audited Outcome | F3: =Head6 -> Original Budget | G3: =Head7 -> Adjusted Budget | H3: =Head8 -> Full Year Forecast | I3: =Head9 -> Budget Year 2025/26 | J3: =Head10 -> Budget Year +1 2026/27 | K3: =Head11 -> Budget Year +2 2027/28 | L3: =Head12 -> Forecast 2028/29 | M3: =Head13 -> Forecast 2029/30 | N3: =Head14 -> Forecast 2030/31 | O3: =Head15 -> Forecast 2031/32 | P3: =Head16 -> Forecast 2032/33 | Q3: =Head17 -> Forecast 2033/34 | R3: =Head18 -> Forecast 2034/35 | S3: =Head19 -> Forecast 2035/36 | T3: =Head20 -> Forecast 2036/37 | U3: =Head21 -> Forecast 2037/38 | V3: =Head22 -> Forecast 2038/39 | W3: =Head23 -> Forecast 2039/40
A4: Revenue by Vote | B4: 1
A5: =A3A!A5 -> Vote 01 - Public Safety | C5: =A3A!C5 -> 44033268.15 | D5: =A3A!D5 -> 31481990.35 | E5: =A3A!E5 -> 43978056.89 | F5: =A3A!F5 -> 39398911 | G5: =A3A!G5 -> 39648911 | H5: =A3A!H5 -> 39648911 | I5: =A3A!I5 -> 41174651 | J5: =A3A!J5 -> 42842119 | K5: =A3A!K5 -> 43334507
A6: =A3A!A12 -> Vote 02 - Health Services | C6: =A3A!C12 -> 0 | D6: =A3A!D12 -> 0 | E6: =A3A!E12 -> 0 | F6: =A3A!F12 -> 0 | G6: =A3A!G12 -> 0 | H6: =A3A!H12 -> 0 | I6: =A3A!I12 -> 0 | J6: =A3A!J12 -> 0 | K6: =A3A!K12 -> 0
A7: =A3A!A15 -> Vote 03 - Community Services | C7: =A3A!C15 -> 2585779.72 | D7: =A3A!D15 -> 2066744.77 | E7: =A3A!E15 -> 1583500.04 | F7: =A3A!F15 -> 3054816 | G7: =A3A!G15 -> 3119880 | H7: =A3A!H15 -> 3119880 | I7: =A3A!I15 -> 3131199 | J7: =A3A!J15 -> 3273854 | K7: =A3A!K15 -> 3476591
A8: =A3A!A22 -> Vote 04 - Housing | C8: =A3A!C22 -> 9011011.72 | D8: =A3A!D22 -> 12489899.44 | E8: =A3A!E22 -> 13003371.87 | F8: =A3A!F22 -> 16091303 | G8: =A3A!G22 -> 16091303 | H8: =A3A!H22 -> 16091303 | I8: =A3A!I22 -> 16831504 | J8: =A3A!J22 -> 17605441 | K8: =A3A!K22 -> 18279585
A9: =A3A!A28 -> Vote 05 - Sport Arts And Culture | C9: =A3A!C28 -> 275065660 | D9: =A3A!D28 -> 102989418.7 | E9: =A3A!E28 -> 18694358.47 | F9: =A3A!F28 -> 16849494 | G9: =A3A!G28 -> 17255494 | H9: =A3A!H28 -> 17255494 | I9: =A3A!I28 -> 20160767 | J9: =A3A!J28 -> 681741 | K9: =A3A!K28 -> 698628
A10: =A3A!A33 -> Vote 06 - Council General | C10: =A3A!C33 -> -337613.95 | D10: =A3A!D33 -> -16564412.3 | E10: =A3A!E33 -> -11321901.27 | F10: =A3A!F33 -> 200000 | G10: =A3A!G33 -> 200000 | H10: =A3A!H33 -> 200000 | I10: =A3A!I33 -> 209200 | J10: =A3A!J33 -> 218824 | K10: =A3A!K33 -> 228452
A11: =A3A!A42 -> Vote 07 - Civil Engineering | C11: =A3A!C42 -> 65603049.15 | D11: =A3A!D42 -> 35564253.28 | E11: =A3A!E42 -> 49824934.48 | F11: =A3A!F42 -> 19849253 | G11: =A3A!G42 -> 20459149 | H11: =A3A!H42 -> 20459149 | I11: =A3A!I42 -> 19864850 | J11: =A3A!J42 -> 5729384 | K11: =A3A!K42 -> 5697974
A12: =A3A!A47 -> Vote 08 - Water Section | C12: =A3A!C47 -> 879795771.4 | D12: =A3A!D47 -> 986050634.4 | E12: =A3A!E47 -> 1041945957 | F12: =A3A!F47 -> 1092663201 | G12: =A3A!G47 -> 1182816567 | H12: =A3A!H47 -> 1182816567 | I12: =A3A!I47 -> 1214040656 | J12: =A3A!J47 -> 1343293111 | K12: =A3A!K47 -> 1380748529
A13: =A3A!A50 -> Vote 09 - City Electrial Engineering | C13: =A3A!C50 -> 1017620228 | D13: =A3A!D50 -> 964401425.8 | E13: =A3A!E50 -> 1067753440 | F13: =A3A!F50 -> 1167621724 | G13: =A3A!G50 -> 1138122645 | H13: =A3A!H50 -> 1138122645 | I13: =A3A!I50 -> 1402538009 | J13: =A3A!J50 -> 1281084095 | K13: =A3A!K50 -> 1309223697
A14: =A3A!A56 -> Vote 10 - Corporate Governane | C14: =A3A!C56 -> 1289628.94 | D14: =A3A!D56 -> 2757153.56 | E14: =A3A!E56 -> 3106869.74 | F14: =A3A!F56 -> 1230341 | G14: =A3A!G56 -> 1830341 | H14: =A3A!H56 -> 1830341 | I14: =A3A!I56 -> 1840937 | J14: =A3A!J56 -> 1852020 | K14: =A3A!K56 -> 1898321
A15: =A3A!A60 -> Vote 11 - Budget And Treasury Office | C15: =A3A!C60 -> 1102439662 | D15: =A3A!D60 -> 1202090613 | E15: =A3A!E60 -> 1428602381 | F15: =A3A!F60 -> 1422603171 | G15: =A3A!G60 -> 1371368943 | H15: =A3A!H60 -> 1371368943 | I15: =A3A!I60 -> 1428720510 | J15: =A3A!J60 -> 1436710950 | K15: =A3A!K60 -> 1487212975 | L15: =A5A!#REF! -> 
A16: =A3A!A64 -> Vote 12 - Cleansing | C16: =A3A!C64 -> 274816559.8 | D16: =A3A!D64 -> 346074063.8 | E16: =A3A!E64 -> 384032877.5 | F16: =A3A!F64 -> 387791051 | G16: =A3A!G64 -> 415781160 | H16: =A3A!H64 -> 415781160 | I16: =A3A!I64 -> 437009110 | J16: =A3A!J64 -> 381405772 | K16: =A3A!K64 -> 390940916 | L16: =A5A!#REF! -> 
A17: =A3A!A72 -> Vote 13 - Sewerage | C17: =A3A!C72 -> 143839765.8 | D17: =A3A!D72 -> 155436461.7 | E17: =A3A!E72 -> 177090299.1 | F17: =A3A!F72 -> 253895202 | G17: =A3A!G72 -> 254410346 | H17: =A3A!H72 -> 254410346 | I17: =A3A!I72 -> 254948418 | J17: =A3A!J72 -> 232823355 | K17: =A3A!K72 -> 228743938 | L17: =A5A!#REF! -> 
A18: =A3A!A77 -> Vote 14 - Market | C18: =A3A!C77 -> 36862991.7 | D18: =A3A!D77 -> 28319986.78 | E18: =A3A!E77 -> 28595187.62 | F18: =A3A!F77 -> 29861158 | G18: =A3A!G77 -> 29654040 | H18: =A3A!H77 -> 29654040 | I18: =A3A!I77 -> 25805443 | J18: =A3A!J77 -> 26776817 | K18: =A3A!K77 -> 27446238 | L18: =A5A!#REF! -> 
A19: =A3A!A79 -> Vote 15 - Other | C19: =A3A!C79 -> 542.54 | D19: =A3A!D79 -> 173.92 | E19: =A3A!E79 -> 1434.79 | F19: =A3A!F79 -> 1027 | G19: =A3A!G79 -> 800000 | H19: =A3A!H79 -> 800000 | I19: =A3A!I79 -> 801075 | J19: =A3A!J79 -> 801124 | K19: =A3A!K79 -> 821152 | L19: =A5A!#REF! -> 
A20: Total Revenue by Vote | B20: 2 | C20: =SUM(C5:C19) -> 3852626305 | D20: =SUM(D5:D19) -> 3853158407 | E20: 4246890766 | F20: 4451110652 | G20: 4491558779 | H20: 4491558779 | I20: 4867076329 | J20: 4775098607 | K20: 4898751503
A22: Expenditure by Vote to be appropriated | B22: 1
A23: =A3A!A86 -> Vote 01 - Public Safety | C23: =A3A!C86 -> 218142532.9 | D23: =A3A!D86 -> 259734190.1 | E23: =A3A!E86 -> 221075025.9 | F23: =A3A!F86 -> 229307123 | G23: =A3A!G86 -> 290830111 | H23: =A3A!H86 -> 290830111 | I23: =A3A!I86 -> 303291739 | J23: =A3A!J86 -> 318737186 | K23: =A3A!K86 -> 315562926
A24: =A3A!A93 -> Vote 02 - Health Services | C24: =A3A!C93 -> 8359801.7 | D24: =A3A!D93 -> 10356982 | E24: =A3A!E93 -> 10760685.93 | F24: =A3A!F93 -> 10183319 | G24: =A3A!G93 -> 9400233 | H24: =A3A!H93 -> 9400233 | I24: =A3A!I93 -> 9841406 | J24: =A3A!J93 -> 11093343 | K24: =A3A!K93 -> 7086503
A25: =A3A!A96 -> Vote 03 - Community Services | C25: =A3A!C96 -> 79256133.29 | D25: =A3A!D96 -> 223562584.1 | E25: =A3A!E96 -> 80606257.07 | F25: =A3A!F96 -> 111625220 | G25: =A3A!G96 -> 114807538 | H25: =A3A!H96 -> 114807538 | I25: =A3A!I96 -> 118075855 | J25: =A3A!J96 -> 118149916 | K25: =A3A!K96 -> 121044949
A26: =A3A!A103 -> Vote 04 - Housing | C26: =A3A!C103 -> 17486514.37 | D26: =A3A!D103 -> 38444889 | E26: =A3A!E103 -> 35048264.67 | F26: =A3A!F103 -> 43961942 | G26: =A3A!G103 -> 43422770 | H26: =A3A!H103 -> 43422770 | I26: =A3A!I103 -> 48444486 | J26: =A3A!J103 -> 47470171 | K26: =A3A!K103 -> 48668956
A27: =A3A!A109 -> Vote 05 - Sport Arts And Culture | C27: =A3A!C109 -> 53657887.01 | D27: =A3A!D109 -> 92587374 | E27: =A3A!E109 -> 69479837.61 | F27: =A3A!F109 -> 97963223 | G27: =A3A!G109 -> 99753601 | H27: =A3A!H109 -> 99753601 | I27: =A3A!I109 -> 102691526 | J27: =A3A!J109 -> 105560205 | K27: =A3A!K109 -> 108882002
A28: =A3A!A114 -> Vote 06 - Council General | C28: =A3A!C114 -> 151819231.1 | D28: =A3A!D114 -> 233469010.2 | E28: =A3A!E114 -> 294619121.4 | F28: =A3A!F114 -> 247958374 | G28: =A3A!G114 -> 248333273 | H28: =A3A!H114 -> 248333273 | I28: =A3A!I114 -> 262607575 | J28: =A3A!J114 -> 266383205 | K28: =A3A!K114 -> 273887706
A29: =A3A!A123 -> Vote 07 - Civil Engineering | C29: =A3A!C123 -> 219091517.3 | D29: =A3A!D123 -> 236969728.7 | E29: =A3A!E123 -> 189182500 | F29: =A3A!F123 -> 237791135 | G29: =A3A!G123 -> 265303951 | H29: =A3A!H123 -> 265303951 | I29: =A3A!I123 -> 324594461 | J29: =A3A!J123 -> 247722177 | K29: =A3A!K123 -> 255319286
A30: =A3A!A128 -> Vote 08 - Water Section | C30: =A3A!C128 -> 1050746923 | D30: =A3A!D128 -> 1002773101 | E30: =A3A!E128 -> 1127450224 | F30: =A3A!F128 -> 730845449 | G30: =A3A!G128 -> 1023714974 | H30: =A3A!H128 -> 1023714974 | I30: =A3A!I128 -> 820568768 | J30: =A3A!J128 -> 894476772 | K30: =A3A!K128 -> 868913141
A31: =A3A!A131 -> Vote 09 - City Electrial Engineering | C31: =A3A!C131 -> 1174884182 | D31: =A3A!D131 -> 1728546163 | E31: =A3A!E131 -> 1398521289 | F31: =A3A!F131 -> 1562975979 | G31: =A3A!G131 -> 1705937543 | H31: =A3A!H131 -> 1705937543 | I31: =A3A!I131 -> 1803613498 | J31: =A3A!J131 -> 1838232099 | K31: =A3A!K131 -> 1942010727
A32: =A3A!A137 -> Vote 10 - Corporate Governane | C32: =A3A!C137 -> 55234081.17 | D32: =A3A!D137 -> 74400449.7 | E32: =A3A!E137 -> 60471912.26 | F32: =A3A!F137 -> 78708674 | G32: =A3A!G137 -> 80666730 | H32: =A3A!H137 -> 80666730 | I32: =A3A!I137 -> 84278754 | J32: =A3A!J137 -> 92577651 | K32: =A3A!K137 -> 98936312
A33: =A3A!A141 -> Vote 11 - Budget And Treasury Office | C33: =A3A!C141 -> 908310529.3 | D33: =A3A!D141 -> 294579091 | E33: =A3A!E141 -> 1130450040 | F33: =A3A!F141 -> 411424491 | G33: =A3A!G141 -> 477871625 | H33: =A3A!H141 -> 477871625 | I33: =A3A!I141 -> 437981121 | J33: =A3A!J141 -> 393435317 | K33: =A3A!K141 -> 383899747 | L33: =A3A!L142 -> 0
A34: =A3A!A145 -> Vote 12 - Cleansing | C34: =A3A!C145 -> 288952343.1 | D34: =A3A!D145 -> 283172168 | E34: =A3A!E145 -> 257060005.2 | F34: =A3A!F145 -> 219847042 | G34: =A3A!G145 -> 358489709 | H34: =A3A!H145 -> 358489709 | I34: =A3A!I145 -> 252545778 | J34: =A3A!J145 -> 248769144 | K34: =A3A!K145 -> 245500085 | L34: =A3A!L146 -> 0
A35: =A3A!A153 -> Vote 13 - Sewerage | C35: =A3A!C153 -> 214452451.7 | D35: =A3A!D153 -> 220259507.8 | E35: =A3A!E153 -> 335744307.6 | F35: =A3A!F153 -> 243945908 | G35: =A3A!G153 -> 367930802 | H35: =A3A!H153 -> 367930802 | I35: =A3A!I153 -> 331038585 | J35: =A3A!J153 -> 260804463 | K35: =A3A!K153 -> 257896273 | L35: =A3A!L154 -> 0
A36: =A3A!A158 -> Vote 14 - Market | C36: =A3A!C158 -> 21364082.5 | D36: =A3A!D158 -> 26209352.96 | E36: =A3A!E158 -> 22985932.44 | F36: =A3A!F158 -> 23181617 | G36: =A3A!G158 -> 21737732 | H36: =A3A!H158 -> 21737732 | I36: =A3A!I158 -> 22469323 | J36: =A3A!J158 -> 24030843 | K36: =A3A!K158 -> 25267796 | L36: =A3A!L159 -> 0
A37: =A3A!A160 -> Vote 15 - Other | C37: =A3A!C160 -> 8058514.45 | D37: =A3A!D160 -> 12730339 | E37: =A3A!E160 -> 9949164.58 | F37: =A3A!F160 -> 12921309 | G37: =A3A!G160 -> 13435828 | H37: =A3A!H160 -> 13435828 | I37: =A3A!I160 -> 12481267 | J37: =A3A!J160 -> 12406400 | K37: =A3A!K160 -> 13219036 | L37: =A3A!L161 -> 0
A38: Total Expenditure by Vote | B38: 2 | C38: =SUM(C23:C37) -> 4469816725 | D38: =SUM(D23:D37) -> 4737794931 | E38: =SUM(E23:E37) -> 5243404568 | F38: 4262640805 | G38: 5121636420 | H38: 5121636420 | I38: 4934524142 | J38: 4879848892 | K38: 4966095445 | L38: =SUM(L23:L29) -> 0 | M38: 0 | N38: 0 | O38: 0 | P38: 0 | Q38: 0 | R38: 0 | S38: 0 | T38: 0 | U38: 0 | V38: 0 | W38: 0
A39: =result -> Surplus/(Deficit) for the year | B39: 2 | C39: =C20-C38 -> -617190420.1 | D39: =D20-D38 -> -884636523.9 | E39: -996513801.2 | F39: 188469847 | G39: -630077641 | H39: -630077641 | I39: -67447813 | J39: -104750285 | K39: -67343942 | L39: 0 | M39: 0 | N39: 0 | O39: 0 | P39: 0 | Q39: 0 | R39: 0 | S39: 0 | T39: 0 | U39: 0 | V39: 0 | W39: 0
A40: =head27a -> References
A41: 1. Insert 'Vote'; e.g. department, if different to functional classification structure
A42: 2. Must reconcile to Budgeted Financial Performance (revenue and expenditure)
A43: 3. Assign share in 'associate' to relevant Vote

Sheet A3A
A1: =muni&" - "&Approve2&"A" -> NW403 City Of Matlosana - Table A3 Budgeted Financial Performance (revenue and expenditure by municipal vote)A
A2: =Vdesc -> Vote Description | B2: =head27 -> Ref | C2: =head1b -> 2021/22 | D2: =head1A -> 2022/23 | E2: =Head1 -> 2023/24 | F2: =Head2 -> Current Year 2024/25 | I2: =Head3 -> 2025/26 Medium Term Revenue & Expenditure Framework | L2: =Head4 -> LTFS
A3: R thousand | C3: =Head5 -> Audited Outcome | D3: =Head5 -> Audited Outcome | E3: =Head5 -> Audited Outcome | F3: =Head6 -> Original Budget | G3: =Head7 -> Adjusted Budget | H3: =Head8 -> Full Year Forecast | I3: =Head9 -> Budget Year 2025/26 | J3: =Head10 -> Budget Year +1 2026/27 | K3: =Head11 -> Budget Year +2 2027/28 | L3: =Head12 -> Forecast 2028/29 | M3: =Head13 -> Forecast 2029/30 | N3: =Head14 -> Forecast 2030/31 | O3: =Head15 -> Forecast 2031/32 | P3: =Head16 -> Forecast 2032/33 | Q3: =Head17 -> Forecast 2033/34 | R3: =Head18 -> Forecast 2034/35 | S3: =Head19 -> Forecast 2035/36 | T3: =Head20 -> Forecast 2036/37 | U3: =Head21 -> Forecast 2037/38 | V3: =Head22 -> Forecast 2038/39 | W3: =Head23 -> Forecast 2039/40
A4: Revenue by Vote | B4: 1
A5: ='Org structure'!A2 -> Vote 01 - Public Safety | C5: =SUM(C6:C11) -> 44033268.15 | D5: 31481990.35 | E5: 43978056.89 | F5: 39398911 | G5: 39648911 | H5: 39648911 | I5: 41174651 | J5: 42842119 | K5: 43334507
A6: ='Org structure'!E3 -> 01.1 - Public Safety Administration | C6: 0 | D6: 0 | E6: 0 | F6: 0 | G6: 0 | H6: 0 | I6: 0 | J6: 0 | K6: 0
A7: ='Org structure'!E4 -> 01.2 - Fire Brigade | C7: 468303.24 | D7: 512277.08 | E7: 751979.94 | F7: 761438 | G7: 761438 | H7: 761438 | I7: 796465 | J7: 833102 | K7: 833102
A8: ='Org structure'!E5 -> 01.3 - Licencing Administration | C8: 22583840.18 | D8: 22398134.84 | E8: 21556046.41 | F8: 24164748 | G8: 24414748 | H8: 24414748 | I8: 25189714 | J8: 26381914 | K8: 27152664
A9: ='Org structure'!E6 -> 01.4 - Traffic Administration | C9: 5083805.73 | D9: 8571578.43 | E9: 21670030.54 | F9: 14472725 | G9: 14472725 | H9: 14472725 | I9: 15188472 | J9: 15627103 | K9: 15348741
A10: ='Org structure'!E7 -> 01.5 - Disaster Management | C10: 15897319 | D10: 0 | E10: 0 | F10: 0 | G10: 0 | H10: 0 | I10: 0 | J10: 0 | K10: 0
A11: ='Org structure'!E8 -> 01.6 - Municipal Court | C11: 0 | D11: 0 | E11: 0 | F11: 0 | G11: 0 | H11: 0 | I11: 0 | J11: 0 | K11: 0
A12: ='Org structure'!A3 -> Vote 02 - Health Services | C12: =SUM(C13:C14) -> 0 | D12: 0 | E12: 0 | F12: 0 | G12: 0 | H12: 0 | I12: 0 | J12: 0 | K12: 0
A13: ='Org structure'!E10 -> 02.1 - Health Services Administration | C13: 0 | D13: 0 | E13: 0 | F13: 0 | G13: 0 | H13: 0 | I13: 0 | J13: 0 | K13: 0
A14: ='Org structure'!E11 -> 02.2 - Occupational Health Centre | C14: 0 | D14: 0 | E14: 0 | F14: 0 | G14: 0 | H14: 0 | I14: 0 | J14: 0 | K14: 0
A15: ='Org structure'!A4 -> Vote 03 - Community Services | C15: =SUM(C16:C21) -> 2585779.72 | D15: 2066744.77 | E15: 1583500.04 | F15: 3054816 | G15: 3119880 | H15: 3119880 | I15: 3131199 | J15: 3273854 | K15: 3476591
A16: ='Org structure'!E13 -> 03.1 - Administration Community Services | C16: 0 | D16: 0 | E16: 0 | F16: 0 | G16: 0 | H16: 0 | I16: 0 | J16: 0 | K16: 0
A17: ='Org structure'!E14 -> 03.2 - Cemetary | C17: 2233101.02 | D17: 1756399.72 | E17: 1541343.95 | F17: 2500000 | G17: 2500000 | H17: 2500000 | I17: 2615000 | J17: 2735290 | K17: 2858378
A18: ='Org structure'!E15 -> 03.3 - Aerodome | C18: 0 | D18: 0 | E18: 0 | F18: 90000 | G18: 90000 | H18: 90000 | I18: 30000 | J18: 30000 | K18: 30750
A19: ='Org structure'!E16 -> 03.4 - Nature Reserve | C19: 151811.62 | D19: 182201.57 | E19: 180239.12 | F19: 108677 | G19: 173741 | H19: 173741 | I19: 113677 | J19: 118906 | K19: 188063
A20: ='Org structure'!E17 -> 03.5 - Orkney Vaal | C20: 0 | D20: 0 | E20: 0 | F20: 0 | G20: 0 | H20: 0 | I20: 0 | J20: 0 | K20: 0
A21: ='Org structure'!E18 -> 03.6 - Administration Parks | C21: 200867.08 | D21: 128143.48 | E21: -138083.03 | F21: 356139 | G21: 356139 | H21: 356139 | I21: 372522 | J21: 389658 | K21: 399400
A22: ='Org structure'!A5 -> Vote 04 - Housing | C22: =SUM(C23:C27) -> 9011011.72 | D22: 12489899.44 | E22: 13003371.87 | F22: 16091303 | G22: 16091303 | H22: 16091303 | I22: 16831504 | J22: 17605441 | K22: 18279585
A23: ='Org structure'!E20 -> 04.1 - Administration Housing Services | C23: 3807579.14 | D23: 7531132.41 | E23: 7773374.65 | F23: 10178561 | G23: 10178561 | H23: 10178561 | I23: 10646775 | J23: 11136527 | K23: 11626534
A24: ='Org structure'!E21 -> 04.2 - Housing Services | C24: 3970782.26 | D24: 3835661.61 | E24: 3970721.68 | F24: 4187527 | G24: 4187527 | H24: 4187527 | I24: 4380154 | J24: 4581641 | K24: 4696182
A25: ='Org structure'!E22 -> 04.3 - Building Survey | C25: 947030.39 | D25: 803994.07 | E25: 1035320.4 | F25: 1275215 | G25: 1275215 | H25: 1275215 | I25: 1333875 | J25: 1395234 | K25: 1456624
A26: ='Org structure'!E23 -> 04.4 - Town Planning | C26: 285619.93 | D26: 319111.35 | E26: 223955.14 | F26: 450000 | G26: 450000 | H26: 450000 | I26: 470700 | J26: 492039 | K26: 500245
A27: ='Org structure'!E24 -> 04.5 - Land Affairs | C27: 0 | D27: 0 | E27: 0 | F27: 0 | G27: 0 | H27: 0 | I27: 0 | J27: 0 | K27: 0
A28: ='Org structure'!A6 -> Vote 05 - Sport Arts And Culture | C28: =SUM(C29:C32) -> 275065660 | D28: 102989418.7 | E28: 18694358.47 | F28: 16849494 | G28: 17255494 | H28: 17255494 | I28: 20160767 | J28: 681741 | K28: 698628
A29: ='Org structure'!E26 -> 05.1 - Administration Sports Arts & Culture | C29: 0 | D29: 0 | E29: 0 | F29: 0 | G29: 0 | H29: 0 | I29: 0 | J29: 0 | K29: 0
A30: ='Org structure'!E27 -> 05.2 - Museum | C30: 245937.52 | D30: 203979.67 | E30: 520418.82 | F30: 251000 | G30: 207000 | H30: 207000 | I30: 271322 | J30: 74603 | K30: 76468
A31: ='Org structure'!E28 -> 05.3 - Library | C31: 245350304.8 | D31: 99130854.85 | E31: 9169066.89 | F31: 1120932 | G31: 1570932 | H31: 1570932 | I31: 1678796 | J31: 187021 | K31: 191539
A32: ='Org structure'!E29 -> 05.4 - Sports And Recreation | C32: 29469417.76 | D32: 3654584.15 | E32: 9004872.76 | F32: 15477562 | G32: 15477562 | H32: 15477562 | I32: 18210649 | J32: 420117 | K32: 430621
A33: ='Org structure'!A7 -> Vote 06 - Council General | C33: =SUM(C34:C41) -> -337613.95 | D33: -16564412.3 | E33: -11321901.27 | F33: 200000 | G33: 200000 | H33: 200000 | I33: 209200 | J33: 218824 | K33: 228452
A34: ='Org structure'!E31 -> 06.1 - Administration Council General | C34: 645546.05 | D34: 7980 | E34: 0 | F34: 200000 | G34: 200000 | H34: 200000 | I34: 209200 | J34: 218824 | K34: 228452
A35: ='Org structure'!E32 -> 06.2 - Administration Municipal Manager | C35: 0 | D35: 0 | E35: 0 | F35: 0 | G35: 0 | H35: 0 | I35: 0 | J35: 0 | K35: 0
A36: ='Org structure'!E33 -> 06.3 - Internal Audit | C36: 0 | D36: 0 | E36: 0 | F36: 0 | G36: 0 | H36: 0 | I36: 0 | J36: 0 | K36: 0
A37: ='Org structure'!E34 -> 06.4 - Strategic | C37: 0 | D37: 0 | E37: 0 | F37: 0 | G37: 0 | H37: 0 | I37: 0 | J37: 0 | K37: 0
A38: ='Org structure'!E35 -> 06.5 - Administration Mayor | C38: -983160 | D38: -16572392.3 | E38: -11321901.27 | F38: 0 | G38: 0 | H38: 0 | I38: 0 | J38: 0 | K38: 0
A39: ='Org structure'!E36 -> 06.6 - Administration Speaker | C39: 0 | D39: 0 | E39: 0 | F39: 0 | G39: 0 | H39: 0 | I39: 0 | J39: 0 | K39: 0
A40: ='Org structure'!E37 -> 06.7 - Chief Whip | C40: 0 | D40: 0 | E40: 0 | F40: 0 | G40: 0 | H40: 0 | I40: 0 | J40: 0 | K40: 0
A41: ='Org structure'!E38 -> 06.8 - Mpac | C41: 0 | D41: 0 | E41: 0 | F41: 0 | G41: 0 | H41: 0 | I41: 0 | J41: 0 | K41: 0
A42: ='Org structure'!A8 -> Vote 07 - Civil Engineering | C42: =SUM(C43:C46) -> 65603049.15 | D42: 35564253.28 | E42: 49824934.48 | F42: 19849253 | G42: 20459149 | H42: 20459149 | I42: 19864850 | J42: 5729384 | K42: 5697974
A43: ='Org structure'!E40 -> 07.1 - Administration City Civil Engineer | C43: 0 | D43: 0 | E43: 0 | F43: 0 | G43: 0 | H43: 0 | I43: 0 | J43: 0 | K43: 0
A44: ='Org structure'!E41 -> 07.2 - Building Construction | C44: 0 | D44: 0 | E44: 0 | F44: 0 | G44: 0 | H44: 0 | I44: 0 | J44: 0 | K44: 0
A45: ='Org structure'!E42 -> 07.3 - Roads | C45: 60814367.48 | D45: 30535870.89 | E45: 44793910.21 | F45: 14209053 | G45: 14818949 | H45: 14818949 | I45: 14451300 | J45: -161816 | K45: -161816
A46: ='Org structure'!E43 -> 07.4 - Pmu Unit | C46: 4788681.67 | D46: 5028382.39 | E46: 5031024.27 | F46: 5640200 | G46: 5640200 | H46: 5640200 | I46: 5413550 | J46: 5891200 | K46: 5859790
A47: ='Org structure'!A9 -> Vote 08 - Water Section | C47: =SUM(C48:C49) -> 879795771.4 | D47: 986050634.4 | E47: 1041945957 | F47: 1092663201 | G47: 1182816567 | H47: 1182816567 | I47: 1214040656 | J47: 1343293111 | K47: 1380748529
A48: ='Org structure'!E45 -> 08.1 - Administration Water | C48: 855783654.3 | D48: 978470291.7 | E48: 1000025885 | F48: 1057195452 | G48: 1147348818 | H48: 1147348818 | I48: 1167522177 | J48: 1157360311 | K48: 1186294319
A49: ='Org structure'!E46 -> 08.2 - Water Distribution | C49: 24012117.06 | D49: 7580342.61 | E49: 41920071.91 | F49: 35467749 | G49: 35467749 | H49: 35467749 | I49: 46518479 | J49: 185932800 | K49: 194454210
A50: ='Org structure'!A10 -> Vote 09 - City Electrial Engineering | C50: =SUM(C51:C55) -> 1017620228 | D50: 964401425.8 | E50: 1067753440 | F50: 1167621724 | G50: 1138122645 | H50: 1138122645 | I50: 1402538009 | J50: 1281084095 | K50: 1309223697
A51: ='Org structure'!E48 -> 09.1 - Streetlighting | C51: 0 | D51: 2997460 | E51: 3992625.8 | F51: 5000000 | G51: 5000000 | H51: 5000000 | I51: 5000000 | J51: 4000000 | K51: 0
A52: ='Org structure'!E49 -> 09.2 - Garage | C52: 0 | D52: 0 | E52: 0 | F52: 0 | G52: 0 | H52: 0 | I52: 0 | J52: 0 | K52: 0
A53: ='Org structure'!E50 -> 09.3 - Workshop | C53: 0 | D53: 0 | E53: 0 | F53: 0 | G53: 0 | H53: 0 | I53: 0 | J53: 0 | K53: 0
A54: ='Org structure'!E51 -> 09.4 - Administration Electricity | C54: 1002562797 | D54: 932427801.5 | E54: 1054248174 | F54: 1157509072 | G54: 1128009993 | H54: 1128009993 | I54: 1369886806 | J54: 1266584095 | K54: 1298248697
A55: ='Org structure'!E52 -> 09.5 - Electricity Distribution | C55: 15057430.79 | D55: 28976164.21 | E55: 9512639.54 | F55: 5112652 | G55: 5112652 | H55: 5112652 | I55: 27651203 | J55: 10500000 | K55: 10975000
A56: ='Org structure'!A11 -> Vote 10 - Corporate Governane | C56: =SUM(C57:C59) -> 1289628.94 | D56: 2757153.56 | E56: 3106869.74 | F56: 1230341 | G56: 1830341 | H56: 1830341 | I56: 1840937 | J56: 1852020 | K56: 1898321
A57: ='Org structure'!E54 -> 10.1 - Administration City Secretary | C57: 164866.25 | D57: 195935.59 | E57: 165523.5 | F57: 230341 | G57: 230341 | H57: 230341 | I57: 240937 | J57: 252020 | K57: 258321
A58: ='Org structure'!E55 -> 10.2 - Legal And Land Affairs | C58: 0 | D58: 0 | E58: 0 | F58: 0 | G58: 0 | H58: 0 | I58: 0 | J58: 0 | K58: 0
A59: ='Org structure'!E56 -> 10.3 - Management Services | C59: 1124762.69 | D59: 2561217.97 | E59: 2941346.24 | F59: 1000000 | G59: 1600000 | H59: 1600000 | I59: 1600000 | J59: 1600000 | K59: 1640000
A60: ='Org structure'!A12 -> Vote 11 - Budget And Treasury Office | C60: =SUM(C61:C63) -> 1102439662 | D60: 1202090613 | E60: 1428602381 | F60: 1422603171 | G60: 1371368943 | H60: 1371368943 | I60: 1428720510 | J60: 1436710950 | K60: 1487212975
A61: ='Org structure'!E58 -> 11.1 - Administration City Treasurer | C61: 1099422678 | D61: 1200275443 | E61: 1427809381 | F61: 1421710823 | G61: 1370476595 | H61: 1370476595 | I61: 1427787113 | J61: 1435734617 | K61: 1486212233
A62: ='Org structure'!E59 -> 11.2 - Data | C62: 99023.53 | D62: 42604.09 | E62: 56573.03 | F62: 142348 | G62: 142348 | H62: 142348 | I62: 148897 | J62: 155746 | K62: 159640
A63: ='Org structure'!E60 -> 11.3 - Stores | C63: 2917960.46 | D63: 1772565.15 | E63: 736426.96 | F63: 750000 | G63: 750000 | H63: 750000 | I63: 784500 | J63: 820587 | K63: 841102
A64: ='Org structure'!A13 -> Vote 12 - Cleansing | C64: =SUM(C65:C71) -> 274816559.8 | D64: 346074063.8 | E64: 384032877.5 | F64: 387791051 | G64: 415781160 | H64: 415781160 | I64: 437009110 | J64: 381405772 | K64: 390940916
A65: ='Org structure'!E62 -> 12.1 - Landfill Site | C65: 251891.82 | D65: 140524 | E65: 233058.8 | F65: 371783 | G65: 371783 | H65: 371783 | I65: 388886 | J65: 406774 | K65: 416943
A66: ='Org structure'!E63 -> 12.2 - Administration Cleansing | C66: 274564668 | D66: 345933539.8 | E66: 383799818.7 | F66: 348592952 | G66: 376583061 | H66: 376583061 | I66: 413244523 | J66: 380941611 | K66: 390465151
A67: ='Org structure'!E64 -> 12.3 - Refuse Removal | C67: 0 | D67: 0 | E67: 0 | F67: 0 | G67: 0 | H67: 0 | I67: 0 | J67: 0 | K67: 0
A68: ='Org structure'!E65 -> 12.4 - Nightsoil Services | C68: 0 | D68: 0 | E68: 0 | F68: 0 | G68: 0 | H68: 0 | I68: 0 | J68: 0 | K68: 0
A69: ='Org structure'!E66 -> 12.5 - Street Cleaning | C69: 0 | D69: 0 | E69: 0 | F69: 0 | G69: 0 | H69: 0 | I69: 0 | J69: 0 | K69: 0
A70: ='Org structure'!E67 -> 12.6 - Public Restrooms | C70: 0 | D70: 0 | E70: 0 | F70: 0 | G70: 0 | H70: 0 | I70: 0 | J70: 0 | K70: 0
A71: ='Org structure'!E68 -> 12.7 - Landfill Site | C71: 0 | D71: 0 | E71: 0 | F71: 38826316 | G71: 38826316 | H71: 38826316 | I71: 23375701 | J71: 57387 | K71: 58822
A72: ='Org structure'!A14 -> Vote 13 - Sewerage | C72: =SUM(C73:C76) -> 143839765.8 | D72: 155436461.7 | E72: 177090299.1 | F72: 253895202 | G72: 254410346 | H72: 254410346 | I72: 254948418 | J72: 232823355 | K72: 228743938
A73: ='Org structure'!E70 -> 13.1 - Administration Sewerage | C73: 128520997.5 | D73: 145067704.8 | E73: 149513774.3 | F73: 179882748 | G73: 180397892 | H73: 180397892 | I73: 188514748 | J73: 196823355 | K73: 201743938
A74: ='Org structure'!E71 -> 13.2 - Sewer Agency | C74: 0 | D74: 0 | E74: 0 | F74: 0 | G74: 0 | H74: 0 | I74: 0 | J74: 0 | K74: 0
A75: ='Org structure'!E72 -> 13.3 - Sewer Distribution | C75: 15318768.28 | D75: 10368756.91 | E75: 27576524.85 | F75: 74012454 | G75: 74012454 | H75: 74012454 | I75: 66433670 | J75: 36000000 | K75: 27000000
A76: ='Org structure'!E73 -> 13.4 - Nightsoil Services | C76: 0 | D76: 0 | E76: 0 | F76: 0 | G76: 0 | H76: 0 | I76: 0 | J76: 0 | K76: 0
A77: ='Org structure'!A15 -> Vote 14 - Market | C77: =SUM(C78:C78) -> 36862991.7 | D77: 28319986.78 | E77: 28595187.62 | F77: 29861158 | G77: 29654040 | H77: 29654040 | I77: 25805443 | J77: 26776817 | K77: 27446238
A78: ='Org structure'!E75 -> 14.1 - Market | C78: 36862991.7 | D78: 28319986.78 | E78: 28595187.62 | F78: 29861158 | G78: 29654040 | H78: 29654040 | I78: 25805443 | J78: 26776817 | K78: 27446238
A79: ='Org structure'!A16 -> Vote 15 - Other | C79: =SUM(C80:C82) -> 542.54 | D79: 173.92 | E79: 1434.79 | F79: 1027 | G79: 800000 | H79: 800000 | I79: 801075 | J79: 801124 | K79: 821152
A80: ='Org structure'!E77 -> 15.1 - Administration Led | C80: 542.54 | D80: 173.92 | E80: 1434.79 | F80: 1027 | G80: 800000 | H80: 800000 | I80: 801075 | J80: 801124 | K80: 821152
A81: ='Org structure'!E78 -> 15.2 - Economic Affairs & Corporate Communicati | C81: 0 | D81: 0 | E81: 0 | F81: 0 | G81: 0 | H81: 0 | I81: 0 | J81: 0 | K81: 0
A82: ='Org structure'!E79 -> 15.3 - Local Economic Development | C82: 0 | D82: 0 | E82: 0 | F82: 0 | G82: 0 | H82: 0 | I82: 0 | J82: 0 | K82: 0
A83: Total Revenue by Vote | B83: 2 | C83: =C5+C12+C15+C22+C28+C33+C42+C47+C50+C56+C60+C64+C72+C77+C79 -> 3852626305 | D83: 3853158407 | E83: 4246890766 | F83: 4451110652 | G83: 4491558779 | H83: 4491558779 | I83: 4867076329 | J83: 4775098607 | K83: 4898751503 | L83: =SUM(#REF!) ->  | M83: =SUM(#REF!) ->  | N83: =SUM(#REF!) ->  | O83: =SUM(#REF!) ->  | P83: =SUM(#REF!) ->  | Q83: =SUM(#REF!) ->  | R83: =SUM(#REF!) ->  | S83: =SUM(#REF!) ->  | T83: =SUM(#REF!) ->  | U83: =SUM(#REF!) ->  | V83: =SUM(#REF!) ->  | W83: =SUM(#REF!) -> 
A85: Expenditure by Vote | B85: 1
A86: ='Org structure'!A2 -> Vote 01 - Public Safety | C86: =SUM(C87:C92) -> 218142532.9 | D86: 259734190.1 | E86: 221075025.9 | F86: 229307123 | G86: 290830111 | H86: 290830111 | I86: 303291739 | J86: 318737186 | K86: 315562926
A87: ='Org structure'!E3 -> 01.1 - Public Safety Administration | C87: 28597070.08 | D87: 5234152.84 | E87: 9819663.96 | F87: 10568835 | G87: 12310537 | H87: 12310537 | I87: 12676508 | J87: 12991507 | K87: 13355556
A88: ='Org structure'!E4 -> 01.2 - Fire Brigade | C88: 51168754.88 | D88: 55646874.95 | E88: 53548605.8 | F88: 45343686 | G88: 62538539 | H88: 62538539 | I88: 65202520 | J88: 70426224 | K88: 73879682
A89: ='Org structure'!E5 -> 01.3 - Licencing Administration | C89: 42512857.27 | D89: 41190111.1 | E89: 43276729.74 | F89: 47044568 | G89: 47961196 | H89: 47961196 | I89: 50214379 | J89: 52512791 | K89: 55942440
A90: ='Org structure'!E6 -> 01.4 - Traffic Administration | C90: 41499355.28 | D90: 38652065.71 | E90: 41430262.47 | F90: 47690857 | G90: 56361441 | H90: 56361441 | I90: 57736246 | J90: 58481428 | K90: 62591537
A91: ='Org structure'!E7 -> 01.5 - Disaster Management | C91: 7789954.22 | D91: 2174330.25 | E91: 3008929.9 | F91: 32678530 | G91: 32268147 | H91: 32268147 | I91: 37811083 | J91: 40718679 | K91: 26010646
A92: ='Org structure'!E8 -> 01.6 - Municipal Court | C92: 46574541.21 | D92: 116836655.2 | E92: 69990834.06 | F92: 45980647 | G92: 79390251 | H92: 79390251 | I92: 79651003 | J92: 83606557 | K92: 83783065
A93: ='Org structure'!A3 -> Vote 02 - Health Services | C93: =SUM(C94:C95) -> 8359801.7 | D93: 10356982 | E93: 10760685.93 | F93: 10183319 | G93: 9400233 | H93: 9400233 | I93: 9841406 | J93: 11093343 | K93: 7086503
A94: ='Org structure'!E10 -> 02.1 - Health Services Administration | C94: 8258582.79 | D94: 10324287.93 | E94: 10651333.69 | F94: 10019118 | G94: 9229032 | H94: 9229032 | I94: 9668398 | J94: 10907116 | K94: 6911442
A95: ='Org structure'!E11 -> 02.2 - Occupational Health Centre | C95: 101218.91 | D95: 32694.07 | E95: 109352.24 | F95: 164201 | G95: 171201 | H95: 171201 | I95: 173008 | J95: 186227 | K95: 175061
A96: ='Org structure'!A4 -> Vote 03 - Community Services | C96: =SUM(C97:C102) -> 79256133.29 | D96: 223562584.1 | E96: 80606257.07 | F96: 111625220 | G96: 114807538 | H96: 114807538 | I96: 118075855 | J96: 118149916 | K96: 121044949
A97: ='Org structure'!E13 -> 03.1 - Administration Community Services | C97: 6273984.98 | D97: 141561673.6 | E97: 26666984.79 | F97: 42457028 | G97: 42987930 | H97: 42987930 | I97: 43434555 | J97: 43156654 | K97: 43421275
A98: ='Org structure'!E14 -> 03.2 - Cemetary | C98: 26731431.3 | D98: 20404224.47 | E98: 14413294.26 | F98: 20065621 | G98: 20317471 | H98: 20317471 | I98: 21225827 | J98: 21571332 | K98: 21969376
A99: ='Org structure'!E15 -> 03.3 - Aerodome | C99: 0 | D99: 0 | E99: 0 | F99: 0 | G99: 10000 | H99: 10000 | I99: 0 | J99: 0 | K99: 0
A100: ='Org structure'!E16 -> 03.4 - Nature Reserve | C100: -475642.43 | D100: 11077751.16 | E100: -3356811.62 | F100: 2308956 | G100: 2050874 | H100: 2050874 | I100: 2108169 | J100: 2468272 | K100: 2518174
A101: ='Org structure'!E17 -> 03.5 - Orkney Vaal | C101: 2213625.02 | D101: 2367565.52 | E101: 2165368.49 | F101: 2807214 | G101: 2399224 | H101: 2399224 | I101: 2509877 | J101: 3018126 | K101: 3158746
A102: ='Org structure'!E18 -> 03.6 - Administration Parks | C102: 44512734.42 | D102: 48151369.32 | E102: 40717421.15 | F102: 43986401 | G102: 47042039 | H102: 47042039 | I102: 48797427 | J102: 47935532 | K102: 49977378
A103: ='Org structure'!A5 -> Vote 04 - Housing | C103: =SUM(C104:C108) -> 17486514.37 | D103: 38444889 | E103: 35048264.67 | F103: 43961942 | G103: 43422770 | H103: 43422770 | I103: 48444486 | J103: 47470171 | K103: 48668956
A104: ='Org structure'!E20 -> 04.1 - Administration Housing Services | C104: 3206290.89 | D104: 16554812.57 | E104: 16592682.59 | F104: 20336660 | G104: 19990628 | H104: 19990628 | I104: 20880481 | J104: 22263547 | K104: 22360754
A105: ='Org structure'!E21 -> 04.2 - Housing Services | C105: 10411563.97 | D105: 16672992.66 | E105: 12527754.5 | F105: 17047074 | G105: 15698167 | H105: 15698167 | I105: 16966503 | J105: 18009516 | K105: 18781172
A106: ='Org structure'!E22 -> 04.3 - Building Survey | C106: 3868659.51 | D106: 5217083.77 | E106: 5906289.93 | F106: 5732582 | G106: 6888349 | H106: 6888349 | I106: 7242097 | J106: 6271888 | K106: 6570155
A107: ='Org structure'!E23 -> 04.4 - Town Planning | C107: 0 | D107: 0 | E107: 10575.65 | F107: 462052 | G107: 462052 | H107: 462052 | I107: 483365 | J107: 505540 | K107: 518033
A108: ='Org structure'!E24 -> 04.5 - Land Affairs | C108: 0 | D108: 0 | E108: 10962 | F108: 383574 | G108: 383574 | H108: 383574 | I108: 2872040 | J108: 419680 | K108: 438842
A109: ='Org structure'!A6 -> Vote 05 - Sport Arts And Culture | C109: =SUM(C110:C113) -> 53657887.01 | D109: 92587374 | E109: 69479837.61 | F109: 97963223 | G109: 99753601 | H109: 99753601 | I109: 102691526 | J109: 105560205 | K109: 108882002
A110: ='Org structure'!E26 -> 05.1 - Administration Sports Arts & Culture | C110: 0 | D110: 83300 | E110: 174800 | F110: 277140 | G110: 285140 | H110: 285140 | I110: 298243 | J110: 311466 | K110: 319355
A111: ='Org structure'!E27 -> 05.2 - Museum | C111: 3033507.2 | D111: 6294952.09 | E111: 4176362.33 | F111: 4432491 | G111: 4611336 | H111: 4611336 | I111: 4834489 | J111: 4857342 | K111: 5071428
A112: ='Org structure'!E28 -> 05.3 - Library | C112: 22097739.76 | D112: 23245045.99 | E112: 41257229.95 | F112: 55872874 | G112: 57408847 | H112: 57408847 | I112: 58962764 | J112: 59661973 | K112: 61076826
A113: ='Org structure'!E29 -> 05.4 - Sports And Recreation | C113: 28526640.05 | D113: 62964075.92 | E113: 23871445.33 | F113: 37380718 | G113: 37448278 | H113: 37448278 | I113: 38596030 | J113: 40729424 | K113: 42414393
A114: ='Org structure'!A7 -> Vote 06 - Council General | C114: =SUM(C115:C122) -> 151819231.1 | D114: 233469010.2 | E114: 294619121.4 | F114: 247958374 | G114: 248333273 | H114: 248333273 | I114: 262607575 | J114: 266383205 | K114: 273887706
A115: ='Org structure'!E31 -> 06.1 - Administration Council General | C115: 110821578.5 | D115: 108043896.5 | E115: 246155880.8 | F115: 185011474 | G115: 186534474 | H115: 186534474 | I115: 197054982 | J115: 201088962 | K115: 206256901
A116: ='Org structure'!E32 -> 06.2 - Administration Municipal Manager | C116: 3848572.03 | D116: 3550421.81 | E116: 4592362.57 | F116: 5020340 | G116: 5417868 | H116: 5417868 | I116: 5696068 | J116: 5473291 | K116: 5740249
A117: ='Org structure'!E33 -> 06.3 - Internal Audit | C117: 3697010.16 | D117: 6237086.92 | E117: 6025870.6 | F117: 6674861 | G117: 5650532 | H117: 5650532 | I117: 5928561 | J117: 7254302 | K117: 7601740
A118: ='Org structure'!E34 -> 06.4 - Strategic | C118: 4808672.3 | D118: 4003927.88 | E118: 3549390.91 | F118: 5420542 | G118: 4348037 | H118: 4348037 | I118: 4549059 | J118: 5886109 | K118: 6161532
A119: ='Org structure'!E35 -> 06.5 - Administration Mayor | C119: 10845286.62 | D119: 7760360.28 | E119: 9068523.67 | F119: 12591739 | G119: 13495276 | H119: 13495276 | I119: 13952511 | J119: 13667399 | K119: 14279941
A120: ='Org structure'!E36 -> 06.6 - Administration Speaker | C120: 15096196.92 | D120: 101092951.5 | E120: 22163790.72 | F120: 28909437 | G120: 27988272 | H120: 27988272 | I120: 30332080 | J120: 28306019 | K120: 28940518
A121: ='Org structure'!E37 -> 06.7 - Chief Whip | C121: 1367962.58 | D121: 1304381.12 | E121: 1896413.6 | F121: 2535185 | G121: 3230847 | H121: 3230847 | I121: 3374972 | J121: 2779056 | K121: 2900062
A122: ='Org structure'!E38 -> 06.8 - Mpac | C122: 1333952.08 | D122: 1475984.16 | E122: 1166888.62 | F122: 1794796 | G122: 1667967 | H122: 1667967 | I122: 1719342 | J122: 1928067 | K122: 2006763
A123: ='Org structure'!A8 -> Vote 07 - Civil Engineering | C123: =SUM(C124:C127) -> 219091517.3 | D123: 236969728.7 | E123: 189182500 | F123: 237791135 | G123: 265303951 | H123: 265303951 | I123: 324594461 | J123: 247722177 | K123: 255319286
A124: ='Org structure'!E40 -> 07.1 - Administration City Civil Engineer | C124: 3132641.51 | D124: 99366932.63 | E124: 3934176.15 | F124: 4631337 | G124: 3904902 | H124: 3904902 | I124: 4313195 | J124: 5067227 | K124: 5316021
A125: ='Org structure'!E41 -> 07.2 - Building Construction | C125: 30386307.4 | D125: 54735102.14 | E125: 16436756.67 | F125: 19838642 | G125: 18326649 | H125: 18326649 | I125: 19275175 | J125: 22049582 | K125: 23068391
A126: ='Org structure'!E42 -> 07.3 - Roads | C126: 161824842.4 | D126: 74104031.7 | E126: 143153350 | F126: 207705063 | G126: 236792152 | H126: 236792152 | I126: 294402313 | J126: 214464962 | K126: 220506084
A127: ='Org structure'!E43 -> 07.4 - Pmu Unit | C127: 23747726.03 | D127: 8763662.21 | E127: 25658217.18 | F127: 5616093 | G127: 6280248 | H127: 6280248 | I127: 6603778 | J127: 6140406 | K127: 6428790
A128: ='Org structure'!A9 -> Vote 08 - Water Section | C128: =SUM(C129:C130) -> 1050746923 | D128: 1002773101 | E128: 1127450224 | F128: 730845449 | G128: 1023714974 | H128: 1023714974 | I128: 820568768 | J128: 894476772 | K128: 868913141
A129: ='Org structure'!E45 -> 08.1 - Administration Water | C129: 982289589.6 | D129: 940493871.3 | E129: 1066191268 | F129: 665304722 | G129: 947582093 | H129: 947582093 | I129: 744580182 | J129: 813366585 | K129: 784608674
A130: ='Org structure'!E46 -> 08.2 - Water Distribution | C130: 68457333.27 | D130: 62279229.31 | E130: 61258956.16 | F130: 65540727 | G130: 76132881 | H130: 76132881 | I130: 75988586 | J130: 81110187 | K130: 84304467
A131: ='Org structure'!A10 -> Vote 09 - City Electrial Engineering | C131: =SUM(C132:C136) -> 1174884182 | D131: 1728546163 | E131: 1398521289 | F131: 1562975979 | G131: 1705937543 | H131: 1705937543 | I131: 1803613498 | J131: 1838232099 | K131: 1942010727
A132: ='Org structure'!E48 -> 09.1 - Streetlighting | C132: 22000 | D132: 3185700 | E132: 3473867.82 | F132: 4000000 | G132: 5000000 | H132: 5000000 | I132: 5000000 | J132: 4000000 | K132: 0
A133: ='Org structure'!E49 -> 09.2 - Garage | C133: 12828860.13 | D133: 10204329.16 | E133: 10005964.2 | F133: 14616072 | G133: 12670170 | H133: 12670170 | I133: 13106428 | J133: 15622656 | K133: 20775920
A134: ='Org structure'!E50 -> 09.3 - Workshop | C134: 7472943.59 | D134: 46716011.58 | E134: 7114230.42 | F134: 8424072 | G134: 9025619 | H134: 9025619 | I134: 9406812 | J134: 9330005 | K134: 9828318
A135: ='Org structure'!E51 -> 09.4 - Administration Electricity | C135: 81451847.56 | D135: 615811230.1 | E135: 129510291.5 | F135: 423090431 | G135: 565707075 | H135: 565707075 | I135: 552370049 | J135: 400107247 | K135: 348066487
A136: ='Org structure'!E52 -> 09.5 - Electricity Distribution | C136: 1073108531 | D136: 1052628893 | E136: 1248416935 | F136: 1112845404 | G136: 1113534679 | H136: 1113534679 | I136: 1223730209 | J136: 1409172191 | K136: 1563340002
A137: ='Org structure'!A11 -> Vote 10 - Corporate Governane | C137: =SUM(C138:C140) -> 55234081.17 | D137: 74400449.7 | E137: 60471912.26 | F137: 78708674 | G137: 80666730 | H137: 80666730 | I137: 84278754 | J137: 92577651 | K137: 98936312
A138: ='Org structure'!E54 -> 10.1 - Administration City Secretary | C138: 33148344.12 | D138: 43153050.87 | E138: 37029686.44 | F138: 43630327 | G138: 42732029 | H138: 42732029 | I138: 44602661 | J138: 48692470 | K138: 52805968
A139: ='Org structure'!E55 -> 10.2 - Legal And Land Affairs | C139: 11603042.34 | D139: 20758648.5 | E139: 12224165.07 | F139: 19453294 | G139: 24495663 | H139: 24495663 | I139: 24926252 | J139: 25115285 | K139: 25941854
A140: ='Org structure'!E56 -> 10.3 - Management Services | C140: 10482694.71 | D140: 10488750.33 | E140: 11218060.75 | F140: 15625053 | G140: 13439038 | H140: 13439038 | I140: 14749841 | J140: 18769896 | K140: 20188490
A141: ='Org structure'!A12 -> Vote 11 - Budget And Treasury Office | C141: =SUM(C142:C144) -> 908310529.3 | D141: 294579091 | E141: 1130450040 | F141: 411424491 | G141: 477871625 | H141: 477871625 | I141: 437981121 | J141: 393435317 | K141: 383899747
A142: ='Org structure'!E58 -> 11.1 - Administration City Treasurer | C142: 884573590.3 | D142: 268906503.4 | E142: 1107647210 | F142: 366215088 | G142: 430396773 | H142: 430396773 | I142: 388652483 | J142: 344080135 | K142: 329881787
A143: ='Org structure'!E59 -> 11.2 - Data | C143: 16498814.87 | D143: 20012431.27 | E143: 12520417.94 | F143: 39598801 | G143: 41558587 | H143: 41558587 | I143: 43136640 | J143: 43227722 | K143: 47587157
A144: ='Org structure'!E60 -> 11.3 - Stores | C144: 7238124.15 | D144: 5660156.36 | E144: 10282412.42 | F144: 5610602 | G144: 5916265 | H144: 5916265 | I144: 6191998 | J144: 6127460 | K144: 6430803
A145: ='Org structure'!A13 -> Vote 12 - Cleansing | C145: =SUM(C146:C152) -> 288952343.1 | D145: 283172168 | E145: 257060005.2 | F145: 219847042 | G145: 358489709 | H145: 358489709 | I145: 252545778 | J145: 248769144 | K145: 245500085
A146: ='Org structure'!E62 -> 12.1 - Landfill Site | C146: 12478873.38 | D146: 17024390.5 | E146: 15612371.96 | F146: 14928903 | G146: 14696537 | H146: 14696537 | I146: 14744783 | J146: 15763919 | K146: 16174125
A147: ='Org structure'!E63 -> 12.2 - Administration Cleansing | C147: 110337768.9 | D147: 124414281.7 | E147: 122698922.3 | F147: 82000916 | G147: 201770455 | H147: 201770455 | I147: 96562129 | J147: 77670362 | K147: 67414869
A148: ='Org structure'!E64 -> 12.3 - Refuse Removal | C148: 113947155.3 | D148: 76998342.27 | E148: 77829819.9 | F148: 60098584 | G148: 77709920 | H148: 77709920 | I148: 79144042 | J148: 82211829 | K148: 86077517
A149: ='Org structure'!E65 -> 12.4 - Nightsoil Services | C149: 9186314.78 | D149: 8386207.88 | E149: 8029935.26 | F149: 10123020 | G149: 9295209 | H149: 9295209 | I149: 9699249 | J149: 11133953 | K149: 11631198
A150: ='Org structure'!E66 -> 12.5 - Street Cleaning | C150: 31212387.9 | D150: 31308486.22 | E150: 28744085.25 | F150: 30626478 | G150: 32910225 | H150: 32910225 | I150: 30123937 | J150: 38754469 | K150: 40316567
A151: ='Org structure'!E67 -> 12.6 - Public Restrooms | C151: 0 | D151: 0 | E151: 0 | F151: 30270 | G151: 0 | H151: 0 | I151: 0 | J151: 0 | K151: 0
A152: ='Org structure'!E68 -> 12.7 - Landfill Site | C152: 11789842.76 | D152: 25040459.44 | E152: 4144870.5 | F152: 22038871 | G152: 22107363 | H152: 22107363 | I152: 22271638 | J152: 23234612 | K152: 23885809
A153: ='Org structure'!A14 -> Vote 13 - Sewerage | C153: =SUM(C154:C157) -> 214452451.7 | D153: 220259507.8 | E153: 335744307.6 | F153: 243945908 | G153: 367930802 | H153: 367930802 | I153: 331038585 | J153: 260804463 | K153: 257896273
A154: ='Org structure'!E70 -> 13.1 - Administration Sewerage | C154: 85445827.46 | D154: 92190813.04 | E154: 59930835.41 | F154: 65761739 | G154: 183606935 | H154: 183606935 | I154: 77709263 | J154: 62246508 | K154: 54174951
A155: ='Org structure'!E71 -> 13.2 - Sewer Agency | C155: 33214176.7 | D155: 45258818 | E155: 23486736 | F155: 45309747 | G155: 44557942 | H155: 44557942 | I155: 112149472 | J155: 56797798 | K155: 58891678
A156: ='Org structure'!E72 -> 13.3 - Sewer Distribution | C156: 95720614.07 | D156: 82809876.71 | E156: 96538068.15 | F156: 132874422 | G156: 139747925 | H156: 139747925 | I156: 141161718 | J156: 141741887 | K156: 144811292
A157: ='Org structure'!E73 -> 13.4 - Nightsoil Services | C157: 71833.44 | D157: 0 | E157: 155788668 | F157: 0 | G157: 18000 | H157: 18000 | I157: 18132 | J157: 18270 | K157: 18352
A158: ='Org structure'!A15 -> Vote 14 - Market | C158: =SUM(C159:C159) -> 21364082.5 | D158: 26209352.96 | E158: 22985932.44 | F158: 23181617 | G158: 21737732 | H158: 21737732 | I158: 22469323 | J158: 24030843 | K158: 25267796
A159: ='Org structure'!E75 -> 14.1 - Market | C159: 21364082.5 | D159: 26209352.96 | E159: 22985932.44 | F159: 23181617 | G159: 21737732 | H159: 21737732 | I159: 22469323 | J159: 24030843 | K159: 25267796
A160: ='Org structure'!A16 -> Vote 15 - Other | C160: =SUM(C161:C163) -> 8058514.45 | D160: 12730339 | E160: 9949164.58 | F160: 12921309 | G160: 13435828 | H160: 13435828 | I160: 12481267 | J160: 12406400 | K160: 13219036
A161: ='Org structure'!E77 -> 15.1 - Administration Led | C161: 2985193.45 | D161: 3416191.93 | E161: 4419678.41 | F161: 3853241 | G161: 4796723 | H161: 4796723 | I161: 5041971 | J161: 4223602 | K161: 4412927
A162: ='Org structure'!E78 -> 15.2 - Economic Affairs & Corporate Communicati | C162: 2549225.19 | D162: 4682391.68 | E162: 3283180.83 | F162: 3858517 | G162: 3171155 | H162: 3171155 | I162: 3259395 | J162: 4138569 | K162: 4583139
A163: ='Org structure'!E79 -> 15.3 - Local Economic Development | C163: 2524095.81 | D163: 4631755.39 | E163: 2246305.34 | F163: 5209551 | G163: 5467950 | H163: 5467950 | I163: 4179901 | J163: 4044229 | K163: 4222970
A164: Total Expenditure by Vote | B164: 2 | C164: =C86+C93+C96+C103+C109+C114+C123+C128+C131+C137+C141+C145+C153+C158+C160 -> 4469816725 | D164: 4737794931 | E164: 5243404568 | F164: 4262640805 | G164: 5121636420 | H164: 5121636420 | I164: 4934524142 | J164: 4879848892 | K164: 4966095445 | L164: =SUM(L86:L127) -> 0 | M164: 0 | N164: 0 | O164: 0 | P164: 0 | Q164: 0 | R164: 0 | S164: 0 | T164: 0 | U164: 0 | V164: 0 | W164: 0
A166: =result -> Surplus/(Deficit) for the year | B166: 2 | C166: =C83-C164 -> -617190420.1 | D166: -884636523.9 | E166: -996513801.2 | F166: 188469847 | G166: -630077641 | H166: -630077641 | I166: -67447813 | J166: -104750285 | K166: -67343942
A167: =head27a -> References
A168: 1. Insert 'Vote'; e.g. Department, if different to Functional structure
A169: 2. Must reconcile to Financial Performance ('Revenue and Expenditure by Functional Classification' and 'Revenue and Expenditure')
A170: 3. Assign share in 'associate' to relevant Vote

Sheet A4-FinPerf RE
A1: =muni&" - "&Approve4 -> NW403 City Of Matlosana - Table A4 Budgeted Financial Performance (revenue and expenditure)
A2: =desc -> Description | B2: =head27 -> Ref | C2: =head1b -> 2021/22 | D2: =head1A -> 2022/23 | E2: =Head1 -> 2023/24 | F2: =Head2 -> Current Year 2024/25 | J2: =Head3 -> 2025/26 Medium Term Revenue & Expenditure Framework | M2: =Head4 -> LTFS
A3: R thousand | B3: 1 | C3: =Head5 -> Audited Outcome | D3: =Head5 -> Audited Outcome | E3: =Head5 -> Audited Outcome | F3: =Head6 -> Original Budget | G3: =Head7 -> Adjusted Budget | H3: =Head8 -> Full Year Forecast | I3: =Head5b -> Pre-audit outcome | J3: =Head9 -> Budget Year 2025/26 | K3: =Head10 -> Budget Year +1 2026/27 | L3: =Head11 -> Budget Year +2 2027/28 | M3: =Head12 -> Forecast 2028/29 | N3: =Head13 -> Forecast 2029/30 | O3: =Head14 -> Forecast 2030/31 | P3: =Head15 -> Forecast 2031/32 | Q3: =Head16 -> Forecast 2032/33 | R3: =Head17 -> Forecast 2033/34 | S3: =Head18 -> Forecast 2034/35 | T3: =Head19 -> Forecast 2035/36 | U3: =Head20 -> Forecast 2036/37 | V3: =Head21 -> Forecast 2037/38 | W3: =Head22 -> Forecast 2038/39 | X3: =Head23 -> Forecast 2039/40
A4: Revenue
A5: Exchange Revenue
A6: Service charges - Electricity | B6: 2 | C6: ='SA1'!C17 -> 957446989.6 | D6: ='SA1'!D17 -> 876123970.6 | E6: ='SA1'!E17 -> 997662385.8 | F6: ='SA1'!F17 -> 1109135987 | G6: ='SA1'!G17 -> 1059135987 | H6: ='SA1'!H17 -> 1059135987 | I6: ='SA1'!I17 -> 827092110.4 | J6: ='SA1'!J17 -> 1297981684 | K6: ='SA1'!K17 -> 1213523436 | L6: ='SA1'!L17 -> 1243861521
A7: Service charges - Water | B7: 2 | C7: ='SA1'!C23 -> 650601668.4 | D7: ='SA1'!D23 -> 736820317.5 | E7: ='SA1'!E23 -> 732561652.7 | F7: ='SA1'!F23 -> 845005452 | G7: ='SA1'!G23 -> 845005452 | H7: ='SA1'!H23 -> 845005452 | I7: ='SA1'!I23 -> 640463713.5 | J7: ='SA1'!J23 -> 883875703 | K7: ='SA1'!K23 -> 924533985 | L7: ='SA1'!L23 -> 947647335
A8: Service charges - Waste Water Management | B8: 2 | C8: ='SA1'!C29 -> 125355609.4 | D8: ='SA1'!D29 -> 141372935.4 | E8: ='SA1'!E29 -> 145697277 | F8: ='SA1'!F29 -> 176453343 | G8: ='SA1'!G29 -> 176453343 | H8: ='SA1'!H29 -> 176453343 | I8: ='SA1'!I29 -> 108518109.6 | J8: ='SA1'!J29 -> 184570199 | K8: ='SA1'!K29 -> 193060427 | L8: ='SA1'!L29 -> 197886937
A9: Service charges - Waste Management | B9: 2 | C9: ='SA1'!C36 -> 167811802.5 | D9: ='SA1'!D36 -> 195290903.9 | E9: ='SA1'!E36 -> 197202189.3 | F9: ='SA1'!F36 -> 219500000 | G9: ='SA1'!G36 -> 219500000 | H9: ='SA1'!H36 -> 219500000 | I9: ='SA1'!I36 -> 149996507.9 | J9: ='SA1'!J36 -> 229597000 | K9: ='SA1'!K36 -> 240158462 | L9: ='SA1'!L36 -> 246162423
A10: Sale of Goods and Rendering of Services | C10: 6384381.29 | D10: 6086281.75 | E10: 9664440.88 | F10: 9805305 | G10: 9857369 | H10: 9857369 | I10: 8579417.56 | J10: 10306758 | K10: 10780867 | L10: 10786166
A11: Agency services | C11: 0 | D11: 0 | E11: 0 | F11: 0 | G11: 0 | H11: 0 | I11: 0 | J11: 0 | K11: 0 | L11: 0
A12: Interest
A13: Interest earned from Receivables | C13: 461282220.2 | D13: 550656208.7 | E13: 604701957.9 | F13: 508204666 | G13: 686129978 | H13: 686129978 | I13: 506209793.4 | J13: 669330989 | K13: 528764992 | L13: 541984118
A14: Interest earned from Current and Non Current Assets | C14: 10685431.08 | D14: 15402442.26 | E14: 125135907.3 | F14: 10239203 | G14: 10239203 | H14: 10239203 | I14: 8021326.56 | J14: 11138435 | K14: 11138435 | L14: 11416897
A15: Dividends
A16: Rent on Land
A17: Rental from Fixed Assets | C17: 251709429.6 | D17: 106775414.2 | E17: 14960496.2 | F17: 9857011 | G17: 8987084 | H17: 8987084 | I17: 5967595.84 | J17: 9889724 | K17: 10344652 | L17: 10578661
A18: Licence and permits | C18: 7870875.72 | D18: 7528073.19 | E18: 7795291.31 | F18: 7427464 | G18: 7727464 | H18: 7727464 | I18: 6058875 | J18: 7769128 | K18: 8126509 | L18: 8128435
A19: Special rating levies
A20: Operational Revenue | C20: 42360491.88 | D20: 49985540.82 | E20: 49756339.86 | F20: 51084078 | G20: 52346960 | H20: 52346960 | I20: 36098532.2 | J20: 54224000 | K20: 56329328 | L20: 58313383
A21: Non-Exchange Revenue
A22: Property rates | B22: 2 | C22: ='SA1'!C10 -> 451441226.4 | D22: ='SA1'!D10 -> 456396936.2 | E22: ='SA1'!E10 -> 507433747.1 | F22: ='SA1'!F10 -> 593684392 | G22: ='SA1'!G10 -> 503684392 | H22: ='SA1'!H10 -> 503684392 | I22: ='SA1'!I10 -> 414481915.4 | J22: ='SA1'!J10 -> 522318362 | K22: ='SA1'!K10 -> 545594393 | L22: ='SA1'!L10 -> 559234252
A23: Surcharges and Taxes | C23: 0 | D23: 14333.63 | E23: 1724.6 | F23: 150000 | G23: 150000 | H23: 150000 | I23: 0 | J23: 156900 | K23: 163804 | L23: 163804
A24: Fines, penalties and forfeits | C24: 7356290.42 | D24: 8377449.57 | E24: 17825963.94 | F24: 11710752 | G24: 12458648 | H24: 12458648 | I24: 13815371.85 | J24: 12249448 | K24: 12539317 | L24: 12556671
A25: Licences or permits | C25: 152346.53 | D25: 261075.34 | E25: 0 | F25: 50000 | G25: 798900 | H25: 798900 | I25: 0 | J25: 850000 | K25: 850000 | L25: 870000
A26: Transfer and subsidies - Operational | C26: 511230910 | D26: 559520046.7 | E26: 616668395.2 | F26: 657797200 | G26: 658216200 | H26: 658216200 | I26: 636094172.2 | J26: 700076550 | K26: 732001200 | L26: 760606790
A27: Interest | C27: 43424197.47 | D27: 50406436.8 | E27: 52760734.64 | F27: 54756000 | G27: 54756000 | H27: 54756000 | I27: 46696609.96 | J27: 54756000 | K27: 54756000 | L27: 56124900
A28: Fuel Levy
A29: Operational Revenue | C29: 0 | D29: 0 | E29: 0 | F29: 0 | G29: 0 | H29: 0 | I29: 0 | J29: 0 | K29: 0 | L29: 0
A30: Gains on disposal of Assets | C30: -2163762.84 | D30: -16572392.3 | E30: -11321901.27 | F30: 0 | G30: 0 | H30: 0 | I30: 0 | J30: 0 | K30: 0 | L30: 0
A31: Other Gains | C31: 2864874.13 | D31: 1275862.37 | E31: -55514.91 | F31: 0 | G31: 0 | H31: 0 | I31: 65231.1 | J31: 0 | K31: 0 | L31: 0
A32: Discontinued Operations
A33: Total Revenue (excluding capital transfers and contributions) | C33: =SUM(C6:C20)+SUM(C22:C32) -> 3695814982 | D33: =SUM(D6:D20)+SUM(D22:D32) -> 3745721837 | E33: 4068451088 | F33: 4264860853 | G33: 4305446980 | H33: 4305446980 | I33: 3408159282 | J33: 4649090880 | K33: 4542665807 | L33: 4666322293
A34: Expenditure
A35: Employee related costs | B35: 2 | C35: ='SA1'!C71 -> 686188405.8 | D35: ='SA1'!D71 -> 696837022.5 | E35: ='SA1'!E71 -> 795179728.9 | F35: ='SA1'!F71 -> 794681905 | G35: ='SA1'!G71 -> 816673929 | H35: ='SA1'!H71 -> 816673929 | I35: ='SA1'!I71 -> 579609284.1 | J35: ='SA1'!J71 -> 848306870 | K35: ='SA1'!K71 -> 892639816 | L35: ='SA1'!L71 -> 933738479 | M35: ='SA1'!M71 -> 0 | N35: ='SA1'!N71 -> 0 | O35: ='SA1'!O71 -> 0 | P35: ='SA1'!P71 -> 0 | Q35: ='SA1'!Q71 -> 0 | R35: ='SA1'!R71 -> 0 | S35: ='SA1'!S71 -> 0 | T35: ='SA1'!T71 -> 0
A36: Remuneration of councillors | C36: 34189332.6 | D36: 36911611.07 | E36: 39039461.95 | F36: 46107129 | G36: 46107129 | H36: 46107129 | I36: 29729624.48 | J36: 48504700 | K36: 50446558 | L36: 53069782
A37: Bulk purchases - electricity | B37: 2 | C37: ='SA1'!C88 -> 874375147.9 | D37: ='SA1'!D88 -> 848229631.6 | E37: ='SA1'!E88 -> 1010483320 | F37: ='SA1'!F88 -> 925000000 | G37: ='SA1'!G88 -> 925000000 | H37: ='SA1'!H88 -> 925000000 | I37: ='SA1'!I88 -> 691642686.3 | J37: ='SA1'!J88 -> 1042475000 | K37: ='SA1'!K88 -> 1174869325 | L37: ='SA1'!L88 -> 1324077729
A38: Inventory consumed | B38: 8 | C38: ='SA1'!C169 -> 38390842 | D38: ='SA1'!D169 -> 59238296 | E38: ='SA1'!E169 -> 62102482 | F38: ='SA1'!F169 -> 434300934 | G38: ='SA1'!G169 -> 635912089 | H38: ='SA1'!H169 -> 635912089 | I38: ='SA1'!I169 -> 35072235.02 | J38: ='SA1'!J169 -> 557145740 | K38: ='SA1'!K169 -> 0 | L38: ='SA1'!L169 -> 0
A39: Debt impairment | B39: 3 | C39: 18029723.25 | D39: 3749542.96 | E39: 3098448.03 | F39: 1030322710 | G39: 0 | H39: 0 | I39: 772741807.4 | J39: 0 | K39: 0 | L39: 0
A40: Depreciation and amortisation | C40: ='SA1'!C83 -> 383480410.6 | D40: ='SA1'!D83 -> 382953200.1 | E40: ='SA1'!E83 -> 347975422.4 | F40: ='SA1'!F83 -> 411097601 | G40: ='SA1'!G83 -> 401097601 | H40: ='SA1'!H83 -> 401097601 | I40: ='SA1'!I83 -> 218331208.7 | J40: ='SA1'!J83 -> 401097601 | K40: ='SA1'!K83 -> 401097601 | L40: ='SA1'!L83 -> 401097601
A41: Interest | C41: 116935916 | D41: 237534472.3 | E41: 377387838.8 | F41: 10144245 | G41: 10144245 | H41: 10144245 | I41: 6834834.51 | J41: 10590895 | K41: 11098993 | L41: 11587352
A42: Contracted services | C42: ='SA1'!C127 -> 333129889.7 | D42: ='SA1'!D127 -> 249561697 | E42: ='SA1'!E127 -> 224470631 | F42: ='SA1'!F127 -> 363507814 | G42: ='SA1'!G127 -> 457740598 | H42: ='SA1'!H127 -> 457740598 | I42: ='SA1'!I127 -> 234823997.5 | J42: ='SA1'!J127 -> 462905840 | K42: ='SA1'!K127 -> 478213624 | L42: ='SA1'!L127 -> 484052454
A43: Transfers and subsidies | C43: ='SA1'!C93 -> 0 | D43: ='SA1'!D93 -> 0 | E43: ='SA1'!E93 -> 0 | F43: ='SA1'!F93 -> 0 | G43: ='SA1'!G93 -> 0 | H43: ='SA1'!H93 -> 0 | I43: ='SA1'!I93 -> 0 | J43: ='SA1'!J93 -> 0 | K43: ='SA1'!K93 -> 0 | L43: ='SA1'!L93 -> 0
A44: Irrecoverable debts written off | C44: 1284786461 | D44: 1386491357 | E44: 1444949121 | F44: 0 | G44: 1617759601 | H44: 1617759601 | I44: 2427691.32 | J44: 1247326380 | K44: 935061211 | L44: 798698117
A45: Operational costs | C45: ='SA1'!C157 -> 215671054.7 | D45: ='SA1'!D157 -> 312936025.6 | E45: ='SA1'!E157 -> 324570586.1 | F45: ='SA1'!F157 -> 247478466 | G45: ='SA1'!G157 -> 250528466 | H45: ='SA1'!H157 -> 250528466 | I45: ='SA1'!I157 -> 117560236.1 | J45: ='SA1'!J157 -> 261198879 | K45: ='SA1'!K157 -> 269380624 | L45: ='SA1'!L157 -> 276114425
A46: Losses on disposal of Assets | C46: 19269842.83 | D46: 0 | E46: 0 | F46: 0 | G46: 0 | H46: 0 | I46: 0 | J46: 0 | K46: 0 | L46: 0
A47: Other Losses | C47: 2575419.42 | D47: 342160.57 | E47: 4538554.87 | F47: 0 | G47: 0 | H47: 0 | I47: 0 | J47: 0 | K47: 0 | L47: 0
A48: Total Expenditure | C48: =SUM(C35:C47) -> 4007022446 | D48: =SUM(D35:D47) -> 4214785017 | E48: 4633795595 | F48: 4262640804 | G48: 5160963658 | H48: 5160963658 | I48: 2688773605 | J48: 4879551905 | K48: 4212807752 | L48: 4282435939 | M48: =SUM(M35:M47) -> 0 | N48: 0 | O48: 0 | P48: 0 | Q48: 0 | R48: 0 | S48: 0 | T48: 0 | U48: 0 | V48: 0 | W48: 0 | X48: 0
A49: Surplus/(Deficit) | C49: =C33-C48 -> -311207463.9 | D49: =D33-D48 -> -469063179.9 | E49: -565344507.2 | F49: 2220049 | G49: -855516678 | H49: -855516678 | I49: 719385677 | J49: -230461025 | K49: 329858055 | L49: 383886354 | M49: =M33+M48 -> 0 | N49: 0 | O49: 0 | P49: 0 | Q49: 0 | R49: 0 | S49: 0 | T49: 0 | U49: 0 | V49: 0 | W49: 0 | X49: 0
A50: Transfers and subsidies - capital (monetary allocations) | B50: 6 | C50: 156811322.9 | D50: 107436569.9 | E50: 178439678.8 | F50: 186249799 | G50: 186111799 | H50: 186111799 | I50: 82229162.59 | J50: 217985449 | K50: 232432800 | L50: 232429210
A51: Transfers and subsidies - capital (in-kind) | B51: 6
A52: Surplus/(Deficit) after capital transfers & contributions | C52: =SUM(C49:C51) -> -154396140.9 | D52: =SUM(D49:D51) -> -361626610 | E52: -386904828.4 | F52: 188469848 | G52: -669404879 | H52: -669404879 | I52: 801614839.5 | J52: -12475576 | K52: 562290855 | L52: 616315564
A53: Income Tax
A54: Surplus/(Deficit) after income tax | C54: =+C52-C53 -> -154396140.9 | D54: =+D52-D53 -> -361626610 | E54: -386904828.4 | F54: 188469848 | G54: -669404879 | H54: -669404879 | I54: 801614839.5 | J54: -12475576 | K54: 562290855 | L54: 616315564 | M54: 0 | N54: 0 | O54: 0 | P54: 0 | Q54: 0
A55: Share of Surplus/Deficit attributable to Joint Venture
A56: Share of Surplus/Deficit attributable to Minorities
A57: Surplus/(Deficit) attributable to municipality | C57: =SUM(C54:C56) -> -154396140.9 | D57: =SUM(D54:D56) -> -361626610 | E57: -386904828.4 | F57: 188469848 | G57: -669404879 | H57: -669404879 | I57: 801614839.5 | J57: -12475576 | K57: 562290855 | L57: 616315564 | M57: 0 | N57: 0 | O57: 0 | P57: 0 | Q57: 0
A58: Share of Surplus/Deficit attributable to Associate | B58: 7
A59: Intercompany/Parent subsidiary transactions
A60: =result -> Surplus/(Deficit) for the year | B60: 1 | C60: =SUM(C57:C59) -> -154396140.9 | D60: =SUM(D57:D59) -> -361626610 | E60: -386904828.4 | F60: 188469848 | G60: -669404879 | H60: -669404879 | I60: 801614839.5 | J60: -12475576 | K60: 562290855 | L60: 616315564 | M60: 0 | N60: 0 | O60: 0 | P60: 0 | Q60: 0 | R60: =R36+R59 -> 0 | S60: 0 | T60: 0 | U60: 0 | V60: 0 | W60: 0 | X60: 0
A61: References
A62: 1. Classifications are revenue sources and expenditure type
A63: 2. Detail to be provided in Table SA1 | O63: =O60-'A4-FinPerf RE'!J60 -> 12475576 | P63: =P60-'A4-FinPerf RE'!K60 -> -562290855 | Q63: =Q60-'A4-FinPerf RE'!L60 -> -616315564
A64: 3. Debt impairment includes Impairment and Reversal of Impairment Losses
A65: 4. Expenditure type components previously shown under repairs and maintenance should be allocated back to the originating expenditure group/item; e.g. employee costs
A66: 5. Repairs & maintenance detailed in Table A9 and Table SA34c
A67: 6. Contributions are funds provided by external organisations to assist with infrastructure development; e.g. developer contributions (detail to be provided in Table SA1)
A68: 7. Equity method ( Includes Joint Ventures)
A69: 8. All materials consumed including water consumed and materials used in operations.
A70: 9 Operational revenue is a summary of imatereial item that are on the chart not on the face of the A4 due to imateriality.

Sheet A4 Funding (hidden)
A1: Western Cape: Saldanha Bay (WC014) - Table A4 Funding Tool Summary for 4th Quarter ended 30 June 2024
A2: A4 Code | B2: A4 Description | C2: Type | D2: Classification | E2: =head1b -> 2021/22 | F2: =head1A -> 2022/23 | G2: =Head1 -> 2023/24 | H2: =Head2 -> Current Year 2024/25 | L2: =Head3 -> 2025/26 Medium Term Revenue & Expenditure Framework
A3: R thousands | E3: =Head5 -> Audited Outcome | F3: =Head5 -> Audited Outcome | G3: =Head5 -> Audited Outcome | H3: =Head6 -> Original Budget | I3: =Head7 -> Adjusted Budget | J3: =Head8 -> Full Year Forecast | K3: =Head5b -> Pre-audit outcome | L3: =Head9 -> Budget Year 2025/26 | M3: =Head10 -> Budget Year +1 2026/27 | N3: =Head11 -> Budget Year +2 2027/28
A4: 0300 | B4: Exchange Revenue / Service charges - Electricity | C4: Non-Cash | D4: Debtor accrual - service charges electricity accrued through exchange receivables | E4: ='SA3'!C8 -> 630282100.9 | F4: ='SA3'!D8 -> 738643960 | G4: ='SA3'!E8 -> 815880380.7 | H4: ='SA3'!F8 -> 2278663648 | I4: ='SA3'!G8 -> 2336999859 | J4: ='SA3'!H8 -> 2336999859 | K4: ='SA3'!I8 -> 991023681.4 | L4: ='SA3'!J8 -> 2411746588 | M4: ='SA3'!K8 -> 2285874240 | N4: ='SA3'!L8 -> -885251939
D5: Non-Cash Total | E5: =SUM(E4) -> 630282100.9 | F5: =SUM(F4) -> 738643960 | G5: 815880380.7 | H5: 2278663648 | I5: 2336999859 | J5: 2336999859 | K5: 991023681.4 | L5: 2411746588 | M5: 2285874240 | N5: -885251939
B6: Exchange Revenue / Service charges - Electricity Total
A7: 0400 | B7: Exchange Revenue / Service charges - Water | C7: Non-Cash | D7: Debtor accrual - service charges water accrued through exchange receivables | E7: ='SA3'!C9 -> 2762004518 | F7: ='SA3'!D9 -> 3462888027 | G7: ='SA3'!E9 -> 3623242435 | H7: ='SA3'!F9 -> 3391196394 | I7: ='SA3'!G9 -> 3426329654 | J7: ='SA3'!H9 -> 3426329654 | K7: ='SA3'!I9 -> 4358329805 | L7: ='SA3'!J9 -> 3522579572 | M7: ='SA3'!K9 -> 3405830988 | N7: ='SA3'!L9 -> -755792164
D8: Non-Cash Total
B9: Exchange Revenue / Service charges - Water Total
A10: 0500 | B10: Exchange Revenue / Service charges - Waste Water Management | C10: Non-Cash | D10: Debtor accrual - service charges waste water management accrued through exchange receivables | E10: ='SA3'!C11 -> 397245517.7 | F10: ='SA3'!D11 -> 484213737.9 | G10: ='SA3'!E11 -> 497669871 | H10: ='SA3'!F11 -> 541070686 | I10: ='SA3'!G11 -> 542776340 | J10: ='SA3'!H11 -> 542776340 | K10: ='SA3'!I11 -> 585819672.6 | L10: ='SA3'!J11 -> 560678405 | M10: ='SA3'!K11 -> 536279965 | N10: ='SA3'!L11 -> -158268982
D11: Non-Cash Total
B12: Exchange Revenue / Service charges - Waste Water Management Total
A13: 0600 | B13: Exchange Revenue / Service charges - Waste Management | C13: Non-Cash | D13: Debtor accrual - service charges waste management accrued through exchange receivables | E13: ='SA3'!C10 -> 716939670.6 | F13: ='SA3'!D10 -> 897523948.3 | G13: ='SA3'!E10 -> 940443157.3 | H13: ='SA3'!F10 -> 1023454564 | I13: ='SA3'!G10 -> 1027312551 | J13: ='SA3'!H10 -> 1027312551 | K13: ='SA3'!I10 -> 1125203658 | L13: ='SA3'!J10 -> 1053032701 | M13: ='SA3'!K10 -> 1022679978 | N13: ='SA3'!L10 -> -196929938
D14: Non-Cash Total
B15: Exchange Revenue / Service charges - Waste Management Total
A16: 0700 | B16: Exchange Revenue / Sale of Goods and Rendering of Services | C16: Cash | D16: Cash sales of goods and rendering of services | E16: ='SA3'!C138 -> 5832224024 | F16: 0 | G16: 0 | H16: 0 | I16: 0 | J16: 0 | K16: 0 | L16: 0 | M16: 0 | N16: 0
D17: Proceeds sale of PPE | E17: 0 | F17: 0 | G17: 0 | H17: 0 | I17: 0 | J17: 0 | K17: 0 | L17: 0 | M17: 0 | N17: 0
D18: Cash Total | E18: 0 | F18: 0 | G18: 0 | H18: 0 | I18: 0 | J18: 0 | K18: 0 | L18: 0 | M18: 0 | N18: 0
B19: Exchange Revenue / Sale of Goods and Rendering of Services Total | E19: 0 | F19: 0 | G19: 0 | H19: 0 | I19: 0 | J19: 0 | K19: 0 | L19: 0 | M19: 0 | N19: 0
A20: 0800 | B20: Exchange Revenue / Agency services | C20: Cash | D20: Cash - agency services | E20: 0 | F20: 0 | G20: 0 | H20: 0 | I20: 0 | J20: 0 | K20: 0 | L20: 0 | M20: 0 | N20: 0
D21: Cash Total | E21: 0 | F21: 0 | G21: 0 | H21: 0 | I21: 0 | J21: 0 | K21: 0 | L21: 0 | M21: 0 | N21: 0
B22: Exchange Revenue / Agency services Total | E22: 0 | F22: 0 | G22: 0 | H22: 0 | I22: 0 | J22: 0 | K22: 0 | L22: 0 | M22: 0 | N22: 0
A23: 0900 | B23: Exchange Revenue / Interest | C23: Non-Cash | D23: Deemed interest | E23: 0 | F23: 0 | G23: 0 | H23: 0 | I23: 0 | J23: 0 | K23: 0 | L23: 0 | M23: 0 | N23: 0
D24: Non-Cash Total
B25: Exchange Revenue / Interest Total
A26: 1000 | B26: Exchange Revenue / Interest earned from Receivables | C26: Non-Cash | D26: Affiliates/related parties/associated companies | E26: 0 | F26: 0 | G26: 0 | H26: 0 | I26: 0 | J26: 0 | K26: 0 | L26: 0 | M26: 0 | N26: 0
D27: Debtor accrual - interest outstanding debtors accrued through exchange receivables | E27: 0 | F27: 0 | G27: 0 | H27: 0 | I27: 0 | J27: 0 | K27: 0 | L27: 0 | M27: 0 | N27: 0
D28: SARS | E28: 0 | F28: 0 | G28: 0 | H28: 0 | I28: 0 | J28: 0 | K28: 0 | L28: 0 | M28: 0 | N28: 0
D29: Non-Cash Total | E29: 0 | F29: 0 | G29: 0 | H29: 0 | I29: 0 | J29: 0 | K29: 0 | L29: 0 | M29: 0 | N29: 0
B30: Exchange Revenue / Interest earned from Receivables Total | E30: 0 | F30: 0 | G30: 0 | H30: 0 | I30: 0 | J30: 0 | K30: 0 | L30: 0 | M30: 0 | N30: 0
A31: 1100 | B31: Exchange Revenue / Interest earned from Current and Non Current Assets | C31: Cash | D31: Cash - interest external investments | E31: 0 | F31: 0 | G31: 0 | H31: 0 | I31: 0 | J31: 0 | K31: 0 | L31: 0 | M31: 0 | N31: 0
D32: Cash Total | E32: 0 | F32: 0 | G32: 0 | H32: 0 | I32: 0 | J32: 0 | K32: 0 | L32: 0 | M32: 0 | N32: 0
B33: Exchange Revenue / Interest earned from Current and Non Current Assets Total | E33: 0 | F33: 0 | G33: 0 | H33: 0 | I33: 0 | J33: 0 | K33: 0 | L33: 0 | M33: 0 | N33: 0
A34: 1200 | B34: Exchange Revenue / Dividends | C34: Cash | D34: Cash - dividends received | E34: 0 | F34: 0 | G34: 0 | H34: 0 | I34: 0 | J34: 0 | K34: 0 | L34: 0 | M34: 0 | N34: 0
D35: Cash Total | E35: 0 | F35: 0 | G35: 0 | H35: 0 | I35: 0 | J35: 0 | K35: 0 | L35: 0 | M35: 0 | N35: 0
B36: Exchange Revenue / Dividends Total | E36: 0 | F36: 0 | G36: 0 | H36: 0 | I36: 0 | J36: 0 | K36: 0 | L36: 0 | M36: 0 | N36: 0
A37: 1300 | B37: Exchange Revenue / Rent on Land | C37: Cash | D37: Cash - rent on land | E37: 0 | F37: 0 | G37: 0 | H37: 0 | I37: 0 | J37: 0 | K37: 0 | L37: 0 | M37: 0 | N37: 0
D38: Cash Total | E38: 0 | F38: 0 | G38: 0 | H38: 0 | I38: 0 | J38: 0 | K38: 0 | L38: 0 | M38: 0 | N38: 0
B39: Exchange Revenue / Rent on Land Total | E39: 0 | F39: 0 | G39: 0 | H39: 0 | I39: 0 | J39: 0 | K39: 0 | L39: 0 | M39: 0 | N39: 0
A40: 1400 | B40: Exchange Revenue / Rental from Fixed Assets | C40: Cash | D40: Cash - rental from fixed assets | E40: 0 | F40: 0 | G40: 0 | H40: 0 | I40: 0 | J40: 0 | K40: 0 | L40: 0 | M40: 0 | N40: 0
D41: Cash Total | E41: 0 | F41: 0 | G41: 0 | H41: 0 | I41: 0 | J41: 0 | K41: 0 | L41: 0 | M41: 0 | N41: 0
B42: Exchange Revenue / Rental from Fixed Assets Total | E42: 0 | F42: 0 | G42: 0 | H42: 0 | I42: 0 | J42: 0 | K42: 0 | L42: 0 | M42: 0 | N42: 0
A43: 1500 | B43: Exchange Revenue / Licence and permits | C43: Cash | D43: Cash - licence and permits | E43: 0 | F43: 0 | G43: 0 | H43: 0 | I43: 0 | J43: 0 | K43: 0 | L43: 0 | M43: 0 | N43: 0
D44: Cash Total | E44: 0 | F44: 0 | G44: 0 | H44: 0 | I44: 0 | J44: 0 | K44: 0 | L44: 0 | M44: 0 | N44: 0
B45: Exchange Revenue / Licence and permits Total | E45: 0 | F45: 0 | G45: 0 | H45: 0 | I45: 0 | J45: 0 | K45: 0 | L45: 0 | M45: 0 | N45: 0
A46: 1550 | B46: Exchange Revenue / Special rating levies | C46: Cash | D46: Cash - Special rating levies | E46: 0 | F46: 0 | G46: 0 | H46: 0 | I46: 0 | J46: 0 | K46: 0 | L46: 0 | M46: 0 | N46: 0
D47: Cash Total | E47: 0 | F47: 0 | G47: 0 | H47: 0 | I47: 0 | J47: 0 | K47: 0 | L47: 0 | M47: 0 | N47: 0
B48: Exchange Revenue / Special rating levies Total | E48: 0 | F48: 0 | G48: 0 | H48: 0 | I48: 0 | J48: 0 | K48: 0 | L48: 0 | M48: 0 | N48: 0
A49: 1600 | B49: Exchange Revenue / Operational Revenue | C49: Cash | D49: Cash - Operating revenue | E49: 0 | F49: 0 | G49: 0 | H49: 0 | I49: 0 | J49: 0 | K49: 0 | L49: 0 | M49: 0 | N49: 0
D50: Cash Total | E50: 0 | F50: 0 | G50: 0 | H50: 0 | I50: 0 | J50: 0 | K50: 0 | L50: 0 | M50: 0 | N50: 0
B51: Exchange Revenue / Operational Revenue Total | E51: 0 | F51: 0 | G51: 0 | H51: 0 | I51: 0 | J51: 0 | K51: 0 | L51: 0 | M51: 0 | N51: 0
A52: 1800 | B52: Non-Exchange Revenue / Property rates | C52: Non-Cash | D52: Debtor accrual - property rates accrued through non-exchange receivables | E52: 0 | F52: 0 | G52: 0 | H52: 0 | I52: 0 | J52: 0 | K52: 0 | L52: 0 | M52: 0 | N52: 0
D53: Non-Cash Total | E53: 0 | F53: 0 | G53: 0 | H53: 0 | I53: 0 | J53: 0 | K53: 0 | L53: 0 | M53: 0 | N53: 0
B54: Non-Exchange Revenue / Property rates Total | E54: 0 | F54: 0 | G54: 0 | H54: 0 | I54: 0 | J54: 0 | K54: 0 | L54: 0 | M54: 0 | N54: 0
A55: 1900 | B55: Non-Exchange Revenue / Surcharges and Taxes | C55: Non-Cash | D55: Debtor accrual - surcharges & taxes accrued through non-exchange receivables | E55: 0 | F55: 0 | G55: 0 | H55: 0 | I55: 0 | J55: 0 | K55: 0 | L55: 0 | M55: 0 | N55: 0
D56: Non-Cash Total | E56: 0 | F56: 0 | G56: 0 | H56: 0 | I56: 0 | J56: 0 | K56: 0 | L56: 0 | M56: 0 | N56: 0
B57: Non-Exchange Revenue / Surcharges and Taxes Total | E57: 0 | F57: 0 | G57: 0 | H57: 0 | I57: 0 | J57: 0 | K57: 0 | L57: 0 | M57: 0 | N57: 0
A58: 2000 | B58: Non-Exchange Revenue / Fines, penalties and forfeits | C58: Non-Cash | D58: Debtor accrual - Fines, penalties and forfeits revenue accrued through non-exchanges receivables | E58: 0 | F58: 0 | G58: 0 | H58: 0 | I58: 0 | J58: 0 | K58: 0 | L58: 0 | M58: 0 | N58: 0
D59: Non-Cash Total | E59: 0 | F59: 0 | G59: 0 | H59: 0 | I59: 0 | J59: 0 | K59: 0 | L59: 0 | M59: 0 | N59: 0
B60: Non-Exchange Revenue / Fines, penalties and forfeits Total | E60: 0 | F60: 0 | G60: 0 | H60: 0 | I60: 0 | J60: 0 | K60: 0 | L60: 0 | M60: 0 | N60: 0
A61: 2100 | B61: Non-Exchange Revenue / Licences or permits | C61: Cash | D61: Cash - licences or permits | E61: 0 | F61: 0 | G61: 0 | H61: 0 | I61: 0 | J61: 0 | K61: 0 | L61: 0 | M61: 0 | N61: 0
D62: Cash Total | E62: 0 | F62: 0 | G62: 0 | H62: 0 | I62: 0 | J62: 0 | K62: 0 | L62: 0 | M62: 0 | N62: 0
B63: Non-Exchange Revenue / Licences or permits Total | E63: 0 | F63: 0 | G63: 0 | H63: 0 | I63: 0 | J63: 0 | K63: 0 | L63: 0 | M63: 0 | N63: 0
A64: 2200 | B64: Non-Exchange Revenue / Transfer and subsidies - Operational | C64: Cash | D64: Cash - Operational transfers and subsidies | E64: 0 | F64: 0 | G64: 0 | H64: 0 | I64: 0 | J64: 0 | K64: 0 | L64: 0 | M64: 0 | N64: 0
D65: Cash Total | E65: 0 | F65: 0 | G65: 0 | H65: 0 | I65: 0 | J65: 0 | K65: 0 | L65: 0 | M65: 0 | N65: 0
C66: Non-Cash | D66: Operational allocation in-kind | E66: 0 | F66: 0 | G66: 0 | H66: 0 | I66: 0 | J66: 0 | K66: 0 | L66: 0 | M66: 0 | N66: 0
D67: Non-Cash Total | E67: 0 | F67: 0 | G67: 0 | H67: 0 | I67: 0 | J67: 0 | K67: 0 | L67: 0 | M67: 0 | N67: 0
B68: Non-Exchange Revenue / Transfer and subsidies - Operational Total | E68: 0 | F68: 0 | G68: 0 | H68: 0 | I68: 0 | J68: 0 | K68: 0 | L68: 0 | M68: 0 | N68: 0
A69: 2300 | B69: Non-Exchange Revenue / Interest | C69: Non-Cash | D69: Debtor accrual - interest outstanding property rates accrued through non-exchange receivables | E69: 0 | F69: 0 | G69: 0 | H69: 0 | I69: 0 | J69: 0 | K69: 0 | L69: 0 | M69: 0 | N69: 0
D70: Debtor accrual - interest outstanding service charges electricity accrued through exchange receivables | E70: 0 | F70: 0 | G70: 0 | H70: 0 | I70: 0 | J70: 0 | K70: 0 | L70: 0 | M70: 0 | N70: 0
D71: Debtor accrual - interest outstanding service charges waste management accrued through exchange receivables | E71: 0 | F71: 0 | G71: 0 | H71: 0 | I71: 0 | J71: 0 | K71: 0 | L71: 0 | M71: 0 | N71: 0
D72: Debtor accrual - interest outstanding service charges waste water management accrued through exchange receivables | E72: 0 | F72: 0 | G72: 0 | H72: 0 | I72: 0 | J72: 0 | K72: 0 | L72: 0 | M72: 0 | N72: 0
D73: Debtor accrual - interest outstanding service charges water accrued through exchange receivables | E73: 0 | F73: 0 | G73: 0 | H73: 0 | I73: 0 | J73: 0 | K73: 0 | L73: 0 | M73: 0 | N73: 0
D74: Non-Cash Total | E74: 0 | F74: 0 | G74: 0 | H74: 0 | I74: 0 | J74: 0 | K74: 0 | L74: 0 | M74: 0 | N74: 0
B75: Non-Exchange Revenue / Interest Total | E75: 0 | F75: 0 | G75: 0 | H75: 0 | I75: 0 | J75: 0 | K75: 0 | L75: 0 | M75: 0 | N75: 0
A76: 2400 | B76: Non-Exchange Revenue / Fuel Levy | C76: Cash | D76: Cash collection fuel levy | E76: 0 | F76: 0 | G76: 0 | H76: 0 | I76: 0 | J76: 0 | K76: 0 | L76: 0 | M76: 0 | N76: 0
D77: Cash Total | E77: 0 | F77: 0 | G77: 0 | H77: 0 | I77: 0 | J77: 0 | K77: 0 | L77: 0 | M77: 0 | N77: 0
B78: Non-Exchange Revenue / Fuel Levy Total | E78: 0 | F78: 0 | G78: 0 | H78: 0 | I78: 0 | J78: 0 | K78: 0 | L78: 0 | M78: 0 | N78: 0
A79: 2500 | B79: Non-Exchange Revenue / Operational Revenue | C79: Non-Cash | D79: Debtor accrual - availability charges electricity accrued through non-exchange receivables | E79: 0 | F79: 0 | G79: 0 | H79: 0 | I79: 0 | J79: 0 | K79: 0 | L79: 0 | M79: 0 | N79: 0
D80: Debtor accrual - availability charges waste management accrued through non-exchange receivables | E80: 0 | F80: 0 | G80: 0 | H80: 0 | I80: 0 | J80: 0 | K80: 0 | L80: 0 | M80: 0 | N80: 0
D81: Debtor accrual - availability charges waste water management accrued through non-exchange receivables | E81: 0 | F81: 0 | G81: 0 | H81: 0 | I81: 0 | J81: 0 | K81: 0 | L81: 0 | M81: 0 | N81: 0
D82: Debtor accrual - availability charges water accrued through non-exchange receivables | E82: 0 | F82: 0 | G82: 0 | H82: 0 | I82: 0 | J82: 0 | K82: 0 | L82: 0 | M82: 0 | N82: 0
D83: Non-Cash Total | E83: 0 | F83: 0 | G83: 0 | H83: 0 | I83: 0 | J83: 0 | K83: 0 | L83: 0 | M83: 0 | N83: 0
B84: Non-Exchange Revenue / Operational Revenue Total | E84: 0 | F84: 0 | G84: 0 | H84: 0 | I84: 0 | J84: 0 | K84: 0 | L84: 0 | M84: 0 | N84: 0
A85: 2600 | B85: Non-Exchange Revenue / Gains on disposal of Assets | C85: Non-Cash | D85: Biological assets | E85: 0 | F85: 0 | G85: 0 | H85: 0 | I85: 0 | J85: 0 | K85: 0 | L85: 0 | M85: 0 | N85: 0
D86: Discontinued operations | E86: 0 | F86: 0 | G86: 0 | H86: 0 | I86: 0 | J86: 0 | K86: 0 | L86: 0 | M86: 0 | N86: 0
D87: Heritage assets | E87: 0 | F87: 0 | G87: 0 | H87: 0 | I87: 0 | J87: 0 | K87: 0 | L87: 0 | M87: 0 | N87: 0
D88: Intangible assets | E88: 0 | F88: 0 | G88: 0 | H88: 0 | I88: 0 | J88: 0 | K88: 0 | L88: 0 | M88: 0 | N88: 0
D89: Investment property | E89: 0 | F89: 0 | G89: 0 | H89: 0 | I89: 0 | J89: 0 | K89: 0 | L89: 0 | M89: 0 | N89: 0
D90: Land | E90: 0 | F90: 0 | G90: 0 | H90: 0 | I90: 0 | J90: 0 | K90: 0 | L90: 0 | M90: 0 | N90: 0
D91: Living resources | E91: 0 | F91: 0 | G91: 0 | H91: 0 | I91: 0 | J91: 0 | K91: 0 | L91: 0 | M91: 0 | N91: 0
D92: Other assets | E92: 0 | F92: 0 | G92: 0 | H92: 0 | I92: 0 | J92: 0 | K92: 0 | L92: 0 | M92: 0 | N92: 0
D93: PPE | E93: 0 | F93: 0 | G93: 0 | H93: 0 | I93: 0 | J93: 0 | K93: 0 | L93: 0 | M93: 0 | N93: 0
D94: Non-Cash Total | E94: 0 | F94: 0 | G94: 0 | H94: 0 | I94: 0 | J94: 0 | K94: 0 | L94: 0 | M94: 0 | N94: 0
B95: Non-Exchange Revenue / Gains on disposal of Assets Total | E95: 0 | F95: 0 | G95: 0 | H95: 0 | I95: 0 | J95: 0 | K95: 0 | L95: 0 | M95: 0 | N95: 0
A96: 2700 | B96: Non-Exchange Revenue / Other Gains | C96: Non-Cash | D96: Fair value adjustment actuarial assesments - leave gratuity | E96: 0 | F96: 0 | G96: 0 | H96: 0 | I96: 0 | J96: 0 | K96: 0 | L96: 0 | M96: 0 | N96: 0
D97: Fair value adjustment actuarial assesments - long service awards | E97: 0 | F97: 0 | G97: 0 | H97: 0 | I97: 0 | J97: 0 | K97: 0 | L97: 0 | M97: 0 | N97: 0
D98: Fair value adjustment actuarial assesments - medical aid | E98: 0 | F98: 0 | G98: 0 | H98: 0 | I98: 0 | J98: 0 | K98: 0 | L98: 0 | M98: 0 | N98: 0
D99: Fair value adjustment actuarial assesments - pension funds | E99: 0 | F99: 0 | G99: 0 | H99: 0 | I99: 0 | J99: 0 | K99: 0 | L99: 0 | M99: 0 | N99: 0
D100: Fair value adjustment biological assets | E100: 0 | F100: 0 | G100: 0 | H100: 0 | I100: 0 | J100: 0 | K100: 0 | L100: 0 | M100: 0 | N100: 0
D101: Fair value adjustment heritage assets | E101: 0 | F101: 0 | G101: 0 | H101: 0 | I101: 0 | J101: 0 | K101: 0 | L101: 0 | M101: 0 | N101: 0
D102: Fair value adjustment interest rate swap | E102: 0 | F102: 0 | G102: 0 | H102: 0 | I102: 0 | J102: 0 | K102: 0 | L102: 0 | M102: 0 | N102: 0
D103: Fair value adjustment investment property | E103: 0 | F103: 0 | G103: 0 | H103: 0 | I103: 0 | J103: 0 | K103: 0 | L103: 0 | M103: 0 | N103: 0
D104: Fair value adjustment investments | E104: 0 | F104: 0 | G104: 0 | H104: 0 | I104: 0 | J104: 0 | K104: 0 | L104: 0 | M104: 0 | N104: 0
D105: Fair value adjustment living resources | E105: 0 | F105: 0 | G105: 0 | H105: 0 | I105: 0 | J105: 0 | K105: 0 | L105: 0 | M105: 0 | N105: 0
D106: Foreign exchange | E106: 0 | F106: 0 | G106: 0 | H106: 0 | I106: 0 | J106: 0 | K106: 0 | L106: 0 | M106: 0 | N106: 0
D107: Inventory - fair value assessment | E107: 0 | F107: 0 | G107: 0 | H107: 0 | I107: 0 | J107: 0 | K107: 0 | L107: 0 | M107: 0 | N107: 0
D108: Inventory - increase in net realisable value | E108: 0 | F108: 0 | G108: 0 | H108: 0 | I108: 0 | J108: 0 | K108: 0 | L108: 0 | M108: 0 | N108: 0
D109: Debt Waived | E109: 0 | F109: 0 | G109: 0 | H109: 0 | I109: 0 | J109: 0 | K109: 0 | L109: 0 | M109: 0 | N109: 0
D110: Non-Cash Total | E110: 0 | F110: 0 | G110: 0 | H110: 0 | I110: 0 | J110: 0 | K110: 0 | L110: 0 | M110: 0 | N110: 0
B111: Non-Exchange Revenue / Other Gains Total | E111: 0 | F111: 0 | G111: 0 | H111: 0 | I111: 0 | J111: 0 | K111: 0 | L111: 0 | M111: 0 | N111: 0
A112: 2800 | B112: Revenue / Discontinued Operations | C112: Non-Cash | D112: Discontinued operations | E112: 0 | F112: 0 | G112: 0 | H112: 0 | I112: 0 | J112: 0 | K112: 0 | L112: 0 | M112: 0 | N112: 0
D113: Non-Cash Total | E113: 0 | F113: 0 | G113: 0 | H113: 0 | I113: 0 | J113: 0 | K113: 0 | L113: 0 | M113: 0 | N113: 0
B114: Revenue / Discontinued Operations Total | E114: 0 | F114: 0 | G114: 0 | H114: 0 | I114: 0 | J114: 0 | K114: 0 | L114: 0 | M114: 0 | N114: 0
A115: 3100 | B115: Expenditure / Employee related costs | C115: Non-Cash | D115: Cost capitalised to PPE (credit account) | E115: 0 | F115: 0 | G115: 0 | H115: 0 | I115: 0 | J115: 0 | K115: 0 | L115: 0 | M115: 0 | N115: 0
D116: Creditor accrual - Employee related expenditure accrued through payables from non-exchange transactions | E116: 0 | F116: 0 | G116: 0 | H116: 0 | I116: 0 | J116: 0 | K116: 0 | L116: 0 | M116: 0 | N116: 0
D117: In-kind benefits | E117: 0 | F117: 0 | G117: 0 | H117: 0 | I117: 0 | J117: 0 | K117: 0 | L117: 0 | M117: 0 | N117: 0
D118: In-kind benefits - cost capitalised to PPE (credit account) | E118: 0 | F118: 0 | G118: 0 | H118: 0 | I118: 0 | J118: 0 | K118: 0 | L118: 0 | M118: 0 | N118: 0
D119: Post-retirement benefit: medical | E119: 0 | F119: 0 | G119: 0 | H119: 0 | I119: 0 | J119: 0 | K119: 0 | L119: 0 | M119: 0 | N119: 0
D120: Post-retirement benefit: pension | E120: 0 | F120: 0 | G120: 0 | H120: 0 | I120: 0 | J120: 0 | K120: 0 | L120: 0 | M120: 0 | N120: 0
D121: Non-Cash Total | E121: 0 | F121: 0 | G121: 0 | H121: 0 | I121: 0 | J121: 0 | K121: 0 | L121: 0 | M121: 0 | N121: 0
B122: Expenditure / Employee related costs Total | E122: 0 | F122: 0 | G122: 0 | H122: 0 | I122: 0 | J122: 0 | K122: 0 | L122: 0 | M122: 0 | N122: 0
A123: 3200 | B123: Expenditure / Remuneration of councillors | C123: Non-Cash | D123: Creditor Accrual - councillor remuneration accrued through payables from non-exchange transactions | E123: 0 | F123: 0 | G123: 0 | H123: 0 | I123: 0 | J123: 0 | K123: 0 | L123: 0 | M123: 0 | N123: 0
D124: In-kind benefits to councillors | E124: 0 | F124: 0 | G124: 0 | H124: 0 | I124: 0 | J124: 0 | K124: 0 | L124: 0 | M124: 0 | N124: 0
D125: Use of personal facilities | E125: 0 | F125: 0 | G125: 0 | H125: 0 | I125: 0 | J125: 0 | K125: 0 | L125: 0 | M125: 0 | N125: 0
D126: Non-Cash Total | E126: 0 | F126: 0 | G126: 0 | H126: 0 | I126: 0 | J126: 0 | K126: 0 | L126: 0 | M126: 0 | N126: 0
B127: Expenditure / Remuneration of councillors Total | E127: 0 | F127: 0 | G127: 0 | H127: 0 | I127: 0 | J127: 0 | K127: 0 | L127: 0 | M127: 0 | N127: 0
A128: 3300 | B128: Expenditure / Bulk purchases - electricity | C128: Non-Cash | D128: Creditor accrual - bulk purchases electricity accrued through payables from exchange transactions | E128: 0 | F128: 0 | G128: 0 | H128: 0 | I128: 0 | J128: 0 | K128: 0 | L128: 0 | M128: 0 | N128: 0
D129: Non-Cash Total | E129: 0 | F129: 0 | G129: 0 | H129: 0 | I129: 0 | J129: 0 | K129: 0 | L129: 0 | M129: 0 | N129: 0
B130: Expenditure / Bulk purchases - electricity Total | E130: 0 | F130: 0 | G130: 0 | H130: 0 | I130: 0 | J130: 0 | K130: 0 | L130: 0 | M130: 0 | N130: 0
A131: 3400 | B131: Expenditure / Inventory consumed | C131: Non-Cash | D131: Creditor accrual - bulk purchases water accrued through payables from exchange transactions | E131: 0 | F131: 0 | G131: 0 | H131: 0 | I131: 0 | J131: 0 | K131: 0 | L131: 0 | M131: 0 | N131: 0
D132: Inventory consumed - agricultural | E132: 0 | F132: 0 | G132: 0 | H132: 0 | I132: 0 | J132: 0 | K132: 0 | L132: 0 | M132: 0 | N132: 0
D133: Inventory consumed - capitalisation of inventory consumed | E133: 0 | F133: 0 | G133: 0 | H133: 0 | I133: 0 | J133: 0 | K133: 0 | L133: 0 | M133: 0 | N133: 0
D134: Inventory consumed - finished Goods | E134: 0 | F134: 0 | G134: 0 | H134: 0 | I134: 0 | J134: 0 | K134: 0 | L134: 0 | M134: 0 | N134: 0
D135: Inventory consumed - housing stock | E135: 0 | F135: 0 | G135: 0 | H135: 0 | I135: 0 | J135: 0 | K135: 0 | L135: 0 | M135: 0 | N135: 0
D136: Inventory consumed - land | E136: 0 | F136: 0 | G136: 0 | H136: 0 | I136: 0 | J136: 0 | K136: 0 | L136: 0 | M136: 0 | N136: 0
D137: Inventory consumed - materials and supplies | E137: 0 | F137: 0 | G137: 0 | H137: 0 | I137: 0 | J137: 0 | K137: 0 | L137: 0 | M137: 0 | N137: 0
D138: Inventory consumed - standard rated | E138: 0 | F138: 0 | G138: 0 | H138: 0 | I138: 0 | J138: 0 | K138: 0 | L138: 0 | M138: 0 | N138: 0
D139: Inventory consumed - water | E139: 0 | F139: 0 | G139: 0 | H139: 0 | I139: 0 | J139: 0 | K139: 0 | L139: 0 | M139: 0 | N139: 0
D140: Inventory consumed - zero rated | E140: 0 | F140: 0 | G140: 0 | H140: 0 | I140: 0 | J140: 0 | K140: 0 | L140: 0 | M140: 0 | N140: 0
D141: Non-Cash Total | E141: 0 | F141: 0 | G141: 0 | H141: 0 | I141: 0 | J141: 0 | K141: 0 | L141: 0 | M141: 0 | N141: 0
B142: Expenditure / Inventory consumed Total | E142: 0 | F142: 0 | G142: 0 | H142: 0 | I142: 0 | J142: 0 | K142: 0 | L142: 0 | M142: 0 | N142: 0
A143: 3500 | B143: Expenditure / Debt impairment | C143: Non-Cash | D143: Impairment loss - exchange revenue - electricity | E143: 0 | F143: 0 | G143: 0 | H143: 0 | I143: 0 | J143: 0 | K143: 0 | L143: 0 | M143: 0 | N143: 0
D144: Impairment loss - exchange revenue - other | E144: 0 | F144: 0 | G144: 0 | H144: 0 | I144: 0 | J144: 0 | K144: 0 | L144: 0 | M144: 0 | N144: 0
D145: Impairment loss - exchange revenue - waste management | E145: 0 | F145: 0 | G145: 0 | H145: 0 | I145: 0 | J145: 0 | K145: 0 | L145: 0 | M145: 0 | N145: 0
D146: Impairment loss - exchange revenue - waste water management | E146: 0 | F146: 0 | G146: 0 | H146: 0 | I146: 0 | J146: 0 | K146: 0 | L146: 0 | M146: 0 | N146: 0
D147: Impairment loss - exchange revenue - water | E147: 0 | F147: 0 | G147: 0 | H147: 0 | I147: 0 | J147: 0 | K147: 0 | L147: 0 | M147: 0 | N147: 0
D148: Impairment loss - non-exchange revenue - other | E148: 0 | F148: 0 | G148: 0 | H148: 0 | I148: 0 | J148: 0 | K148: 0 | L148: 0 | M148: 0 | N148: 0
D149: Impairment loss - non-exchange revenue - prop rates | E149: 0 | F149: 0 | G149: 0 | H149: 0 | I149: 0 | J149: 0 | K149: 0 | L149: 0 | M149: 0 | N149: 0
D150: Impairment loss - non-exchange revenue - serv charges | E150: 0 | F150: 0 | G150: 0 | H150: 0 | I150: 0 | J150: 0 | K150: 0 | L150: 0 | M150: 0 | N150: 0
D151: Impairment loss - non-exchange revenue - serv charges - electricity | E151: 0 | F151: 0 | G151: 0 | H151: 0 | I151: 0 | J151: 0 | K151: 0 | L151: 0 | M151: 0 | N151: 0
D152: Impairment loss - non-exchange revenue - serv charges - waste management | E152: 0 | F152: 0 | G152: 0 | H152: 0 | I152: 0 | J152: 0 | K152: 0 | L152: 0 | M152: 0 | N152: 0
D153: Impairment loss - non-exchange revenue - serv charges - waste water management | E153: 0 | F153: 0 | G153: 0 | H153: 0 | I153: 0 | J153: 0 | K153: 0 | L153: 0 | M153: 0 | N153: 0
D154: Impairment loss - non-exchange revenue - serv charges - water | E154: 0 | F154: 0 | G154: 0 | H154: 0 | I154: 0 | J154: 0 | K154: 0 | L154: 0 | M154: 0 | N154: 0
D155: Reversal of Impairment loss - exchange revenue - electricity | E155: 0 | F155: 0 | G155: 0 | H155: 0 | I155: 0 | J155: 0 | K155: 0 | L155: 0 | M155: 0 | N155: 0
D156: Reversal of Impairment loss - non-exchange revenue - other | E156: 0 | F156: 0 | G156: 0 | H156: 0 | I156: 0 | J156: 0 | K156: 0 | L156: 0 | M156: 0 | N156: 0
D157: Reversal of Impairment loss - non-exchange revenue - prop rates | E157: 0 | F157: 0 | G157: 0 | H157: 0 | I157: 0 | J157: 0 | K157: 0 | L157: 0 | M157: 0 | N157: 0
D158: Reversal of Impairment loss - non-exchange revenue - serv charges | E158: 0 | F158: 0 | G158: 0 | H158: 0 | I158: 0 | J158: 0 | K158: 0 | L158: 0 | M158: 0 | N158: 0
D159: Reversal of Impairment loss - non-exchange revenue - serv charges - electricity | E159: 0 | F159: 0 | G159: 0 | H159: 0 | I159: 0 | J159: 0 | K159: 0 | L159: 0 | M159: 0 | N159: 0
D160: Reversal of Impairment loss - non-exchange revenue - serv charges - waste management | E160: 0 | F160: 0 | G160: 0 | H160: 0 | I160: 0 | J160: 0 | K160: 0 | L160: 0 | M160: 0 | N160: 0
D161: Reversal of Impairment loss - non-exchange revenue - serv charges - waste water mangement | E161: 0 | F161: 0 | G161: 0 | H161: 0 | I161: 0 | J161: 0 | K161: 0 | L161: 0 | M161: 0 | N161: 0
D162: Reversal of Impairment loss - non-exchange revenue - serv charges - water | E162: 0 | F162: 0 | G162: 0 | H162: 0 | I162: 0 | J162: 0 | K162: 0 | L162: 0 | M162: 0 | N162: 0
D163: Reversal of Impairment loss - exchange revenue - waste management | E163: 0 | F163: 0 | G163: 0 | H163: 0 | I163: 0 | J163: 0 | K163: 0 | L163: 0 | M163: 0 | N163: 0
D164: Reversal of Impairment loss - exchange revenue - waste water management | E164: 0 | F164: 0 | G164: 0 | H164: 0 | I164: 0 | J164: 0 | K164: 0 | L164: 0 | M164: 0 | N164: 0
D165: Reversal of Impairment loss - exchange revenue - water | E165: 0 | F165: 0 | G165: 0 | H165: 0 | I165: 0 | J165: 0 | K165: 0 | L165: 0 | M165: 0 | N165: 0
D166: Reversal of Impairment loss - exchange revenue - other | E166: 0 | F166: 0 | G166: 0 | H166: 0 | I166: 0 | J166: 0 | K166: 0 | L166: 0 | M166: 0 | N166: 0
D167: Non-Cash Total | E167: 0 | F167: 0 | G167: 0 | H167: 0 | I167: 0 | J167: 0 | K167: 0 | L167: 0 | M167: 0 | N167: 0
B168: Expenditure / Debt impairment Total | E168: 0 | F168: 0 | G168: 0 | H168: 0 | I168: 0 | J168: 0 | K168: 0 | L168: 0 | M168: 0 | N168: 0
A169: 3600 | B169: Expenditure / Depreciation and amortisation | C169: Non-Cash | D169: Amortisation - intangible assets | E169: 0 | F169: 0 | G169: 0 | H169: 0 | I169: 0 | J169: 0 | K169: 0 | L169: 0 | M169: 0 | N169: 0
D170: Depreciation - biological or cultivated assets | E170: 0 | F170: 0 | G170: 0 | H170: 0 | I170: 0 | J170: 0 | K170: 0 | L170: 0 | M170: 0 | N170: 0
D171: Depreciation - heritage assets | E171: 0 | F171: 0 | G171: 0 | H171: 0 | I171: 0 | J171: 0 | K171: 0 | L171: 0 | M171: 0 | N171: 0
D172: Depreciation - intangible assets | E172: 0 | F172: 0 | G172: 0 | H172: 0 | I172: 0 | J172: 0 | K172: 0 | L172: 0 | M172: 0 | N172: 0
D173: Depreciation - investment property | E173: 0 | F173: 0 | G173: 0 | H173: 0 | I173: 0 | J173: 0 | K173: 0 | L173: 0 | M173: 0 | N173: 0
D174: Depreciation - living resources | E174: 0 | F174: 0 | G174: 0 | H174: 0 | I174: 0 | J174: 0 | K174: 0 | L174: 0 | M174: 0 | N174: 0
D175: Depreciation - PPE | E175: 0 | F175: 0 | G175: 0 | H175: 0 | I175: 0 | J175: 0 | K175: 0 | L175: 0 | M175: 0 | N175: 0
D176: Depreciation - Land | E176: 0 | F176: 0 | G176: 0 | H176: 0 | I176: 0 | J176: 0 | K176: 0 | L176: 0 | M176: 0 | N176: 0
D177: Impairment loss - biological or cultivated assets | E177: 0 | F177: 0 | G177: 0 | H177: 0 | I177: 0 | J177: 0 | K177: 0 | L177: 0 | M177: 0 | N177: 0
D178: Impairment loss - heritage assets | E178: 0 | F178: 0 | G178: 0 | H178: 0 | I178: 0 | J178: 0 | K178: 0 | L178: 0 | M178: 0 | N178: 0
D179: Impairment loss - intangible assets | E179: 0 | F179: 0 | G179: 0 | H179: 0 | I179: 0 | J179: 0 | K179: 0 | L179: 0 | M179: 0 | N179: 0
D180: Impairment loss - investment property | E180: 0 | F180: 0 | G180: 0 | H180: 0 | I180: 0 | J180: 0 | K180: 0 | L180: 0 | M180: 0 | N180: 0
D181: Impairment loss - living resources | E181: 0 | F181: 0 | G181: 0 | H181: 0 | I181: 0 | J181: 0 | K181: 0 | L181: 0 | M181: 0 | N181: 0
D182: Impairment loss - PPE | E182: 0 | F182: 0 | G182: 0 | H182: 0 | I182: 0 | J182: 0 | K182: 0 | L182: 0 | M182: 0 | N182: 0
D183: Impairment loss - PPE - construction WIP | E183: 0 | F183: 0 | G183: 0 | H183: 0 | I183: 0 | J183: 0 | K183: 0 | L183: 0 | M183: 0 | N183: 0
D184: Reversal impairment loss - biological or cultivated assets | E184: 0 | F184: 0 | G184: 0 | H184: 0 | I184: 0 | J184: 0 | K184: 0 | L184: 0 | M184: 0 | N184: 0
D185: Reversal impairment loss - investment property | E185: 0 | F185: 0 | G185: 0 | H185: 0 | I185: 0 | J185: 0 | K185: 0 | L185: 0 | M185: 0 | N185: 0
D186: Reversal impairment loss - living resources | E186: 0 | F186: 0 | G186: 0 | H186: 0 | I186: 0 | J186: 0 | K186: 0 | L186: 0 | M186: 0 | N186: 0
D187: Reversal impairment loss - PPE | E187: 0 | F187: 0 | G187: 0 | H187: 0 | I187: 0 | J187: 0 | K187: 0 | L187: 0 | M187: 0 | N187: 0
D188: Reversal impairment loss - PPE - construction WIP | E188: 0 | F188: 0 | G188: 0 | H188: 0 | I188: 0 | J188: 0 | K188: 0 | L188: 0 | M188: 0 | N188: 0
D189: Reversal of impairment loss - heritage assets | E189: 0 | F189: 0 | G189: 0 | H189: 0 | I189: 0 | J189: 0 | K189: 0 | L189: 0 | M189: 0 | N189: 0
D190: Reversal of impairment loss - intangible assets | E190: 0 | F190: 0 | G190: 0 | H190: 0 | I190: 0 | J190: 0 | K190: 0 | L190: 0 | M190: 0 | N190: 0
D191: Non-Cash Total | E191: 0 | F191: 0 | G191: 0 | H191: 0 | I191: 0 | J191: 0 | K191: 0 | L191: 0 | M191: 0 | N191: 0
B192: Expenditure / Depreciation and amortisation Total | E192: 0 | F192: 0 | G192: 0 | H192: 0 | I192: 0 | J192: 0 | K192: 0 | L192: 0 | M192: 0 | N192: 0
A193: 3700 | B193: Expenditure / Interest | C193: Cash | D193: Direct cash payment | E193: 0 | F193: 0 | G193: 0 | H193: 0 | I193: 0 | J193: 0 | K193: 0 | L193: 0 | M193: 0 | N193: 0
D194: Cash Total | E194: 0 | F194: 0 | G194: 0 | H194: 0 | I194: 0 | J194: 0 | K194: 0 | L194: 0 | M194: 0 | N194: 0
C195: Non-Cash | D195: Accrual of finance charges - discounting of financial instruments | E195: 0 | F195: 0 | G195: 0 | H195: 0 | I195: 0 | J195: 0 | K195: 0 | L195: 0 | M195: 0 | N195: 0
D196: Accrual of finance charges - interest costs intercompany/parentsubsidiary transactions | E196: 0 | F196: 0 | G196: 0 | H196: 0 | I196: 0 | J196: 0 | K196: 0 | L196: 0 | M196: 0 | N196: 0
D197: Accrual of finance charges - interest costs long service awards | E197: 0 | F197: 0 | G197: 0 | H197: 0 | I197: 0 | J197: 0 | K197: 0 | L197: 0 | M197: 0 | N197: 0
D198: Accrual of finance charges - interest costs non-current provisions | E198: 0 | F198: 0 | G198: 0 | H198: 0 | I198: 0 | J198: 0 | K198: 0 | L198: 0 | M198: 0 | N198: 0
D199: Non-Cash Total | E199: 0 | F199: 0 | G199: 0 | H199: 0 | I199: 0 | J199: 0 | K199: 0 | L199: 0 | M199: 0 | N199: 0
B200: Expenditure / Interest Total | E200: 0 | F200: 0 | G200: 0 | H200: 0 | I200: 0 | J200: 0 | K200: 0 | L200: 0 | M200: 0 | N200: 0
... 111 more rows

Sheet A5-Capex
A2: =Vdesc -> Vote Description | B2: =head27 -> Ref | C2: =head1b -> 2021/22 | D2: =head1A -> 2022/23 | E2: =Head1 -> 2023/24 | F2: =Head2 -> Current Year 2024/25 | J2: =Head3 -> 2025/26 Medium Term Revenue & Expenditure Framework
A3: R thousand | B3: 1 | C3: =Head5 -> Audited Outcome | D3: =Head5 -> Audited Outcome | E3: =Head5 -> Audited Outcome | F3: =Head6 -> Original Budget | G3: =Head7 -> Adjusted Budget | H3: =Head8 -> Full Year Forecast | I3: =Head5b -> Pre-audit outcome | J3: =Head9 -> Budget Year 2025/26 | K3: =Head10 -> Budget Year +1 2026/27 | L3: =Head11 -> Budget Year +2 2027/28
A4: Capital expenditure - Vote
A5: Multi-year expenditure to be appropriated | B5: 2
A6: =A5A!A6 -> Vote 01 - Public Safety | C6: =A5A!C6 -> 0 | D6: =A5A!D6 -> 0 | E6: =A5A!E6 -> 0 | F6: =A5A!F6 -> 0 | G6: =A5A!G6 -> 0 | H6: =A5A!H6 -> 0 | I6: =A5A!I6 -> 0 | J6: =A5A!J6 -> 0 | K6: =A5A!K6 -> 0 | L6: =A5A!L6 -> 0
A7: =A5A!A7 -> Vote 02 - Health Services | C7: =A5A!C7 -> 0 | D7: =A5A!D7 -> 0 | E7: =A5A!E7 -> 0 | F7: =A5A!F7 -> 0 | G7: =A5A!G7 -> 0 | H7: =A5A!H7 -> 0 | I7: =A5A!I7 -> 0 | J7: =A5A!J7 -> 0 | K7: =A5A!K7 -> 0 | L7: =A5A!L7 -> 0
A8: =A5A!A8 -> Vote 03 - Community Services | C8: =A5A!C8 -> 0 | D8: =A5A!D8 -> 0 | E8: =A5A!E8 -> 0 | F8: =A5A!F8 -> 0 | G8: =A5A!G8 -> 0 | H8: =A5A!H8 -> 0 | I8: =A5A!I8 -> 0 | J8: =A5A!J8 -> 0 | K8: =A5A!K8 -> 0 | L8: =A5A!L8 -> 0
A9: =A5A!A9 -> Vote 04 - Housing | C9: =A5A!C9 -> 0 | D9: =A5A!D9 -> 0 | E9: =A5A!E9 -> 0 | F9: =A5A!F9 -> 0 | G9: =A5A!G9 -> 0 | H9: =A5A!H9 -> 0 | I9: =A5A!I9 -> 0 | J9: =A5A!J9 -> 0 | K9: =A5A!K9 -> 0 | L9: =A5A!L9 -> 0
A10: =A5A!A10 -> Vote 05 - Sport Arts And Culture | C10: =A5A!C10 ->  | D10: =A5A!D10 ->  | E10: =A5A!E10 ->  | F10: =A5A!F10 ->  | G10: =A5A!G10 ->  | H10: =A5A!H10 ->  | I10: =A5A!I10 ->  | J10: =A5A!J10 ->  | K10: =A5A!K10 ->  | L10: =A5A!L10 -> 
A11: =A5A!A11 -> Vote 06 - Council General | C11: =A5A!C11 -> 0 | D11: =A5A!D11 -> 0 | E11: =A5A!E11 -> 0 | F11: =A5A!F11 -> 0 | G11: =A5A!G11 -> 0 | H11: =A5A!H11 -> 0 | I11: =A5A!I11 -> 0 | J11: =A5A!J11 -> 0 | K11: =A5A!K11 -> 0 | L11: =A5A!L11 -> 0
A12: =A5A!A12 -> Vote 07 - Civil Engineering | C12: =A5A!C12 -> 50195002.81 | D12: =A5A!D12 -> 23808362.07 | E12: =A5A!E12 -> 32860216.31 | F12: =A5A!F12 -> 12801949 | G12: =A5A!G12 -> 41726419 | H12: =A5A!H12 -> 41726419 | I12: =A5A!I12 -> 15103625.83 | J12: =A5A!J12 -> 12000000 | K12: =A5A!K12 -> 16000000 | L12: =A5A!L12 -> 20500000
A13: =A5A!A14 -> Vote 08 - Water Section | C13: =A5A!C14 -> 20668314.54 | D13: =A5A!D14 -> 8202162.52 | E13: =A5A!E14 -> 16437441.65 | F13: =A5A!F14 -> 10467749 | G13: =A5A!G14 -> 17074966 | H13: =A5A!H14 -> 17074966 | I13: =A5A!I14 -> 14423655.62 | J13: =A5A!J14 -> 12557149 | K13: =A5A!K14 -> 15000130 | L13: =A5A!L14 -> 31789000
A14: =A5A!A16 -> Vote 09 - City Electrial Engineering | C14: =A5A!C16 -> 20537556.77 | D14: =A5A!D16 -> 31363530.85 | E14: =A5A!E16 -> 114592520.4 | F14: =A5A!F16 -> 5112652 | G14: =A5A!G16 -> 11912652 | H14: =A5A!H16 -> 11912652 | I14: =A5A!I16 -> 1902705.3 | J14: =A5A!J16 -> 26921652 | K14: =A5A!K16 -> 12807770 | L14: =A5A!L16 -> 13275000
A15: =A5A!A18 -> Vote 10 - Corporate Governane | C15: =A5A!C18 -> 0 | D15: =A5A!D18 -> 0 | E15: =A5A!E18 -> 0 | F15: =A5A!F18 -> 0 | G15: =A5A!G18 -> 0 | H15: =A5A!H18 -> 0 | I15: =A5A!I18 -> 0 | J15: =A5A!J18 -> 0 | K15: =A5A!K18 -> 0 | L15: =A5A!L18 -> 0
A16: =A5A!A19 -> Vote 11 - Budget And Treasury Office | C16: =A5A!C19 -> 0 | D16: =A5A!D19 -> 0 | E16: =A5A!E19 -> 0 | F16: =A5A!F19 -> 0 | G16: =A5A!G19 -> 0 | H16: =A5A!H19 -> 0 | I16: =A5A!I19 -> 0 | J16: =A5A!J19 -> 0 | K16: =A5A!K19 -> 0 | L16: =A5A!L19 -> 0
A17: =A5A!A20 -> Vote 12 - Cleansing | C17: =A5A!C20 -> 0 | D17: =A5A!D20 -> 0 | E17: =A5A!E20 -> 0 | F17: =A5A!F20 -> 0 | G17: =A5A!G20 -> 0 | H17: =A5A!H20 -> 0 | I17: =A5A!I20 -> 0 | J17: =A5A!J20 -> 0 | K17: =A5A!K20 -> 0 | L17: =A5A!L20 -> 0
A18: =A5A!A21 -> Vote 13 - Sewerage | C18: =A5A!C21 -> 0 | D18: =A5A!D21 -> 1839080.71 | E18: =A5A!E21 -> 0 | F18: =A5A!F21 -> 0 | G18: =A5A!G21 -> 0 | H18: =A5A!H21 -> 0 | I18: =A5A!I21 -> 955199.29 | J18: =A5A!J21 -> 16812579 | K18: =A5A!K21 -> 16000000 | L18: =A5A!L21 -> 20000000
A19: =A5A!A23 -> Vote 14 - Market | C19: =A5A!C23 -> 0 | D19: =A5A!D23 -> 0 | E19: =A5A!E23 -> 0 | F19: =A5A!F23 -> 0 | G19: =A5A!G23 -> 0 | H19: =A5A!H23 -> 0 | I19: =A5A!I23 -> 0 | J19: =A5A!J23 -> 0 | K19: =A5A!K23 -> 0 | L19: =A5A!L23 -> 0
A20: =A5A!A24 -> Vote 15 - Other | C20: =A5A!C24 -> 0 | D20: =A5A!D24 -> 0 | E20: =A5A!E24 -> 0 | F20: =A5A!F24 -> 0 | G20: =A5A!G24 -> 0 | H20: =A5A!H24 -> 0 | I20: =A5A!I24 -> 0 | J20: =A5A!J24 -> 0 | K20: =A5A!K24 -> 0 | L20: =A5A!L24 -> 0
A21: Capital multi-year expenditure sub-total | B21: 7 | C21: =SUM(C6:C20) ->  | D21: =SUM(D6:D20) ->  | H21: =SUM(H6:H20) -> 
A23: Single-year expenditure to be appropriated | B23: 2
A24: =A5A!A29 -> Vote 01 - Public Safety | C24: =A5A!C29 -> 0 | D24: =A5A!D29 -> 0 | E24: =A5A!E29 -> 0 | F24: =A5A!F29 -> 0 | G24: =A5A!G29 -> 0 | H24: =A5A!H29 -> 0 | I24: =A5A!I29 -> 0 | J24: =A5A!J29 -> 0 | K24: =A5A!K29 -> 0 | L24: =A5A!L29 -> 0
A25: =A5A!A30 -> Vote 02 - Health Services | C25: =A5A!C30 -> 0 | D25: =A5A!D30 -> 0 | E25: =A5A!E30 -> 0 | F25: =A5A!F30 -> 0 | G25: =A5A!G30 -> 0 | H25: =A5A!H30 -> 0 | I25: =A5A!I30 -> 0 | J25: =A5A!J30 -> 0 | K25: =A5A!K30 -> 0 | L25: =A5A!L30 -> 0
A26: =A5A!A31 -> Vote 03 - Community Services | C26: =A5A!C31 -> 0 | D26: =A5A!D31 -> 0 | E26: =A5A!E31 -> 0 | F26: =A5A!F31 -> 0 | G26: =A5A!G31 -> 0 | H26: =A5A!H31 -> 0 | I26: =A5A!I31 -> 0 | J26: =A5A!J31 -> 0 | K26: =A5A!K31 -> 0 | L26: =A5A!L31 -> 0
A27: =A5A!A32 -> Vote 04 - Housing | C27: =A5A!C32 -> 0 | D27: =A5A!D32 -> 0 | E27: =A5A!E32 -> 0 | F27: =A5A!F32 -> 0 | G27: =A5A!G32 -> 0 | H27: =A5A!H32 -> 0 | I27: =A5A!I32 -> 0 | J27: =A5A!J32 -> 0 | K27: =A5A!K32 -> 0 | L27: =A5A!L32 -> 0
A28: =A5A!A33 -> Vote 05 - Sport Arts And Culture | C28: =A5A!C33 -> 25390299.85 | D28: =A5A!D33 -> 2949852.28 | E28: =A5A!E33 -> 7965674.15 | F28: =A5A!F33 -> 15093585 | G28: =A5A!G33 -> 6376079 | H28: =A5A!H33 -> 6376079 | I28: =A5A!I33 -> 1679051.29 | J28: =A5A!J33 -> 17809008 | K28: =A5A!K33 -> 11000000 | L28: =A5A!L33 -> 15000000
A29: =A5A!A35 -> Vote 06 - Council General | C29: =A5A!C35 -> 0 | D29: =A5A!D35 -> 0.01 | E29: =A5A!E35 -> -0.01 | F29: =A5A!F35 -> 47000000 | G29: =A5A!G35 -> 29000000 | H29: =A5A!H35 -> 29000000 | I29: =A5A!I35 -> 256431.5 | J29: =A5A!J35 -> 29000000 | K29: =A5A!K35 -> 0 | L29: =A5A!L35 -> 0
A30: =A5A!A37 -> Vote 07 - Civil Engineering | C30: =A5A!C37 -> 0 | D30: =A5A!D37 -> 0 | E30: =A5A!E37 -> 0 | F30: =A5A!F37 -> 0 | G30: =A5A!G37 -> 10613233 | H30: =A5A!H37 -> 10613233 | I30: =A5A!I37 -> 5034946.11 | J30: =A5A!J37 -> 0 | K30: =A5A!K37 -> 0 | L30: =A5A!L37 -> 0
A31: =A5A!A39 -> Vote 08 - Water Section | C31: =A5A!C39 -> 3658562.41 | D31: =A5A!D39 -> 1526177.32 | E31: =A5A!E39 -> 31838058.49 | F31: =A5A!F39 -> 25000000 | G31: =A5A!G39 -> 25000000 | H31: =A5A!H39 -> 25000000 | I31: =A5A!I39 -> 12719012.32 | J31: =A5A!J39 -> 37961329 | K31: =A5A!K39 -> 37400000 | L31: =A5A!L39 -> 35000000
A32: =A5A!A41 -> Vote 09 - City Electrial Engineering | C32: =A5A!C41 -> 4071430.82 | D32: =A5A!D41 -> 1669627.37 | E32: =A5A!E41 -> 0 | F32: =A5A!F41 -> 0 | G32: =A5A!G41 -> 0 | H32: =A5A!H41 -> 0 | I32: =A5A!I41 -> 0 | J32: =A5A!J41 -> 4729551 | K32: =A5A!K41 -> 9824000 | L32: =A5A!L41 -> 780000
A33: =A5A!A44 -> Vote 10 - Corporate Governane | C33: =A5A!C44 -> 0 | D33: =A5A!D44 -> 0 | E33: =A5A!E44 -> 0 | F33: =A5A!F44 -> 0 | G33: =A5A!G44 -> 0 | H33: =A5A!H44 -> 0 | I33: =A5A!I44 -> 0 | J33: =A5A!J44 -> 0 | K33: =A5A!K44 -> 0 | L33: =A5A!L44 -> 0
A34: =A5A!A45 -> Vote 11 - Budget And Treasury Office | C34: =A5A!C45 -> 0 | D34: =A5A!D45 -> 0 | E34: =A5A!E45 -> -0.03 | F34: =A5A!F45 -> 3000000 | G34: =A5A!G45 -> 3000000 | H34: =A5A!H45 -> 3000000 | I34: =A5A!I45 -> 459103.96 | J34: =A5A!J45 -> 3000000 | K34: =A5A!K45 -> 0 | L34: =A5A!L45 -> 0
A35: =A5A!A47 -> Vote 12 - Cleansing | C35: =A5A!C47 -> 0 | D35: =A5A!D47 -> 3503531.32 | E35: =A5A!E47 -> 18463239.3 | F35: =A5A!F47 -> 38773866 | G35: =A5A!G47 -> 27919792 | H35: =A5A!H47 -> 27919792 | I35: =A5A!I47 -> 19590425.88 | J35: =A5A!J47 -> 47573089 | K35: =A5A!K47 -> 49800900 | L35: =A5A!L47 -> 38000000
A36: =A5A!A50 -> Vote 13 - Sewerage | C36: =A5A!C50 -> 14341581.94 | D36: =A5A!D50 -> 4744597.2 | E36: =A5A!E50 -> 13533167.19 | F36: =A5A!F50 -> 74012454 | G36: =A5A!G50 -> 60423326 | H36: =A5A!H50 -> 60423326 | I36: =A5A!I50 -> 26579586.7 | J36: =A5A!J50 -> 49621092 | K36: =A5A!K50 -> 64600000 | L36: =A5A!L50 -> 58085210
A37: =A5A!A52 -> Vote 14 - Market | C37: =A5A!C52 -> 13678068.43 | D37: =A5A!D52 -> 4345036.49 | E37: =A5A!E52 -> 2614974.27 | F37: =A5A!F52 -> 4987544 | G37: =A5A!G52 -> 2478566 | H37: =A5A!H52 -> 2478566 | I37: =A5A!I52 -> 1918130.04 | J37: =A5A!J52 -> 0 | K37: =A5A!K52 -> 0 | L37: =A5A!L52 -> 0
A38: =A5A!A54 -> Vote 15 - Other | C38: =A5A!C54 -> 0 | D38: =A5A!D54 -> 0 | E38: =A5A!E54 -> 0 | F38: =A5A!F54 -> 0 | G38: =A5A!G54 -> 0 | H38: =A5A!H54 -> 0 | I38: =A5A!I54 -> 0 | J38: =A5A!J54 -> 0 | K38: =A5A!K54 -> 0 | L38: =A5A!L54 -> 0
A39: Capital single-year expenditure sub-total | C39: =SUM(C24:C38) -> 61139943.45 | D39: =SUM(D24:D38) -> 18738821.99 | E39: 74415113.36 | F39: 207867449 | G39: 164810996 | H39: 164810996 | I39: 68236687.8 | J39: 189694069 | K39: 172624900 | L39: 146865210
A40: Total Capital Expenditure - Vote | C40: =C39+C21 ->  | D40: =D39+D21 -> 
A42: Capital Expenditure - Functional
A43: Governance and administration | C43: =SUM(C44:C46) -> 0 | D43: =SUM(D44:D46) -> 0.01 | E43: -0.04 | F43: 50000000 | G43: 32000000 | H43: 32000000 | I43: 715535.46 | J43: 32000000 | K43: 0 | L43: 0
A44: Executive and council | C44: 0 | D44: 0.01 | E44: -0.01 | F44: 47000000 | G44: 29000000 | H44: 29000000 | I44: 256431.5 | J44: 29000000 | K44: 0 | L44: 0
A45: Finance and administration | C45: 0 | D45: 0 | E45: -0.03 | F45: 3000000 | G45: 3000000 | H45: 3000000 | I45: 459103.96 | J45: 3000000 | K45: 0 | L45: 0
A46: Internal audit
A47: Community and public safety | C47: =SUM(C48:C52) -> 25390299.85 | D47: =SUM(D48:D52) -> 2949852.28 | E47: 7965674.15 | F47: 15093585 | G47: 6376079 | H47: 6376079 | I47: 1679051.29 | J47: 17809008 | K47: 11000000 | L47: 15000000
A48: Community and social services | C48: 0 | D48: 0 | E48: 0 | F48: 0 | G48: 0 | H48: 0 | I48: 0 | J48: 0 | K48: 0 | L48: 0
A49: Sport and recreation | C49: 25390299.85 | D49: 2949852.28 | E49: 7965674.15 | F49: 15093585 | G49: 6376079 | H49: 6376079 | I49: 1679051.29 | J49: 17809008 | K49: 11000000 | L49: 15000000
A50: Public safety | C50: 0 | D50: 0 | E50: 0 | F50: 0 | G50: 0 | H50: 0 | I50: 0 | J50: 0 | K50: 0 | L50: 0
A51: Housing | C51: 0 | D51: 0 | E51: 0 | F51: 0 | G51: 0 | H51: 0 | I51: 0 | J51: 0 | K51: 0 | L51: 0
A52: Health
A53: Economic and environmental services | C53: =SUM(C54:C56) -> 50195002.81 | D53: =SUM(D54:D56) -> 23808362.07 | E53: 32860216.31 | F53: 12801949 | G53: 52339652 | H53: 52339652 | I53: 20138571.94 | J53: 12000000 | K53: 16000000 | L53: 20500000
A54: Planning and development
A55: Road transport | C55: 50195002.81 | D55: 23808362.07 | E55: 32860216.31 | F55: 12801949 | G55: 52339652 | H55: 52339652 | I55: 20138571.94 | J55: 12000000 | K55: 16000000 | L55: 20500000
A56: Environmental protection
A57: Trading services | C57: =SUM(C58:C61) -> 63277446.48 | D57: =SUM(D58:D61) -> 52848707.29 | E57: 194864427 | F57: 153366721 | G57: 142330736 | H57: 142330736 | I57: 76170585.11 | J57: 196176441 | K57: 205432800 | L57: 196929210
A58: Energy sources | C58: 24608987.59 | D58: 33033158.22 | E58: 114592520.4 | F58: 5112652 | G58: 11912652 | H58: 11912652 | I58: 1902705.3 | J58: 31651203 | K58: 22631770 | L58: 14055000
A59: Water management | C59: 24326876.95 | D59: 9728339.84 | E59: 48275500.14 | F59: 35467749 | G59: 42074966 | H59: 42074966 | I59: 27142667.94 | J59: 50518478 | K59: 52400130 | L59: 66789000
A60: Waste water management | C60: 14341581.94 | D60: 6583677.91 | E60: 13533167.19 | F60: 74012454 | G60: 60423326 | H60: 60423326 | I60: 27534785.99 | J60: 66433671 | K60: 80600000 | L60: 78085210
A61: Waste management | C61: 0 | D61: 3503531.32 | E61: 18463239.3 | F61: 38773866 | G61: 27919792 | H61: 27919792 | I61: 19590425.88 | J61: 47573089 | K61: 49800900 | L61: 38000000
A62: Other | C62: 13678068.43 | D62: 4345036.49 | E62: 2614974.27 | F62: 4987544 | G62: 2478566 | H62: 2478566 | I62: 1918130.04 | J62: 0 | K62: 0 | L62: 0
A63: Total Capital Expenditure - Functional | B63: 3 | C63: =C43+C47+C53+C57+C62 -> 152540817.6 | D63: =D43+D47+D53+D57+D62 -> 83951958.14 | E63: 238305291.7 | F63: 236249799 | G63: 235525033 | H63: 235525033 | I63: 100621873.8 | J63: 257985449 | K63: 232432800 | L63: =L43+L47+L53+L57+L62 -> 232429210
A65: Funded by:
A66: National Government | C66: 145096678.9 | D66: 77726955.16 | E66: 236808456.7 | F66: 186249799 | G66: 186111800 | H66: 186111800 | I66: 94871392.27 | J66: 217985449 | K66: 232432800 | L66: 232429210
A67: Provincial Government | C67: 0 | D67: 0 | E67: 0 | F67: 0 | G67: 0 | H67: 0 | I67: 0 | J67: 0 | K67: 0 | L67: 0
A68: District Municipality
A69: Transfers and subsidies - capital (monetary allocations) (Nat / Prov Departm Agencies, Households, Non-profit Institutions, Private Enterprises, Public Corporatons, Higher Educ Institutions) | C69: 0 | D69: 0 | E69: 0 | F69: 0 | G69: 0 | H69: 0 | I69: 0 | J69: 0 | K69: 0 | L69: 0
A70: Transfers recognised - capital | B70: 4 | C70: =SUM(C66:C69) -> 145096678.9 | D70: 77726955.16 | E70: 236808456.7 | F70: 186249799 | G70: 186111800 | H70: 186111800 | I70: 94871392.27 | J70: 217985449 | K70: 232432800 | L70: 232429210
A72: Borrowing | B72: 6 | C72: 0 | D72: 0 | E72: 0 | F72: 0 | G72: 0 | H72: 0 | I72: 0 | J72: 0 | K72: 0 | L72: 0
A73: Internally generated funds | C73: 7444138.71 | D73: 6225002.98 | E73: 1496834.97 | F73: 50000000 | G73: 49413233 | H73: 49413233 | I73: 5750481.57 | J73: 40000000 | K73: 0 | L73: 0
A74: Total Capital Funding | B74: 7 | C74: =+C70+C72+C73 -> 152540817.6 | D74: =+D70+D72+D73 -> 83951958.14 | E74: 238305291.7 | F74: 236249799 | G74: 235525033 | H74: 235525033 | I74: 100621873.8 | J74: 257985449 | K74: 232432800 | L74: 232429210
A75: =head27a -> References
A76: 1. Municipalities may choose to appropriate for capital expenditure for three years or for one year (if one year appropriation projected expenditure required for yr2 and yr3).
A77: 2. Include capital component of PPP unitary payment. Note that capital transfers are only appropriated to municipalities for the budget year
A78: 3. Capital expenditure by functional classification must reconcile to the appropriations by vote
A79: 4. Must reconcile to supporting table SA20 and to Budgeted Financial Performance (revenue and expenditure)
A81: 6. Include finance leases and PPP capital funding component of unitary payment - total borrowing/repayments to reconcile to changes in Table SA17
A82: 7. Total Capital Funding must balance with Total Capital Expenditure
A83: 8. Include any capitalised interest (MFMA section 46) as part of relevant capital budget

Sheet A5A
A1: =muni&" - "&Approve5 -> NW403 City Of Matlosana - Table A5 Budgeted Capital Expenditure by vote, functional classification and funding
A2: =Vdesc -> Vote Description | B2: =head27 -> Ref | C2: =head1b -> 2021/22 | D2: =head1A -> 2022/23 | E2: =Head1 -> 2023/24 | F2: =Head2 -> Current Year 2024/25 | J2: =Head3 -> 2025/26 Medium Term Revenue & Expenditure Framework | N2: ="Multi-year appropriation for "&Head9& " in the "&Head2A&" Annual Budget" -> Multi-year appropriation for Budget Year 2025/26 in the 2024/25 Annual Budget | R2: ="Multi-year appropriation for "&RIGHT(Head10,7)& " in the "&Head2A&" Annual Budget" -> Multi-year appropriation for 2026/27 in the 2024/25 Annual Budget | V2: New multi-year appropriations (funds for new and existing projects)
A3: R thousand | B3: 1 | C3: =Head5 -> Audited Outcome | D3: =Head5 -> Audited Outcome | E3: =Head5 -> Audited Outcome | F3: =Head6 -> Original Budget | G3: =Head7 -> Adjusted Budget | H3: =Head8 -> Full Year Forecast | I3: =Head5b -> Pre-audit outcome | J3: =Head9 -> Budget Year 2025/26 | K3: =Head10 -> Budget Year +1 2026/27 | L3: =Head11 -> Budget Year +2 2027/28 | N3: ="Appropriation for "&RIGHT(Head9,7) -> Appropriation for 2025/26 | O3: ="Adjustments in "&Head2A -> Adjustments in 2024/25 | P3: ="Downward adjustments for "&RIGHT(Head9,7) -> Downward adjustments for 2025/26 | Q3: Appropriation carried forward | R3: ="Appropriation for "&RIGHT(Head9,7) -> Appropriation for 2025/26 | S3: ="Adjustments in "&Head2A -> Adjustments in 2024/25 | T3: ="Downward adjustments for "&RIGHT(Head9,7) -> Downward adjustments for 2025/26 | U3: Appropriation carried forward | V3: =Head9 -> Budget Year 2025/26 | W3: =Head10 -> Budget Year +1 2026/27 | X3: =Head11 -> Budget Year +2 2027/28
A4: Capital expenditure - Municipal Vote
A5: Multi-year expenditure appropriation | B5: 2
A6: ='Org structure'!A2 -> Vote 01 - Public Safety | C6: 0 | D6: 0 | E6: 0 | F6: 0 | G6: 0 | H6: 0 | I6: 0 | J6: 0 | K6: 0 | L6: 0 | N6: 0 | O6: 0 | P6: 0 | Q6: 0 | R6: 0 | S6: 0 | T6: 0 | U6: 0 | V6: 0 | W6: 0
A7: ='Org structure'!A3 -> Vote 02 - Health Services | C7: 0 | D7: 0 | E7: 0 | F7: 0 | G7: 0 | H7: 0 | I7: 0 | J7: 0 | K7: 0 | L7: 0 | N7: 0 | O7: 0 | P7: 0 | Q7: 0 | R7: 0 | S7: 0 | T7: 0 | U7: 0 | V7: 0 | W7: 0
A8: ='Org structure'!A4 -> Vote 03 - Community Services | C8: 0 | D8: 0 | E8: 0 | F8: 0 | G8: 0 | H8: 0 | I8: 0 | J8: 0 | K8: 0 | L8: 0 | N8: 0 | O8: 0 | P8: 0 | Q8: 0 | R8: 0 | S8: 0 | T8: 0 | U8: 0 | V8: 0 | W8: 0
A9: ='Org structure'!A5 -> Vote 04 - Housing | C9: 0 | D9: 0 | E9: 0 | F9: 0 | G9: 0 | H9: 0 | I9: 0 | J9: 0 | K9: 0 | L9: 0 | N9: 0 | O9: 0 | P9: 0 | Q9: 0 | R9: 0 | S9: 0 | T9: 0 | U9: 0 | V9: 0 | W9: 0
A10: ='Org structure'!A6 -> Vote 05 - Sport Arts And Culture | C10: =SUM(#REF!) ->  | D10: =SUM(#REF!) ->  | E10: =SUM(#REF!) ->  | F10: =SUM(#REF!) ->  | G10: =SUM(#REF!) ->  | H10: =SUM(#REF!) ->  | I10: =SUM(#REF!) ->  | J10: =SUM(#REF!) ->  | K10: =SUM(#REF!) ->  | L10: =SUM(#REF!) ->  | N10: =SUM(#REF!) ->  | O10: =SUM(#REF!) ->  | P10: =SUM(#REF!) ->  | Q10: =SUM(#REF!) ->  | R10: =SUM(#REF!) ->  | S10: =SUM(#REF!) ->  | T10: =SUM(#REF!) ->  | U10: =SUM(#REF!) ->  | V10: =SUM(#REF!) ->  | W10: =SUM(#REF!) ->  | X10: =SUM(#REF!) -> 
A11: ='Org structure'!A7 -> Vote 06 - Council General | C11: 0 | D11: 0 | E11: 0 | F11: 0 | G11: 0 | H11: 0 | I11: 0 | J11: 0 | K11: 0 | L11: 0 | N11: 0 | O11: 0 | P11: 0 | Q11: 0 | R11: 0 | S11: 0 | T11: 0 | U11: 0 | V11: 0 | W11: 0
A12: ='Org structure'!A8 -> Vote 07 - Civil Engineering | C12: =SUM(C13:C13) -> 50195002.81 | D12: 23808362.07 | E12: 32860216.31 | F12: 12801949 | G12: 41726419 | H12: 41726419 | I12: 15103625.83 | J12: 12000000 | K12: 16000000 | L12: 20500000 | N12: =SUM(N13:N13) -> 12000000 | O12: 0 | P12: 0 | Q12: 12000000 | R12: 16000000 | S12: 0 | T12: 0 | U12: 16000000 | V12: 0 | W12: 0 | X12: 20500000
A13: ='Org structure'!E42 -> 07.3 - Roads | C13: 50195002.81 | D13: 23808362.07 | E13: 32860216.31 | F13: 12801949 | G13: 41726419 | H13: 41726419 | I13: 15103625.83 | J13: =Q13+V13 -> 12000000 | K13: =U13+W13 -> 16000000 | L13: =X13 -> 20500000 | N13: 12000000 | O13: 0 | P13: 0 | Q13: =SUM(N13:P13) -> 12000000 | R13: 16000000 | S13: 0 | T13: 0 | U13: =SUM(R13:T13) -> 16000000 | V13: 0 | W13: 0 | X13: 20500000
A14: ='Org structure'!A9 -> Vote 08 - Water Section | C14: =SUM(C15:C15) -> 20668314.54 | D14: 8202162.52 | E14: 16437441.65 | F14: 10467749 | G14: 17074966 | H14: 17074966 | I14: 14423655.62 | J14: 12557149 | K14: 15000130 | L14: 31789000 | N14: =SUM(N15:N15) -> 12557149 | O14: 0 | P14: 0 | Q14: 12557149 | R14: 15000130 | S14: 0 | T14: 0 | U14: 15000130 | V14: 0 | W14: 0 | X14: 31789000
A15: ='Org structure'!E46 -> 08.2 - Water Distribution | C15: 20668314.54 | D15: 8202162.52 | E15: 16437441.65 | F15: 10467749 | G15: 17074966 | H15: 17074966 | I15: 14423655.62 | J15: =Q15+V15 -> 12557149 | K15: =U15+W15 -> 15000130 | L15: =X15 -> 31789000 | N15: 12557149 | O15: 0 | P15: 0 | Q15: =SUM(N15:P15) -> 12557149 | R15: 15000130 | S15: 0 | T15: 0 | U15: =SUM(R15:T15) -> 15000130 | V15: 0 | W15: 0 | X15: 31789000
A16: ='Org structure'!A10 -> Vote 09 - City Electrial Engineering | C16: =SUM(C17:C17) -> 20537556.77 | D16: 31363530.85 | E16: 114592520.4 | F16: 5112652 | G16: 11912652 | H16: 11912652 | I16: 1902705.3 | J16: 26921652 | K16: 12807770 | L16: 13275000 | N16: =SUM(N17:N17) -> 26921652 | O16: 0 | P16: 0 | Q16: 26921652 | R16: 12807770 | S16: 0 | T16: 0 | U16: 12807770 | V16: 0 | W16: 0 | X16: 13275000
A17: ='Org structure'!E52 -> 09.5 - Electricity Distribution | C17: 20537556.77 | D17: 31363530.85 | E17: 114592520.4 | F17: 5112652 | G17: 11912652 | H17: 11912652 | I17: 1902705.3 | J17: =Q17+V17 -> 26921652 | K17: =U17+W17 -> 12807770 | L17: =X17 -> 13275000 | N17: 26921652 | O17: 0 | P17: 0 | Q17: =SUM(N17:P17) -> 26921652 | R17: 12807770 | S17: 0 | T17: 0 | U17: =SUM(R17:T17) -> 12807770 | V17: 0 | W17: 0 | X17: 13275000
A18: ='Org structure'!A11 -> Vote 10 - Corporate Governane | C18: 0 | D18: 0 | E18: 0 | F18: 0 | G18: 0 | H18: 0 | I18: 0 | J18: 0 | K18: 0 | L18: 0 | N18: 0 | O18: 0 | P18: 0 | Q18: 0 | R18: 0 | S18: 0 | T18: 0 | U18: 0 | V18: 0 | W18: 0
A19: ='Org structure'!A12 -> Vote 11 - Budget And Treasury Office | C19: 0 | D19: 0 | E19: 0 | F19: 0 | G19: 0 | H19: 0 | I19: 0 | J19: 0 | K19: 0 | L19: 0 | N19: 0 | O19: 0 | P19: 0 | Q19: 0 | R19: 0 | S19: 0 | T19: 0 | U19: 0 | V19: 0 | W19: 0
A20: ='Org structure'!A13 -> Vote 12 - Cleansing | C20: 0 | D20: 0 | E20: 0 | F20: 0 | G20: 0 | H20: 0 | I20: 0 | J20: 0 | K20: 0 | L20: 0 | N20: 0 | O20: 0 | P20: 0 | Q20: 0 | R20: 0 | S20: 0 | T20: 0 | U20: 0 | V20: 0 | W20: 0
A21: ='Org structure'!A14 -> Vote 13 - Sewerage | C21: =SUM(C22:C22) -> 0 | D21: 1839080.71 | E21: 0 | F21: 0 | G21: 0 | H21: 0 | I21: 955199.29 | J21: 16812579 | K21: 16000000 | L21: 20000000 | N21: =SUM(N22:N22) -> 16812579 | O21: 0 | P21: 0 | Q21: 16812579 | R21: 16000000 | S21: 0 | T21: 0 | U21: 16000000 | V21: 0 | W21: 0 | X21: 20000000
A22: ='Org structure'!E72 -> 13.3 - Sewer Distribution | C22: 0 | D22: 1839080.71 | E22: 0 | F22: 0 | G22: 0 | H22: 0 | I22: 955199.29 | J22: =Q22+V22 -> 16812579 | K22: =U22+W22 -> 16000000 | L22: =X22 -> 20000000 | N22: 16812579 | O22: 0 | P22: 0 | Q22: =SUM(N22:P22) -> 16812579 | R22: 16000000 | S22: 0 | T22: 0 | U22: =SUM(R22:T22) -> 16000000 | V22: 0 | W22: 0 | X22: 20000000
A23: ='Org structure'!A15 -> Vote 14 - Market | C23: 0 | D23: 0 | E23: 0 | F23: 0 | G23: 0 | H23: 0 | I23: 0 | J23: 0 | K23: 0 | L23: 0 | N23: 0 | O23: 0 | P23: 0 | Q23: 0 | R23: 0 | S23: 0 | T23: 0 | U23: 0 | V23: 0 | W23: 0
A24: ='Org structure'!A16 -> Vote 15 - Other | C24: 0 | D24: 0 | E24: 0 | F24: 0 | G24: 0 | H24: 0 | I24: 0 | J24: 0 | K24: 0 | L24: 0 | N24: 0 | O24: 0 | P24: 0 | Q24: 0 | R24: 0 | S24: 0 | T24: 0 | U24: 0 | V24: 0 | W24: 0
A25: Capital multi-year expenditure sub-total | C25: =C6+C7+C8+C9+C10+C11+C12+C14+C16+C18+C19+C20+C21+C23+C24 ->  | N25: =N6+N7+N8+N9+N10+N11+N12+N14+N16+N18+N19+N20+N21+N23+N24 -> 
A27: Capital expenditure - Municipal Vote
A28: Single-year expenditure appropriation | B28: 2
A29: ='Org structure'!A2 -> Vote 01 - Public Safety | C29: 0 | D29: 0 | E29: 0 | F29: 0 | G29: 0 | H29: 0 | I29: 0 | J29: 0 | K29: 0 | L29: 0
A30: ='Org structure'!A3 -> Vote 02 - Health Services | C30: 0 | D30: 0 | E30: 0 | F30: 0 | G30: 0 | H30: 0 | I30: 0 | J30: 0 | K30: 0 | L30: 0
A31: ='Org structure'!A4 -> Vote 03 - Community Services | C31: 0 | D31: 0 | E31: 0 | F31: 0 | G31: 0 | H31: 0 | I31: 0 | J31: 0 | K31: 0 | L31: 0
A32: ='Org structure'!A5 -> Vote 04 - Housing | C32: 0 | D32: 0 | E32: 0 | F32: 0 | G32: 0 | H32: 0 | I32: 0 | J32: 0 | K32: 0 | L32: 0
A33: ='Org structure'!A6 -> Vote 05 - Sport Arts And Culture | C33: =SUM(C34:C34) -> 25390299.85 | D33: 2949852.28 | E33: 7965674.15 | F33: 15093585 | G33: 6376079 | H33: 6376079 | I33: 1679051.29 | J33: 17809008 | K33: 11000000 | L33: 15000000
A34: ='Org structure'!E29 -> 05.4 - Sports And Recreation | C34: 25390299.85 | D34: 2949852.28 | E34: 7965674.15 | F34: 15093585 | G34: 6376079 | H34: 6376079 | I34: 1679051.29 | J34: 17809008 | K34: 11000000 | L34: 15000000
A35: ='Org structure'!A7 -> Vote 06 - Council General | C35: =SUM(C36:C36) -> 0 | D35: 0.01 | E35: -0.01 | F35: 47000000 | G35: 29000000 | H35: 29000000 | I35: 256431.5 | J35: 29000000 | K35: 0 | L35: 0
A36: ='Org structure'!E31 -> 06.1 - Administration Council General | C36: 0 | D36: 0.01 | E36: -0.01 | F36: 47000000 | G36: 29000000 | H36: 29000000 | I36: 256431.5 | J36: 29000000 | K36: 0 | L36: 0
A37: ='Org structure'!A8 -> Vote 07 - Civil Engineering | C37: =SUM(C38:C38) -> 0 | D37: 0 | E37: 0 | F37: 0 | G37: 10613233 | H37: 10613233 | I37: 5034946.11 | J37: 0 | K37: 0 | L37: 0
A38: ='Org structure'!E42 -> 07.3 - Roads | C38: 0 | D38: 0 | E38: 0 | F38: 0 | G38: 10613233 | H38: 10613233 | I38: 5034946.11 | J38: 0 | K38: 0 | L38: 0
A39: ='Org structure'!A9 -> Vote 08 - Water Section | C39: =SUM(C40:C40) -> 3658562.41 | D39: 1526177.32 | E39: 31838058.49 | F39: 25000000 | G39: 25000000 | H39: 25000000 | I39: 12719012.32 | J39: 37961329 | K39: 37400000 | L39: 35000000
A40: ='Org structure'!E46 -> 08.2 - Water Distribution | C40: 3658562.41 | D40: 1526177.32 | E40: 31838058.49 | F40: 25000000 | G40: 25000000 | H40: 25000000 | I40: 12719012.32 | J40: 37961329 | K40: 37400000 | L40: 35000000
A41: ='Org structure'!A10 -> Vote 09 - City Electrial Engineering | C41: =SUM(C42:C43) -> 4071430.82 | D41: 1669627.37 | E41: 0 | F41: 0 | G41: 0 | H41: 0 | I41: 0 | J41: 4729551 | K41: 9824000 | L41: 780000
A42: ='Org structure'!E51 -> 09.4 - Administration Electricity | C42: 0 | D42: 0 | E42: 0 | F42: 0 | G42: 0 | H42: 0 | I42: 0 | J42: 4000000 | K42: 0 | L42: 0
A43: ='Org structure'!E52 -> 09.5 - Electricity Distribution | C43: 4071430.82 | D43: 1669627.37 | E43: 0 | F43: 0 | G43: 0 | H43: 0 | I43: 0 | J43: 729551 | K43: 9824000 | L43: 780000
A44: ='Org structure'!A11 -> Vote 10 - Corporate Governane | C44: 0 | D44: 0 | E44: 0 | F44: 0 | G44: 0 | H44: 0 | I44: 0 | J44: 0 | K44: 0 | L44: 0
A45: ='Org structure'!A12 -> Vote 11 - Budget And Treasury Office | C45: =SUM(C46:C46) -> 0 | D45: 0 | E45: -0.03 | F45: 3000000 | G45: 3000000 | H45: 3000000 | I45: 459103.96 | J45: 3000000 | K45: 0 | L45: 0
A46: ='Org structure'!E59 -> 11.2 - Data | C46: 0 | D46: 0 | E46: -0.03 | F46: 3000000 | G46: 3000000 | H46: 3000000 | I46: 459103.96 | J46: 3000000 | K46: 0 | L46: 0
A47: ='Org structure'!A13 -> Vote 12 - Cleansing | C47: =SUM(C48:C49) -> 0 | D47: 3503531.32 | E47: 18463239.3 | F47: 38773866 | G47: 27919792 | H47: 27919792 | I47: 19590425.88 | J47: 47573089 | K47: 49800900 | L47: 38000000
A48: ='Org structure'!E63 -> 12.2 - Administration Cleansing | C48: 0 | D48: 7173.91 | E48: 0 | F48: 0 | G48: 0 | H48: 0 | I48: 0 | J48: 24252251 | K48: 26800900 | L48: 16000000
A49: ='Org structure'!E68 -> 12.7 - Landfill Site | C49: 0 | D49: 3496357.41 | E49: 18463239.3 | F49: 38773866 | G49: 27919792 | H49: 27919792 | I49: 19590425.88 | J49: 23320838 | K49: 23000000 | L49: 22000000
A50: ='Org structure'!A14 -> Vote 13 - Sewerage | C50: =SUM(C51:C51) -> 14341581.94 | D50: 4744597.2 | E50: 13533167.19 | F50: 74012454 | G50: 60423326 | H50: 60423326 | I50: 26579586.7 | J50: 49621092 | K50: 64600000 | L50: 58085210
A51: ='Org structure'!E72 -> 13.3 - Sewer Distribution | C51: 14341581.94 | D51: 4744597.2 | E51: 13533167.19 | F51: 74012454 | G51: 60423326 | H51: 60423326 | I51: 26579586.7 | J51: 49621092 | K51: 64600000 | L51: 58085210
A52: ='Org structure'!A15 -> Vote 14 - Market | C52: =SUM(C53:C53) -> 13678068.43 | D52: 4345036.49 | E52: 2614974.27 | F52: 4987544 | G52: 2478566 | H52: 2478566 | I52: 1918130.04 | J52: 0 | K52: 0 | L52: 0
A53: ='Org structure'!E75 -> 14.1 - Market | C53: 13678068.43 | D53: 4345036.49 | E53: 2614974.27 | F53: 4987544 | G53: 2478566 | H53: 2478566 | I53: 1918130.04 | J53: 0 | K53: 0 | L53: 0
A54: ='Org structure'!A16 -> Vote 15 - Other | C54: 0 | D54: 0 | E54: 0 | F54: 0 | G54: 0 | H54: 0 | I54: 0 | J54: 0 | K54: 0 | L54: 0
A55: Capital single-year expenditure sub-total | C55: =C29+C30+C31+C32+C33+C35+C37+C39+C41+C44+C45+C47+C50+C52+C54 -> 61139943.45 | D55: 18738821.99 | E55: 74415113.36 | F55: 207867449 | G55: 164810996 | H55: 164810996 | I55: 68236687.8 | J55: 189694069 | K55: 172624900 | L55: 146865210
A56: Total Capital Expenditure | C56: =C25+C55 -> 

Sheet A6-FinPos
A1: =muni&" - "&Approve6 -> NW403 City Of Matlosana - Table A6 Budgeted Financial Position
A2: =desc -> Description | B2: =head27 -> Ref | C2: =head1b -> 2021/22 | D2: =head1A -> 2022/23 | E2: =Head1 -> 2023/24 | F2: =Head2 -> Current Year 2024/25 | J2: =Head3 -> 2025/26 Medium Term Revenue & Expenditure Framework
A3: R thousand | C3: =Head5 -> Audited Outcome | D3: =Head5 -> Audited Outcome | E3: =Head5 -> Audited Outcome | F3: =Head6 -> Original Budget | G3: =Head7 -> Adjusted Budget | H3: =Head8 -> Full Year Forecast | I3: =Head5b -> Pre-audit outcome | J3: =Head9 -> Budget Year 2025/26 | K3: =Head10 -> Budget Year +1 2026/27 | L3: =Head11 -> Budget Year +2 2027/28
A4: ASSETS
A5: Current assets
A6: Cash and cash equivalents | C6: 224921256.7 | D6: 104773259.4 | E6: 181715215.6 | F6: -267428232 | G6: -375794739 | H6: -375794739 | I6: 791465002.6 | J6: -566282999 | K6: -1440642794 | L6: -456910267
A7: Trade and other receivables from exchange transactions | B7: 1 | C7: ='SA3'!C20 -> -904783213.8 | D7: ='SA3'!D20 -> -900930344.3 | E7: ='SA3'!E20 -> -1649878831 | F7: ='SA3'!F20 -> 741526497 | G7: ='SA3'!G20 -> 840730636 | H7: ='SA3'!H20 -> 840730636 | I7: ='SA3'!I20 -> -1159067873 | J7: ='SA3'!J20 -> 925734938 | K7: ='SA3'!K20 -> 773015558 | L7: ='SA3'!L20 -> -1999787631
A8: Receivables from non-exchange transactions | B8: 1 | C8: ='SA3'!C29 -> 1520912934 | D8: ='SA3'!D29 -> 1376534989 | E8: ='SA3'!E29 -> 2189952721 | F8: ='SA3'!F29 -> 148668115 | G8: ='SA3'!G29 -> 174866863 | H8: ='SA3'!H29 -> 174866863 | I8: ='SA3'!I29 -> 2309773558 | J8: ='SA3'!J29 -> 341508298 | K8: ='SA3'!K29 -> 275284522 | L8: ='SA3'!L29 -> -458860762
A9: Current portion of non-current receivables | C9: 7356.78 | D9: 0.41 | E9: 0.41 | F9: 29274 | G9: 29274 | H9: 29274 | I9: 0.41 | J9: 29567 | K9: 0 | L9: 0
A10: Inventory | B10: 2 | C10: ='SA3'!C132 -> 38539180.05 | D10: ='SA3'!D132 -> 52414100.05 | E10: ='SA3'!E132 -> 57911715.05 | F10: ='SA3'!F132 -> -6389218.95 | G10: ='SA3'!G132 -> -208000373.9 | H10: ='SA3'!H132 -> -208000373.9 | I10: ='SA3'!I132 -> -124845970 | J10: ='SA3'!J132 -> -318471221.9 | K10: ='SA3'!K132 -> -318471221.9 | L10: ='SA3'!L132 -> -318471221.9
A11: VAT | C11: 947384268.8 | D11: 1230796900 | E11: 1565214013 | F11: 195040276 | G11: 195040276 | H11: 195040276 | I11: 1705303009 | J11: 0 | K11: 0 | L11: 0
A12: Other current assets | C12: 38482348.75 | D12: 40384455.67 | E12: 42662151.51 | F12: 37026362 | G12: 37026362 | H12: 37026362 | I12: 37754522.53 | J12: 37447126 | K12: 0 | L12: 0
A13: Total current assets | C13: =SUM(C6:C12) -> 1865464132 | D13: =SUM(D6:D12) -> 1903973360 | E13: 2387576985 | F13: 848473073 | G13: 663898298 | H13: 663898298 | I13: 3560382250 | J13: 419965708.1 | K13: -710813936 | L13: -3234029882
A14: Non current assets
A15: Investments
A16: Investment property | C16: 349864969.4 | D16: 345682384 | E16: 344974775.7 | F16: 257100275 | G16: 257100275 | H16: 257100275 | I16: 344974775.7 | J16: 259671278 | K16: 0 | L16: 0
A17: Property, plant and equipment | B17: 3 | C17: ='SA3'!C138 -> 5832224024 | D17: ='SA3'!D138 -> 5724840744 | E17: ='SA3'!E138 -> 5614202232 | F17: ='SA3'!F138 -> 3581032996 | G17: ='SA3'!G138 -> 3580308230 | H17: ='SA3'!H138 -> 3580308230 | I17: ='SA3'!I138 -> 5496492897 | J17: ='SA3'!J138 -> 3615014192 | K17: ='SA3'!K138 -> 232432800 | L17: ='SA3'!L138 -> 232429210
A18: Biological assets
A19: Living and non-living resources
A20: Heritage assets | C20: -618226303.5 | D20: -618289947.7 | E20: -618473945 | F20: 9941212 | G20: 9941212 | H20: 9941212 | I20: -618473945 | J20: 10040624 | K20: 0 | L20: 0
A21: Intangible assets | C21: 1297383.11 | D21: 1297383.11 | E21: -0.48 | F21: 1297383 | G21: 1297383 | H21: 1297383 | I21: -0.48 | J21: 1310357 | K21: 0 | L21: 0
A22: Trade and other receivables from exchange transactions
A23: Non-current receivables from non-exchange transactions | C23: 0 | D23: 0 | E23: 0 | F23: 32755 | G23: 32755 | H23: 32755 | I23: 0 | J23: 33083 | K23: 0 | L23: 0
A24: Other non-current assets
A25: Total non current assets | C25: =SUM(C15:C24) -> 5565160073 | D25: =SUM(D15:D24) -> 5453530563 | E25: 5340703063 | F25: 3849404621 | G25: 3848679855 | H25: 3848679855 | I25: 5222993728 | J25: 3886069534 | K25: 232432800 | L25: 232429210
A26: TOTAL ASSETS | C26: =C13+C25 -> 7430624205 | D26: =D13+D25 -> 7357503923 | E26: =E13+E25 -> 7728280048 | F26: =F13+F25 -> 4697877694 | G26: 4512578153 | H26: 4512578153 | I26: 8783375977 | J26: 4306035242 | K26: -478381136 | L26: -3001600672
A27: LIABILITIES
A28: Current liabilities
A29: Bank overdraft
A30: Financial liabilities | C30: ='SA3'!C144 -> -5042274.55 | D30: ='SA3'!D144 -> -622366.98 | E30: ='SA3'!E144 -> -4470151.87 | F30: ='SA3'!F144 -> -2800000 | G30: ='SA3'!G144 -> 800000 | H30: ='SA3'!H144 -> 800000 | I30: ='SA3'!I144 -> -4470151.87 | J30: ='SA3'!J144 -> 820000 | K30: ='SA3'!K144 -> 0 | L30: ='SA3'!L144 -> 0
A31: Consumer deposits | C31: 64143094.01 | D31: 67915525.45 | E31: 70572248.99 | F31: 97429637 | G31: 99954637 | H31: 99954637 | I31: 73150696.1 | J31: 100928933 | K31: 2530000 | L31: 0
A32: Trade and other payables from exchange transactions | B32: 4 | C32: 2641891193 | D32: 3370367638 | E32: 4558411362 | F32: 2729410602 | G32: 3356252549 | H32: 3356252549 | I32: 4886853574 | J32: 3643953428 | K32: 750962053 | L32: -2834866098
A33: Trade and other payables from non-exchange transactions | B33: 5 | C33: 23273213.09 | D33: 56274735.47 | E33: 29532661.46 | F33: 42907407 | G33: 43188407 | H33: 43188407 | I33: 121366757 | J33: 74389222 | K33: 245029440 | L33: 241080590
A34: Provision | C34: 563481572.2 | D34: 554291304.3 | E34: 581727406 | F34: 587370777 | G34: 587370777 | H34: 587370777 | I34: 581909765.5 | J34: 593464485 | K34: -22000000 | L34: -22000000
A35: VAT | C35: 741130329.7 | D35: 928915981.8 | E35: 1134783111 | F35: 0 | G35: 0 | H35: 0 | I35: 1394068426 | J35: 0 | K35: 0 | L35: 0
A36: Other current liabilities
A37: Total current liabilities | C37: =SUM(C29:C36) -> 4028877127 | D37: =SUM(D29:D36) -> 4977142818 | E37: 6370556637 | F37: 3454318423 | G37: 4087566370 | H37: 4087566370 | I37: 7052879067 | J37: 4413556068 | K37: 976521493 | L37: -2615785508
A38: Non current liabilities
A39: Financial liabilities | B39: 6 | C39: ='SA3'!C156 -> 42265259.54 | D39: ='SA3'!D156 -> 26575963.32 | E39: ='SA3'!E156 -> 18617200.12 | F39: ='SA3'!F156 -> 81274059 | G39: ='SA3'!G156 -> 81274059 | H39: ='SA3'!H156 -> 81274059 | I39: ='SA3'!I156 -> 9862895.99 | J39: ='SA3'!J156 -> 82086800 | K39: ='SA3'!K156 -> 0 | L39: ='SA3'!L156 -> 0
A40: Provision | B40: 7 | C40: ='SA3'!C170 -> 0 | D40: ='SA3'!D170 -> 0 | E40: ='SA3'!E170 -> 0 | F40: ='SA3'!F170 -> 0 | G40: ='SA3'!G170 -> 0 | H40: ='SA3'!H170 -> 0 | I40: ='SA3'!I170 -> 0 | J40: ='SA3'!J170 -> 0 | K40: ='SA3'!K170 -> 0 | L40: ='SA3'!L170 -> 0
A41: Long term portion of trade payables | C41: ='SA3'!C158 -> 0 | D41: ='SA3'!D158 -> 0 | E41: ='SA3'!E158 -> 0 | F41: ='SA3'!F158 -> 0 | G41: ='SA3'!G158 -> 0 | H41: ='SA3'!H158 -> 0 | I41: ='SA3'!I158 -> 0 | J41: ='SA3'!J158 -> 0 | K41: ='SA3'!K158 -> 0 | L41: ='SA3'!L158 -> 0
A42: Other non-current liabilities
A43: Total non current liabilities | C43: =SUM(C39:C42) -> 42265259.54 | D43: =SUM(D39:D42) -> 26575963.32 | E43: 18617200.12 | F43: 81274059 | G43: 81274059 | H43: 81274059 | I43: 9862895.99 | J43: 82086800 | K43: 0 | L43: 0
A44: TOTAL LIABILITIES | C44: =C37+C43 -> 4071142387 | D44: =D37+D43 -> 5003718781 | E44: =E37+E43 -> 6389173837 | F44: =F37+F43 -> 3535592482 | G44: 4168840429 | H44: 4168840429 | I44: 7062741963 | J44: 4495642868 | K44: =K37+K43 -> 976521493 | L44: -2615785508
A45: NET ASSETS | C45: =C26-C44 -> 3359481818 | D45: 2353785142 | E45: 1339106211 | F45: 1162285212 | G45: 343737724.1 | H45: 343737724.1 | I45: 1720634014 | J45: -189607625.9 | K45: -1454902629 | L45: -385815163.9
A46: COMMUNITY WEALTH/EQUITY
A47: Accumulated surplus/(deficit) | B47: 8 | C47: ='SA3'!C182 -> 3690653717 | D47: ='SA3'!D182 -> 2876795056 | E47: ='SA3'!E182 -> 1948715183 | F47: ='SA3'!F182 -> 1159502431 | G47: ='SA3'!G182 -> 301627704 | H47: ='SA3'!H182 -> 301627704 | I47: ='SA3'!I182 -> 2140721050 | J47: ='SA3'!J182 -> 129045206 | K47: ='SA3'!K182 -> -469390267 | L47: ='SA3'!L182 -> 616315564
A48: Reserves and funds | B48: 9 | C48: ='SA3'!C189 -> 0 | D48: ='SA3'!D189 -> 0 | E48: ='SA3'!E189 -> 0 | F48: ='SA3'!F189 -> 0 | G48: ='SA3'!G189 -> 0 | H48: ='SA3'!H189 -> 0 | I48: ='SA3'!I189 -> 0 | J48: ='SA3'!J189 -> 0 | K48: ='SA3'!K189 -> 0 | L48: ='SA3'!L189 -> 0
A49: Other
A50: TOTAL COMMUNITY WEALTH/EQUITY | B50: 10 | C50: =SUM(C47:C49) -> 3690653717 | D50: =SUM(D47:D49) -> 2876795056 | E50: 1948715183 | F50: 1159502431 | G50: 301627704 | H50: 301627704 | I50: 2140721050 | J50: 129045206 | K50: -469390267 | L50: 616315564
A51: =head27a -> References
A52: 1. Detail breakdown in Table SA3 for Trade receivables from Exchange and Non-exchange transactions
A53: 2. Include completed low cost housing to be transferred to beneficiaries within 12 months detail provided in Table SA3
A54: 3. Include 'Construction-work-in-progress' (disclosed separately in annual financial statements) detail in SA3
A55: 4. Detail breakdown in Table SA3.
A56: 5. Detail breakdown in Table SA3.
A57: 6. Detail breakdown in Table SA3.
A58: 7 Detail breakdown in Table SA3.
A59: 8. Detail breakdown in Table SA3.
A60: 9. Detail breakdown in Table SA3. Includes reserves to be funded by statute.
A61: 10. Net assets must balance with Total Community Wealth/Equity

Sheet A6 Inventory
A2: Store Type | B2: Classification | C2: =head1b -> 2021/22 | D2: =head1A -> 2022/23 | E2: =Head1 -> 2023/24 | F2: =Head2 -> Current Year 2024/25 | J2: =Head3 -> 2025/26 Medium Term Revenue & Expenditure Framework
A3: R thousands | C3: =Head5 -> Audited Outcome | D3: =Head5 -> Audited Outcome | E3: =Head5 -> Audited Outcome | F3: =Head6 -> Original Budget | G3: =Head7 -> Adjusted Budget | H3: =Head8 -> Full Year Forecast | I3: =Head5b -> Pre-audit outcome | J3: =Head9 -> Budget Year 2025/26 | K3: =Head10 -> Budget Year +1 2026/27 | L3: =Head11 -> Budget Year +2 2027/28
A4: Agricultural | B4: Opening balance - Agricultural | C4: ='SA3'!C66 -> 0 | D4: ='SA3'!D66 -> 0 | E4: ='SA3'!E66 -> 0 | F4: ='SA3'!F66 -> 0 | G4: ='SA3'!G66 -> 0 | H4: ='SA3'!H66 -> 0 | I4: ='SA3'!I66 -> 0 | J4: ='SA3'!J66 -> 0 | K4: ='SA3'!K66 -> 0 | L4: ='SA3'!L66 -> 0
B5: Acquisitions - Agricultural | C5: ='SA3'!C67 -> 0 | D5: ='SA3'!D67 -> 0 | E5: ='SA3'!E67 -> 0 | F5: ='SA3'!F67 -> 0 | G5: ='SA3'!G67 -> 0 | H5: ='SA3'!H67 -> 0 | I5: ='SA3'!I67 -> 0 | J5: ='SA3'!J67 -> 0 | K5: ='SA3'!K67 -> 0 | L5: ='SA3'!L67 -> 0
B6: Adjustments - Agricultural | C6: ='SA3'!C68 -> 0 | D6: ='SA3'!D68 -> 0 | E6: ='SA3'!E68 -> 0 | F6: ='SA3'!F68 -> 0 | G6: ='SA3'!G68 -> 0 | H6: ='SA3'!H68 -> 0 | I6: ='SA3'!I68 -> 0 | J6: ='SA3'!J68 -> 0 | K6: ='SA3'!K68 -> 0 | L6: ='SA3'!L68 -> 0
B7: Issues - Agricultural | C7: ='SA3'!C69 -> 0 | D7: ='SA3'!D69 -> 0 | E7: ='SA3'!E69 -> 0 | F7: ='SA3'!F69 -> 0 | G7: ='SA3'!G69 -> 0 | H7: ='SA3'!H69 -> 0 | I7: ='SA3'!I69 -> 0 | J7: ='SA3'!J69 -> 0 | K7: ='SA3'!K69 -> 0 | L7: ='SA3'!L69 -> 0
B8: Write Off - Agricultural | C8: ='SA3'!C70 -> 0 | D8: ='SA3'!D70 -> 0 | E8: ='SA3'!E70 -> 0 | F8: ='SA3'!F70 -> 0 | G8: ='SA3'!G70 -> 0 | H8: ='SA3'!H70 -> 0 | I8: ='SA3'!I70 -> 0 | J8: ='SA3'!J70 -> 0 | K8: ='SA3'!K70 -> 0 | L8: ='SA3'!L70 -> 0
B9: Correction of Prior period errors - Agricultural | C9: ='SA3'!C71 -> 0 | D9: ='SA3'!D71 -> 0 | E9: ='SA3'!E71 -> 0 | F9: ='SA3'!F71 -> 0 | G9: ='SA3'!G71 -> 0 | H9: ='SA3'!H71 -> 0 | I9: ='SA3'!I71 -> 0 | J9: ='SA3'!J71 -> 0 | K9: ='SA3'!K71 -> 0 | L9: ='SA3'!L71 -> 0
A10: Agricultural Total | C10: =SUM(C4:C9) -> 0 | D10: =SUM(D4:D9) -> 0 | E10: 0 | F10: 0 | G10: 0 | H10: 0 | I10: 0 | J10: 0 | K10: 0 | L10: 0
A11: Consumables Standard Rated | B11: Opening balance - Consumables Standard Rated | C11: ='SA3'!C76 -> 29909870.15 | D11: ='SA3'!D76 -> 35452085.15 | E11: ='SA3'!E76 -> 49337333.15 | F11: ='SA3'!F76 -> 54834948.15 | G11: ='SA3'!G76 -> 54834948.15 | H11: ='SA3'!H76 -> 54834948.15 | I11: ='SA3'!I76 -> 54834948.15 | J11: ='SA3'!J76 -> -211077140.8 | K11: ='SA3'!K76 -> -321547988.9 | L11: ='SA3'!L76 -> -321547988.9
B12: Acquisitions - Consumables Standard Rated | C12: ='SA3'!C77 -> 46359082 | D12: ='SA3'!D77 -> 73368176 | E12: ='SA3'!E77 -> 71752614 | F12: ='SA3'!F77 -> 120000000 | G12: ='SA3'!G77 -> 120000000 | H12: ='SA3'!H77 -> 120000000 | I12: ='SA3'!I77 -> 30902988.2 | J12: ='SA3'!J77 -> 121200000 | K12: ='SA3'!K77 -> 0 | L12: ='SA3'!L77 -> 0
B13: Adjustments - Consumables Standard Rated | C13: ='SA3'!C78 -> -38390842 | D13: ='SA3'!D78 -> -59238296 | E13: ='SA3'!E78 -> -62102482 | F13: ='SA3'!F78 -> -184300934 | G13: ='SA3'!G78 -> -385912089 | H13: ='SA3'!H78 -> -385912089 | I13: ='SA3'!I78 -> -35072235.02 | J13: ='SA3'!J78 -> -231670848 | K13: ='SA3'!K78 -> 0 | L13: ='SA3'!L78 -> 0
B14: Issues - Consumables Standard Rated | C14: ='SA3'!C79 -> -66536 | D14: ='SA3'!D79 -> 1215149 | E14: ='SA3'!E79 -> -133263 | F14: ='SA3'!F79 -> 0 | G14: ='SA3'!G79 -> 0 | H14: ='SA3'!H79 -> 0 | I14: ='SA3'!I79 -> 59.65 | J14: ='SA3'!J79 -> 0 | K14: ='SA3'!K79 -> 0 | L14: ='SA3'!L79 -> 0
B15: Write Off - Consumables Standard Rated | C15: ='SA3'!C80 -> -2359489 | D15: ='SA3'!D80 -> -1459781 | E15: ='SA3'!E80 -> -4019254 | F15: ='SA3'!F80 -> 0 | G15: ='SA3'!G80 -> 0 | H15: ='SA3'!H80 -> 0 | I15: ='SA3'!I80 -> 0 | J15: ='SA3'!J80 -> 0 | K15: ='SA3'!K80 -> 0 | L15: ='SA3'!L80 -> 0
B16: Correction of Prior period errors - Consumables Standard Rated | C16: ='SA3'!C81 -> 0 | D16: ='SA3'!D81 -> 0 | E16: ='SA3'!E81 -> 0 | F16: ='SA3'!F81 -> 0 | G16: ='SA3'!G81 -> 0 | H16: ='SA3'!H81 -> 0 | I16: ='SA3'!I81 -> 0 | J16: ='SA3'!J81 -> 0 | K16: ='SA3'!K81 -> 0 | L16: ='SA3'!L81 -> 0
A17: Consumables Standard Rated Total | C17: =SUM(C11:C16) -> 35452085.15 | D17: =SUM(D11:D16) -> 49337333.15 | E17: 54834948.15 | F17: -9465985.85 | G17: -211077140.8 | H17: -211077140.8 | I17: 50665760.98 | J17: -321547988.9 | K17: -321547988.9 | L17: -321547988.9
A18: Consumables Zero Rated | B18: Opening balance - Consumables Zero Rated | C18: ='SA3'!C84 -> 0 | D18: ='SA3'!D84 -> 0 | E18: ='SA3'!E84 -> 0 | F18: ='SA3'!F84 -> 0 | G18: ='SA3'!G84 -> 0 | H18: ='SA3'!H84 -> 0 | I18: ='SA3'!I84 -> 0 | J18: ='SA3'!J84 -> 0 | K18: ='SA3'!K84 -> 0 | L18: ='SA3'!L84 -> 0
B19: Acquisitions - Consumables Zero Rated | C19: ='SA3'!C85 -> 0 | D19: ='SA3'!D85 -> 0 | E19: ='SA3'!E85 -> 0 | F19: ='SA3'!F85 -> 0 | G19: ='SA3'!G85 -> 0 | H19: ='SA3'!H85 -> 0 | I19: ='SA3'!I85 -> 0 | J19: ='SA3'!J85 -> 0 | K19: ='SA3'!K85 -> 0 | L19: ='SA3'!L85 -> 0
B20: Adjustments - Consumables Zero Rated | C20: ='SA3'!C86 -> 0 | D20: ='SA3'!D86 -> 0 | E20: ='SA3'!E86 -> 0 | F20: ='SA3'!F86 -> 0 | G20: ='SA3'!G86 -> 0 | H20: ='SA3'!H86 -> 0 | I20: ='SA3'!I86 -> 0 | J20: ='SA3'!J86 -> 0 | K20: ='SA3'!K86 -> 0 | L20: ='SA3'!L86 -> 0
B21: Issues - Consumables Zero Rated | C21: ='SA3'!C87 -> 0 | D21: ='SA3'!D87 -> 0 | E21: ='SA3'!E87 -> 0 | F21: ='SA3'!F87 -> 0 | G21: ='SA3'!G87 -> 0 | H21: ='SA3'!H87 -> 0 | I21: ='SA3'!I87 -> 0 | J21: ='SA3'!J87 -> 0 | K21: ='SA3'!K87 -> 0 | L21: ='SA3'!L87 -> 0
B22: Write Off - Consumables Zero Rated | C22: ='SA3'!C88 -> 0 | D22: ='SA3'!D88 -> 0 | E22: ='SA3'!E88 -> 0 | F22: ='SA3'!F88 -> 0 | G22: ='SA3'!G88 -> 0 | H22: ='SA3'!H88 -> 0 | I22: ='SA3'!I88 -> 0 | J22: ='SA3'!J88 -> 0 | K22: ='SA3'!K88 -> 0 | L22: ='SA3'!L88 -> 0
B23: Correction of Prior period errors - Consumables Zero Rated | C23: ='SA3'!C89 -> 0 | D23: ='SA3'!D89 -> 0 | E23: ='SA3'!E89 -> 0 | F23: ='SA3'!F89 -> 0 | G23: ='SA3'!G89 -> 0 | H23: ='SA3'!H89 -> 0 | I23: ='SA3'!I89 -> 0 | J23: ='SA3'!J89 -> 0 | K23: ='SA3'!K89 -> 0 | L23: ='SA3'!L89 -> 0
A24: Consumables Zero Rated Total | C24: =SUM(C18:C23) -> 0 | D24: =SUM(D18:D23) -> 0 | E24: 0 | F24: 0 | G24: 0 | H24: 0 | I24: 0 | J24: 0 | K24: 0 | L24: 0
A25: Finished Goods | B25: Opening balance - Finished Goods | C25: ='SA3'!C102 -> 0 | D25: ='SA3'!D102 -> 0 | E25: ='SA3'!E102 -> 0 | F25: ='SA3'!F102 -> 0 | G25: ='SA3'!G102 -> 0 | H25: ='SA3'!H102 -> 0 | I25: ='SA3'!I102 -> 0 | J25: ='SA3'!J102 -> 0 | K25: ='SA3'!K102 -> 0 | L25: ='SA3'!L102 -> 0
B26: Acquisitions - Finished Goods | C26: ='SA3'!C103 -> 0 | D26: ='SA3'!D103 -> 0 | E26: ='SA3'!E103 -> 0 | F26: ='SA3'!F103 -> 0 | G26: ='SA3'!G103 -> 0 | H26: ='SA3'!H103 -> 0 | I26: ='SA3'!I103 -> 0 | J26: ='SA3'!J103 -> 0 | K26: ='SA3'!K103 -> 0 | L26: ='SA3'!L103 -> 0
B27: Adjustments - Finished Goods | C27: ='SA3'!C104 -> 0 | D27: ='SA3'!D104 -> 0 | E27: ='SA3'!E104 -> 0 | F27: ='SA3'!F104 -> 0 | G27: ='SA3'!G104 -> 0 | H27: ='SA3'!H104 -> 0 | I27: ='SA3'!I104 -> 0 | J27: ='SA3'!J104 -> 0 | K27: ='SA3'!K104 -> 0 | L27: ='SA3'!L104 -> 0
B28: Issues -Finished Goods | C28: ='SA3'!C105 -> 0 | D28: ='SA3'!D105 -> 0 | E28: ='SA3'!E105 -> 0 | F28: ='SA3'!F105 -> 0 | G28: ='SA3'!G105 -> 0 | H28: ='SA3'!H105 -> 0 | I28: ='SA3'!I105 -> 0 | J28: ='SA3'!J105 -> 0 | K28: ='SA3'!K105 -> 0 | L28: ='SA3'!L105 -> 0
B29: Write Off - Finished Goods | C29: ='SA3'!C106 -> 0 | D29: ='SA3'!D106 -> 0 | E29: ='SA3'!E106 -> 0 | F29: ='SA3'!F106 -> 0 | G29: ='SA3'!G106 -> 0 | H29: ='SA3'!H106 -> 0 | I29: ='SA3'!I106 -> 0 | J29: ='SA3'!J106 -> 0 | K29: ='SA3'!K106 -> 0 | L29: ='SA3'!L106 -> 0
B30: Correction of Prior period errors - Finished Goods | C30: ='SA3'!C98 -> 0 | D30: ='SA3'!D98 -> 0 | E30: ='SA3'!E98 -> 0 | F30: ='SA3'!F98 -> 0 | G30: ='SA3'!G98 -> 0 | H30: ='SA3'!H98 -> 0 | I30: ='SA3'!I98 -> 0 | J30: ='SA3'!J98 -> 0 | K30: ='SA3'!K98 -> 0 | L30: ='SA3'!L98 -> 0
A31: Finished Goods Total | C31: =SUM(C25:C30) -> 0 | D31: =SUM(D25:D30) -> 0 | E31: 0 | F31: 0 | G31: 0 | H31: 0 | I31: 0 | J31: 0 | K31: 0 | L31: 0
A32: Housing Stock | B32: Opening balance - Housing Stock | C32: ='SA3'!C117 -> 0 | D32: ='SA3'!D117 -> 0 | E32: ='SA3'!E117 -> 0 | F32: ='SA3'!F117 -> 0 | G32: ='SA3'!G117 -> 0 | H32: ='SA3'!H117 -> 0 | I32: ='SA3'!I117 -> 0 | J32: ='SA3'!J117 -> 0 | K32: ='SA3'!K117 -> 0 | L32: ='SA3'!L117 -> 0
B33: Acquisitions - Housing Stock | C33: ='SA3'!C118 -> 0 | D33: ='SA3'!D118 -> 0 | E33: ='SA3'!E118 -> 0 | F33: ='SA3'!F118 -> 0 | G33: ='SA3'!G118 -> 0 | H33: ='SA3'!H118 -> 0 | I33: ='SA3'!I118 -> 0 | J33: ='SA3'!J118 -> 0 | K33: ='SA3'!K118 -> 0 | L33: ='SA3'!L118 -> 0
B34: Sales - Housing Stock | C34: ='SA3'!C119 -> 0 | D34: ='SA3'!D119 -> 0 | E34: ='SA3'!E119 -> 0 | F34: ='SA3'!F119 -> 0 | G34: ='SA3'!G119 -> 0 | H34: ='SA3'!H119 -> 0 | I34: ='SA3'!I119 -> 0 | J34: ='SA3'!J119 -> 0 | K34: ='SA3'!K119 -> 0 | L34: ='SA3'!L119 -> 0
B35: Transfer - Housing stock | C35: ='SA3'!C120 -> 0 | D35: ='SA3'!D120 -> 0 | E35: ='SA3'!E120 -> 0 | F35: ='SA3'!F120 -> 0 | G35: ='SA3'!G120 -> 0 | H35: ='SA3'!H120 -> 0 | I35: ='SA3'!I120 -> 0 | J35: ='SA3'!J120 -> 0 | K35: ='SA3'!K120 -> 0 | L35: ='SA3'!L120 -> 0
B36: Correction of Prior period errors - Housing stock | C36: ='SA3'!C121 -> 0 | D36: ='SA3'!D121 -> 0 | E36: ='SA3'!E121 -> 0 | F36: ='SA3'!F121 -> 0 | G36: ='SA3'!G121 -> 0 | H36: ='SA3'!H121 -> 0 | I36: ='SA3'!I121 -> 0 | J36: ='SA3'!J121 -> 0 | K36: ='SA3'!K121 -> 0 | L36: ='SA3'!L121 -> 0
A37: Housing Stock Total | C37: =SUM(C32:C36) -> 0 | D37: =SUM(D32:D36) -> 0 | E37: 0 | F37: 0 | G37: 0 | H37: 0 | I37: 0 | J37: 0 | K37: 0 | L37: 0
A38: Land | B38: Opening balance - Land | C38: ='SA3'!C125 -> 0.05 | D38: ='SA3'!D125 -> 0.05 | E38: ='SA3'!E125 -> 0.05 | F38: ='SA3'!F125 -> 0.05 | G38: ='SA3'!G125 -> 0.05 | H38: ='SA3'!H125 -> 0.05 | I38: ='SA3'!I125 -> 0.05 | J38: ='SA3'!J125 -> 0.05 | K38: ='SA3'!K125 -> 0.05 | L38: ='SA3'!L125 -> 0.05
B39: Acquisitions - Land | C39: ='SA3'!C126 -> 0 | D39: ='SA3'!D126 -> 0 | E39: ='SA3'!E126 -> 0 | F39: ='SA3'!F126 -> 0 | G39: ='SA3'!G126 -> 0 | H39: ='SA3'!H126 -> 0 | I39: ='SA3'!I126 -> 0 | J39: ='SA3'!J126 -> 0 | K39: ='SA3'!K126 -> 0 | L39: ='SA3'!L126 -> 0
B40: Sales - land | C40: ='SA3'!C127 -> 0 | D40: ='SA3'!D127 -> 0 | E40: ='SA3'!E127 -> 0 | F40: ='SA3'!F127 -> 0 | G40: ='SA3'!G127 -> 0 | H40: ='SA3'!H127 -> 0 | I40: ='SA3'!I127 -> 0 | J40: ='SA3'!J127 -> 0 | K40: ='SA3'!K127 -> 0 | L40: ='SA3'!L127 -> 0
B41: Adjustments - Land | C41: ='SA3'!C128 -> 0 | D41: ='SA3'!D128 -> 0 | E41: ='SA3'!E128 -> 0 | F41: ='SA3'!F128 -> 0 | G41: ='SA3'!G128 -> 0 | H41: ='SA3'!H128 -> 0 | I41: ='SA3'!I128 -> 0 | J41: ='SA3'!J128 -> 0 | K41: ='SA3'!K128 -> 0 | L41: ='SA3'!L128 -> 0
B42: Correction of Prior period errors - Land | C42: ='SA3'!C129 -> 0 | D42: ='SA3'!D129 -> 0 | E42: ='SA3'!E129 -> 0 | F42: ='SA3'!F129 -> 0 | G42: ='SA3'!G129 -> 0 | H42: ='SA3'!H129 -> 0 | I42: ='SA3'!I129 -> 0 | J42: ='SA3'!J129 -> 0 | K42: ='SA3'!K129 -> 0 | L42: ='SA3'!L129 -> 0
B43: Transfers - Land | C43: ='SA3'!C130 -> 0 | D43: ='SA3'!D130 -> 0 | E43: ='SA3'!E130 -> 0 | F43: ='SA3'!F130 -> 0 | G43: ='SA3'!G130 -> 0 | H43: ='SA3'!H130 -> 0 | I43: ='SA3'!I130 -> 0 | J43: ='SA3'!J130 -> 0 | K43: ='SA3'!K130 -> 0 | L43: ='SA3'!L130 -> 0
A44: Land Total | C44: =SUM(C38:C43) -> 0.05 | D44: =SUM(D38:D43) -> 0.05 | E44: 0.05 | F44: 0.05 | G44: 0.05 | H44: 0.05 | I44: 0.05 | J44: 0.05 | K44: 0.05 | L44: 0.05
A45: Materials and Supplies | B45: Opening balance - Materials and Supplies | C45: ='SA3'!C102 -> 0 | D45: ='SA3'!D102 -> 0 | E45: ='SA3'!E102 -> 0 | F45: ='SA3'!F102 -> 0 | G45: ='SA3'!G102 -> 0 | H45: ='SA3'!H102 -> 0 | I45: ='SA3'!I102 -> 0 | J45: ='SA3'!J102 -> 0 | K45: ='SA3'!K102 -> 0 | L45: ='SA3'!L102 -> 0
B46: Acquisitions - Materials and Supplies | C46: ='SA3'!C103 -> 0 | D46: ='SA3'!D103 -> 0 | E46: ='SA3'!E103 -> 0 | F46: ='SA3'!F103 -> 0 | G46: ='SA3'!G103 -> 0 | H46: ='SA3'!H103 -> 0 | I46: ='SA3'!I103 -> 0 | J46: ='SA3'!J103 -> 0 | K46: ='SA3'!K103 -> 0 | L46: ='SA3'!L103 -> 0
B47: Adjustments - Materials and Supplies | C47: ='SA3'!C104 -> 0 | D47: ='SA3'!D104 -> 0 | E47: ='SA3'!E104 -> 0 | F47: ='SA3'!F104 -> 0 | G47: ='SA3'!G104 -> 0 | H47: ='SA3'!H104 -> 0 | I47: ='SA3'!I104 -> 0 | J47: ='SA3'!J104 -> 0 | K47: ='SA3'!K104 -> 0 | L47: ='SA3'!L104 -> 0
B48: Issues - Materials and Supplies | C48: ='SA3'!C105 -> 0 | D48: ='SA3'!D105 -> 0 | E48: ='SA3'!E105 -> 0 | F48: ='SA3'!F105 -> 0 | G48: ='SA3'!G105 -> 0 | H48: ='SA3'!H105 -> 0 | I48: ='SA3'!I105 -> 0 | J48: ='SA3'!J105 -> 0 | K48: ='SA3'!K105 -> 0 | L48: ='SA3'!L105 -> 0
B49: Write Off - Materials and Supplies | C49: ='SA3'!C106 -> 0 | D49: ='SA3'!D106 -> 0 | E49: ='SA3'!E106 -> 0 | F49: ='SA3'!F106 -> 0 | G49: ='SA3'!G106 -> 0 | H49: ='SA3'!H106 -> 0 | I49: ='SA3'!I106 -> 0 | J49: ='SA3'!J106 -> 0 | K49: ='SA3'!K106 -> 0 | L49: ='SA3'!L106 -> 0
B50: Correction of Prior period errors - Materials and Supplies | C50: ='SA3'!C107 -> 0 | D50: ='SA3'!D107 -> 0 | E50: ='SA3'!E107 -> 0 | F50: ='SA3'!F107 -> 0 | G50: ='SA3'!G107 -> 0 | H50: ='SA3'!H107 -> 0 | I50: ='SA3'!I107 -> 0 | J50: ='SA3'!J107 -> 0 | K50: ='SA3'!K107 -> 0 | L50: ='SA3'!L107 -> 0
A51: Materials and Supplies Total | C51: =SUM(C45:C50) -> 0 | D51: =SUM(D45:D50) -> 0 | E51: 0 | F51: 0 | G51: 0 | H51: 0 | I51: 0 | J51: 0 | K51: 0 | L51: 0
A52: Water | B52: Opening balance - Water | C52: ='SA3'!C33 -> 3382977.85 | D52: ='SA3'!D33 -> 3087094.85 | E52: ='SA3'!E33 -> 3076766.85 | F52: ='SA3'!F33 -> 3076766.85 | G52: ='SA3'!G33 -> 3076766.85 | H52: ='SA3'!H33 -> 3076766.85 | I52: ='SA3'!I33 -> 3076766.85 | J52: ='SA3'!J33 -> 3076766.85 | K52: ='SA3'!K33 -> 3076766.85 | L52: ='SA3'!L33 -> 3076766.85
B53: Acquisitions - Water bulk purchases | C53: ='SA3'!C36 -> -295883 | D53: ='SA3'!D36 -> -10328 | E53: ='SA3'!E36 -> 0 | F53: ='SA3'!F36 -> 250000000 | G53: ='SA3'!G36 -> 250000000 | H53: ='SA3'!H36 -> 250000000 | I53: ='SA3'!I36 -> -178588497.9 | J53: ='SA3'!J36 -> 325474892 | K53: ='SA3'!K36 -> 0 | L53: ='SA3'!L36 -> 0
B54: Acquisitions - Water natural sources | C54: ='SA3'!C37 -> 0 | D54: ='SA3'!D37 -> 0 | E54: ='SA3'!E37 -> 0 | F54: ='SA3'!F37 -> 0 | G54: ='SA3'!G37 -> 0 | H54: ='SA3'!H37 -> 0 | I54: ='SA3'!I37 -> 0 | J54: ='SA3'!J37 -> 0 | K54: ='SA3'!K37 -> 0 | L54: ='SA3'!L37 -> 0
B55: Acquisitions - Water treatment works | C55: ='SA3'!C35 -> 0 | D55: ='SA3'!D35 -> 0 | E55: ='SA3'!E35 -> 0 | F55: ='SA3'!F35 -> 0 | G55: ='SA3'!G35 -> 0 | H55: ='SA3'!H35 -> 0 | I55: ='SA3'!I35 -> 0 | J55: ='SA3'!J35 -> 0 | K55: ='SA3'!K35 -> 0 | L55: ='SA3'!L35 -> 0
B56: Billed Authorised Consumption:Billed Metered Consumption:Free Basic Water | C56: ='SA3'!C41 -> 0 | D56: ='SA3'!D41 -> 0 | E56: ='SA3'!E41 -> 0 | F56: ='SA3'!F41 -> 0 | G56: ='SA3'!G41 -> 0 | H56: ='SA3'!H41 -> 0 | I56: ='SA3'!I41 -> 0 | J56: ='SA3'!J41 -> 0 | K56: ='SA3'!K41 -> 0 | L56: ='SA3'!L41 -> 0
B57: Billed Authorised Consumption:Billed Metered Consumption:Revenue Water | C57: ='SA3'!C43 -> 0 | D57: ='SA3'!D43 -> 0 | E57: ='SA3'!E43 -> 0 | F57: ='SA3'!F43 -> -250000000 | G57: ='SA3'!G43 -> -250000000 | H57: ='SA3'!H43 -> -250000000 | I57: ='SA3'!I43 -> 0 | J57: ='SA3'!J43 -> -325474892 | K57: ='SA3'!K43 -> 0 | L57: ='SA3'!L43 -> 0
B58: Billed Authorised Consumption:Billed Metered Consumption:Subsidised Water | C58: ='SA3'!C42 -> 0 | D58: ='SA3'!D42 -> 0 | E58: ='SA3'!E42 -> 0 | F58: ='SA3'!F42 -> 0 | G58: ='SA3'!G42 -> 0 | H58: ='SA3'!H42 -> 0 | I58: ='SA3'!I42 -> 0 | J58: ='SA3'!J42 -> 0 | K58: ='SA3'!K42 -> 0 | L58: ='SA3'!L42 -> 0
B59: Billed Authorised Consumption:Billed Unmetered Consumption:Free Basic Water | C59: ='SA3'!C45 -> 0 | D59: ='SA3'!D45 -> 0 | E59: ='SA3'!E45 -> 0 | F59: ='SA3'!F45 -> 0 | G59: ='SA3'!G45 -> 0 | H59: ='SA3'!H45 -> 0 | I59: ='SA3'!I45 -> 0 | J59: ='SA3'!J45 -> 0 | K59: ='SA3'!K45 -> 0 | L59: ='SA3'!L45 -> 0
B60: Billed Authorised Consumption:Billed Unmetered Consumption:Revenue Water | C60: ='SA3'!C47 -> 0 | D60: ='SA3'!D47 -> 0 | E60: ='SA3'!E47 -> 0 | F60: ='SA3'!F47 -> 0 | G60: ='SA3'!G47 -> 0 | H60: ='SA3'!H47 -> 0 | I60: ='SA3'!I47 -> 0 | J60: ='SA3'!J47 -> 0 | K60: ='SA3'!K47 -> 0 | L60: ='SA3'!L47 -> 0
B61: Billed Authorised Consumption:Billed Unmetered Consumption:Subsidised Water | C61: ='SA3'!C46 -> 0 | D61: ='SA3'!D46 -> 0 | E61: ='SA3'!E46 -> 0 | F61: ='SA3'!F46 -> 0 | G61: ='SA3'!G46 -> 0 | H61: ='SA3'!H46 -> 0 | I61: ='SA3'!I46 -> 0 | J61: ='SA3'!J46 -> 0 | K61: ='SA3'!K46 -> 0 | L61: ='SA3'!L46 -> 0
B62: Data Transfer and Management Errors | C62: ='SA3'!C59 -> 0 | D62: ='SA3'!D59 -> 0 | E62: ='SA3'!E59 -> 0 | F62: ='SA3'!F59 -> 0 | G62: ='SA3'!G59 -> 0 | H62: ='SA3'!H59 -> 0 | I62: ='SA3'!I59 -> 0 | J62: ='SA3'!J59 -> 0 | K62: ='SA3'!K59 -> 0 | L62: ='SA3'!L59 -> 0
B63: Non-revenue Water | C63: ='SA3'!C61 -> 0 | D63: ='SA3'!D61 -> 0 | E63: ='SA3'!E61 -> 0 | F63: ='SA3'!F61 -> 0 | G63: ='SA3'!G61 -> 0 | H63: ='SA3'!H61 -> 0 | I63: ='SA3'!I61 -> 0 | J63: ='SA3'!J61 -> 0 | K63: ='SA3'!K61 -> 0 | L63: ='SA3'!L61 -> 0
B64: Unavoidable Annual Real Losses | C64: ='SA3'!C60 -> 0 | D64: ='SA3'!D60 -> 0 | E64: ='SA3'!E60 -> 0 | F64: ='SA3'!F60 -> 0 | G64: ='SA3'!G60 -> 0 | H64: ='SA3'!H60 -> 0 | I64: ='SA3'!I60 -> 0 | J64: ='SA3'!J60 -> 0 | K64: ='SA3'!K60 -> 0 | L64: ='SA3'!L60 -> 0
B65: Unbilled Authorised Consumption:Unbilled Metered Consumption | C65: ='SA3'!C49 -> 0 | D65: ='SA3'!D49 -> 0 | E65: ='SA3'!E49 -> 0 | F65: ='SA3'!F49 -> 0 | G65: ='SA3'!G49 -> 0 | H65: ='SA3'!H49 -> 0 | I65: ='SA3'!I49 -> 0 | J65: ='SA3'!J49 -> 0 | K65: ='SA3'!K49 -> 0 | L65: ='SA3'!L49 -> 0
B66: Unbilled Authorised Consumption:Unbilled Unmetered Consumption | C66: ='SA3'!C50 -> 0 | D66: ='SA3'!D50 -> 0 | E66: ='SA3'!E50 -> 0 | F66: ='SA3'!F50 -> 0 | G66: ='SA3'!G50 -> 0 | H66: ='SA3'!H50 -> 0 | I66: ='SA3'!I50 -> 0 | J66: ='SA3'!J50 -> 0 | K66: ='SA3'!K50 -> 0 | L66: ='SA3'!L50 -> 0
B67: Water Losses:Apparent Losses:Customer Meter Inaccuracies | C67: ='SA3'!C54 -> 0 | D67: ='SA3'!D54 -> 0 | E67: ='SA3'!E54 -> 0 | F67: ='SA3'!F54 -> 0 | G67: ='SA3'!G54 -> 0 | H67: ='SA3'!H54 -> 0 | I67: ='SA3'!I54 -> 0 | J67: ='SA3'!J54 -> 0 | K67: ='SA3'!K54 -> 0 | L67: ='SA3'!L54 -> 0
B68: Water Losses:Apparent Losses:Unauthorised Consumption | C68: ='SA3'!C53 -> 0 | D68: ='SA3'!D53 -> 0 | E68: ='SA3'!E53 -> 0 | F68: ='SA3'!F53 -> 0 | G68: ='SA3'!G53 -> 0 | H68: ='SA3'!H53 -> 0 | I68: ='SA3'!I53 -> 0 | J68: ='SA3'!J53 -> 0 | K68: ='SA3'!K53 -> 0 | L68: ='SA3'!L53 -> 0
B69: Water Losses:Real Losses:Leakage and Overflows at Storage Tanks/Reservoirs | C69: ='SA3'!C57 -> 0 | D69: ='SA3'!D57 -> 0 | E69: ='SA3'!E57 -> 0 | F69: ='SA3'!F57 -> 0 | G69: ='SA3'!G57 -> 0 | H69: ='SA3'!H57 -> 0 | I69: ='SA3'!I57 -> 0 | J69: ='SA3'!J57 -> 0 | K69: ='SA3'!K57 -> 0 | L69: ='SA3'!L57 -> 0
B70: Water Losses:Real Losses:Leakage on Service Connections up to the point of Customer Meter | C70: ='SA3'!C58 -> 0 | D70: ='SA3'!D58 -> 0 | E70: ='SA3'!E58 -> 0 | F70: ='SA3'!F58 -> 0 | G70: ='SA3'!G58 -> 0 | H70: ='SA3'!H58 -> 0 | I70: ='SA3'!I58 -> 0 | J70: ='SA3'!J58 -> 0 | K70: ='SA3'!K58 -> 0 | L70: ='SA3'!L58 -> 0
B71: Water Losses:Real Losses:Leakage on Transmission and Distribution Mains | C71: ='SA3'!C56 -> 0 | D71: ='SA3'!D56 -> 0 | E71: ='SA3'!E56 -> 0 | F71: ='SA3'!F56 -> 0 | G71: ='SA3'!G56 -> 0 | H71: ='SA3'!H56 -> 0 | I71: ='SA3'!I56 -> 0 | J71: ='SA3'!J56 -> 0 | K71: ='SA3'!K56 -> 0 | L71: ='SA3'!L56 -> 0
B72: Correction of Prior period errors - Water | C72: ='SA3'!C62 -> 0 | D72: ='SA3'!D62 -> 0 | E72: ='SA3'!E62 -> 0 | F72: ='SA3'!F62 -> 0 | G72: ='SA3'!G62 -> 0 | H72: ='SA3'!H62 -> 0 | I72: ='SA3'!I62 -> 0 | J72: ='SA3'!J62 -> 0 | K72: ='SA3'!K62 -> 0 | L72: ='SA3'!L62 -> 0
A73: Water Total | C73: =SUM(C52:C72) -> 3087094.85 | D73: =SUM(D52:D72) -> 3076766.85 | E73: 3076766.85 | F73: 3076766.85 | G73: 3076766.85 | H73: 3076766.85 | I73: -175511731 | J73: 3076766.85 | K73: 3076766.85 | L73: 3076766.85
A74: Work-in-progress | B74: Opening balance - WIP | C74: ='SA3'!C111 -> 0 | D74: ='SA3'!D111 -> 0 | E74: ='SA3'!E111 -> 0 | F74: ='SA3'!F111 -> 0 | G74: ='SA3'!G111 -> 0 | H74: ='SA3'!H111 -> 0 | I74: ='SA3'!I111 -> 0 | J74: ='SA3'!J111 -> 0 | K74: ='SA3'!K111 -> 0 | L74: ='SA3'!L111 -> 0
B75: Materials - WIP | C75: ='SA3'!C112 -> 0 | D75: 0 | E75: 0 | F75: 0 | G75: 0 | H75: 0 | I75: 0 | J75: 0 | K75: 0 | L75: 0
B76: Transfer - WIP | C76: ='SA3'!C113 -> 0 | D76: ='SA3'!D113 -> 0 | E76: ='SA3'!E113 -> 0 | F76: ='SA3'!F113 -> 0 | G76: ='SA3'!G113 -> 0 | H76: ='SA3'!H113 -> 0 | I76: ='SA3'!I113 -> 0 | J76: ='SA3'!J113 -> 0 | K76: ='SA3'!K113 -> 0 | L76: ='SA3'!L113 -> 0
A77: Work-in-progress Total | C77: =SUM(C74:C76) -> 0 | D77: =SUM(D74:D76) -> 0 | E77: 0 | F77: 0 | G77: 0 | H77: 0 | I77: 0 | J77: 0 | K77: 0 | L77: 0
A78: Grand Total | C78: =+C73+C51+C44+C37+C31+C24+C17+C10 -> 38539180.05 | D78: =+D73+D51+D44+D37+D31+D24+D17+D10 -> 52414100.05 | E78: 57911715.05 | F78: -6389218.95 | G78: -208000373.9 | H78: -208000373.9 | I78: -124845970 | J78: -318471221.9 | K78: -318471221.9 | L78: -318471221.9

Sheet A7-CFlow
A1: =muni&" - "&Approve7 -> NW403 City Of Matlosana - Table A7 Budgeted Cash Flows
A2: =desc -> Description | B2: =head27 -> Ref | C2: =head1b -> 2021/22 | D2: =head1A -> 2022/23 | E2: =Head1 -> 2023/24 | F2: =Head2 -> Current Year 2024/25 | J2: =Head3 -> 2025/26 Medium Term Revenue & Expenditure Framework
A3: R thousand | C3: =Head5 -> Audited Outcome | D3: =Head5 -> Audited Outcome | E3: =Head5 -> Audited Outcome | F3: =Head6 -> Original Budget | G3: =Head7 -> Adjusted Budget | H3: =Head8 -> Full Year Forecast | I3: =Head5b -> Pre-audit outcome | J3: =Head9 -> Budget Year 2025/26 | K3: =Head10 -> Budget Year +1 2026/27 | L3: =Head11 -> Budget Year +2 2027/28
A4: CASH FLOW FROM OPERATING ACTIVITIES
A5: Receipts
A6: Property rates | C6: 419718038.6 | D6: 340348238.4 | E6: 425657270.4 | F6: 385894835 | G6: 352579074 | H6: 352579074 | I6: 343068514.2 | J6: ='SA30'!N5 -> 313391017 | K6: ='SA30'!O5 -> 381916075 | L6: ='SA30'!P5 -> 447387402
A7: Service charges | C7: 1351237157 | D7: 1056633640 | E7: 1106434193 | F7: 1527561609 | G7: 1380056869 | H7: 1380056869 | I7: 1043598362 | J7: ='SA30'!N6+'SA30'!N7+'SA30'!N8+'SA30'!N9 -> 1557614751 | K7: ='SA30'!O6+'SA30'!O7+'SA30'!O8+'SA30'!O9 -> 1799893416 | L7: ='SA30'!P6+'SA30'!P7+'SA30'!P8+'SA30'!P9 -> 2108446573
A8: Other revenue | C8: 3785550518 | D8: 3341579200 | E8: 2599906993 | F8: 82779605 | G8: 184728094 | H8: 184728094 | I8: 1716967746 | J8: ='SA30'!N11+'SA30'!N15+'SA30'!N16+'SA30'!N17+'SA30'!N19+'SA30'!N29 -> 240106456 | K8: ='SA30'!O11+'SA30'!O15+'SA30'!O16+'SA30'!O17+'SA30'!O19+'SA30'!O29 -> 215674871 | L8: ='SA30'!P11+'SA30'!P15+'SA30'!P16+'SA30'!P17+'SA30'!P19+'SA30'!P29 -> 219985119
A9: Transfers and Subsidies - Operational | B9: 1 | C9: 479886000 | D9: 554938807 | E9: 610675521.6 | F9: 657797200 | G9: 658216200 | H9: 658216200 | I9: 638030000 | J9: ='SA30'!N18 -> 694663000 | K9: ='SA30'!O18 -> 726110000 | L9: ='SA30'!P18 -> 754747000
A10: Transfers and Subsidies - Capital | B10: 1 | C10: 170551000 | D10: 150412000 | E10: 172541000 | F10: 186249799 | G10: 186111799 | H10: 186111799 | I10: 174082000 | J10: ='SA30'!N23+'SA30'!N24 -> 223399000 | K10: ='SA30'!O23+'SA30'!O24 -> 238029440 | L10: ='SA30'!P23+'SA30'!P24 -> 237980590
A11: Interest | C11: -56609.54 | D11: 1066635.75 | E11: 363435.28 | F11: 111880136 | G11: 147465201 | H11: 147465201 | I11: 12094871.19 | J11: ='SA30'!N12+'SA30'!N13 -> 10668999 | K11: ='SA30'!O12+'SA30'!O13 -> 11138000 | L11: ='SA30'!P12+'SA30'!P13 -> 11417000
A12: Dividends | J12: ='SA30'!N14 -> 0 | K12: ='SA30'!O14 -> 0 | L12: ='SA30'!P14 -> 0
A13: Payments
A14: Suppliers and employees | C14: -4054823250 | D14: -3753555089 | E14: -1951362508 | F14: -3071220494 | G14: -3381961576 | H14: -3381961576 | I14: -1764158188 | J14: =-('SA30'!N35+'SA30'!N36+'SA30'!N38+'SA30'!N39+'SA30'!N40+'SA30'!N41+'SA30'!N44+'SA30'!N50) -> -3536701160 | K14: =-('SA30'!O35+'SA30'!O36+'SA30'!O38+'SA30'!O39+'SA30'!O40+'SA30'!O41+'SA30'!O44+'SA30'!O50) -> -3782695687 | L14: =-('SA30'!P35+'SA30'!P36+'SA30'!P38+'SA30'!P39+'SA30'!P40+'SA30'!P41+'SA30'!P44+'SA30'!P50) -> -4004712375
A15: Interest | J15: =-('SA30'!N37) -> 0 | K15: =-('SA30'!O37) -> 0 | L15: =-('SA30'!P37) -> 0
A16: Transfers and Subsidies | B16: 1 | J16: =-('SA30'!N42+'SA30'!N43) -> 0 | K16: =-('SA30'!O42+'SA30'!O43) -> 0 | L16: =-('SA30'!P42+'SA30'!P43) -> 0
A17: NET CASH FROM/(USED) OPERATING ACTIVITIES | C17: =SUM(C6:C12)+SUM(C14:C16) -> 2152062854 | D17: =SUM(D6:D12)+SUM(D14:D16) -> 1691423431 | E17: 2964215906 | F17: -119057310 | G17: -472804339 | H17: -472804339 | I17: =SUM(I6:I12)+SUM(I14:I16) -> 2163683305 | J17: -496857937 | K17: -409933885 | L17: -224748691
A19: CASH FLOWS FROM INVESTING ACTIVITIES
A20: Receipts
A21: Proceeds on disposal of PPE | C21: 0 | D21: 0 | E21: -11321901.27 | F21: 0 | G21: 0 | H21: 0 | I21: 0 | J21: ='SA30'!N25 -> 10855975 | K21: ='SA30'!O25 -> 11355351 | L21: ='SA30'!P25 -> 11854986
A23: Decrease (increase) in non-current receivables | C23: 0 | D23: 0 | E23: 0 | F23: 0 | G23: 0 | H23: 0 | I23: 0 | J23: ='SA30'!N30 -> 0 | K23: ='SA30'!O30 -> 0 | L23: ='SA30'!P30 -> 0
A24: Decrease (increase) in non-current investments | J24: ='SA30'!N31 -> 0 | K24: ='SA30'!O31 -> 0 | L24: ='SA30'!P31 -> 0
A25: Payments
A26: Capital assets | C26: -152540817.6 | D26: -83951958.14 | E26: -238305291.7 | F26: -236249799 | G26: -235525033 | H26: -235525033 | I26: -100621873.8 | J26: =-('SA30'!N48) -> -257985449 | K26: =-('SA30'!O48) -> -232432800 | L26: =-('SA30'!P48) -> -232429210
A27: NET CASH FROM/(USED) INVESTING ACTIVITIES | C27: =+C21+C23+C24+C26 -> -152540817.6 | D27: =+D21+D23+D24+D26 -> -83951958.14 | E27: -249627193 | F27: -236249799 | G27: -235525033 | H27: -235525033 | I27: -100621873.8 | J27: -247129474 | K27: -221077449 | L27: -220574224
A29: CASH FLOWS FROM FINANCING ACTIVITIES
A30: Receipts
A31: Short term loans | J31: ='SA30'!N26 -> 0 | K31: ='SA30'!O26 -> 0 | L31: ='SA30'!P26 -> 0
A32: Borrowing long term/refinancing | J32: ='SA30'!N27 -> 0 | K32: ='SA30'!O27 -> 0 | L32: ='SA30'!P27 -> 0
A33: Increase (decrease) in consumer deposits | C33: 0 | D33: 0 | E33: -864648.31 | F33: 0 | G33: 0 | H33: 0 | I33: 0 | J33: ='SA30'!N28 -> 2525000 | K33: ='SA30'!O28 -> 2530000 | L33: ='SA30'!P28 -> 0
A34: Payments
A35: Repayment of borrowing | C35: 0 | D35: 0 | E35: 0 | F35: -4800000 | G35: -1200000 | H35: -1200000 | I35: 0 | J35: =-('SA30'!N49) -> -1200000 | K35: =-('SA30'!O49) -> 0 | L35: =-('SA30'!P49) -> 0
A36: NET CASH FROM/(USED) FINANCING ACTIVITIES | C36: =SUM(C31:C33)+C35 -> 0 | D36: =SUM(D31:D33)+D35 -> 0 | E36: -864648.31 | F36: -4800000 | G36: -1200000 | H36: -1200000 | I36: 0 | J36: 1325000 | K36: 2530000 | L36: 0
A38: NET INCREASE/ (DECREASE) IN CASH HELD | C38: =C17+C27+C36 -> 1999522037 | D38: 1607471473 | E38: 2713724064 | F38: -360107109 | G38: -709529372 | H38: -709529372 | I38: 2063061431 | J38: -742662411 | K38: -628481334 | L38: -445322915
A39: Cash/cash equivalents at the year begin: | B39: 2 | C39: -195401873.4 | D39: 224921256.7 | E39: 104773259.4 | F39: 92678877 | G39: 92678877 | H39: 92678877 | I39: 0 | J39: ='SA30'!N54 -> 169209691 | K39: =J40 -> -573452720 | L39: =K40 -> -1201934054
A40: Cash/cash equivalents at the year end: | B40: 2 | C40: =C38+C39 -> 1804120163 | D40: =D38+D39 -> 1832392729 | E40: =E38+E39 -> 2818497324 | F40: =F38+F39 -> -267428232 | G40: -616850495 | H40: -616850495 | I40: 2063061431 | J40: -573452720 | K40: -1201934054 | L40: -1647256969
A41: =head27a -> References
A42: 1. Local/District municipalities to include transfers from/to District/Local Municipalities
A43: 2. Cash equivalents includes investments with maturities of 3 months or less
A44: 3. The MTREF is populated directly from SA30.
A45: Total receipts | C45: =SUM(C6:C12)+SUM(C21:C23) -> 6206886104 | D45: 5444978520 | E45: 4904256512 | F45: 2952163184 | G45: 2909157237 | H45: 2909157237 | I45: 3927841493 | J45: 3050699198 | K45: 3384117153 | L45: 3791818670
A46: Total payments | C46: =SUM(C14:C16)+C26 -> -4207364068 | D46: -3837507047 | E46: -2189667799 | F46: -3307470293 | G46: -3617486609 | H46: -3617486609 | I46: -1864780062 | J46: -3794686609 | K46: -4015128487 | L46: -4237141585
C47: =C45+C46 -> 1999522037 | D47: =D45+D46 -> 1607471473 | E47: 2714588713 | F47: -355307109 | G47: -708329372 | H47: -708329372 | I47: 2063061431 | J47: -743987411 | K47: -631011334 | L47: -445322915
A48: Borrowings & investments & c.deposits | C48: =C24+C32+C33 -> 0 | D48: =D24+D32+D33 -> 0 | E48: -864648.31 | F48: 0 | G48: 0 | H48: 0 | I48: 0 | J48: 2525000 | K48: 2530000 | L48: 0
A49: =A35 -> Repayment of borrowing | C49: =C35 -> 0 | D49: =D35 -> 0 | E49: 0 | F49: -4800000 | G49: -1200000 | H49: -1200000 | I49: =I35 -> 0 | J49: -1200000 | K49: 0 | L49: 0
C50: =C47+C48+C49 -> 1999522037 | D50: =D47+D48+D49 -> 1607471473 | E50: 2713724064 | F50: -360107109 | G50: -709529372 | H50: -709529372 | I50: 2063061431 | J50: -742662411 | K50: -628481334 | L50: -445322915
C51: =C38-C50 -> 0 | D51: 0 | E51: 0 | F51: 0 | G51: 0 | H51: 0 | I51: 0 | J51: 0 | K51: 0 | L51: 0

Sheet A8-ResRecon
A1: =muni&" - "&Approve8 -> NW403 City Of Matlosana - Table A8 Cash backed reserves/accumulated surplus reconciliation
A2: =desc -> Description | B2: =head27 -> Ref | C2: =head1b -> 2021/22 | D2: =head1A -> 2022/23 | E2: =Head1 -> 2023/24 | F2: =Head2 -> Current Year 2024/25 | J2: =Head3 -> 2025/26 Medium Term Revenue & Expenditure Framework
A3: R thousand | C3: =Head5 -> Audited Outcome | D3: =Head5 -> Audited Outcome | E3: =Head5 -> Audited Outcome | F3: =Head6 -> Original Budget | G3: =Head7 -> Adjusted Budget | H3: =Head8 -> Full Year Forecast | I3: =Head5b -> Pre-audit outcome | J3: =Head9 -> Budget Year 2025/26 | K3: =Head10 -> Budget Year +1 2026/27 | L3: =Head11 -> Budget Year +2 2027/28
A4: Cash and investments available
A5: =LEFT('A7-CFlow'!A40,37) -> Cash/cash equivalents at the year end | B5: 1 | C5: ='A7-CFlow'!C40 -> 1804120163 | D5: ='A7-CFlow'!D40 -> 1832392729 | E5: ='A7-CFlow'!E40 -> 2818497324 | F5: ='A7-CFlow'!F40 -> -267428232 | G5: ='A7-CFlow'!G40 -> -616850495 | H5: ='A7-CFlow'!H40 -> -616850495 | I5: ='A7-CFlow'!I40 -> 2063061431 | J5: ='A7-CFlow'!J40 -> -573452720 | K5: ='A7-CFlow'!K40 -> -1201934054 | L5: ='A7-CFlow'!L40 -> -1647256969
A6: Other current investments > 90 days | C6: ='A6-FinPos'!C6-'A6-FinPos'!C29-'A8-ResRecon'!C5 -> -1579198906 | D6: ='A6-FinPos'!D6-'A6-FinPos'!D29-'A8-ResRecon'!D5 -> -1727619470 | E6: ='A6-FinPos'!E6-'A6-FinPos'!E29-'A8-ResRecon'!E5 -> -2636782108 | F6: ='A6-FinPos'!F6-'A6-FinPos'!F29-'A8-ResRecon'!F5 -> 0 | G6: ='A6-FinPos'!G6-'A6-FinPos'!G29-'A8-ResRecon'!G5 -> 241055756 | H6: ='A6-FinPos'!H6-'A6-FinPos'!H29-'A8-ResRecon'!H5 -> 241055756 | I6: ='A6-FinPos'!I6-'A6-FinPos'!I29-'A8-ResRecon'!I5 -> -1271596429 | J6: ='A6-FinPos'!J6-'A6-FinPos'!J29-'A8-ResRecon'!J5 -> 7169721 | K6: ='A6-FinPos'!K6-'A6-FinPos'!K29-'A8-ResRecon'!K5 -> -238708740 | L6: ='A6-FinPos'!L6-'A6-FinPos'!L29-'A8-ResRecon'!L5 -> 1190346702
A7: Non current Investments | B7: 1 | C7: ='A6-FinPos'!C15 -> 0 | D7: ='A6-FinPos'!D15 -> 0 | E7: ='A6-FinPos'!E15 -> 0 | F7: ='A6-FinPos'!F15 -> 0 | G7: ='A6-FinPos'!G15 -> 0 | H7: ='A6-FinPos'!H15 -> 0 | I7: ='A6-FinPos'!I15 -> 0 | J7: ='A6-FinPos'!J15 -> 0 | K7: ='A6-FinPos'!K15 -> 0 | L7: ='A6-FinPos'!L15 -> 0
A8: Cash and investments available: | C8: =SUM(C5:C7) -> 224921256.7 | D8: =SUM(D5:D7) -> 104773259.4 | E8: 181715215.6 | F8: -267428232 | G8: -375794739 | H8: -375794739 | I8: 791465002.6 | J8: -566282999 | K8: -1440642794 | L8: -456910267
A10: Application of cash and investments
A11: Unspent conditional transfers | C11: ='SA3'!C149 -> 23273213.09 | D11: ='SA3'!D149 -> 56274735.47 | E11: ='SA3'!E149 -> 29532661.46 | F11: ='SA3'!F149 -> 42907407 | G11: ='SA3'!G149 -> 43188407 | H11: ='SA3'!H149 -> 43188407 | I11: ='SA3'!I149 -> 121366757 | J11: ='SA3'!J149 -> 74389222 | K11: ='SA3'!K149 -> 245029440 | L11: ='SA3'!L149 -> 241080590
A12: Unspent borrowing | C12: 42265 | D12: 26576 | E12: 18617 | F12: 0 | G12: 81274 | H12: 81274 | I12: 0 | J12: 1174 | K12: 0 | L12: 0
A13: Statutory requirements | B13: 2 | C13: -206253939.1 | D13: -301880917.9 | E13: -430430901.7 | F13: -195040276 | G13: -195040276 | H13: -195040276 | I13: -311234582.9 | J13: 0 | K13: 0 | L13: 0
A14: Other working capital requirements | B14: 3 | C14: =-C34 -> 1952029193 | D14: =-D34 -> 2927694638 | E14: 4158462362 | F14: =-F34 -> 2449301602 | G14: 3018922549 | H14: 3018922549 | I14: 4103207574 | J14: 2808900428 | K14: -33051947 | L14: -757699098
A15: Other provisions | C15: 563481572.2 | D15: 554291304.3 | E15: 581727406 | F15: 587370777 | G15: 587370777 | H15: 587370777 | I15: 581909765.5 | J15: 593464485 | K15: -22000000 | L15: -22000000
A16: Long term investments committed | B16: 4 | C16: =C44 -> 0 | D16: =D44 -> 0 | E16: 0 | F16: 0 | G16: 0 | H16: 0 | I16: 0 | J16: 0 | K16: 0 | L16: 0
A17: Reserves to be backed by cash/investments | B17: 5
A18: Total Application of cash and investments: | C18: =SUM(C11:C17) -> 2332572304 | D18: =SUM(D11:D17) -> 3236406336 | E18: 4339310144 | F18: 2884539510 | G18: 3454522731 | H18: 3454522731 | I18: 4495249514 | J18: 3476755309 | K18: 189977493 | L18: -538618508
A19: Surplus(shortfall) - Excluding Non-Current Creditors Trf to Debt Relief Benefits | C19: =C8-C18 -> -2107651047 | D19: =D8-D18 -> -3131633076 | E19: -4157594929 | F19: -3151967742 | G19: -3830317470 | H19: -3830317470 | I19: -3703784511 | J19: -4043038308 | K19: -1630620287 | L19: 81708241
A20: Creditors transferred to Debt Relief - Non-Current portion | C20: ='SA3'!C162 -> 0 | D20: ='SA3'!D162 -> 0 | E20: ='SA3'!E162 -> 0 | F20: ='SA3'!F162 -> 0 | G20: ='SA3'!G162 -> 0 | H20: ='SA3'!H162 -> 0 | I20: ='SA3'!I162 -> 0 | J20: ='SA3'!J162 -> 0 | K20: ='SA3'!K162 -> 0 | L20: ='SA3'!L162 -> 0
A21: Surplus(shortfall) - Including Non-Current Creditors Trf to Debt Relief Benefits | C21: =SUM(C19:C20) -> -2107651047 | D21: =SUM(D19:D20) -> -3131633076 | E21: -4157594929 | F21: -3151967742 | G21: -3830317470 | H21: -3830317470 | I21: -3703784511 | J21: -4043038308 | K21: -1630620287 | L21: 81708241
A22: =head27a -> References
A23: 1. Must reconcile with Budgeted Cash Flows
A24: 2. For example: VAT, taxation
A25: 3. Council approval for policy required - include sufficient working capital (e.g. allowing for a % of current debtors > 90 days as uncollectable)
A26: 4. For example: sinking fund requirements for borrowing
A27: 5. Council approval required for each reserve created and basis of cash backing of reserves - Total Reserves to be backed by cash/investments excl Valuation reserve
A30: Other working capital requirements
A31: Debtors | C31: =IF(ISERROR(ROUND(C37*C38,-3)),0,(ROUND(C37*C38,-3))) -> 689862000 | D31: =IF(ISERROR(ROUND(D37*D38,-3)),0,(ROUND(D37*D38,-3))) -> 442673000 | E31: 399949000 | F31: 280109000 | G31: 337330000 | H31: 337330000 | I31: 783646000 | J31: 835053000 | K31: 784014000 | L31: -2077167000
A33: Creditors due | C33: ='SA3'!C147+'SA3'!C148 -> 2641891193 | D33: ='SA3'!D147+'SA3'!D148 -> 3370367638 | E33: ='SA3'!E147+'SA3'!E148 -> 4558411362 | F33: ='SA3'!F147+'SA3'!F148 -> 2729410602 | G33: ='SA3'!G147+'SA3'!G148 -> 3356252549 | H33: ='SA3'!H147+'SA3'!H148 -> 3356252549 | I33: ='SA3'!I147+'SA3'!I148 -> 4886853574 | J33: ='SA3'!J147+'SA3'!J148 -> 3643953428 | K33: ='SA3'!K147+'SA3'!K148 -> 750962053 | L33: ='SA3'!L147+'SA3'!L148 -> -2834866098
A34: Total | C34: =C31-C33 -> -1952029193 | D34: =D31-D33 -> -2927694638 | E34: -4158462362 | F34: -2449301602 | G34: -3018922549 | H34: -3018922549 | I34: -4103207574 | J34: -2808900428 | K34: 33051947 | L34: 757699098
A36: Debtors collection assumptions
A37: Balance outstanding - debtors | C37: ='A6-FinPos'!C7+'A6-FinPos'!C8+'A6-FinPos'!C9+'A6-FinPos'!C22+'A6-FinPos'!C23 -> 616137077.4 | D37: ='A6-FinPos'!D7+'A6-FinPos'!D8+'A6-FinPos'!D9+'A6-FinPos'!D22+'A6-FinPos'!D23 -> 475604645.4 | E37: ='A6-FinPos'!E7+'A6-FinPos'!E8+'A6-FinPos'!E9+'A6-FinPos'!E22+'A6-FinPos'!E23 -> 540073890.6 | F37: ='A6-FinPos'!F7+'A6-FinPos'!F8+'A6-FinPos'!F9+'A6-FinPos'!F22+'A6-FinPos'!F23 -> 890256641 | G37: ='A6-FinPos'!G7+'A6-FinPos'!G8+'A6-FinPos'!G9+'A6-FinPos'!G22+'A6-FinPos'!G23 -> 1015659528 | H37: ='A6-FinPos'!H7+'A6-FinPos'!H8+'A6-FinPos'!H9+'A6-FinPos'!H22+'A6-FinPos'!H23 -> 1015659528 | I37: ='A6-FinPos'!I7+'A6-FinPos'!I8+'A6-FinPos'!I9+'A6-FinPos'!I22+'A6-FinPos'!I23 -> 1150705685 | J37: ='A6-FinPos'!J7+'A6-FinPos'!J8+'A6-FinPos'!J9+'A6-FinPos'!J22+'A6-FinPos'!J23 -> 1267305886 | K37: ='A6-FinPos'!K7+'A6-FinPos'!K8+'A6-FinPos'!K9+'A6-FinPos'!K22+'A6-FinPos'!K23 -> 1048300080 | L37: ='A6-FinPos'!L7+'A6-FinPos'!L8+'A6-FinPos'!L9+'A6-FinPos'!L22+'A6-FinPos'!L23 -> -2458648393
A38: Estimate of debtors collection rate | C38: =IF(ISERROR('SA10'!D10),0,('SA10'!D10)) -> 1.119656504 | D38: =IF(ISERROR('SA10'!E10),0,('SA10'!E10)) -> 0.9307584756 | E38: =IF(ISERROR('SA10'!F10),0,('SA10'!F10)) -> 0.7405457961 | F38: =IF(ISERROR('SA10'!G10),0,('SA10'!G10)) -> 0.3146384112 | G38: =IF(ISERROR('SA10'!H10),0,('SA10'!H10)) -> 0.332128968 | H38: =IF(ISERROR('SA10'!I10),0,('SA10'!I10)) -> 0.332128968 | I38: =IF(ISERROR('SA10'!J10),0,('SA10'!J10)) -> 0.6810132064 | J38: =IF(ISERROR('SA10'!K10),0,('SA10'!K10)) -> 0.6589196801 | K38: =IF(ISERROR('SA10'!L10),0,('SA10'!L10)) -> 0.7478909077 | L38: =IF(ISERROR('SA10'!M10),0,('SA10'!M10)) -> 0.844841083
K41: `
A42: =A16 -> Long term investments committed
A43: Balance (Insert description; eg sinking fund)
C44: =SUM(C43:C43) -> 0 | D44: 0 | E44: 0 | F44: 0 | G44: 0 | H44: 0 | I44: 0 | J44: 0 | K44: 0 | L44: 0
A45: =A17 -> Reserves to be backed by cash/investments
A46: Housing Development Fund | C46: ='SA3'!C184 -> 0 | D46: ='SA3'!D184 -> 0 | E46: ='SA3'!E184 -> 0 | F46: ='SA3'!F184 -> 0 | G46: ='SA3'!G184 -> 0 | H46: ='SA3'!H184 -> 0 | I46: ='SA3'!I184 -> 0 | J46: ='SA3'!J184 -> 0 | K46: ='SA3'!K184 -> 0 | L46: ='SA3'!L184 -> 0
A47: Capital replacement | C47: ='SA3'!C185 -> 0 | D47: ='SA3'!D185 -> 0 | E47: ='SA3'!E185 -> 0 | F47: ='SA3'!F185 -> 0 | G47: ='SA3'!G185 -> 0 | H47: ='SA3'!H185 -> 0 | I47: ='SA3'!I185 -> 0 | J47: ='SA3'!J185 -> 0 | K47: ='SA3'!K185 -> 0 | L47: ='SA3'!L185 -> 0
A48: Self-insurance | C48: ='SA3'!C186 -> 0 | D48: ='SA3'!D186 -> 0 | E48: ='SA3'!E186 -> 0 | F48: ='SA3'!F186 -> 0 | G48: ='SA3'!G186 -> 0 | H48: ='SA3'!H186 -> 0 | I48: ='SA3'!I186 -> 0 | J48: ='SA3'!J186 -> 0 | K48: ='SA3'!K186 -> 0 | L48: ='SA3'!L186 -> 0
A49: Compensation for Occupational Injuries and Diseases
A50: Employee Benefit reserve
A51: Non-current Provisions reserve
A52: Valuation roll reserve
A53: Investment in associate account
A54: Capitalisation
B55: 6 | C55: =SUM(C46:C54) -> 0 | D55: =SUM(D46:D54) -> 0 | E55: 0 | F55: 0 | G55: 0 | H55: 0 | I55: 0 | J55: 0 | K55: 0 | L55: 0
A56: Note:
A57: 6. Above reserves do not include Revaluation reserve. Revaluation reserve not required to be cash backed

Sheet A9-Asset
A1: =muni&" - "&Approve9 -> NW403 City Of Matlosana - Table A9 Asset Management
A2: =desc -> Description | B2: =head27 -> Ref | C2: =head1b -> 2021/22 | D2: =head1A -> 2022/23 | E2: =Head1 -> 2023/24 | F2: =Head2 -> Current Year 2024/25 | I2: =Head3 -> 2025/26 Medium Term Revenue & Expenditure Framework
A3: R thousand | C3: =Head5 -> Audited Outcome | D3: =Head5 -> Audited Outcome | E3: =Head5 -> Audited Outcome | F3: =Head6 -> Original Budget | G3: =Head7 -> Adjusted Budget | H3: =Head8 -> Full Year Forecast | I3: =Head9 -> Budget Year 2025/26 | J3: =Head10 -> Budget Year +1 2026/27 | K3: =Head11 -> Budget Year +2 2027/28
A4: CAPITAL EXPENDITURE
A5: Total New Assets | B5: 1 | C5: =C15+C18+C19+C22+C25+C26+SUM(C29:C35)+C38 -> 133379440 | D5: =D15+D18+D19+D22+D25+D26+SUM(D29:D35)+D38 -> 75010051.89 | E5: 196603592 | F5: 201149603 | G5: 205122467 | H5: 205122467 | I5: 232522898 | J5: 212108800 | K5: 220674210
A6: Roads Infrastructure | C6: =SA34a!C7 -> 50195002.81 | D6: =SA34a!D7 -> 23808362.07 | E6: =SA34a!E7 -> 32860216.31 | F6: =SA34a!F7 -> 12801949 | G6: =SA34a!G7 -> 52339652 | H6: =SA34a!H7 -> 52339652 | I6: =SA34a!I7 -> 12000000 | J6: =SA34a!J7 -> 16000000 | K6: =SA34a!K7 -> 20500000
A7: Storm water Infrastructure | C7: =SA34a!C12 -> 0 | D7: =SA34a!D12 -> 0 | E7: =SA34a!E12 -> 0 | F7: =SA34a!F12 -> 0 | G7: =SA34a!G12 -> 0 | H7: =SA34a!H12 -> 0 | I7: =SA34a!I12 -> 0 | J7: =SA34a!J12 -> 0 | K7: =SA34a!K12 -> 0
A8: Electrical Infrastructure | C8: =SA34a!C16 -> 20537556.77 | D8: =SA34a!D16 -> 29978448.65 | E8: =SA34a!E16 -> 110064457.5 | F8: =SA34a!F16 -> 0 | G8: =SA34a!G16 -> 8988652 | H8: =SA34a!H16 -> 8988652 | I8: =SA34a!I16 -> 6188652 | J8: =SA34a!J16 -> 2307770 | K8: =SA34a!K16 -> 2300000
A9: Water Supply Infrastructure | C9: =SA34a!C26 -> 28398307.77 | D9: =SA34a!D26 -> 8186179.65 | E9: =SA34a!E26 -> 19228222.42 | F9: =SA34a!F26 -> 22967749 | G9: =SA34a!G26 -> 29574966 | H9: =SA34a!H26 -> 29574966 | I9: =SA34a!I26 -> 50518478 | J9: =SA34a!J26 -> 52400130 | K9: =SA34a!K26 -> 66789000
A10: Sanitation Infrastructure | C10: =SA34a!C37 -> 8858272.76 | D10: =SA34a!D37 -> 6583677.91 | E10: =SA34a!E37 -> 8021782.37 | F10: =SA34a!F37 -> 61512454 | G10: =SA34a!G37 -> 47923326 | H10: =SA34a!H37 -> 47923326 | I10: =SA34a!I37 -> 66433671 | J10: =SA34a!J37 -> 80600000 | K10: =SA34a!K37 -> 78085210
A11: Solid Waste Infrastructure | C11: =SA34a!C44 -> 0 | D11: =SA34a!D44 -> 3496357.41 | E11: =SA34a!E44 -> 18463239.3 | F11: =SA34a!F44 -> 38773866 | G11: =SA34a!G44 -> 27919792 | H11: =SA34a!H44 -> 27919792 | I11: =SA34a!I44 -> 23320838 | J11: =SA34a!J44 -> 23000000 | K11: =SA34a!K44 -> 22000000
A12: Rail Infrastructure | C12: =SA34a!C52 -> 0 | D12: =SA34a!D52 -> 0 | E12: =SA34a!E52 -> 0 | F12: =SA34a!F52 -> 0 | G12: =SA34a!G52 -> 0 | H12: =SA34a!H52 -> 0 | I12: =SA34a!I52 -> 0 | J12: =SA34a!J52 -> 0 | K12: =SA34a!K52 -> 0
A13: Coastal Infrastructure | C13: =SA34a!C62 -> 0 | D13: =SA34a!D62 -> 0 | E13: =SA34a!E62 -> 0 | F13: =SA34a!F62 -> 0 | G13: =SA34a!G62 -> 0 | H13: =SA34a!H62 -> 0 | I13: =SA34a!I62 -> 0 | J13: =SA34a!J62 -> 0 | K13: =SA34a!K62 -> 0
A14: Information and Communication Infrastructure | C14: =SA34a!C68 -> 0 | D14: =SA34a!D68 -> 0 | E14: =SA34a!E68 -> 0 | F14: =SA34a!F68 -> 0 | G14: =SA34a!G68 -> 0 | H14: =SA34a!H68 -> 0 | I14: =SA34a!I68 -> 0 | J14: =SA34a!J68 -> 0 | K14: =SA34a!K68 -> 0
A15: Infrastructure | C15: =SUM(C6:C14) -> 107989140.1 | D15: =SUM(D6:D14) -> 72053025.69 | E15: 188637917.9 | F15: 136056018 | G15: 166746388 | H15: 166746388 | I15: 158461639 | J15: 174307900 | K15: 189674210
A16: Community Facilities | C16: =SA34a!C75 -> 0 | D16: =SA34a!D75 -> 0 | E16: =SA34a!E75 -> 0 | F16: =SA34a!F75 -> 0 | G16: =SA34a!G75 -> 0 | H16: =SA34a!H75 -> 0 | I16: =SA34a!I75 -> 0 | J16: =SA34a!J75 -> 0 | K16: =SA34a!K75 -> 0
A17: Sport and Recreation Facilities | C17: =SA34a!C98 -> 25390299.85 | D17: =SA34a!D98 -> 2949852.28 | E17: =SA34a!E98 -> 7965674.15 | F17: =SA34a!F98 -> 15093585 | G17: =SA34a!G98 -> 6376079 | H17: =SA34a!H98 -> 6376079 | I17: =SA34a!I98 -> 17809008 | J17: =SA34a!J98 -> 11000000 | K17: =SA34a!K98 -> 15000000
A18: Community Assets | C18: =SUM(C16:C17) -> 25390299.85 | D18: =SUM(D16:D17) -> 2949852.28 | E18: 7965674.15 | F18: 15093585 | G18: 6376079 | H18: 6376079 | I18: 17809008 | J18: 11000000 | K18: 15000000
A19: Heritage Assets | C19: =SA34a!C103 -> 0 | D19: =SA34a!D103 -> 0 | E19: =SA34a!E103 -> 0 | F19: =SA34a!F103 -> 0 | G19: =SA34a!G103 -> 0 | H19: =SA34a!H103 -> 0 | I19: =SA34a!I103 -> 0 | J19: =SA34a!J103 -> 0 | K19: =SA34a!K103 -> 0
A20: Revenue Generating | C20: =SA34a!C111 -> 0 | D20: =SA34a!D111 -> 0 | E20: =SA34a!E111 -> 0 | F20: =SA34a!F111 -> 0 | G20: =SA34a!G111 -> 0 | H20: =SA34a!H111 -> 0 | I20: =SA34a!I111 -> 0 | J20: =SA34a!J111 -> 0 | K20: =SA34a!K111 -> 0
A21: Non-revenue Generating | C21: =SA34a!C114 -> 0 | D21: =SA34a!D114 -> 0 | E21: =SA34a!E114 -> 0 | F21: =SA34a!F114 -> 0 | G21: =SA34a!G114 -> 0 | H21: =SA34a!H114 -> 0 | I21: =SA34a!I114 -> 0 | J21: =SA34a!J114 -> 0 | K21: =SA34a!K114 -> 0
A22: Investment properties | C22: =SUM(C20:C21) -> 0 | D22: =SUM(D20:D21) -> 0 | E22: 0 | F22: 0 | G22: 0 | H22: 0 | I22: 0 | J22: 0 | K22: 0
A23: Operational Buildings | C23: =SA34a!C119 -> 0 | D23: =SA34a!D119 -> 0 | E23: =SA34a!E119 -> 0 | F23: =SA34a!F119 -> 0 | G23: =SA34a!G119 -> 0 | H23: =SA34a!H119 -> 0 | I23: =SA34a!I119 -> 0 | J23: =SA34a!J119 -> 0 | K23: =SA34a!K119 -> 0
A24: Housing | C24: =SA34a!C131 -> 0 | D24: =SA34a!D131 -> 0 | E24: =SA34a!E131 -> 0 | F24: =SA34a!F131 -> 0 | G24: =SA34a!G131 -> 0 | H24: =SA34a!H131 -> 0 | I24: =SA34a!I131 -> 0 | J24: =SA34a!J131 -> 0 | K24: =SA34a!K131 -> 0
A25: Other Assets | C25: =SUM(C23:C24) -> 0 | D25: =SUM(D23:D24) -> 0 | E25: 0 | F25: 0 | G25: 0 | H25: 0 | I25: 0 | J25: 0 | K25: 0
A26: Biological or Cultivated Assets | C26: =SA34a!C136 -> 0 | D26: =SA34a!D136 -> 0 | E26: =SA34a!E136 -> 0 | F26: =SA34a!F136 -> 0 | G26: =SA34a!G136 -> 0 | H26: =SA34a!H136 -> 0 | I26: =SA34a!I136 -> 0 | J26: =SA34a!J136 -> 0 | K26: =SA34a!K136 -> 0
A27: Servitudes | C27: =SA34a!C140 -> 0 | D27: =SA34a!D140 -> 0 | E27: =SA34a!E140 -> 0 | F27: =SA34a!F140 -> 0 | G27: =SA34a!G140 -> 0 | H27: =SA34a!H140 -> 0 | I27: =SA34a!I140 -> 0 | J27: =SA34a!J140 -> 0 | K27: =SA34a!K140 -> 0
A28: Licences and Rights | C28: =SA34a!C141 -> 0 | D28: =SA34a!D141 -> 0 | E28: =SA34a!E141 -> 0 | F28: =SA34a!F141 -> 0 | G28: =SA34a!G141 -> 0 | H28: =SA34a!H141 -> 0 | I28: =SA34a!I141 -> 0 | J28: =SA34a!J141 -> 0 | K28: =SA34a!K141 -> 0
A29: Intangible Assets | C29: =SUM(C27:C28) -> 0 | D29: =SUM(D27:D28) -> 0 | E29: 0 | F29: 0 | G29: 0 | H29: 0 | I29: 0 | J29: 0 | K29: 0
A30: Computer Equipment | C30: =SA34a!C149 -> 0 | D30: =SA34a!D149 -> 0 | E30: =SA34a!E149 -> -0.03 | F30: =SA34a!F149 -> 3000000 | G30: =SA34a!G149 -> 3000000 | H30: =SA34a!H149 -> 3000000 | I30: =SA34a!I149 -> 3000000 | J30: =SA34a!J149 -> 0 | K30: =SA34a!K149 -> 0
A31: Furniture and Office Equipment | C31: =SA34a!C152 -> 0 | D31: =SA34a!D152 -> 0.01 | E31: =SA34a!E152 -> 0 | F31: =SA34a!F152 -> 2000000 | G31: =SA34a!G152 -> 2000000 | H31: =SA34a!H152 -> 2000000 | I31: =SA34a!I152 -> 2000000 | J31: =SA34a!J152 -> 0 | K31: =SA34a!K152 -> 0
A32: Machinery and Equipment | C32: =SA34a!C155 -> 0 | D32: =SA34a!D155 -> 0 | E32: =SA34a!E155 -> -0.01 | F32: =SA34a!F155 -> 5000000 | G32: =SA34a!G155 -> 2000000 | H32: =SA34a!H155 -> 2000000 | I32: =SA34a!I155 -> 2000000 | J32: =SA34a!J155 -> 0 | K32: =SA34a!K155 -> 0
A33: Transport Assets | C33: =SA34a!C158 -> 0 | D33: =SA34a!D158 -> 7173.91 | E33: =SA34a!E158 -> 0 | F33: =SA34a!F158 -> 40000000 | G33: =SA34a!G158 -> 25000000 | H33: =SA34a!H158 -> 25000000 | I33: =SA34a!I158 -> 49252251 | J33: =SA34a!J158 -> 26800900 | K33: =SA34a!K158 -> 16000000
A34: Land | C34: =SA34a!C161 -> 0 | D34: =SA34a!D161 -> 0 | E34: =SA34a!E161 -> 0 | F34: =SA34a!F161 -> 0 | G34: =SA34a!G161 -> 0 | H34: =SA34a!H161 -> 0 | I34: =SA34a!I161 -> 0 | J34: =SA34a!J161 -> 0 | K34: =SA34a!K161 -> 0
A35: Zoo's, Marine and Non-biological Animals | C35: =SA34a!C164 -> 0 | D35: =SA34a!D164 -> 0 | E35: =SA34a!E164 -> 0 | F35: =SA34a!F164 -> 0 | G35: =SA34a!G164 -> 0 | H35: =SA34a!H164 -> 0 | I35: =SA34a!I164 -> 0 | J35: =SA34a!J164 -> 0 | K35: =SA34a!K164 -> 0
A36: Mature | C36: =SA34a!C168 -> 0 | D36: =SA34a!D168 -> 0 | E36: =SA34a!E168 -> 0 | F36: =SA34a!F168 -> 0 | G36: =SA34a!G168 -> 0 | H36: =SA34a!H168 -> 0 | I36: =SA34a!I168 -> 0 | J36: =SA34a!J168 -> 0 | K36: =SA34a!K168 -> 0
A37: Immature | C37: =SA34a!C171 -> 0 | D37: =SA34a!D171 -> 0 | E37: =SA34a!E171 -> 0 | F37: =SA34a!F171 -> 0 | G37: =SA34a!G171 -> 0 | H37: =SA34a!H171 -> 0 | I37: =SA34a!I171 -> 0 | J37: =SA34a!J171 -> 0 | K37: =SA34a!K171 -> 0
A38: Living Resources | C38: =SUM(C36:C37) -> 0 | D38: =SUM(D36:D37) -> 0 | E38: 0 | F38: 0 | G38: 0 | H38: 0 | I38: 0 | J38: 0 | K38: 0
A40: Total Renewal of Existing Assets | B40: 2 | C40: =C50+C53+C54+C57+C60+C61+SUM(C64:C70)+C73 -> 5483309.18 | D40: =D50+D53+D54+D57+D60+D61+SUM(D64:D70)+D73 -> 3054709.57 | E40: 10039447.68 | F40: 17612652 | G40: 15424000 | H40: 15424000 | I40: 25462551 | J40: 20324000 | K40: 11755000
A41: Roads Infrastructure | C41: =SA34b!C7 -> 0 | D41: =SA34b!D7 -> 0 | E41: =SA34b!E7 -> 0 | F41: =SA34b!F7 -> 0 | G41: =SA34b!G7 -> 0 | H41: =SA34b!H7 -> 0 | I41: =SA34b!I7 -> 0 | J41: =SA34b!J7 -> 0 | K41: =SA34b!K7 -> 0
A42: Storm water Infrastructure | C42: =SA34b!C12 -> 0 | D42: =SA34b!D12 -> 0 | E42: =SA34b!E12 -> 0 | F42: =SA34b!F12 -> 0 | G42: =SA34b!G12 -> 0 | H42: =SA34b!H12 -> 0 | I42: =SA34b!I12 -> 0 | J42: =SA34b!J12 -> 0 | K42: =SA34b!K12 -> 0
A43: Electrical Infrastructure | C43: =SA34b!C16 -> 0 | D43: =SA34b!D16 -> 3054709.57 | E43: =SA34b!E16 -> 4528062.86 | F43: =SA34b!F16 -> 5112652 | G43: =SA34b!G16 -> 2924000 | H43: =SA34b!H16 -> 2924000 | I43: =SA34b!I16 -> 25462551 | J43: =SA34b!J16 -> 20324000 | K43: =SA34b!K16 -> 11755000
A44: Water Supply Infrastructure | C44: =SA34b!C26 -> 0 | D44: =SA34b!D26 -> 0 | E44: =SA34b!E26 -> 0 | F44: =SA34b!F26 -> 0 | G44: =SA34b!G26 -> 0 | H44: =SA34b!H26 -> 0 | I44: =SA34b!I26 -> 0 | J44: =SA34b!J26 -> 0 | K44: =SA34b!K26 -> 0
A45: Sanitation Infrastructure | C45: =SA34b!C37 -> 5483309.18 | D45: =SA34b!D37 -> 0 | E45: =SA34b!E37 -> 5511384.82 | F45: =SA34b!F37 -> 12500000 | G45: =SA34b!G37 -> 12500000 | H45: =SA34b!H37 -> 12500000 | I45: =SA34b!I37 -> 0 | J45: =SA34b!J37 -> 0 | K45: =SA34b!K37 -> 0
A46: Solid Waste Infrastructure | C46: =SA34b!C44 -> 0 | D46: =SA34b!D44 -> 0 | E46: =SA34b!E44 -> 0 | F46: =SA34b!F44 -> 0 | G46: =SA34b!G44 -> 0 | H46: =SA34b!H44 -> 0 | I46: =SA34b!I44 -> 0 | J46: =SA34b!J44 -> 0 | K46: =SA34b!K44 -> 0
A47: Rail Infrastructure | C47: =SA34b!C52 -> 0 | D47: =SA34b!D52 -> 0 | E47: =SA34b!E52 -> 0 | F47: =SA34b!F52 -> 0 | G47: =SA34b!G52 -> 0 | H47: =SA34b!H52 -> 0 | I47: =SA34b!I52 -> 0 | J47: =SA34b!J52 -> 0 | K47: =SA34b!K52 -> 0
A48: Coastal Infrastructure | C48: =SA34b!C62 -> 0 | D48: =SA34b!D62 -> 0 | E48: =SA34b!E62 -> 0 | F48: =SA34b!F62 -> 0 | G48: =SA34b!G62 -> 0 | H48: =SA34b!H62 -> 0 | I48: =SA34b!I62 -> 0 | J48: =SA34b!J62 -> 0 | K48: =SA34b!K62 -> 0
A49: Information and Communication Infrastructure | C49: =SA34b!C68 -> 0 | D49: =SA34b!D68 -> 0 | E49: =SA34b!E68 -> 0 | F49: =SA34b!F68 -> 0 | G49: =SA34b!G68 -> 0 | H49: =SA34b!H68 -> 0 | I49: =SA34b!I68 -> 0 | J49: =SA34b!J68 -> 0 | K49: =SA34b!K68 -> 0
A50: Infrastructure | C50: =SUM(C41:C49) -> 5483309.18 | D50: =SUM(D41:D49) -> 3054709.57 | E50: 10039447.68 | F50: 17612652 | G50: 15424000 | H50: 15424000 | I50: 25462551 | J50: 20324000 | K50: 11755000
A51: Community Facilities | C51: =SA34b!C75 -> 0 | D51: =SA34b!D75 -> 0 | E51: =SA34b!E75 -> 0 | F51: =SA34b!F75 -> 0 | G51: =SA34b!G75 -> 0 | H51: =SA34b!H75 -> 0 | I51: =SA34b!I75 -> 0 | J51: =SA34b!J75 -> 0 | K51: =SA34b!K75 -> 0
A52: Sport and Recreation Facilities | C52: =SA34b!C98 -> 0 | D52: =SA34b!D98 -> 0 | E52: =SA34b!E98 -> 0 | F52: =SA34b!F98 -> 0 | G52: =SA34b!G98 -> 0 | H52: =SA34b!H98 -> 0 | I52: =SA34b!I98 -> 0 | J52: =SA34b!J98 -> 0 | K52: =SA34b!K98 -> 0
A53: Community Assets | C53: =SUM(C51:C52) -> 0 | D53: =SUM(D51:D52) -> 0 | E53: 0 | F53: 0 | G53: 0 | H53: 0 | I53: 0 | J53: 0 | K53: 0
A54: Heritage Assets | C54: =SA34b!C103 -> 0 | D54: =SA34b!D103 -> 0 | E54: =SA34b!E103 -> 0 | F54: =SA34b!F103 -> 0 | G54: =SA34b!G103 -> 0 | H54: =SA34b!H103 -> 0 | I54: =SA34b!I103 -> 0 | J54: =SA34b!J103 -> 0 | K54: =SA34b!K103 -> 0
